Workbook

Sheet Career
B1: Career | H1: Pre 2015 (for Website) | O1: 2025 | T1: 2024 | Y1: 2023 | AD1: 2022 | AI1: 2021 | AN1: 2020 | AS1: 2019 | AX1: 2018 | BC1: 2017 | BH1: 2016 | BM1: 2015 | BR1: 2014 | BW1: 2013 | CB1: Pre 2013 | CE1: 2012 | CJ1: Pre 2012 | CM1: 2011 | CR1: 2010 | CW1: 2009 | DB1: 2008 | DG1: 2007 | DL1: 2006 | DP1: 2005 | DT1: 2004 | DX1: 2003 | EB1: 2002 | EF1: Pre 2002
A2: Name | B2: AB | C2: H | D2: HR | E2: AVG | F2: Yrs | G2: First Yr | H2: Yrs | I2: AB | J2: H | K2: HR | L2: AVG | M2: Year Start | N2: Jackets | O2: AB | P2: R | Q2: H | R2: HR | S2: AVG | T2: AB | U2: R | V2: H | W2: HR | X2: AVG | Y2: AB | Z2: R | AA2: H | AB2: HR | AC2: AVG | AD2: AB | AE2: R | AF2: H | AG2: HR | AH2: AVG | AI2: AB | AJ2: R | AK2: H | AL2: HR | AM2: AVG | AN2: AB | AO2: R | AP2: H | AQ2: HR | AR2: AVG | AS2: AB | AT2: R | AU2: H | AV2: HR | AW2: AVG | AX2: AB | AY2: R | AZ2: H | BA2: HR | BB2: AVG | BC2: AB | BD2: R | BE2: H | BF2: HR | BG2: AVG | BH2: AB | BI2: R | BJ2: H | BK2: HR | BL2: AVG | BM2: AB | BN2: R | BO2: H | BP2: HR | BQ2: AVG | BR2: AB | BS2: R | BT2: H | BU2: HR | BV2: AVG | BW2: AB | BX2: R | BY2: H | BZ2: HR | CA2: AVG | CB2: AB | CC2: H | CD2: HR | CE2: AB | CF2: R | CG2: H | CH2: HR | CI2: AVG | CJ2: AB | CK2: H | CL2: HR | CM2: AB | CN2: R | CO2: H | CP2: HR | CQ2: AVG | CR2: AB | CS2: R | CT2: H | CU2: HR | CV2: AVG | CW2: AB | CX2: R | CY2: H | CZ2: HR | DA2: AVG | DB2: AB | DC2: R | DD2: H | DE2: HR | DF2: AVG | DG2: AB | DH2: R | DI2: H | DJ2: HR | DK2: AVG | DL2: AB | DM2: H | DN2: HR | DO2: AVG | DP2: AB | DQ2: H | DR2: HR | DS2: AVG | DT2: AB | DU2: H | DV2: HR | DW2: AVG | DX2: AB | DY2: H | DZ2: HR | EA2: AVG | EB2: AB | EC2: H | ED2: HR | EE2: AVG | EF2: AB | EG2: H | EH2: HR | EI2: AVG | EJ2: Yrs
A3: Brad Cline | B3: =SUM(O3,T3,Y3,AD3,AI3,AN3,AS3,AX3,BC3,BH3,BM3,BR3,BW3,CE3,CM3,CR3,CW3,DB3,DG3,DL3,DP3,DT3,DX3,EB3,EF3) -> 2851 | C3: =SUM(Q3,V3,AA3,AF3,AK3,AP3,AU3,AZ3,BE3,BJ3,BO3,BT3,BY3,CG3,CO3,CT3,CY3,DD3,DI3,DM3,DQ3,DU3,DY3,EC3,EG3) -> 1853 | D3: =SUM(R3,W3,AB3,AG3,AL3,AQ3,AV3,BA3,BF3,BK3,BP3,BU3,BZ3,CH3,CP3,CU3,CZ3,DE3,DJ3,DN3,DR3,DV3,DZ3,ED3,EH3) -> 160 | E3: =IF(B3=0,0,C3/B3) -> 0.6499473869 | F3: =IF(O3>0,1,0)+IF(T3>0,1,0)+IF(Y3>0,1,0)+IF(AD3>0,1,0)+IF(AI3>0,1,0)+IF(AN3>0,1,0)+IF(AS3>0,1,0)+IF(AX3>0,1,0)+IF(BC3>0,1,0)+IF(BH3>0,1,0)+IF(BM3>0,1,0)+IF(BR3>0,1,0)+IF(BW3>0,1,0)+IF(CE3>0,1,0)+IF(CM3>0,1,0)+IF(CR3>0,1,0)+IF(CW3>0,1,0)+IF(DB3>0,1,0)+IF(DG3>0,1,0)+IF(DL3>0,1,0)+IF(DP3>0,1,0)+IF(DT3>0,1,0)+IF(DX3>0,1,0)+IF(EB3>0,1,0)+EJ3 -> 42 | G3: 1973 | H3: =IF(BR3>0,1,0)+IF(BW3>0,1,0)+IF(CE3>0,1,0)+IF(CM3>0,1,0)+IF(CR3>0,1,0)+IF(CW3>0,1,0)+IF(DB3>0,1,0)+IF(DG3>0,1,0)+IF(DL3>0,1,0)+IF(DP3>0,1,0)+IF(DT3>0,1,0)+IF(DX3>0,1,0)+IF(EB3>0,1,0)+EJ3 -> 41 | I3: =SUM(BR3,BW3,CE3,CM3,CR3,CW3,DB3,DG3,DL3,DP3,DT3,DX3,EB3,EF3) -> 2822 | J3: =SUM(BT3,BY3,CG3,CO3,CT3,CY3,DD3,DI3,DM3,DQ3,DU3,DY3,EC3,EG3) -> 1839 | K3: =SUM(BU3,BZ3,CH3,CP3,CU3,CZ3,DE3,DJ3,DN3,DR3,DV3,DZ3,ED3,EH3) -> 160 | L3: =IF(I3=0,0,J3/I3) -> 0.6516654855 | M3: 73 | N3: 10 | O3: =IFERROR(VLOOKUP($A3,'2025'!$A$2:$J$222,4,FALSE),0) -> 0 | P3: =IFERROR(VLOOKUP($A3,'2025'!$A$2:$J$222,5,FALSE),0) -> 0 | Q3: =IFERROR(VLOOKUP($A3,'2025'!$A$2:$J$222,6,FALSE),0) -> 0 | R3: =IFERROR(VLOOKUP($A3,'2025'!$A$2:$J$222,9,FALSE),0) -> 0 | S3: =IFERROR(VLOOKUP($A3,'2025'!$A$2:$J$222,10,FALSE),0) -> 0 | T3: =IFERROR(VLOOKUP($A3,'2024'!$A$2:$M$220,6,FALSE),0) -> 0 | U3: =IFERROR(VLOOKUP($A3,'2024'!$A$2:$M$220,7,FALSE),0) -> 0 | V3: =IFERROR(VLOOKUP($A3,'2024'!$A$2:$M$220,8,FALSE),0) -> 0 | W3: =IFERROR(VLOOKUP($A3,'2024'!$A$2:$M$220,11,FALSE),0) -> 0 | X3: =IFERROR(VLOOKUP($A3,'2024'!$A$2:$M$220,13,FALSE),0) -> 0 | Y3: =IFERROR(VLOOKUP($A3,'2023'!$A$2:$M$170,6,FALSE),0) -> 0 | Z3: =IFERROR(VLOOKUP($A3,'2023'!$A$2:$M$170,7,FALSE),0) -> 0 | AA3: =IFERROR(VLOOKUP($A3,'2023'!$A$2:$M$170,8,FALSE),0) -> 0 | AB3: =IFERROR(VLOOKUP($A3,'2023'!$A$2:$M$170,11,FALSE),0) -> 0 | AC3: =IFERROR(VLOOKUP($A3,'2023'!$A$2:$M$170,13,FALSE),0) -> 0 | AD3: =IFERROR(VLOOKUP($A3,'2022'!$B$2:$K$174,3,FALSE),0) -> 0 | AE3: =IFERROR(VLOOKUP($A3,'2022'!$B$2:$K$174,4,FALSE),0) -> 0 | AF3: =IFERROR(VLOOKUP($A3,'2022'!$B$2:$K$174,5,FALSE),0) -> 0 | AG3: =IFERROR(VLOOKUP($A3,'2022'!$B$2:$K$174,8,FALSE),0) -> 0 | AH3: =IFERROR(VLOOKUP($A3,'2022'!$B$2:$K$174,10,FALSE),0) -> 0 | AI3: =IFERROR(VLOOKUP($A3,'2021'!$B$2:$K$174,3,FALSE),0) -> 0 | AJ3: =IFERROR(VLOOKUP($A3,'2021'!$B$2:$K$174,4,FALSE),0) -> 0 | AK3: =IFERROR(VLOOKUP($A3,'2021'!$B$2:$K$174,5,FALSE),0) -> 0 | AL3: =IFERROR(VLOOKUP($A3,'2021'!$B$2:$K$174,8,FALSE),0) -> 0 | AM3: =IFERROR(VLOOKUP($A3,'2021'!$B$2:$K$174,10,FALSE),0) -> 0 | AN3: =IFERROR(VLOOKUP($A3,'2020'!$B$2:$K$170,3,FALSE),0) -> 0 | AO3: =IFERROR(VLOOKUP($A3,'2020'!$B$2:$K$170,4,FALSE),0) -> 0 | AP3: =IFERROR(VLOOKUP($A3,'2020'!$B$2:$K$170,5,FALSE),0) -> 0 | AQ3: =IFERROR(VLOOKUP($A3,'2020'!$B$2:$K$170,8,FALSE),0) -> 0 | AR3: =IFERROR(VLOOKUP($A3,'2020'!$B$2:$K$170,10,FALSE),0) -> 0 | AS3: =IFERROR(VLOOKUP($A3,'2019'!$B$2:$K$170,3,FALSE),0) -> 0 | AT3: =IFERROR(VLOOKUP($A3,'2019'!$B$2:$K$170,4,FALSE),0) -> 0 | AU3: =IFERROR(VLOOKUP($A3,'2019'!$B$2:$K$170,5,FALSE),0) -> 0 | AV3: =IFERROR(VLOOKUP($A3,'2019'!$B$2:$K$170,8,FALSE),0) -> 0 | AW3: =IFERROR(VLOOKUP($A3,'2019'!$B$2:$K$170,10,FALSE),0) -> 0 | AX3: =IFERROR(VLOOKUP($A3,'2018'!$B$2:$K$170,3,FALSE),0) -> 0 | AY3: =IFERROR(VLOOKUP($A3,'2018'!$B$2:$K$170,4,FALSE),0) -> 0 | AZ3: =IFERROR(VLOOKUP($A3,'2018'!$B$2:$K$170,5,FALSE),0) -> 0 | BA3: =IFERROR(VLOOKUP($A3,'2018'!$B$2:$K$170,8,FALSE),0) -> 0 | BB3: =IFERROR(VLOOKUP($A3,'2018'!$B$2:$K$170,10,FALSE),0) -> 0 | BC3: =IFERROR(VLOOKUP($A3,'2017'!$B$2:$J$163,2,FALSE),0) -> 0 | BD3: =IFERROR(VLOOKUP($A3,'2017'!$B$2:$J$163,3,FALSE),0) -> 0 | BE3: =IFERROR(VLOOKUP($A3,'2017'!$B$2:$J$163,4,FALSE),0) -> 0 | BF3: =IFERROR(VLOOKUP($A3,'2017'!$B$2:$J$163,7,FALSE),0) -> 0 | BG3: =IFERROR(VLOOKUP($A3,'2017'!$B$2:$J$163,9,FALSE),0) -> 0 | BH3: =IFERROR(VLOOKUP($A3,'2016'!$B$2:$K$165,3,FALSE),0) -> 0 | BI3: =IFERROR(VLOOKUP($A3,'2016'!$B$2:$K$165,4,FALSE),0) -> 0 | BJ3: =IFERROR(VLOOKUP($A3,'2016'!$B$2:$K$165,5,FALSE),0) -> 0 | BK3: =IFERROR(VLOOKUP($A3,'2016'!$B$2:$K$165,8,FALSE),0) -> 0 | BL3: =IFERROR(VLOOKUP($A3,'2016'!$B$2:$K$165,10,FALSE),0) -> 0 | BM3: =IFERROR(VLOOKUP($A3,'2015'!$B$2:$K$165,3,FALSE),0) -> 29 | BN3: =IFERROR(VLOOKUP($A3,'2015'!$B$2:$K$165,4,FALSE),0) -> 8 | BO3: =IFERROR(VLOOKUP($A3,'2015'!$B$2:$K$165,5,FALSE),0) -> 14 | BP3: =IFERROR(VLOOKUP($A3,'2015'!$B$2:$K$165,8,FALSE),0) -> 0 | BQ3: =IFERROR(VLOOKUP($A3,'2015'!$B$2:$K$165,10,FALSE),0) -> 0.4827586207 | BR3: =IFERROR(VLOOKUP($A3,'2014'!$B$2:$K$157,3,FALSE),0) -> 61 | BS3: =IFERROR(VLOOKUP($A3,'2014'!$B$2:$K$157,4,FALSE),0) -> 19 | BT3: =IFERROR(VLOOKUP($A3,'2014'!$B$2:$K$157,5,FALSE),0) -> 26 | BU3: =IFERROR(VLOOKUP($A3,'2014'!$B$2:$K$157,8,FALSE),0) -> 0 | BV3: =IFERROR(VLOOKUP($A3,'2014'!$B$2:$K$157,10,FALSE),0) -> 0.4262295082 | BW3: =IFERROR(VLOOKUP($A3,'2013'!$D$4:$I$249,2,FALSE),0) -> 65 | BX3: =IFERROR(VLOOKUP($A3,'2013'!$D$4:$I$249,3,FALSE),0) -> 18 | BY3: =IFERROR(VLOOKUP($A3,'2013'!$D$4:$I$249,4,FALSE),0) -> 33 | BZ3: =IFERROR(VLOOKUP($A3,'2013'!$D$4:$I$249,5,FALSE),0) -> 0 | CA3: =IFERROR(VLOOKUP($A3,'2013'!$D$4:$I$249,6,FALSE),0) -> 0.5076923077 | CB3: =IFERROR(VLOOKUP($A3,'2012'!$D$3:$O$172,2,FALSE),0) -> 2696 | CC3: =IFERROR(VLOOKUP($A3,'2012'!$D$3:$O$172,3,FALSE),0) -> 1780 | CD3: =IFERROR(VLOOKUP($A3,'2012'!$D$3:$O$172,4,FALSE),0) -> 161 | CE3: =IFERROR(VLOOKUP($A3,'2012'!$D$3:$O$172,5,FALSE),0) -> 64 | CF3: =IFERROR(VLOOKUP($A3,'2012'!$D$3:$O$172,6,FALSE),0) -> 21 | CG3: =IFERROR(VLOOKUP($A3,'2012'!$D$3:$O$172,7,FALSE),0) -> 39 | CH3: =IFERROR(VLOOKUP($A3,'2012'!$D$3:$O$172,8,FALSE),0) -> 0 | CI3: =IFERROR(VLOOKUP($A3,'2012'!$D$3:$O$172,9,FALSE),0) -> 0.609375 | CJ3: =IFERROR(VLOOKUP($A3,'2012'!$D$3:$O$172,10,FALSE),0) -> 2632 | CK3: =IFERROR(VLOOKUP($A3,'2012'!$D$3:$O$172,11,FALSE),0) -> 1741 | CL3: =IFERROR(VLOOKUP($A3,'2012'!$D$3:$O$172,12,FALSE),0) -> 161 | CM3: =IFERROR(VLOOKUP($A3,'2011'!$D$4:$I$251,2,FALSE),0) -> 82 | CN3: =IFERROR(VLOOKUP($A3,'2011'!$D$4:$I$251,3,FALSE),0) -> 39 | CO3: =IFERROR(VLOOKUP($A3,'2011'!$D$4:$I$251,4,FALSE),0) -> 57 | CP3: =IFERROR(VLOOKUP($A3,'2011'!$D$4:$I$251,5,FALSE),0) -> 0 | CQ3: =IFERROR(VLOOKUP($A3,'2011'!$D$4:$I$251,6,FALSE),0) -> 0.6951219512 | CR3: =IFERROR(VLOOKUP($A3,'2010'!$C$3:$H$234,2,FALSE),0) -> 73 | CS3: =IFERROR(VLOOKUP($A3,'2010'!$C$3:$H$234,3,FALSE),0) -> 33 | CT3: =IFERROR(VLOOKUP($A3,'2010'!$C$3:$H$234,4,FALSE),0) -> 44 | CU3: =IFERROR(VLOOKUP($A3,'2010'!$C$3:$H$234,5,FALSE),0) -> 1 | CV3: =IFERROR(VLOOKUP($A3,'2010'!$C$3:$H$234,6,FALSE),0) -> 0.602739726 | CW3: =IFERROR(VLOOKUP($A3,'2009'!$C$3:$H$242,2,FALSE),0) -> 77 | CX3: =IFERROR(VLOOKUP($A3,'2009'!$C$3:$H$242,3,FALSE),0) -> 34 | CY3: =IFERROR(VLOOKUP($A3,'2009'!$C$3:$H$242,4,FALSE),0) -> 54 | CZ3: =IFERROR(VLOOKUP($A3,'2009'!$C$3:$H$242,5,FALSE),0) -> 1 | DA3: =IFERROR(VLOOKUP($A3,'2009'!$C$3:$H$242,6,FALSE),0) -> 0.7012987013 | DB3: =IFERROR(VLOOKUP($A3,'2008'!$C$3:$H$229,2,FALSE),0) -> 74 | DC3: =IFERROR(VLOOKUP($A3,'2008'!$C$3:$H$229,3,FALSE),0) -> 30 | DD3: =IFERROR(VLOOKUP($A3,'2008'!$C$3:$H$229,4,FALSE),0) -> 52 | DE3: =IFERROR(VLOOKUP($A3,'2008'!$C$3:$H$229,5,FALSE),0) -> 6 | DF3: =IFERROR(VLOOKUP($A3,'2008'!$C$3:$H$229,6,FALSE),0) -> 0.7027027027 | DG3: =IFERROR(VLOOKUP($A3,'2007'!$C$3:$M$238,7,FALSE),0) -> 63 | DH3: =IFERROR(VLOOKUP($A3,'2007'!$C$3:$M$238,8,FALSE),0) -> 30 | DI3: =IFERROR(VLOOKUP($A3,'2007'!$C$3:$M$238,9,FALSE),0) -> 40 | DJ3: =IFERROR(VLOOKUP($A3,'2007'!$C$3:$M$238,10,FALSE),0) -> 0 | DK3: =IFERROR(VLOOKUP($A3,'2007'!$C$3:$M$238,11,FALSE),0) -> 0.6349206349 | DL3: =IFERROR(VLOOKUP($A3,'2006'!$A$2:$F$200,2,FALSE),0) -> 73 | DM3: =IFERROR(VLOOKUP($A3,'2006'!$A$2:$F$200,4,FALSE),0) -> 52 | DN3: =IFERROR(VLOOKUP($A3,'2006'!$A$2:$F$200,5,FALSE),0) -> 1 | DO3: =IFERROR(VLOOKUP($A3,'2006'!$A$2:$F$200,6,FALSE),0) -> 0.7123287671 | DP3: =IFERROR(VLOOKUP($A3,'2005'!$C$3:$M$205,8,FALSE),0) -> 67 | DQ3: =IFERROR(VLOOKUP($A3,'2005'!$C$3:$M$205,9,FALSE),0) -> 44 | DR3: =IFERROR(VLOOKUP($A3,'2005'!$C$3:$M$205,10,FALSE),0) -> 1 | DS3: =IFERROR(VLOOKUP($A3,'2005'!$C$3:$M$205,11,FALSE),0) -> 0.6567164179 | DT3: =IFERROR(VLOOKUP($A3,'2004'!$C$3:$M$213,8,FALSE),0) -> 75 | DU3: =IFERROR(VLOOKUP($A3,'2004'!$C$3:$M$213,9,FALSE),0) -> 46 | DV3: =IFERROR(VLOOKUP($A3,'2004'!$C$3:$M$213,10,FALSE),0) -> 3 | DW3: =IFERROR(VLOOKUP($A3,'2004'!$C$3:$M$213,11,FALSE),0) -> 0.6133333333 | DX3: =IFERROR(VLOOKUP($A3,'2003'!$C$3:$Q$214,12,FALSE),0) -> 71 | DY3: =IFERROR(VLOOKUP($A3,'2003'!$C$3:$Q$214,13,FALSE),0) -> 43 | DZ3: =IFERROR(VLOOKUP($A3,'2003'!$C$3:$Q$214,14,FALSE),0) -> 3 | EA3: =IFERROR(VLOOKUP($A3,'2003'!$C$3:$Q$214,15,FALSE),0) -> 0.6056338028 | EB3: =IFERROR(VLOOKUP($A3,'2002'!$D$3:$R$214,12,FALSE),0) -> 66 | EC3: =IFERROR(VLOOKUP($A3,'2002'!$D$3:$R$214,13,FALSE),0) -> 48 | ED3: =IFERROR(VLOOKUP($A3,'2002'!$D$3:$R$214,14,FALSE),0) -> 4 | EE3: =IFERROR(VLOOKUP($A3,'2002'!$D$3:$R$214,15,FALSE),0) -> 0.7272727273 | EF3: =IFERROR(VLOOKUP($A3,'Pre 2002'!$C$3:$CK$382,84,FALSE),0) -> 1911 | EG3: =IFERROR(VLOOKUP($A3,'Pre 2002'!$C$3:$CK$382,85,FALSE),0) -> 1261 | EH3: =IFERROR(VLOOKUP($A3,'Pre 2002'!$C$3:$CK$382,86,FALSE),0) -> 140 | EI3: =IFERROR(VLOOKUP($A3,'Pre 2002'!$C$3:$CK$382,87,FALSE),0) -> 0.6598639456 | EJ3: =IFERROR(VLOOKUP(A3,'Pre 2002'!$C$3:$CG$382,83,FALSE),0) -> 28
A4: Bob Lawton | B4: 3244 | C4: 1807 | D4: 96 | E4: 0.55702836 | F4: 48 | G4: 1978 | H4: 37 | I4: 2658 | J4: 1528 | K4: 96 | L4: 0.574868322 | M4: 78 | N4: 4 | O4: =IFERROR(VLOOKUP($A4,'2025'!$A$2:$J$222,4,FALSE),0) -> 41 | P4: =IFERROR(VLOOKUP($A4,'2025'!$A$2:$J$222,5,FALSE),0) -> 11 | Q4: =IFERROR(VLOOKUP($A4,'2025'!$A$2:$J$222,6,FALSE),0) -> 22 | R4: =IFERROR(VLOOKUP($A4,'2025'!$A$2:$J$222,9,FALSE),0) -> 0 | S4: =IFERROR(VLOOKUP($A4,'2025'!$A$2:$J$222,10,FALSE),0) -> 0.537 | T4: =IFERROR(VLOOKUP($A4,'2024'!$A$2:$M$220,6,FALSE),0) -> 41 | U4: =IFERROR(VLOOKUP($A4,'2024'!$A$2:$M$220,7,FALSE),0) -> 10 | V4: =IFERROR(VLOOKUP($A4,'2024'!$A$2:$M$220,8,FALSE),0) -> 17 | W4: =IFERROR(VLOOKUP($A4,'2024'!$A$2:$M$220,11,FALSE),0) -> 0 | X4: =IFERROR(VLOOKUP($A4,'2024'!$A$2:$M$220,13,FALSE),0) -> 0.415 | Y4: =IFERROR(VLOOKUP($A4,'2023'!$A$2:$M$170,6,FALSE),0) -> 38 | Z4: =IFERROR(VLOOKUP($A4,'2023'!$A$2:$M$170,7,FALSE),0) -> 15 | AA4: =IFERROR(VLOOKUP($A4,'2023'!$A$2:$M$170,8,FALSE),0) -> 18 | AB4: =IFERROR(VLOOKUP($A4,'2023'!$A$2:$M$170,11,FALSE),0) -> 0 | AC4: =IFERROR(VLOOKUP($A4,'2023'!$A$2:$M$170,13,FALSE),0) -> 0.474 | AD4: =IFERROR(VLOOKUP($A4,'2022'!$B$2:$K$174,3,FALSE),0) -> 46 | AE4: =IFERROR(VLOOKUP($A4,'2022'!$B$2:$K$174,4,FALSE),0) -> 11 | AF4: =IFERROR(VLOOKUP($A4,'2022'!$B$2:$K$174,5,FALSE),0) -> 21 | AG4: =IFERROR(VLOOKUP($A4,'2022'!$B$2:$K$174,8,FALSE),0) -> 0 | AH4: =IFERROR(VLOOKUP($A4,'2022'!$B$2:$K$174,10,FALSE),0) -> 0.457 | AI4: =IFERROR(VLOOKUP($A4,'2021'!$B$2:$K$174,3,FALSE),0) -> 53 | AJ4: =IFERROR(VLOOKUP($A4,'2021'!$B$2:$K$174,4,FALSE),0) -> 8 | AK4: =IFERROR(VLOOKUP($A4,'2021'!$B$2:$K$174,5,FALSE),0) -> 18 | AL4: =IFERROR(VLOOKUP($A4,'2021'!$B$2:$K$174,8,FALSE),0) -> 0 | AM4: =IFERROR(VLOOKUP($A4,'2021'!$B$2:$K$174,10,FALSE),0) -> 0.34 | AN4: =IFERROR(VLOOKUP($A4,'2020'!$B$2:$K$170,3,FALSE),0) -> 60 | AO4: =IFERROR(VLOOKUP($A4,'2020'!$B$2:$K$170,4,FALSE),0) -> 13 | AP4: =IFERROR(VLOOKUP($A4,'2020'!$B$2:$K$170,5,FALSE),0) -> 33 | AQ4: =IFERROR(VLOOKUP($A4,'2020'!$B$2:$K$170,8,FALSE),0) -> 0 | AR4: =IFERROR(VLOOKUP($A4,'2020'!$B$2:$K$170,10,FALSE),0) -> 0.55 | AS4: =IFERROR(VLOOKUP($A4,'2019'!$B$2:$K$170,3,FALSE),0) -> 49 | AT4: =IFERROR(VLOOKUP($A4,'2019'!$B$2:$K$170,4,FALSE),0) -> 15 | AU4: =IFERROR(VLOOKUP($A4,'2019'!$B$2:$K$170,5,FALSE),0) -> 21 | AV4: =IFERROR(VLOOKUP($A4,'2019'!$B$2:$K$170,8,FALSE),0) -> 0 | AW4: =IFERROR(VLOOKUP($A4,'2019'!$B$2:$K$170,10,FALSE),0) -> 0.429 | AX4: =IFERROR(VLOOKUP($A4,'2018'!$B$2:$K$170,3,FALSE),0) -> 45 | AY4: =IFERROR(VLOOKUP($A4,'2018'!$B$2:$K$170,4,FALSE),0) -> 10 | AZ4: =IFERROR(VLOOKUP($A4,'2018'!$B$2:$K$170,5,FALSE),0) -> 19 | BA4: =IFERROR(VLOOKUP($A4,'2018'!$B$2:$K$170,8,FALSE),0) -> 0 | BB4: =IFERROR(VLOOKUP($A4,'2018'!$B$2:$K$170,10,FALSE),0) -> 0.422 | BC4: =IFERROR(VLOOKUP($A4,'2017'!$B$2:$J$163,2,FALSE),0) -> 76 | BD4: =IFERROR(VLOOKUP($A4,'2017'!$B$2:$J$163,3,FALSE),0) -> 20 | BE4: =IFERROR(VLOOKUP($A4,'2017'!$B$2:$J$163,4,FALSE),0) -> 37 | BF4: =IFERROR(VLOOKUP($A4,'2017'!$B$2:$J$163,7,FALSE),0) -> 0 | BG4: =IFERROR(VLOOKUP($A4,'2017'!$B$2:$J$163,9,FALSE),0) -> 0.4868421053 | BH4: =IFERROR(VLOOKUP($A4,'2016'!$B$2:$K$165,3,FALSE),0) -> 81 | BI4: =IFERROR(VLOOKUP($A4,'2016'!$B$2:$K$165,4,FALSE),0) -> 29 | BJ4: =IFERROR(VLOOKUP($A4,'2016'!$B$2:$K$165,5,FALSE),0) -> 48 | BK4: =IFERROR(VLOOKUP($A4,'2016'!$B$2:$K$165,8,FALSE),0) -> 0 | BL4: =IFERROR(VLOOKUP($A4,'2016'!$B$2:$K$165,10,FALSE),0) -> 0.593 | BM4: =IFERROR(VLOOKUP($A4,'2015'!$B$2:$K$165,3,FALSE),0) -> 56 | BN4: =IFERROR(VLOOKUP($A4,'2015'!$B$2:$K$165,4,FALSE),0) -> 7 | BO4: =IFERROR(VLOOKUP($A4,'2015'!$B$2:$K$165,5,FALSE),0) -> 25 | BP4: =IFERROR(VLOOKUP($A4,'2015'!$B$2:$K$165,8,FALSE),0) -> 0 | BQ4: =IFERROR(VLOOKUP($A4,'2015'!$B$2:$K$165,10,FALSE),0) -> 0.4464285714 | BR4: =IFERROR(VLOOKUP($A4,'2014'!$B$2:$K$157,3,FALSE),0) -> 82 | BS4: =IFERROR(VLOOKUP($A4,'2014'!$B$2:$K$157,4,FALSE),0) -> 31 | BT4: =IFERROR(VLOOKUP($A4,'2014'!$B$2:$K$157,5,FALSE),0) -> 46 | BU4: =IFERROR(VLOOKUP($A4,'2014'!$B$2:$K$157,8,FALSE),0) -> 0 | BV4: =IFERROR(VLOOKUP($A4,'2014'!$B$2:$K$157,10,FALSE),0) -> 0.5609756098 | BW4: =IFERROR(VLOOKUP($A4,'2013'!$D$4:$I$249,2,FALSE),0) -> 89 | BX4: =IFERROR(VLOOKUP($A4,'2013'!$D$4:$I$249,3,FALSE),0) -> 35 | BY4: =IFERROR(VLOOKUP($A4,'2013'!$D$4:$I$249,4,FALSE),0) -> 52 | BZ4: =IFERROR(VLOOKUP($A4,'2013'!$D$4:$I$249,5,FALSE),0) -> 0 | CA4: =IFERROR(VLOOKUP($A4,'2013'!$D$4:$I$249,6,FALSE),0) -> 0.5842696629 | CB4: =IFERROR(VLOOKUP($A4,'2012'!$D$3:$O$172,2,FALSE),0) -> 2494 | CC4: =IFERROR(VLOOKUP($A4,'2012'!$D$3:$O$172,3,FALSE),0) -> 1434 | CD4: =IFERROR(VLOOKUP($A4,'2012'!$D$3:$O$172,4,FALSE),0) -> 96 | CE4: =IFERROR(VLOOKUP($A4,'2012'!$D$3:$O$172,5,FALSE),0) -> 74 | CF4: =IFERROR(VLOOKUP($A4,'2012'!$D$3:$O$172,6,FALSE),0) -> 27 | CG4: =IFERROR(VLOOKUP($A4,'2012'!$D$3:$O$172,7,FALSE),0) -> 41 | CH4: =IFERROR(VLOOKUP($A4,'2012'!$D$3:$O$172,8,FALSE),0) -> 0 | CI4: =IFERROR(VLOOKUP($A4,'2012'!$D$3:$O$172,9,FALSE),0) -> 0.5540540541 | CJ4: =IFERROR(VLOOKUP($A4,'2012'!$D$3:$O$172,10,FALSE),0) -> 2420 | CK4: =IFERROR(VLOOKUP($A4,'2012'!$D$3:$O$172,11,FALSE),0) -> 1393 | CL4: =IFERROR(VLOOKUP($A4,'2012'!$D$3:$O$172,12,FALSE),0) -> 96 | CM4: =IFERROR(VLOOKUP($A4,'2011'!$D$4:$I$251,2,FALSE),0) -> 71 | CN4: =IFERROR(VLOOKUP($A4,'2011'!$D$4:$I$251,3,FALSE),0) -> 21 | CO4: =IFERROR(VLOOKUP($A4,'2011'!$D$4:$I$251,4,FALSE),0) -> 43 | CP4: =IFERROR(VLOOKUP($A4,'2011'!$D$4:$I$251,5,FALSE),0) -> 0 | CQ4: =IFERROR(VLOOKUP($A4,'2011'!$D$4:$I$251,6,FALSE),0) -> 0.6056338028 | CR4: =IFERROR(VLOOKUP($A4,'2010'!$C$3:$H$234,2,FALSE),0) -> 85 | CS4: =IFERROR(VLOOKUP($A4,'2010'!$C$3:$H$234,3,FALSE),0) -> 34 | CT4: =IFERROR(VLOOKUP($A4,'2010'!$C$3:$H$234,4,FALSE),0) -> 54 | CU4: =IFERROR(VLOOKUP($A4,'2010'!$C$3:$H$234,5,FALSE),0) -> 2 | CV4: =IFERROR(VLOOKUP($A4,'2010'!$C$3:$H$234,6,FALSE),0) -> 0.6352941176 | CW4: =IFERROR(VLOOKUP($A4,'2009'!$C$3:$H$242,2,FALSE),0) -> 84 | CX4: =IFERROR(VLOOKUP($A4,'2009'!$C$3:$H$242,3,FALSE),0) -> 37 | CY4: =IFERROR(VLOOKUP($A4,'2009'!$C$3:$H$242,4,FALSE),0) -> 50 | CZ4: =IFERROR(VLOOKUP($A4,'2009'!$C$3:$H$242,5,FALSE),0) -> 1 | DA4: =IFERROR(VLOOKUP($A4,'2009'!$C$3:$H$242,6,FALSE),0) -> 0.5952380952 | DB4: =IFERROR(VLOOKUP($A4,'2008'!$C$3:$H$229,2,FALSE),0) -> 78 | DC4: =IFERROR(VLOOKUP($A4,'2008'!$C$3:$H$229,3,FALSE),0) -> 30 | DD4: =IFERROR(VLOOKUP($A4,'2008'!$C$3:$H$229,4,FALSE),0) -> 45 | DE4: =IFERROR(VLOOKUP($A4,'2008'!$C$3:$H$229,5,FALSE),0) -> 8 | DF4: =IFERROR(VLOOKUP($A4,'2008'!$C$3:$H$229,6,FALSE),0) -> 0.5769230769 | DG4: =IFERROR(VLOOKUP($A4,'2007'!$C$3:$M$238,7,FALSE),0) -> 79 | DH4: =IFERROR(VLOOKUP($A4,'2007'!$C$3:$M$238,8,FALSE),0) -> 34 | DI4: =IFERROR(VLOOKUP($A4,'2007'!$C$3:$M$238,9,FALSE),0) -> 56 | DJ4: =IFERROR(VLOOKUP($A4,'2007'!$C$3:$M$238,10,FALSE),0) -> 0 | DK4: =IFERROR(VLOOKUP($A4,'2007'!$C$3:$M$238,11,FALSE),0) -> 0.7088607595 | DL4: =IFERROR(VLOOKUP($A4,'2006'!$A$2:$F$200,2,FALSE),0) -> 64 | DM4: =IFERROR(VLOOKUP($A4,'2006'!$A$2:$F$200,4,FALSE),0) -> 34 | DN4: =IFERROR(VLOOKUP($A4,'2006'!$A$2:$F$200,5,FALSE),0) -> 3 | DO4: =IFERROR(VLOOKUP($A4,'2006'!$A$2:$F$200,6,FALSE),0) -> 0.53125 | DP4: =IFERROR(VLOOKUP($A4,'2005'!$C$3:$M$205,8,FALSE),0) -> 88 | DQ4: =IFERROR(VLOOKUP($A4,'2005'!$C$3:$M$205,9,FALSE),0) -> 59 | DR4: =IFERROR(VLOOKUP($A4,'2005'!$C$3:$M$205,10,FALSE),0) -> 1 | DS4: =IFERROR(VLOOKUP($A4,'2005'!$C$3:$M$205,11,FALSE),0) -> 0.6704545455 | DT4: =IFERROR(VLOOKUP($A4,'2004'!$C$3:$M$213,8,FALSE),0) -> 65 | DU4: =IFERROR(VLOOKUP($A4,'2004'!$C$3:$M$213,9,FALSE),0) -> 39 | DV4: =IFERROR(VLOOKUP($A4,'2004'!$C$3:$M$213,10,FALSE),0) -> 1 | DW4: =IFERROR(VLOOKUP($A4,'2004'!$C$3:$M$213,11,FALSE),0) -> 0.6 | DX4: =IFERROR(VLOOKUP($A4,'2003'!$C$3:$Q$214,12,FALSE),0) -> 74 | DY4: =IFERROR(VLOOKUP($A4,'2003'!$C$3:$Q$214,13,FALSE),0) -> 44 | DZ4: =IFERROR(VLOOKUP($A4,'2003'!$C$3:$Q$214,14,FALSE),0) -> 2 | EA4: =IFERROR(VLOOKUP($A4,'2003'!$C$3:$Q$214,15,FALSE),0) -> 0.5945945946 | EB4: =IFERROR(VLOOKUP($A4,'2002'!$D$3:$R$214,12,FALSE),0) -> 61 | EC4: =IFERROR(VLOOKUP($A4,'2002'!$D$3:$R$214,13,FALSE),0) -> 32 | ED4: =IFERROR(VLOOKUP($A4,'2002'!$D$3:$R$214,14,FALSE),0) -> 1 | EE4: =IFERROR(VLOOKUP($A4,'2002'!$D$3:$R$214,15,FALSE),0) -> 0.5245901639 | EF4: =IFERROR(VLOOKUP($A4,'Pre 2002'!$C$3:$CK$382,84,FALSE),0) -> 1664 | EG4: =IFERROR(VLOOKUP($A4,'Pre 2002'!$C$3:$CK$382,85,FALSE),0) -> 933 | EH4: =IFERROR(VLOOKUP($A4,'Pre 2002'!$C$3:$CK$382,86,FALSE),0) -> 77 | EI4: =IFERROR(VLOOKUP($A4,'Pre 2002'!$C$3:$CK$382,87,FALSE),0) -> 0.5606971154 | EJ4: =IFERROR(VLOOKUP(A4,'Pre 2002'!$C$3:$CG$382,83,FALSE),0) -> 24
A5: Jay Traylor | B5: 2960 | C5: 1789 | D5: 60 | E5: 0.6043918919 | F5: 39 | G5: 1987 | H5: 28 | I5: 2110 | J5: 1290 | K5: 58 | L5: 0.6113744076 | M5: 87 | N5: 1 | O5: =IFERROR(VLOOKUP($A5,'2025'!$A$2:$J$222,4,FALSE),0) -> 78 | P5: =IFERROR(VLOOKUP($A5,'2025'!$A$2:$J$222,5,FALSE),0) -> 22 | Q5: =IFERROR(VLOOKUP($A5,'2025'!$A$2:$J$222,6,FALSE),0) -> 42 | R5: =IFERROR(VLOOKUP($A5,'2025'!$A$2:$J$222,9,FALSE),0) -> 0 | S5: =IFERROR(VLOOKUP($A5,'2025'!$A$2:$J$222,10,FALSE),0) -> 0.538 | T5: =IFERROR(VLOOKUP($A5,'2024'!$A$2:$M$220,6,FALSE),0) -> 57 | U5: =IFERROR(VLOOKUP($A5,'2024'!$A$2:$M$220,7,FALSE),0) -> 10 | V5: =IFERROR(VLOOKUP($A5,'2024'!$A$2:$M$220,8,FALSE),0) -> 29 | W5: =IFERROR(VLOOKUP($A5,'2024'!$A$2:$M$220,11,FALSE),0) -> 0 | X5: =IFERROR(VLOOKUP($A5,'2024'!$A$2:$M$220,13,FALSE),0) -> 0.509 | Y5: =IFERROR(VLOOKUP($A5,'2023'!$A$2:$M$170,6,FALSE),0) -> 78 | Z5: =IFERROR(VLOOKUP($A5,'2023'!$A$2:$M$170,7,FALSE),0) -> 20 | AA5: =IFERROR(VLOOKUP($A5,'2023'!$A$2:$M$170,8,FALSE),0) -> 40 | AB5: =IFERROR(VLOOKUP($A5,'2023'!$A$2:$M$170,11,FALSE),0) -> 0 | AC5: =IFERROR(VLOOKUP($A5,'2023'!$A$2:$M$170,13,FALSE),0) -> 0.513 | AD5: =IFERROR(VLOOKUP($A5,'2022'!$B$2:$K$174,3,FALSE),0) -> 89 | AE5: =IFERROR(VLOOKUP($A5,'2022'!$B$2:$K$174,4,FALSE),0) -> 35 | AF5: =IFERROR(VLOOKUP($A5,'2022'!$B$2:$K$174,5,FALSE),0) -> 47 | AG5: =IFERROR(VLOOKUP($A5,'2022'!$B$2:$K$174,8,FALSE),0) -> 0 | AH5: =IFERROR(VLOOKUP($A5,'2022'!$B$2:$K$174,10,FALSE),0) -> 0.528 | AI5: =IFERROR(VLOOKUP($A5,'2021'!$B$2:$K$174,3,FALSE),0) -> 48 | AJ5: =IFERROR(VLOOKUP($A5,'2021'!$B$2:$K$174,4,FALSE),0) -> 16 | AK5: =IFERROR(VLOOKUP($A5,'2021'!$B$2:$K$174,5,FALSE),0) -> 31 | AL5: =IFERROR(VLOOKUP($A5,'2021'!$B$2:$K$174,8,FALSE),0) -> 0 | AM5: =IFERROR(VLOOKUP($A5,'2021'!$B$2:$K$174,10,FALSE),0) -> 0.646 | AN5: =IFERROR(VLOOKUP($A5,'2020'!$B$2:$K$170,3,FALSE),0) -> 84 | AO5: =IFERROR(VLOOKUP($A5,'2020'!$B$2:$K$170,4,FALSE),0) -> 40 | AP5: =IFERROR(VLOOKUP($A5,'2020'!$B$2:$K$170,5,FALSE),0) -> 49 | AQ5: =IFERROR(VLOOKUP($A5,'2020'!$B$2:$K$170,8,FALSE),0) -> 0 | AR5: =IFERROR(VLOOKUP($A5,'2020'!$B$2:$K$170,10,FALSE),0) -> 0.583 | AS5: =IFERROR(VLOOKUP($A5,'2019'!$B$2:$K$170,3,FALSE),0) -> 88 | AT5: =IFERROR(VLOOKUP($A5,'2019'!$B$2:$K$170,4,FALSE),0) -> 45 | AU5: =IFERROR(VLOOKUP($A5,'2019'!$B$2:$K$170,5,FALSE),0) -> 56 | AV5: =IFERROR(VLOOKUP($A5,'2019'!$B$2:$K$170,8,FALSE),0) -> 0 | AW5: =IFERROR(VLOOKUP($A5,'2019'!$B$2:$K$170,10,FALSE),0) -> 0.636 | AX5: =IFERROR(VLOOKUP($A5,'2018'!$B$2:$K$170,3,FALSE),0) -> 85 | AY5: =IFERROR(VLOOKUP($A5,'2018'!$B$2:$K$170,4,FALSE),0) -> 39 | AZ5: =IFERROR(VLOOKUP($A5,'2018'!$B$2:$K$170,5,FALSE),0) -> 47 | BA5: =IFERROR(VLOOKUP($A5,'2018'!$B$2:$K$170,8,FALSE),0) -> 0 | BB5: =IFERROR(VLOOKUP($A5,'2018'!$B$2:$K$170,10,FALSE),0) -> 0.553 | BC5: =IFERROR(VLOOKUP($A5,'2017'!$B$2:$J$163,2,FALSE),0) -> 80 | BD5: =IFERROR(VLOOKUP($A5,'2017'!$B$2:$J$163,3,FALSE),0) -> 37 | BE5: =IFERROR(VLOOKUP($A5,'2017'!$B$2:$J$163,4,FALSE),0) -> 53 | BF5: =IFERROR(VLOOKUP($A5,'2017'!$B$2:$J$163,7,FALSE),0) -> 1 | BG5: =IFERROR(VLOOKUP($A5,'2017'!$B$2:$J$163,9,FALSE),0) -> 0.6625 | BH5: =IFERROR(VLOOKUP($A5,'2016'!$B$2:$K$165,3,FALSE),0) -> 81 | BI5: =IFERROR(VLOOKUP($A5,'2016'!$B$2:$K$165,4,FALSE),0) -> 28 | BJ5: =IFERROR(VLOOKUP($A5,'2016'!$B$2:$K$165,5,FALSE),0) -> 48 | BK5: =IFERROR(VLOOKUP($A5,'2016'!$B$2:$K$165,8,FALSE),0) -> 1 | BL5: =IFERROR(VLOOKUP($A5,'2016'!$B$2:$K$165,10,FALSE),0) -> 0.593 | BM5: =IFERROR(VLOOKUP($A5,'2015'!$B$2:$K$165,3,FALSE),0) -> 82 | BN5: =IFERROR(VLOOKUP($A5,'2015'!$B$2:$K$165,4,FALSE),0) -> 40 | BO5: =IFERROR(VLOOKUP($A5,'2015'!$B$2:$K$165,5,FALSE),0) -> 57 | BP5: =IFERROR(VLOOKUP($A5,'2015'!$B$2:$K$165,8,FALSE),0) -> 0 | BQ5: =IFERROR(VLOOKUP($A5,'2015'!$B$2:$K$165,10,FALSE),0) -> 0.6951219512 | BR5: =IFERROR(VLOOKUP($A5,'2014'!$B$2:$K$157,3,FALSE),0) -> 75 | BS5: =IFERROR(VLOOKUP($A5,'2014'!$B$2:$K$157,4,FALSE),0) -> 38 | BT5: =IFERROR(VLOOKUP($A5,'2014'!$B$2:$K$157,5,FALSE),0) -> 50 | BU5: =IFERROR(VLOOKUP($A5,'2014'!$B$2:$K$157,8,FALSE),0) -> 0 | BV5: =IFERROR(VLOOKUP($A5,'2014'!$B$2:$K$157,10,FALSE),0) -> 0.6666666667 | BW5: =IFERROR(VLOOKUP($A5,'2013'!$D$4:$I$249,2,FALSE),0) -> 76 | BX5: =IFERROR(VLOOKUP($A5,'2013'!$D$4:$I$249,3,FALSE),0) -> 32 | BY5: =IFERROR(VLOOKUP($A5,'2013'!$D$4:$I$249,4,FALSE),0) -> 47 | BZ5: =IFERROR(VLOOKUP($A5,'2013'!$D$4:$I$249,5,FALSE),0) -> 1 | CA5: =IFERROR(VLOOKUP($A5,'2013'!$D$4:$I$249,6,FALSE),0) -> 0.6184210526 | CB5: =IFERROR(VLOOKUP($A5,'2012'!$D$3:$O$172,2,FALSE),0) -> 1959 | CC5: =IFERROR(VLOOKUP($A5,'2012'!$D$3:$O$172,3,FALSE),0) -> 1193 | CD5: =IFERROR(VLOOKUP($A5,'2012'!$D$3:$O$172,4,FALSE),0) -> 58 | CE5: =IFERROR(VLOOKUP($A5,'2012'!$D$3:$O$172,5,FALSE),0) -> 84 | CF5: =IFERROR(VLOOKUP($A5,'2012'!$D$3:$O$172,6,FALSE),0) -> 40 | CG5: =IFERROR(VLOOKUP($A5,'2012'!$D$3:$O$172,7,FALSE),0) -> 54 | CH5: =IFERROR(VLOOKUP($A5,'2012'!$D$3:$O$172,8,FALSE),0) -> 0 | CI5: =IFERROR(VLOOKUP($A5,'2012'!$D$3:$O$172,9,FALSE),0) -> 0.6428571429 | CJ5: =IFERROR(VLOOKUP($A5,'2012'!$D$3:$O$172,10,FALSE),0) -> 1875 | CK5: =IFERROR(VLOOKUP($A5,'2012'!$D$3:$O$172,11,FALSE),0) -> 1139 | CL5: =IFERROR(VLOOKUP($A5,'2012'!$D$3:$O$172,12,FALSE),0) -> 58 | CM5: =IFERROR(VLOOKUP($A5,'2011'!$D$4:$I$251,2,FALSE),0) -> 97 | CN5: =IFERROR(VLOOKUP($A5,'2011'!$D$4:$I$251,3,FALSE),0) -> 51 | CO5: =IFERROR(VLOOKUP($A5,'2011'!$D$4:$I$251,4,FALSE),0) -> 75 | CP5: =IFERROR(VLOOKUP($A5,'2011'!$D$4:$I$251,5,FALSE),0) -> 0 | CQ5: =IFERROR(VLOOKUP($A5,'2011'!$D$4:$I$251,6,FALSE),0) -> 0.7731958763 | CR5: =IFERROR(VLOOKUP($A5,'2010'!$C$3:$H$234,2,FALSE),0) -> 85 | CS5: =IFERROR(VLOOKUP($A5,'2010'!$C$3:$H$234,3,FALSE),0) -> 33 | CT5: =IFERROR(VLOOKUP($A5,'2010'!$C$3:$H$234,4,FALSE),0) -> 51 | CU5: =IFERROR(VLOOKUP($A5,'2010'!$C$3:$H$234,5,FALSE),0) -> 2 | CV5: =IFERROR(VLOOKUP($A5,'2010'!$C$3:$H$234,6,FALSE),0) -> 0.6 | CW5: =IFERROR(VLOOKUP($A5,'2009'!$C$3:$H$242,2,FALSE),0) -> 83 | CX5: =IFERROR(VLOOKUP($A5,'2009'!$C$3:$H$242,3,FALSE),0) -> 32 | CY5: =IFERROR(VLOOKUP($A5,'2009'!$C$3:$H$242,4,FALSE),0) -> 47 | CZ5: =IFERROR(VLOOKUP($A5,'2009'!$C$3:$H$242,5,FALSE),0) -> 0 | DA5: =IFERROR(VLOOKUP($A5,'2009'!$C$3:$H$242,6,FALSE),0) -> 0.5662650602 | DB5: =IFERROR(VLOOKUP($A5,'2008'!$C$3:$H$229,2,FALSE),0) -> 73 | DC5: =IFERROR(VLOOKUP($A5,'2008'!$C$3:$H$229,3,FALSE),0) -> 34 | DD5: =IFERROR(VLOOKUP($A5,'2008'!$C$3:$H$229,4,FALSE),0) -> 44 | DE5: =IFERROR(VLOOKUP($A5,'2008'!$C$3:$H$229,5,FALSE),0) -> 0 | DF5: =IFERROR(VLOOKUP($A5,'2008'!$C$3:$H$229,6,FALSE),0) -> 0.602739726 | DG5: =IFERROR(VLOOKUP($A5,'2007'!$C$3:$M$238,7,FALSE),0) -> 86 | DH5: =IFERROR(VLOOKUP($A5,'2007'!$C$3:$M$238,8,FALSE),0) -> 33 | DI5: =IFERROR(VLOOKUP($A5,'2007'!$C$3:$M$238,9,FALSE),0) -> 58 | DJ5: =IFERROR(VLOOKUP($A5,'2007'!$C$3:$M$238,10,FALSE),0) -> 1 | DK5: =IFERROR(VLOOKUP($A5,'2007'!$C$3:$M$238,11,FALSE),0) -> 0.6744186047 | DL5: =IFERROR(VLOOKUP($A5,'2006'!$A$2:$F$200,2,FALSE),0) -> 77 | DM5: =IFERROR(VLOOKUP($A5,'2006'!$A$2:$F$200,4,FALSE),0) -> 36 | DN5: =IFERROR(VLOOKUP($A5,'2006'!$A$2:$F$200,5,FALSE),0) -> 0 | DO5: =IFERROR(VLOOKUP($A5,'2006'!$A$2:$F$200,6,FALSE),0) -> 0.4675324675 | DP5: =IFERROR(VLOOKUP($A5,'2005'!$C$3:$M$205,8,FALSE),0) -> 85 | DQ5: =IFERROR(VLOOKUP($A5,'2005'!$C$3:$M$205,9,FALSE),0) -> 50 | DR5: =IFERROR(VLOOKUP($A5,'2005'!$C$3:$M$205,10,FALSE),0) -> 0 | DS5: =IFERROR(VLOOKUP($A5,'2005'!$C$3:$M$205,11,FALSE),0) -> 0.5882352941 | DT5: =IFERROR(VLOOKUP($A5,'2004'!$C$3:$M$213,8,FALSE),0) -> 76 | DU5: =IFERROR(VLOOKUP($A5,'2004'!$C$3:$M$213,9,FALSE),0) -> 50 | DV5: =IFERROR(VLOOKUP($A5,'2004'!$C$3:$M$213,10,FALSE),0) -> 2 | DW5: =IFERROR(VLOOKUP($A5,'2004'!$C$3:$M$213,11,FALSE),0) -> 0.6578947368 | DX5: =IFERROR(VLOOKUP($A5,'2003'!$C$3:$Q$214,12,FALSE),0) -> 76 | DY5: =IFERROR(VLOOKUP($A5,'2003'!$C$3:$Q$214,13,FALSE),0) -> 50 | DZ5: =IFERROR(VLOOKUP($A5,'2003'!$C$3:$Q$214,14,FALSE),0) -> 6 | EA5: =IFERROR(VLOOKUP($A5,'2003'!$C$3:$Q$214,15,FALSE),0) -> 0.6578947368 | EB5: =IFERROR(VLOOKUP($A5,'2002'!$D$3:$R$214,12,FALSE),0) -> 61 | EC5: =IFERROR(VLOOKUP($A5,'2002'!$D$3:$R$214,13,FALSE),0) -> 42 | ED5: =IFERROR(VLOOKUP($A5,'2002'!$D$3:$R$214,14,FALSE),0) -> 2 | EE5: =IFERROR(VLOOKUP($A5,'2002'!$D$3:$R$214,15,FALSE),0) -> 0.6885245902 | EF5: =IFERROR(VLOOKUP($A5,'Pre 2002'!$C$3:$CK$382,84,FALSE),0) -> 1076 | EG5: =IFERROR(VLOOKUP($A5,'Pre 2002'!$C$3:$CK$382,85,FALSE),0) -> 636 | EH5: =IFERROR(VLOOKUP($A5,'Pre 2002'!$C$3:$CK$382,86,FALSE),0) -> 44 | EI5: =IFERROR(VLOOKUP($A5,'Pre 2002'!$C$3:$CK$382,87,FALSE),0) -> 0.5910780669 | EJ5: =IFERROR(VLOOKUP(A5,'Pre 2002'!$C$3:$CG$382,83,FALSE),0) -> 15
A6: Darrin Lamphier | B6: 2169 | C6: 1440 | D6: 81 | E6: 0.6639004149 | F6: 31 | G6: 1988 | H6: 27 | I6: 1883 | J6: 1263 | K6: 79 | L6: 0.6707381837 | M6: 88 | N6: 4 | O6: =IFERROR(VLOOKUP($A6,'2025'!$A$2:$J$222,4,FALSE),0) -> 68 | P6: =IFERROR(VLOOKUP($A6,'2025'!$A$2:$J$222,5,FALSE),0) -> 19 | Q6: =IFERROR(VLOOKUP($A6,'2025'!$A$2:$J$222,6,FALSE),0) -> 40 | R6: =IFERROR(VLOOKUP($A6,'2025'!$A$2:$J$222,9,FALSE),0) -> 0 | S6: =IFERROR(VLOOKUP($A6,'2025'!$A$2:$J$222,10,FALSE),0) -> 0.588 | T6: =IFERROR(VLOOKUP($A6,'2024'!$A$2:$M$220,6,FALSE),0) -> 0 | U6: =IFERROR(VLOOKUP($A6,'2024'!$A$2:$M$220,7,FALSE),0) -> 0 | V6: =IFERROR(VLOOKUP($A6,'2024'!$A$2:$M$220,8,FALSE),0) -> 0 | W6: =IFERROR(VLOOKUP($A6,'2024'!$A$2:$M$220,11,FALSE),0) -> 0 | X6: =IFERROR(VLOOKUP($A6,'2024'!$A$2:$M$220,13,FALSE),0) -> 0 | Y6: =IFERROR(VLOOKUP($A6,'2023'!$A$2:$M$170,6,FALSE),0) -> 0 | Z6: =IFERROR(VLOOKUP($A6,'2023'!$A$2:$M$170,7,FALSE),0) -> 0 | AA6: =IFERROR(VLOOKUP($A6,'2023'!$A$2:$M$170,8,FALSE),0) -> 0 | AB6: =IFERROR(VLOOKUP($A6,'2023'!$A$2:$M$170,11,FALSE),0) -> 0 | AC6: =IFERROR(VLOOKUP($A6,'2023'!$A$2:$M$170,13,FALSE),0) -> 0 | AD6: =IFERROR(VLOOKUP($A6,'2022'!$B$2:$K$174,3,FALSE),0) -> 0 | AE6: =IFERROR(VLOOKUP($A6,'2022'!$B$2:$K$174,4,FALSE),0) -> 0 | AF6: =IFERROR(VLOOKUP($A6,'2022'!$B$2:$K$174,5,FALSE),0) -> 0 | AG6: =IFERROR(VLOOKUP($A6,'2022'!$B$2:$K$174,8,FALSE),0) -> 0 | AH6: =IFERROR(VLOOKUP($A6,'2022'!$B$2:$K$174,10,FALSE),0) -> 0 | AI6: =IFERROR(VLOOKUP($A6,'2021'!$B$2:$K$174,3,FALSE),0) -> 0 | AJ6: =IFERROR(VLOOKUP($A6,'2021'!$B$2:$K$174,4,FALSE),0) -> 0 | AK6: =IFERROR(VLOOKUP($A6,'2021'!$B$2:$K$174,5,FALSE),0) -> 0 | AL6: =IFERROR(VLOOKUP($A6,'2021'!$B$2:$K$174,8,FALSE),0) -> 0 | AM6: =IFERROR(VLOOKUP($A6,'2021'!$B$2:$K$174,10,FALSE),0) -> 0 | AN6: =IFERROR(VLOOKUP($A6,'2020'!$B$2:$K$170,3,FALSE),0) -> 0 | AO6: =IFERROR(VLOOKUP($A6,'2020'!$B$2:$K$170,4,FALSE),0) -> 0 | AP6: =IFERROR(VLOOKUP($A6,'2020'!$B$2:$K$170,5,FALSE),0) -> 0 | AQ6: =IFERROR(VLOOKUP($A6,'2020'!$B$2:$K$170,8,FALSE),0) -> 0 | AR6: =IFERROR(VLOOKUP($A6,'2020'!$B$2:$K$170,10,FALSE),0) -> 0 | AS6: =IFERROR(VLOOKUP($A6,'2019'!$B$2:$K$170,3,FALSE),0) -> 0 | AT6: =IFERROR(VLOOKUP($A6,'2019'!$B$2:$K$170,4,FALSE),0) -> 0 | AU6: =IFERROR(VLOOKUP($A6,'2019'!$B$2:$K$170,5,FALSE),0) -> 0 | AV6: =IFERROR(VLOOKUP($A6,'2019'!$B$2:$K$170,8,FALSE),0) -> 0 | AW6: =IFERROR(VLOOKUP($A6,'2019'!$B$2:$K$170,10,FALSE),0) -> 0 | AX6: =IFERROR(VLOOKUP($A6,'2018'!$B$2:$K$170,3,FALSE),0) -> 0 | AY6: =IFERROR(VLOOKUP($A6,'2018'!$B$2:$K$170,4,FALSE),0) -> 0 | AZ6: =IFERROR(VLOOKUP($A6,'2018'!$B$2:$K$170,5,FALSE),0) -> 0 | BA6: =IFERROR(VLOOKUP($A6,'2018'!$B$2:$K$170,8,FALSE),0) -> 0 | BB6: =IFERROR(VLOOKUP($A6,'2018'!$B$2:$K$170,10,FALSE),0) -> 0 | BC6: =IFERROR(VLOOKUP($A6,'2017'!$B$2:$J$163,2,FALSE),0) -> 65 | BD6: =IFERROR(VLOOKUP($A6,'2017'!$B$2:$J$163,3,FALSE),0) -> 34 | BE6: =IFERROR(VLOOKUP($A6,'2017'!$B$2:$J$163,4,FALSE),0) -> 44 | BF6: =IFERROR(VLOOKUP($A6,'2017'!$B$2:$J$163,7,FALSE),0) -> 2 | BG6: =IFERROR(VLOOKUP($A6,'2017'!$B$2:$J$163,9,FALSE),0) -> 0.6769230769 | BH6: =IFERROR(VLOOKUP($A6,'2016'!$B$2:$K$165,3,FALSE),0) -> 77 | BI6: =IFERROR(VLOOKUP($A6,'2016'!$B$2:$K$165,4,FALSE),0) -> 39 | BJ6: =IFERROR(VLOOKUP($A6,'2016'!$B$2:$K$165,5,FALSE),0) -> 47 | BK6: =IFERROR(VLOOKUP($A6,'2016'!$B$2:$K$165,8,FALSE),0) -> 0 | BL6: =IFERROR(VLOOKUP($A6,'2016'!$B$2:$K$165,10,FALSE),0) -> 0.61 | BM6: =IFERROR(VLOOKUP($A6,'2015'!$B$2:$K$165,3,FALSE),0) -> 76 | BN6: =IFERROR(VLOOKUP($A6,'2015'!$B$2:$K$165,4,FALSE),0) -> 30 | BO6: =IFERROR(VLOOKUP($A6,'2015'!$B$2:$K$165,5,FALSE),0) -> 46 | BP6: =IFERROR(VLOOKUP($A6,'2015'!$B$2:$K$165,8,FALSE),0) -> 0 | BQ6: =IFERROR(VLOOKUP($A6,'2015'!$B$2:$K$165,10,FALSE),0) -> 0.6052631579 | BR6: =IFERROR(VLOOKUP($A6,'2014'!$B$2:$K$157,3,FALSE),0) -> 81 | BS6: =IFERROR(VLOOKUP($A6,'2014'!$B$2:$K$157,4,FALSE),0) -> 41 | BT6: =IFERROR(VLOOKUP($A6,'2014'!$B$2:$K$157,5,FALSE),0) -> 64 | BU6: =IFERROR(VLOOKUP($A6,'2014'!$B$2:$K$157,8,FALSE),0) -> 4 | BV6: =IFERROR(VLOOKUP($A6,'2014'!$B$2:$K$157,10,FALSE),0) -> 0.7901234568 | BW6: =IFERROR(VLOOKUP($A6,'2013'!$D$4:$I$249,2,FALSE),0) -> 89 | BX6: =IFERROR(VLOOKUP($A6,'2013'!$D$4:$I$249,3,FALSE),0) -> 42 | BY6: =IFERROR(VLOOKUP($A6,'2013'!$D$4:$I$249,4,FALSE),0) -> 64 | BZ6: =IFERROR(VLOOKUP($A6,'2013'!$D$4:$I$249,5,FALSE),0) -> 6 | CA6: =IFERROR(VLOOKUP($A6,'2013'!$D$4:$I$249,6,FALSE),0) -> 0.7191011236 | CB6: =IFERROR(VLOOKUP($A6,'2012'!$D$3:$O$172,2,FALSE),0) -> 1712 | CC6: =IFERROR(VLOOKUP($A6,'2012'!$D$3:$O$172,3,FALSE),0) -> 1133 | CD6: =IFERROR(VLOOKUP($A6,'2012'!$D$3:$O$172,4,FALSE),0) -> 70 | CE6: =IFERROR(VLOOKUP($A6,'2012'!$D$3:$O$172,5,FALSE),0) -> 85 | CF6: =IFERROR(VLOOKUP($A6,'2012'!$D$3:$O$172,6,FALSE),0) -> 54 | CG6: =IFERROR(VLOOKUP($A6,'2012'!$D$3:$O$172,7,FALSE),0) -> 65 | CH6: =IFERROR(VLOOKUP($A6,'2012'!$D$3:$O$172,8,FALSE),0) -> 7 | CI6: =IFERROR(VLOOKUP($A6,'2012'!$D$3:$O$172,9,FALSE),0) -> 0.7647058824 | CJ6: =IFERROR(VLOOKUP($A6,'2012'!$D$3:$O$172,10,FALSE),0) -> 1627 | CK6: =IFERROR(VLOOKUP($A6,'2012'!$D$3:$O$172,11,FALSE),0) -> 1068 | CL6: =IFERROR(VLOOKUP($A6,'2012'!$D$3:$O$172,12,FALSE),0) -> 63 | CM6: =IFERROR(VLOOKUP($A6,'2011'!$D$4:$I$251,2,FALSE),0) -> 86 | CN6: =IFERROR(VLOOKUP($A6,'2011'!$D$4:$I$251,3,FALSE),0) -> 45 | CO6: =IFERROR(VLOOKUP($A6,'2011'!$D$4:$I$251,4,FALSE),0) -> 68 | CP6: =IFERROR(VLOOKUP($A6,'2011'!$D$4:$I$251,5,FALSE),0) -> 4 | CQ6: =IFERROR(VLOOKUP($A6,'2011'!$D$4:$I$251,6,FALSE),0) -> 0.7906976744 | CR6: =IFERROR(VLOOKUP($A6,'2010'!$C$3:$H$234,2,FALSE),0) -> 43 | CS6: =IFERROR(VLOOKUP($A6,'2010'!$C$3:$H$234,3,FALSE),0) -> 24 | CT6: =IFERROR(VLOOKUP($A6,'2010'!$C$3:$H$234,4,FALSE),0) -> 30 | CU6: =IFERROR(VLOOKUP($A6,'2010'!$C$3:$H$234,5,FALSE),0) -> 4 | CV6: =IFERROR(VLOOKUP($A6,'2010'!$C$3:$H$234,6,FALSE),0) -> 0.6976744186 | CW6: =IFERROR(VLOOKUP($A6,'2009'!$C$3:$H$242,2,FALSE),0) -> 78 | CX6: =IFERROR(VLOOKUP($A6,'2009'!$C$3:$H$242,3,FALSE),0) -> 46 | CY6: =IFERROR(VLOOKUP($A6,'2009'!$C$3:$H$242,4,FALSE),0) -> 55 | CZ6: =IFERROR(VLOOKUP($A6,'2009'!$C$3:$H$242,5,FALSE),0) -> 6 | DA6: =IFERROR(VLOOKUP($A6,'2009'!$C$3:$H$242,6,FALSE),0) -> 0.7051282051 | DB6: =IFERROR(VLOOKUP($A6,'2008'!$C$3:$H$229,2,FALSE),0) -> 82 | DC6: =IFERROR(VLOOKUP($A6,'2008'!$C$3:$H$229,3,FALSE),0) -> 50 | DD6: =IFERROR(VLOOKUP($A6,'2008'!$C$3:$H$229,4,FALSE),0) -> 56 | DE6: =IFERROR(VLOOKUP($A6,'2008'!$C$3:$H$229,5,FALSE),0) -> 3 | DF6: =IFERROR(VLOOKUP($A6,'2008'!$C$3:$H$229,6,FALSE),0) -> 0.6829268293 | DG6: =IFERROR(VLOOKUP($A6,'2007'!$C$3:$M$238,7,FALSE),0) -> 80 | DH6: =IFERROR(VLOOKUP($A6,'2007'!$C$3:$M$238,8,FALSE),0) -> 42 | DI6: =IFERROR(VLOOKUP($A6,'2007'!$C$3:$M$238,9,FALSE),0) -> 54 | DJ6: =IFERROR(VLOOKUP($A6,'2007'!$C$3:$M$238,10,FALSE),0) -> 4 | DK6: =IFERROR(VLOOKUP($A6,'2007'!$C$3:$M$238,11,FALSE),0) -> 0.675 | DL6: =IFERROR(VLOOKUP($A6,'2006'!$A$2:$F$200,2,FALSE),0) -> 79 | DM6: =IFERROR(VLOOKUP($A6,'2006'!$A$2:$F$200,4,FALSE),0) -> 50 | DN6: =IFERROR(VLOOKUP($A6,'2006'!$A$2:$F$200,5,FALSE),0) -> 1 | DO6: =IFERROR(VLOOKUP($A6,'2006'!$A$2:$F$200,6,FALSE),0) -> 0.6329113924 | DP6: =IFERROR(VLOOKUP($A6,'2005'!$C$3:$M$205,8,FALSE),0) -> 70 | DQ6: =IFERROR(VLOOKUP($A6,'2005'!$C$3:$M$205,9,FALSE),0) -> 36 | DR6: =IFERROR(VLOOKUP($A6,'2005'!$C$3:$M$205,10,FALSE),0) -> 1 | DS6: =IFERROR(VLOOKUP($A6,'2005'!$C$3:$M$205,11,FALSE),0) -> 0.5142857143 | DT6: =IFERROR(VLOOKUP($A6,'2004'!$C$3:$M$213,8,FALSE),0) -> 68 | DU6: =IFERROR(VLOOKUP($A6,'2004'!$C$3:$M$213,9,FALSE),0) -> 38 | DV6: =IFERROR(VLOOKUP($A6,'2004'!$C$3:$M$213,10,FALSE),0) -> 0 | DW6: =IFERROR(VLOOKUP($A6,'2004'!$C$3:$M$213,11,FALSE),0) -> 0.5588235294 | DX6: =IFERROR(VLOOKUP($A6,'2003'!$C$3:$Q$214,12,FALSE),0) -> 73 | DY6: =IFERROR(VLOOKUP($A6,'2003'!$C$3:$Q$214,13,FALSE),0) -> 50 | DZ6: =IFERROR(VLOOKUP($A6,'2003'!$C$3:$Q$214,14,FALSE),0) -> 2 | EA6: =IFERROR(VLOOKUP($A6,'2003'!$C$3:$Q$214,15,FALSE),0) -> 0.6849315068 | EB6: =IFERROR(VLOOKUP($A6,'2002'!$D$3:$R$214,12,FALSE),0) -> 57 | EC6: =IFERROR(VLOOKUP($A6,'2002'!$D$3:$R$214,13,FALSE),0) -> 30 | ED6: =IFERROR(VLOOKUP($A6,'2002'!$D$3:$R$214,14,FALSE),0) -> 3 | EE6: =IFERROR(VLOOKUP($A6,'2002'!$D$3:$R$214,15,FALSE),0) -> 0.5263157895 | EF6: =IFERROR(VLOOKUP($A6,'Pre 2002'!$C$3:$CK$382,84,FALSE),0) -> 912 | EG6: =IFERROR(VLOOKUP($A6,'Pre 2002'!$C$3:$CK$382,85,FALSE),0) -> 603 | EH6: =IFERROR(VLOOKUP($A6,'Pre 2002'!$C$3:$CK$382,86,FALSE),0) -> 34 | EI6: =IFERROR(VLOOKUP($A6,'Pre 2002'!$C$3:$CK$382,87,FALSE),0) -> 0.6611842105 | EJ6: =IFERROR(VLOOKUP(A6,'Pre 2002'!$C$3:$CG$382,83,FALSE),0) -> 14
A7: Brian McCall | B7: 2328 | C7: 1312 | D7: 111 | E7: 0.5635738832 | F7: 33 | G7: 1993 | H7: 22 | I7: 1512 | J7: 851 | K7: 84 | L7: 0.5628306878 | M7: 93 | N7: 3 | O7: =IFERROR(VLOOKUP($A7,'2025'!$A$2:$J$222,4,FALSE),0) -> 66 | P7: =IFERROR(VLOOKUP($A7,'2025'!$A$2:$J$222,5,FALSE),0) -> 18 | Q7: =IFERROR(VLOOKUP($A7,'2025'!$A$2:$J$222,6,FALSE),0) -> 39 | R7: =IFERROR(VLOOKUP($A7,'2025'!$A$2:$J$222,9,FALSE),0) -> 0 | S7: =IFERROR(VLOOKUP($A7,'2025'!$A$2:$J$222,10,FALSE),0) -> 0.591 | T7: =IFERROR(VLOOKUP($A7,'2024'!$A$2:$M$220,6,FALSE),0) -> 82 | U7: =IFERROR(VLOOKUP($A7,'2024'!$A$2:$M$220,7,FALSE),0) -> 19 | V7: =IFERROR(VLOOKUP($A7,'2024'!$A$2:$M$220,8,FALSE),0) -> 47 | W7: =IFERROR(VLOOKUP($A7,'2024'!$A$2:$M$220,11,FALSE),0) -> 0 | X7: =IFERROR(VLOOKUP($A7,'2024'!$A$2:$M$220,13,FALSE),0) -> 0.573 | Y7: =IFERROR(VLOOKUP($A7,'2023'!$A$2:$M$170,6,FALSE),0) -> 68 | Z7: =IFERROR(VLOOKUP($A7,'2023'!$A$2:$M$170,7,FALSE),0) -> 17 | AA7: =IFERROR(VLOOKUP($A7,'2023'!$A$2:$M$170,8,FALSE),0) -> 38 | AB7: =IFERROR(VLOOKUP($A7,'2023'!$A$2:$M$170,11,FALSE),0) -> 1 | AC7: =IFERROR(VLOOKUP($A7,'2023'!$A$2:$M$170,13,FALSE),0) -> 0.559 | AD7: =IFERROR(VLOOKUP($A7,'2022'!$B$2:$K$174,3,FALSE),0) -> 79 | AE7: =IFERROR(VLOOKUP($A7,'2022'!$B$2:$K$174,4,FALSE),0) -> 13 | AF7: =IFERROR(VLOOKUP($A7,'2022'!$B$2:$K$174,5,FALSE),0) -> 38 | AG7: =IFERROR(VLOOKUP($A7,'2022'!$B$2:$K$174,8,FALSE),0) -> 0 | AH7: =IFERROR(VLOOKUP($A7,'2022'!$B$2:$K$174,10,FALSE),0) -> 0.481 | AI7: =IFERROR(VLOOKUP($A7,'2021'!$B$2:$K$174,3,FALSE),0) -> 77 | AJ7: =IFERROR(VLOOKUP($A7,'2021'!$B$2:$K$174,4,FALSE),0) -> 13 | AK7: =IFERROR(VLOOKUP($A7,'2021'!$B$2:$K$174,5,FALSE),0) -> 36 | AL7: =IFERROR(VLOOKUP($A7,'2021'!$B$2:$K$174,8,FALSE),0) -> 0 | AM7: =IFERROR(VLOOKUP($A7,'2021'!$B$2:$K$174,10,FALSE),0) -> 0.468 | AN7: =IFERROR(VLOOKUP($A7,'2020'!$B$2:$K$170,3,FALSE),0) -> 90 | AO7: =IFERROR(VLOOKUP($A7,'2020'!$B$2:$K$170,4,FALSE),0) -> 29 | AP7: =IFERROR(VLOOKUP($A7,'2020'!$B$2:$K$170,5,FALSE),0) -> 46 | AQ7: =IFERROR(VLOOKUP($A7,'2020'!$B$2:$K$170,8,FALSE),0) -> 1 | AR7: =IFERROR(VLOOKUP($A7,'2020'!$B$2:$K$170,10,FALSE),0) -> 0.511 | AS7: =IFERROR(VLOOKUP($A7,'2019'!$B$2:$K$170,3,FALSE),0) -> 71 | AT7: =IFERROR(VLOOKUP($A7,'2019'!$B$2:$K$170,4,FALSE),0) -> 34 | AU7: =IFERROR(VLOOKUP($A7,'2019'!$B$2:$K$170,5,FALSE),0) -> 45 | AV7: =IFERROR(VLOOKUP($A7,'2019'!$B$2:$K$170,8,FALSE),0) -> 7 | AW7: =IFERROR(VLOOKUP($A7,'2019'!$B$2:$K$170,10,FALSE),0) -> 0.634 | AX7: =IFERROR(VLOOKUP($A7,'2018'!$B$2:$K$170,3,FALSE),0) -> 81 | AY7: =IFERROR(VLOOKUP($A7,'2018'!$B$2:$K$170,4,FALSE),0) -> 33 | AZ7: =IFERROR(VLOOKUP($A7,'2018'!$B$2:$K$170,5,FALSE),0) -> 51 | BA7: =IFERROR(VLOOKUP($A7,'2018'!$B$2:$K$170,8,FALSE),0) -> 4 | BB7: =IFERROR(VLOOKUP($A7,'2018'!$B$2:$K$170,10,FALSE),0) -> 0.63 | BC7: =IFERROR(VLOOKUP($A7,'2017'!$B$2:$J$163,2,FALSE),0) -> 65 | BD7: =IFERROR(VLOOKUP($A7,'2017'!$B$2:$J$163,3,FALSE),0) -> 25 | BE7: =IFERROR(VLOOKUP($A7,'2017'!$B$2:$J$163,4,FALSE),0) -> 39 | BF7: =IFERROR(VLOOKUP($A7,'2017'!$B$2:$J$163,7,FALSE),0) -> 4 | BG7: =IFERROR(VLOOKUP($A7,'2017'!$B$2:$J$163,9,FALSE),0) -> 0.6 | BH7: =IFERROR(VLOOKUP($A7,'2016'!$B$2:$K$165,3,FALSE),0) -> 63 | BI7: =IFERROR(VLOOKUP($A7,'2016'!$B$2:$K$165,4,FALSE),0) -> 33 | BJ7: =IFERROR(VLOOKUP($A7,'2016'!$B$2:$K$165,5,FALSE),0) -> 34 | BK7: =IFERROR(VLOOKUP($A7,'2016'!$B$2:$K$165,8,FALSE),0) -> 7 | BL7: =IFERROR(VLOOKUP($A7,'2016'!$B$2:$K$165,10,FALSE),0) -> 0.54 | BM7: =IFERROR(VLOOKUP($A7,'2015'!$B$2:$K$165,3,FALSE),0) -> 74 | BN7: =IFERROR(VLOOKUP($A7,'2015'!$B$2:$K$165,4,FALSE),0) -> 29 | BO7: =IFERROR(VLOOKUP($A7,'2015'!$B$2:$K$165,5,FALSE),0) -> 48 | BP7: =IFERROR(VLOOKUP($A7,'2015'!$B$2:$K$165,8,FALSE),0) -> 3 | BQ7: =IFERROR(VLOOKUP($A7,'2015'!$B$2:$K$165,10,FALSE),0) -> 0.6486486486 | BR7: =IFERROR(VLOOKUP($A7,'2014'!$B$2:$K$157,3,FALSE),0) -> 93 | BS7: =IFERROR(VLOOKUP($A7,'2014'!$B$2:$K$157,4,FALSE),0) -> 35 | BT7: =IFERROR(VLOOKUP($A7,'2014'!$B$2:$K$157,5,FALSE),0) -> 58 | BU7: =IFERROR(VLOOKUP($A7,'2014'!$B$2:$K$157,8,FALSE),0) -> 6 | BV7: =IFERROR(VLOOKUP($A7,'2014'!$B$2:$K$157,10,FALSE),0) -> 0.623655914 | BW7: =IFERROR(VLOOKUP($A7,'2013'!$D$4:$I$249,2,FALSE),0) -> 78 | BX7: =IFERROR(VLOOKUP($A7,'2013'!$D$4:$I$249,3,FALSE),0) -> 31 | BY7: =IFERROR(VLOOKUP($A7,'2013'!$D$4:$I$249,4,FALSE),0) -> 49 | BZ7: =IFERROR(VLOOKUP($A7,'2013'!$D$4:$I$249,5,FALSE),0) -> 10 | CA7: =IFERROR(VLOOKUP($A7,'2013'!$D$4:$I$249,6,FALSE),0) -> 0.6282051282 | CB7: =IFERROR(VLOOKUP($A7,'2012'!$D$3:$O$172,2,FALSE),0) -> 1341 | CC7: =IFERROR(VLOOKUP($A7,'2012'!$D$3:$O$172,3,FALSE),0) -> 744 | CD7: =IFERROR(VLOOKUP($A7,'2012'!$D$3:$O$172,4,FALSE),0) -> 68 | CE7: =IFERROR(VLOOKUP($A7,'2012'!$D$3:$O$172,5,FALSE),0) -> 74 | CF7: =IFERROR(VLOOKUP($A7,'2012'!$D$3:$O$172,6,FALSE),0) -> 28 | CG7: =IFERROR(VLOOKUP($A7,'2012'!$D$3:$O$172,7,FALSE),0) -> 44 | CH7: =IFERROR(VLOOKUP($A7,'2012'!$D$3:$O$172,8,FALSE),0) -> 8 | CI7: =IFERROR(VLOOKUP($A7,'2012'!$D$3:$O$172,9,FALSE),0) -> 0.5945945946 | CJ7: =IFERROR(VLOOKUP($A7,'2012'!$D$3:$O$172,10,FALSE),0) -> 1267 | CK7: =IFERROR(VLOOKUP($A7,'2012'!$D$3:$O$172,11,FALSE),0) -> 700 | CL7: =IFERROR(VLOOKUP($A7,'2012'!$D$3:$O$172,12,FALSE),0) -> 60 | CM7: =IFERROR(VLOOKUP($A7,'2011'!$D$4:$I$251,2,FALSE),0) -> 78 | CN7: =IFERROR(VLOOKUP($A7,'2011'!$D$4:$I$251,3,FALSE),0) -> 29 | CO7: =IFERROR(VLOOKUP($A7,'2011'!$D$4:$I$251,4,FALSE),0) -> 49 | CP7: =IFERROR(VLOOKUP($A7,'2011'!$D$4:$I$251,5,FALSE),0) -> 4 | CQ7: =IFERROR(VLOOKUP($A7,'2011'!$D$4:$I$251,6,FALSE),0) -> 0.6282051282 | CR7: =IFERROR(VLOOKUP($A7,'2010'!$C$3:$H$234,2,FALSE),0) -> 76 | CS7: =IFERROR(VLOOKUP($A7,'2010'!$C$3:$H$234,3,FALSE),0) -> 33 | CT7: =IFERROR(VLOOKUP($A7,'2010'!$C$3:$H$234,4,FALSE),0) -> 42 | CU7: =IFERROR(VLOOKUP($A7,'2010'!$C$3:$H$234,5,FALSE),0) -> 6 | CV7: =IFERROR(VLOOKUP($A7,'2010'!$C$3:$H$234,6,FALSE),0) -> 0.5526315789 | CW7: =IFERROR(VLOOKUP($A7,'2009'!$C$3:$H$242,2,FALSE),0) -> 82 | CX7: =IFERROR(VLOOKUP($A7,'2009'!$C$3:$H$242,3,FALSE),0) -> 32 | CY7: =IFERROR(VLOOKUP($A7,'2009'!$C$3:$H$242,4,FALSE),0) -> 46 | CZ7: =IFERROR(VLOOKUP($A7,'2009'!$C$3:$H$242,5,FALSE),0) -> 5 | DA7: =IFERROR(VLOOKUP($A7,'2009'!$C$3:$H$242,6,FALSE),0) -> 0.5609756098 | DB7: =IFERROR(VLOOKUP($A7,'2008'!$C$3:$H$229,2,FALSE),0) -> 71 | DC7: =IFERROR(VLOOKUP($A7,'2008'!$C$3:$H$229,3,FALSE),0) -> 29 | DD7: =IFERROR(VLOOKUP($A7,'2008'!$C$3:$H$229,4,FALSE),0) -> 40 | DE7: =IFERROR(VLOOKUP($A7,'2008'!$C$3:$H$229,5,FALSE),0) -> 10 | DF7: =IFERROR(VLOOKUP($A7,'2008'!$C$3:$H$229,6,FALSE),0) -> 0.5633802817 | DG7: =IFERROR(VLOOKUP($A7,'2007'!$C$3:$M$238,7,FALSE),0) -> 83 | DH7: =IFERROR(VLOOKUP($A7,'2007'!$C$3:$M$238,8,FALSE),0) -> 28 | DI7: =IFERROR(VLOOKUP($A7,'2007'!$C$3:$M$238,9,FALSE),0) -> 48 | DJ7: =IFERROR(VLOOKUP($A7,'2007'!$C$3:$M$238,10,FALSE),0) -> 2 | DK7: =IFERROR(VLOOKUP($A7,'2007'!$C$3:$M$238,11,FALSE),0) -> 0.578313253 | DL7: =IFERROR(VLOOKUP($A7,'2006'!$A$2:$F$200,2,FALSE),0) -> 68 | DM7: =IFERROR(VLOOKUP($A7,'2006'!$A$2:$F$200,4,FALSE),0) -> 38 | DN7: =IFERROR(VLOOKUP($A7,'2006'!$A$2:$F$200,5,FALSE),0) -> 2 | DO7: =IFERROR(VLOOKUP($A7,'2006'!$A$2:$F$200,6,FALSE),0) -> 0.5588235294 | DP7: =IFERROR(VLOOKUP($A7,'2005'!$C$3:$M$205,8,FALSE),0) -> 76 | DQ7: =IFERROR(VLOOKUP($A7,'2005'!$C$3:$M$205,9,FALSE),0) -> 54 | DR7: =IFERROR(VLOOKUP($A7,'2005'!$C$3:$M$205,10,FALSE),0) -> 3 | DS7: =IFERROR(VLOOKUP($A7,'2005'!$C$3:$M$205,11,FALSE),0) -> 0.7105263158 | DT7: =IFERROR(VLOOKUP($A7,'2004'!$C$3:$M$213,8,FALSE),0) -> 62 | DU7: =IFERROR(VLOOKUP($A7,'2004'!$C$3:$M$213,9,FALSE),0) -> 24 | DV7: =IFERROR(VLOOKUP($A7,'2004'!$C$3:$M$213,10,FALSE),0) -> 1 | DW7: =IFERROR(VLOOKUP($A7,'2004'!$C$3:$M$213,11,FALSE),0) -> 0.3870967742 | DX7: =IFERROR(VLOOKUP($A7,'2003'!$C$3:$Q$214,12,FALSE),0) -> 57 | DY7: =IFERROR(VLOOKUP($A7,'2003'!$C$3:$Q$214,13,FALSE),0) -> 33 | DZ7: =IFERROR(VLOOKUP($A7,'2003'!$C$3:$Q$214,14,FALSE),0) -> 1 | EA7: =IFERROR(VLOOKUP($A7,'2003'!$C$3:$Q$214,15,FALSE),0) -> 0.5789473684 | EB7: =IFERROR(VLOOKUP($A7,'2002'!$D$3:$R$214,12,FALSE),0) -> 62 | EC7: =IFERROR(VLOOKUP($A7,'2002'!$D$3:$R$214,13,FALSE),0) -> 44 | ED7: =IFERROR(VLOOKUP($A7,'2002'!$D$3:$R$214,14,FALSE),0) -> 3 | EE7: =IFERROR(VLOOKUP($A7,'2002'!$D$3:$R$214,15,FALSE),0) -> 0.7096774194 | EF7: =IFERROR(VLOOKUP($A7,'Pre 2002'!$C$3:$CK$382,84,FALSE),0) -> 552 | EG7: =IFERROR(VLOOKUP($A7,'Pre 2002'!$C$3:$CK$382,85,FALSE),0) -> 282 | EH7: =IFERROR(VLOOKUP($A7,'Pre 2002'!$C$3:$CK$382,86,FALSE),0) -> 23 | EI7: =IFERROR(VLOOKUP($A7,'Pre 2002'!$C$3:$CK$382,87,FALSE),0) -> 0.5108695652 | EJ7: =IFERROR(VLOOKUP(A7,'Pre 2002'!$C$3:$CG$382,83,FALSE),0) -> 9
A8: Don Miller | B8: 2122 | C8: 1288 | D8: 115 | E8: 0.6069745523 | F8: 38 | G8: 1987 | H8: 28 | I8: 1804 | J8: 1120 | K8: 114 | L8: 0.6208425721 | M8: 87 | N8: 6 | O8: =IFERROR(VLOOKUP($A8,'2025'!$A$2:$J$222,4,FALSE),0) -> 0 | P8: =IFERROR(VLOOKUP($A8,'2025'!$A$2:$J$222,5,FALSE),0) -> 0 | Q8: =IFERROR(VLOOKUP($A8,'2025'!$A$2:$J$222,6,FALSE),0) -> 0 | R8: =IFERROR(VLOOKUP($A8,'2025'!$A$2:$J$222,9,FALSE),0) -> 0 | S8: =IFERROR(VLOOKUP($A8,'2025'!$A$2:$J$222,10,FALSE),0) -> 0 | T8: =IFERROR(VLOOKUP($A8,'2024'!$A$2:$M$220,6,FALSE),0) -> 27 | U8: =IFERROR(VLOOKUP($A8,'2024'!$A$2:$M$220,7,FALSE),0) -> 6 | V8: =IFERROR(VLOOKUP($A8,'2024'!$A$2:$M$220,8,FALSE),0) -> 12 | W8: =IFERROR(VLOOKUP($A8,'2024'!$A$2:$M$220,11,FALSE),0) -> 0 | X8: =IFERROR(VLOOKUP($A8,'2024'!$A$2:$M$220,13,FALSE),0) -> 0.444 | Y8: =IFERROR(VLOOKUP($A8,'2023'!$A$2:$M$170,6,FALSE),0) -> 53 | Z8: =IFERROR(VLOOKUP($A8,'2023'!$A$2:$M$170,7,FALSE),0) -> 18 | AA8: =IFERROR(VLOOKUP($A8,'2023'!$A$2:$M$170,8,FALSE),0) -> 33 | AB8: =IFERROR(VLOOKUP($A8,'2023'!$A$2:$M$170,11,FALSE),0) -> 0 | AC8: =IFERROR(VLOOKUP($A8,'2023'!$A$2:$M$170,13,FALSE),0) -> 0.623 | AD8: =IFERROR(VLOOKUP($A8,'2022'!$B$2:$K$174,3,FALSE),0) -> 27 | AE8: =IFERROR(VLOOKUP($A8,'2022'!$B$2:$K$174,4,FALSE),0) -> 7 | AF8: =IFERROR(VLOOKUP($A8,'2022'!$B$2:$K$174,5,FALSE),0) -> 11 | AG8: =IFERROR(VLOOKUP($A8,'2022'!$B$2:$K$174,8,FALSE),0) -> 0 | AH8: =IFERROR(VLOOKUP($A8,'2022'!$B$2:$K$174,10,FALSE),0) -> 0.407 | AI8: =IFERROR(VLOOKUP($A8,'2021'!$B$2:$K$174,3,FALSE),0) -> 11 | AJ8: =IFERROR(VLOOKUP($A8,'2021'!$B$2:$K$174,4,FALSE),0) -> 1 | AK8: =IFERROR(VLOOKUP($A8,'2021'!$B$2:$K$174,5,FALSE),0) -> 3 | AL8: =IFERROR(VLOOKUP($A8,'2021'!$B$2:$K$174,8,FALSE),0) -> 0 | AM8: =IFERROR(VLOOKUP($A8,'2021'!$B$2:$K$174,10,FALSE),0) -> 0.273 | AN8: =IFERROR(VLOOKUP($A8,'2020'!$B$2:$K$170,3,FALSE),0) -> 21 | AO8: =IFERROR(VLOOKUP($A8,'2020'!$B$2:$K$170,4,FALSE),0) -> 6 | AP8: =IFERROR(VLOOKUP($A8,'2020'!$B$2:$K$170,5,FALSE),0) -> 11 | AQ8: =IFERROR(VLOOKUP($A8,'2020'!$B$2:$K$170,8,FALSE),0) -> 0 | AR8: =IFERROR(VLOOKUP($A8,'2020'!$B$2:$K$170,10,FALSE),0) -> 0.524 | AS8: =IFERROR(VLOOKUP($A8,'2019'!$B$2:$K$170,3,FALSE),0) -> 33 | AT8: =IFERROR(VLOOKUP($A8,'2019'!$B$2:$K$170,4,FALSE),0) -> 7 | AU8: =IFERROR(VLOOKUP($A8,'2019'!$B$2:$K$170,5,FALSE),0) -> 18 | AV8: =IFERROR(VLOOKUP($A8,'2019'!$B$2:$K$170,8,FALSE),0) -> 1 | AW8: =IFERROR(VLOOKUP($A8,'2019'!$B$2:$K$170,10,FALSE),0) -> 0.545 | AX8: =IFERROR(VLOOKUP($A8,'2018'!$B$2:$K$170,3,FALSE),0) -> 30 | AY8: =IFERROR(VLOOKUP($A8,'2018'!$B$2:$K$170,4,FALSE),0) -> 7 | AZ8: =IFERROR(VLOOKUP($A8,'2018'!$B$2:$K$170,5,FALSE),0) -> 19 | BA8: =IFERROR(VLOOKUP($A8,'2018'!$B$2:$K$170,8,FALSE),0) -> 0 | BB8: =IFERROR(VLOOKUP($A8,'2018'!$B$2:$K$170,10,FALSE),0) -> 0.633 | BC8: =IFERROR(VLOOKUP($A8,'2017'!$B$2:$J$163,2,FALSE),0) -> 54 | BD8: =IFERROR(VLOOKUP($A8,'2017'!$B$2:$J$163,3,FALSE),0) -> 12 | BE8: =IFERROR(VLOOKUP($A8,'2017'!$B$2:$J$163,4,FALSE),0) -> 28 | BF8: =IFERROR(VLOOKUP($A8,'2017'!$B$2:$J$163,7,FALSE),0) -> 0 | BG8: =IFERROR(VLOOKUP($A8,'2017'!$B$2:$J$163,9,FALSE),0) -> 0.5185185185 | BH8: =IFERROR(VLOOKUP($A8,'2016'!$B$2:$K$165,3,FALSE),0) -> 22 | BI8: =IFERROR(VLOOKUP($A8,'2016'!$B$2:$K$165,4,FALSE),0) -> 5 | BJ8: =IFERROR(VLOOKUP($A8,'2016'!$B$2:$K$165,5,FALSE),0) -> 12 | BK8: =IFERROR(VLOOKUP($A8,'2016'!$B$2:$K$165,8,FALSE),0) -> 0 | BL8: =IFERROR(VLOOKUP($A8,'2016'!$B$2:$K$165,10,FALSE),0) -> 0.545 | BM8: =IFERROR(VLOOKUP($A8,'2015'!$B$2:$K$165,3,FALSE),0) -> 40 | BN8: =IFERROR(VLOOKUP($A8,'2015'!$B$2:$K$165,4,FALSE),0) -> 12 | BO8: =IFERROR(VLOOKUP($A8,'2015'!$B$2:$K$165,5,FALSE),0) -> 21 | BP8: =IFERROR(VLOOKUP($A8,'2015'!$B$2:$K$165,8,FALSE),0) -> 0 | BQ8: =IFERROR(VLOOKUP($A8,'2015'!$B$2:$K$165,10,FALSE),0) -> 0.525 | BR8: =IFERROR(VLOOKUP($A8,'2014'!$B$2:$K$157,3,FALSE),0) -> 33 | BS8: =IFERROR(VLOOKUP($A8,'2014'!$B$2:$K$157,4,FALSE),0) -> 13 | BT8: =IFERROR(VLOOKUP($A8,'2014'!$B$2:$K$157,5,FALSE),0) -> 15 | BU8: =IFERROR(VLOOKUP($A8,'2014'!$B$2:$K$157,8,FALSE),0) -> 0 | BV8: =IFERROR(VLOOKUP($A8,'2014'!$B$2:$K$157,10,FALSE),0) -> 0.4545454545 | BW8: =IFERROR(VLOOKUP($A8,'2013'!$D$4:$I$249,2,FALSE),0) -> 56 | BX8: =IFERROR(VLOOKUP($A8,'2013'!$D$4:$I$249,3,FALSE),0) -> 25 | BY8: =IFERROR(VLOOKUP($A8,'2013'!$D$4:$I$249,4,FALSE),0) -> 35 | BZ8: =IFERROR(VLOOKUP($A8,'2013'!$D$4:$I$249,5,FALSE),0) -> 1 | CA8: =IFERROR(VLOOKUP($A8,'2013'!$D$4:$I$249,6,FALSE),0) -> 0.625 | CB8: =IFERROR(VLOOKUP($A8,'2012'!$D$3:$O$172,2,FALSE),0) -> 1715 | CC8: =IFERROR(VLOOKUP($A8,'2012'!$D$3:$O$172,3,FALSE),0) -> 1070 | CD8: =IFERROR(VLOOKUP($A8,'2012'!$D$3:$O$172,4,FALSE),0) -> 113 | CE8: =IFERROR(VLOOKUP($A8,'2012'!$D$3:$O$172,5,FALSE),0) -> 75 | CF8: =IFERROR(VLOOKUP($A8,'2012'!$D$3:$O$172,6,FALSE),0) -> 32 | CG8: =IFERROR(VLOOKUP($A8,'2012'!$D$3:$O$172,7,FALSE),0) -> 47 | CH8: =IFERROR(VLOOKUP($A8,'2012'!$D$3:$O$172,8,FALSE),0) -> 0 | CI8: =IFERROR(VLOOKUP($A8,'2012'!$D$3:$O$172,9,FALSE),0) -> 0.6266666667 | CJ8: =IFERROR(VLOOKUP($A8,'2012'!$D$3:$O$172,10,FALSE),0) -> 1640 | CK8: =IFERROR(VLOOKUP($A8,'2012'!$D$3:$O$172,11,FALSE),0) -> 1023 | CL8: =IFERROR(VLOOKUP($A8,'2012'!$D$3:$O$172,12,FALSE),0) -> 113 | CM8: =IFERROR(VLOOKUP($A8,'2011'!$D$4:$I$251,2,FALSE),0) -> 85 | CN8: =IFERROR(VLOOKUP($A8,'2011'!$D$4:$I$251,3,FALSE),0) -> 29 | CO8: =IFERROR(VLOOKUP($A8,'2011'!$D$4:$I$251,4,FALSE),0) -> 53 | CP8: =IFERROR(VLOOKUP($A8,'2011'!$D$4:$I$251,5,FALSE),0) -> 6 | CQ8: =IFERROR(VLOOKUP($A8,'2011'!$D$4:$I$251,6,FALSE),0) -> 0.6235294118 | CR8: =IFERROR(VLOOKUP($A8,'2010'!$C$3:$H$234,2,FALSE),0) -> 86 | CS8: =IFERROR(VLOOKUP($A8,'2010'!$C$3:$H$234,3,FALSE),0) -> 47 | CT8: =IFERROR(VLOOKUP($A8,'2010'!$C$3:$H$234,4,FALSE),0) -> 66 | CU8: =IFERROR(VLOOKUP($A8,'2010'!$C$3:$H$234,5,FALSE),0) -> 5 | CV8: =IFERROR(VLOOKUP($A8,'2010'!$C$3:$H$234,6,FALSE),0) -> 0.7674418605 | CW8: =IFERROR(VLOOKUP($A8,'2009'!$C$3:$H$242,2,FALSE),0) -> 72 | CX8: =IFERROR(VLOOKUP($A8,'2009'!$C$3:$H$242,3,FALSE),0) -> 26 | CY8: =IFERROR(VLOOKUP($A8,'2009'!$C$3:$H$242,4,FALSE),0) -> 44 | CZ8: =IFERROR(VLOOKUP($A8,'2009'!$C$3:$H$242,5,FALSE),0) -> 0 | DA8: =IFERROR(VLOOKUP($A8,'2009'!$C$3:$H$242,6,FALSE),0) -> 0.6111111111 | DB8: =IFERROR(VLOOKUP($A8,'2008'!$C$3:$H$229,2,FALSE),0) -> 71 | DC8: =IFERROR(VLOOKUP($A8,'2008'!$C$3:$H$229,3,FALSE),0) -> 27 | DD8: =IFERROR(VLOOKUP($A8,'2008'!$C$3:$H$229,4,FALSE),0) -> 51 | DE8: =IFERROR(VLOOKUP($A8,'2008'!$C$3:$H$229,5,FALSE),0) -> 3 | DF8: =IFERROR(VLOOKUP($A8,'2008'!$C$3:$H$229,6,FALSE),0) -> 0.7183098592 | DG8: =IFERROR(VLOOKUP($A8,'2007'!$C$3:$M$238,7,FALSE),0) -> 0 | DH8: =IFERROR(VLOOKUP($A8,'2007'!$C$3:$M$238,8,FALSE),0) -> 0 | DI8: =IFERROR(VLOOKUP($A8,'2007'!$C$3:$M$238,9,FALSE),0) -> 0 | DJ8: =IFERROR(VLOOKUP($A8,'2007'!$C$3:$M$238,10,FALSE),0) -> 0 | DK8: =IFERROR(VLOOKUP($A8,'2007'!$C$3:$M$238,11,FALSE),0) -> 0 | DL8: =IFERROR(VLOOKUP($A8,'2006'!$A$2:$F$200,2,FALSE),0) -> 87 | DM8: =IFERROR(VLOOKUP($A8,'2006'!$A$2:$F$200,4,FALSE),0) -> 52 | DN8: =IFERROR(VLOOKUP($A8,'2006'!$A$2:$F$200,5,FALSE),0) -> 2 | DO8: =IFERROR(VLOOKUP($A8,'2006'!$A$2:$F$200,6,FALSE),0) -> 0.5977011494 | DP8: =IFERROR(VLOOKUP($A8,'2005'!$C$3:$M$205,8,FALSE),0) -> 66 | DQ8: =IFERROR(VLOOKUP($A8,'2005'!$C$3:$M$205,9,FALSE),0) -> 45 | DR8: =IFERROR(VLOOKUP($A8,'2005'!$C$3:$M$205,10,FALSE),0) -> 0 | DS8: =IFERROR(VLOOKUP($A8,'2005'!$C$3:$M$205,11,FALSE),0) -> 0.6818181818 | DT8: =IFERROR(VLOOKUP($A8,'2004'!$C$3:$M$213,8,FALSE),0) -> 55 | DU8: =IFERROR(VLOOKUP($A8,'2004'!$C$3:$M$213,9,FALSE),0) -> 32 | DV8: =IFERROR(VLOOKUP($A8,'2004'!$C$3:$M$213,10,FALSE),0) -> 1 | DW8: =IFERROR(VLOOKUP($A8,'2004'!$C$3:$M$213,11,FALSE),0) -> 0.5818181818 | DX8: =IFERROR(VLOOKUP($A8,'2003'!$C$3:$Q$214,12,FALSE),0) -> 67 | DY8: =IFERROR(VLOOKUP($A8,'2003'!$C$3:$Q$214,13,FALSE),0) -> 44 | DZ8: =IFERROR(VLOOKUP($A8,'2003'!$C$3:$Q$214,14,FALSE),0) -> 5 | EA8: =IFERROR(VLOOKUP($A8,'2003'!$C$3:$Q$214,15,FALSE),0) -> 0.6567164179 | EB8: =IFERROR(VLOOKUP($A8,'2002'!$D$3:$R$214,12,FALSE),0) -> 52 | EC8: =IFERROR(VLOOKUP($A8,'2002'!$D$3:$R$214,13,FALSE),0) -> 32 | ED8: =IFERROR(VLOOKUP($A8,'2002'!$D$3:$R$214,14,FALSE),0) -> 5 | EE8: =IFERROR(VLOOKUP($A8,'2002'!$D$3:$R$214,15,FALSE),0) -> 0.6153846154 | EF8: =IFERROR(VLOOKUP($A8,'Pre 2002'!$C$3:$CK$382,84,FALSE),0) -> 999 | EG8: =IFERROR(VLOOKUP($A8,'Pre 2002'!$C$3:$CK$382,85,FALSE),0) -> 604 | EH8: =IFERROR(VLOOKUP($A8,'Pre 2002'!$C$3:$CK$382,86,FALSE),0) -> 86 | EI8: =IFERROR(VLOOKUP($A8,'Pre 2002'!$C$3:$CK$382,87,FALSE),0) -> 0.6046046046 | EJ8: =IFERROR(VLOOKUP(A8,'Pre 2002'!$C$3:$CG$382,83,FALSE),0) -> 16
A9: Dwayne Smith | B9: 1945 | C9: 1223 | D9: 208 | E9: 0.6287917738 | F9: 31 | G9: 1988 | H9: 27 | I9: 1745 | J9: 1119 | K9: 201 | L9: 0.641260745 | M9: 88 | N9: 2 | O9: =IFERROR(VLOOKUP($A9,'2025'!$A$2:$J$222,4,FALSE),0) -> 0 | P9: =IFERROR(VLOOKUP($A9,'2025'!$A$2:$J$222,5,FALSE),0) -> 0 | Q9: =IFERROR(VLOOKUP($A9,'2025'!$A$2:$J$222,6,FALSE),0) -> 0 | R9: =IFERROR(VLOOKUP($A9,'2025'!$A$2:$J$222,9,FALSE),0) -> 0 | S9: =IFERROR(VLOOKUP($A9,'2025'!$A$2:$J$222,10,FALSE),0) -> 0 | T9: =IFERROR(VLOOKUP($A9,'2024'!$A$2:$M$220,6,FALSE),0) -> 0 | U9: =IFERROR(VLOOKUP($A9,'2024'!$A$2:$M$220,7,FALSE),0) -> 0 | V9: =IFERROR(VLOOKUP($A9,'2024'!$A$2:$M$220,8,FALSE),0) -> 0 | W9: =IFERROR(VLOOKUP($A9,'2024'!$A$2:$M$220,11,FALSE),0) -> 0 | X9: =IFERROR(VLOOKUP($A9,'2024'!$A$2:$M$220,13,FALSE),0) -> 0 | Y9: =IFERROR(VLOOKUP($A9,'2023'!$A$2:$M$170,6,FALSE),0) -> 0 | Z9: =IFERROR(VLOOKUP($A9,'2023'!$A$2:$M$170,7,FALSE),0) -> 0 | AA9: =IFERROR(VLOOKUP($A9,'2023'!$A$2:$M$170,8,FALSE),0) -> 0 | AB9: =IFERROR(VLOOKUP($A9,'2023'!$A$2:$M$170,11,FALSE),0) -> 0 | AC9: =IFERROR(VLOOKUP($A9,'2023'!$A$2:$M$170,13,FALSE),0) -> 0 | AD9: =IFERROR(VLOOKUP($A9,'2022'!$B$2:$K$174,3,FALSE),0) -> 0 | AE9: =IFERROR(VLOOKUP($A9,'2022'!$B$2:$K$174,4,FALSE),0) -> 0 | AF9: =IFERROR(VLOOKUP($A9,'2022'!$B$2:$K$174,5,FALSE),0) -> 0 | AG9: =IFERROR(VLOOKUP($A9,'2022'!$B$2:$K$174,8,FALSE),0) -> 0 | AH9: =IFERROR(VLOOKUP($A9,'2022'!$B$2:$K$174,10,FALSE),0) -> 0 | AI9: =IFERROR(VLOOKUP($A9,'2021'!$B$2:$K$174,3,FALSE),0) -> 0 | AJ9: =IFERROR(VLOOKUP($A9,'2021'!$B$2:$K$174,4,FALSE),0) -> 0 | AK9: =IFERROR(VLOOKUP($A9,'2021'!$B$2:$K$174,5,FALSE),0) -> 0 | AL9: =IFERROR(VLOOKUP($A9,'2021'!$B$2:$K$174,8,FALSE),0) -> 0 | AM9: =IFERROR(VLOOKUP($A9,'2021'!$B$2:$K$174,10,FALSE),0) -> 0 | AN9: =IFERROR(VLOOKUP($A9,'2020'!$B$2:$K$170,3,FALSE),0) -> 0 | AO9: =IFERROR(VLOOKUP($A9,'2020'!$B$2:$K$170,4,FALSE),0) -> 0 | AP9: =IFERROR(VLOOKUP($A9,'2020'!$B$2:$K$170,5,FALSE),0) -> 0 | AQ9: =IFERROR(VLOOKUP($A9,'2020'!$B$2:$K$170,8,FALSE),0) -> 0 | AR9: =IFERROR(VLOOKUP($A9,'2020'!$B$2:$K$170,10,FALSE),0) -> 0 | AS9: =IFERROR(VLOOKUP($A9,'2019'!$B$2:$K$170,3,FALSE),0) -> 19 | AT9: =IFERROR(VLOOKUP($A9,'2019'!$B$2:$K$170,4,FALSE),0) -> 2 | AU9: =IFERROR(VLOOKUP($A9,'2019'!$B$2:$K$170,5,FALSE),0) -> 8 | AV9: =IFERROR(VLOOKUP($A9,'2019'!$B$2:$K$170,8,FALSE),0) -> 0 | AW9: =IFERROR(VLOOKUP($A9,'2019'!$B$2:$K$170,10,FALSE),0) -> 0.421 | AX9: =IFERROR(VLOOKUP($A9,'2018'!$B$2:$K$170,3,FALSE),0) -> 0 | AY9: =IFERROR(VLOOKUP($A9,'2018'!$B$2:$K$170,4,FALSE),0) -> 0 | AZ9: =IFERROR(VLOOKUP($A9,'2018'!$B$2:$K$170,5,FALSE),0) -> 0 | BA9: =IFERROR(VLOOKUP($A9,'2018'!$B$2:$K$170,8,FALSE),0) -> 0 | BB9: =IFERROR(VLOOKUP($A9,'2018'!$B$2:$K$170,10,FALSE),0) -> 0 | BC9: =IFERROR(VLOOKUP($A9,'2017'!$B$2:$J$163,2,FALSE),0) -> 53 | BD9: =IFERROR(VLOOKUP($A9,'2017'!$B$2:$J$163,3,FALSE),0) -> 14 | BE9: =IFERROR(VLOOKUP($A9,'2017'!$B$2:$J$163,4,FALSE),0) -> 21 | BF9: =IFERROR(VLOOKUP($A9,'2017'!$B$2:$J$163,7,FALSE),0) -> 2 | BG9: =IFERROR(VLOOKUP($A9,'2017'!$B$2:$J$163,9,FALSE),0) -> 0.3962264151 | BH9: =IFERROR(VLOOKUP($A9,'2016'!$B$2:$K$165,3,FALSE),0) -> 69 | BI9: =IFERROR(VLOOKUP($A9,'2016'!$B$2:$K$165,4,FALSE),0) -> 33 | BJ9: =IFERROR(VLOOKUP($A9,'2016'!$B$2:$K$165,5,FALSE),0) -> 37 | BK9: =IFERROR(VLOOKUP($A9,'2016'!$B$2:$K$165,8,FALSE),0) -> 1 | BL9: =IFERROR(VLOOKUP($A9,'2016'!$B$2:$K$165,10,FALSE),0) -> 0.536 | BM9: =IFERROR(VLOOKUP($A9,'2015'!$B$2:$K$165,3,FALSE),0) -> 59 | BN9: =IFERROR(VLOOKUP($A9,'2015'!$B$2:$K$165,4,FALSE),0) -> 26 | BO9: =IFERROR(VLOOKUP($A9,'2015'!$B$2:$K$165,5,FALSE),0) -> 38 | BP9: =IFERROR(VLOOKUP($A9,'2015'!$B$2:$K$165,8,FALSE),0) -> 4 | BQ9: =IFERROR(VLOOKUP($A9,'2015'!$B$2:$K$165,10,FALSE),0) -> 0.6440677966 | BR9: =IFERROR(VLOOKUP($A9,'2014'!$B$2:$K$157,3,FALSE),0) -> 69 | BS9: =IFERROR(VLOOKUP($A9,'2014'!$B$2:$K$157,4,FALSE),0) -> 38 | BT9: =IFERROR(VLOOKUP($A9,'2014'!$B$2:$K$157,5,FALSE),0) -> 44 | BU9: =IFERROR(VLOOKUP($A9,'2014'!$B$2:$K$157,8,FALSE),0) -> 5 | BV9: =IFERROR(VLOOKUP($A9,'2014'!$B$2:$K$157,10,FALSE),0) -> 0.6376811594 | BW9: =IFERROR(VLOOKUP($A9,'2013'!$D$4:$I$249,2,FALSE),0) -> 70 | BX9: =IFERROR(VLOOKUP($A9,'2013'!$D$4:$I$249,3,FALSE),0) -> 32 | BY9: =IFERROR(VLOOKUP($A9,'2013'!$D$4:$I$249,4,FALSE),0) -> 38 | BZ9: =IFERROR(VLOOKUP($A9,'2013'!$D$4:$I$249,5,FALSE),0) -> 2 | CA9: =IFERROR(VLOOKUP($A9,'2013'!$D$4:$I$249,6,FALSE),0) -> 0.5428571429 | CB9: =IFERROR(VLOOKUP($A9,'2012'!$D$3:$O$172,2,FALSE),0) -> 1611 | CC9: =IFERROR(VLOOKUP($A9,'2012'!$D$3:$O$172,3,FALSE),0) -> 1036 | CD9: =IFERROR(VLOOKUP($A9,'2012'!$D$3:$O$172,4,FALSE),0) -> 194 | CE9: =IFERROR(VLOOKUP($A9,'2012'!$D$3:$O$172,5,FALSE),0) -> 73 | CF9: =IFERROR(VLOOKUP($A9,'2012'!$D$3:$O$172,6,FALSE),0) -> 39 | CG9: =IFERROR(VLOOKUP($A9,'2012'!$D$3:$O$172,7,FALSE),0) -> 48 | CH9: =IFERROR(VLOOKUP($A9,'2012'!$D$3:$O$172,8,FALSE),0) -> 4 | CI9: =IFERROR(VLOOKUP($A9,'2012'!$D$3:$O$172,9,FALSE),0) -> 0.6575342466 | CJ9: =IFERROR(VLOOKUP($A9,'2012'!$D$3:$O$172,10,FALSE),0) -> 1538 | CK9: =IFERROR(VLOOKUP($A9,'2012'!$D$3:$O$172,11,FALSE),0) -> 988 | CL9: =IFERROR(VLOOKUP($A9,'2012'!$D$3:$O$172,12,FALSE),0) -> 190 | CM9: =IFERROR(VLOOKUP($A9,'2011'!$D$4:$I$251,2,FALSE),0) -> 54 | CN9: =IFERROR(VLOOKUP($A9,'2011'!$D$4:$I$251,3,FALSE),0) -> 32 | CO9: =IFERROR(VLOOKUP($A9,'2011'!$D$4:$I$251,4,FALSE),0) -> 36 | CP9: =IFERROR(VLOOKUP($A9,'2011'!$D$4:$I$251,5,FALSE),0) -> 3 | CQ9: =IFERROR(VLOOKUP($A9,'2011'!$D$4:$I$251,6,FALSE),0) -> 0.6666666667 | CR9: =IFERROR(VLOOKUP($A9,'2010'!$C$3:$H$234,2,FALSE),0) -> 62 | CS9: =IFERROR(VLOOKUP($A9,'2010'!$C$3:$H$234,3,FALSE),0) -> 31 | CT9: =IFERROR(VLOOKUP($A9,'2010'!$C$3:$H$234,4,FALSE),0) -> 42 | CU9: =IFERROR(VLOOKUP($A9,'2010'!$C$3:$H$234,5,FALSE),0) -> 5 | CV9: =IFERROR(VLOOKUP($A9,'2010'!$C$3:$H$234,6,FALSE),0) -> 0.6774193548 | CW9: =IFERROR(VLOOKUP($A9,'2009'!$C$3:$H$242,2,FALSE),0) -> 77 | CX9: =IFERROR(VLOOKUP($A9,'2009'!$C$3:$H$242,3,FALSE),0) -> 48 | CY9: =IFERROR(VLOOKUP($A9,'2009'!$C$3:$H$242,4,FALSE),0) -> 56 | CZ9: =IFERROR(VLOOKUP($A9,'2009'!$C$3:$H$242,5,FALSE),0) -> 9 | DA9: =IFERROR(VLOOKUP($A9,'2009'!$C$3:$H$242,6,FALSE),0) -> 0.7272727273 | DB9: =IFERROR(VLOOKUP($A9,'2008'!$C$3:$H$229,2,FALSE),0) -> 58 | DC9: =IFERROR(VLOOKUP($A9,'2008'!$C$3:$H$229,3,FALSE),0) -> 43 | DD9: =IFERROR(VLOOKUP($A9,'2008'!$C$3:$H$229,4,FALSE),0) -> 42 | DE9: =IFERROR(VLOOKUP($A9,'2008'!$C$3:$H$229,5,FALSE),0) -> 13 | DF9: =IFERROR(VLOOKUP($A9,'2008'!$C$3:$H$229,6,FALSE),0) -> 0.724137931 | DG9: =IFERROR(VLOOKUP($A9,'2007'!$C$3:$M$238,7,FALSE),0) -> 72 | DH9: =IFERROR(VLOOKUP($A9,'2007'!$C$3:$M$238,8,FALSE),0) -> 45 | DI9: =IFERROR(VLOOKUP($A9,'2007'!$C$3:$M$238,9,FALSE),0) -> 47 | DJ9: =IFERROR(VLOOKUP($A9,'2007'!$C$3:$M$238,10,FALSE),0) -> 10 | DK9: =IFERROR(VLOOKUP($A9,'2007'!$C$3:$M$238,11,FALSE),0) -> 0.6527777778 | DL9: =IFERROR(VLOOKUP($A9,'2006'!$A$2:$F$200,2,FALSE),0) -> 61 | DM9: =IFERROR(VLOOKUP($A9,'2006'!$A$2:$F$200,4,FALSE),0) -> 38 | DN9: =IFERROR(VLOOKUP($A9,'2006'!$A$2:$F$200,5,FALSE),0) -> 10 | DO9: =IFERROR(VLOOKUP($A9,'2006'!$A$2:$F$200,6,FALSE),0) -> 0.6229508197 | DP9: =IFERROR(VLOOKUP($A9,'2005'!$C$3:$M$205,8,FALSE),0) -> 77 | DQ9: =IFERROR(VLOOKUP($A9,'2005'!$C$3:$M$205,9,FALSE),0) -> 58 | DR9: =IFERROR(VLOOKUP($A9,'2005'!$C$3:$M$205,10,FALSE),0) -> 12 | DS9: =IFERROR(VLOOKUP($A9,'2005'!$C$3:$M$205,11,FALSE),0) -> 0.7532467532 | DT9: =IFERROR(VLOOKUP($A9,'2004'!$C$3:$M$213,8,FALSE),0) -> 60 | DU9: =IFERROR(VLOOKUP($A9,'2004'!$C$3:$M$213,9,FALSE),0) -> 36 | DV9: =IFERROR(VLOOKUP($A9,'2004'!$C$3:$M$213,10,FALSE),0) -> 5 | DW9: =IFERROR(VLOOKUP($A9,'2004'!$C$3:$M$213,11,FALSE),0) -> 0.6 | DX9: =IFERROR(VLOOKUP($A9,'2003'!$C$3:$Q$214,12,FALSE),0) -> 62 | DY9: =IFERROR(VLOOKUP($A9,'2003'!$C$3:$Q$214,13,FALSE),0) -> 39 | DZ9: =IFERROR(VLOOKUP($A9,'2003'!$C$3:$Q$214,14,FALSE),0) -> 10 | EA9: =IFERROR(VLOOKUP($A9,'2003'!$C$3:$Q$214,15,FALSE),0) -> 0.6290322581 | EB9: =IFERROR(VLOOKUP($A9,'2002'!$D$3:$R$214,12,FALSE),0) -> 57 | EC9: =IFERROR(VLOOKUP($A9,'2002'!$D$3:$R$214,13,FALSE),0) -> 42 | ED9: =IFERROR(VLOOKUP($A9,'2002'!$D$3:$R$214,14,FALSE),0) -> 3 | EE9: =IFERROR(VLOOKUP($A9,'2002'!$D$3:$R$214,15,FALSE),0) -> 0.7368421053 | EF9: =IFERROR(VLOOKUP($A9,'Pre 2002'!$C$3:$CK$382,84,FALSE),0) -> 893 | EG9: =IFERROR(VLOOKUP($A9,'Pre 2002'!$C$3:$CK$382,85,FALSE),0) -> 553 | EH9: =IFERROR(VLOOKUP($A9,'Pre 2002'!$C$3:$CK$382,86,FALSE),0) -> 110 | EI9: =IFERROR(VLOOKUP($A9,'Pre 2002'!$C$3:$CK$382,87,FALSE),0) -> 0.6192609183 | EJ9: =IFERROR(VLOOKUP(A9,'Pre 2002'!$C$3:$CG$382,83,FALSE),0) -> 14
A10: Dusty Miller | B10: 2322 | C10: 1207 | D10: 52 | E10: 0.5198105082 | F10: 35 | G10: 1991 | H10: 24 | I10: 1544 | J10: 818 | K10: 44 | L10: 0.5297927461 | M10: 91 | N10: 3 | O10: =IFERROR(VLOOKUP($A10,'2025'!$A$2:$J$222,4,FALSE),0) -> 75 | P10: =IFERROR(VLOOKUP($A10,'2025'!$A$2:$J$222,5,FALSE),0) -> 25 | Q10: =IFERROR(VLOOKUP($A10,'2025'!$A$2:$J$222,6,FALSE),0) -> 41 | R10: =IFERROR(VLOOKUP($A10,'2025'!$A$2:$J$222,9,FALSE),0) -> 0 | S10: =IFERROR(VLOOKUP($A10,'2025'!$A$2:$J$222,10,FALSE),0) -> 0.547 | T10: =IFERROR(VLOOKUP($A10,'2024'!$A$2:$M$220,6,FALSE),0) -> 78 | U10: =IFERROR(VLOOKUP($A10,'2024'!$A$2:$M$220,7,FALSE),0) -> 17 | V10: =IFERROR(VLOOKUP($A10,'2024'!$A$2:$M$220,8,FALSE),0) -> 43 | W10: =IFERROR(VLOOKUP($A10,'2024'!$A$2:$M$220,11,FALSE),0) -> 1 | X10: =IFERROR(VLOOKUP($A10,'2024'!$A$2:$M$220,13,FALSE),0) -> 0.551 | Y10: =IFERROR(VLOOKUP($A10,'2023'!$A$2:$M$170,6,FALSE),0) -> 63 | Z10: =IFERROR(VLOOKUP($A10,'2023'!$A$2:$M$170,7,FALSE),0) -> 15 | AA10: =IFERROR(VLOOKUP($A10,'2023'!$A$2:$M$170,8,FALSE),0) -> 36 | AB10: =IFERROR(VLOOKUP($A10,'2023'!$A$2:$M$170,11,FALSE),0) -> 2 | AC10: =IFERROR(VLOOKUP($A10,'2023'!$A$2:$M$170,13,FALSE),0) -> 0.571 | AD10: =IFERROR(VLOOKUP($A10,'2022'!$B$2:$K$174,3,FALSE),0) -> 60 | AE10: =IFERROR(VLOOKUP($A10,'2022'!$B$2:$K$174,4,FALSE),0) -> 18 | AF10: =IFERROR(VLOOKUP($A10,'2022'!$B$2:$K$174,5,FALSE),0) -> 38 | AG10: =IFERROR(VLOOKUP($A10,'2022'!$B$2:$K$174,8,FALSE),0) -> 2 | AH10: =IFERROR(VLOOKUP($A10,'2022'!$B$2:$K$174,10,FALSE),0) -> 0.633 | AI10: =IFERROR(VLOOKUP($A10,'2021'!$B$2:$K$174,3,FALSE),0) -> 69 | AJ10: =IFERROR(VLOOKUP($A10,'2021'!$B$2:$K$174,4,FALSE),0) -> 14 | AK10: =IFERROR(VLOOKUP($A10,'2021'!$B$2:$K$174,5,FALSE),0) -> 27 | AL10: =IFERROR(VLOOKUP($A10,'2021'!$B$2:$K$174,8,FALSE),0) -> 1 | AM10: =IFERROR(VLOOKUP($A10,'2021'!$B$2:$K$174,10,FALSE),0) -> 0.391 | AN10: =IFERROR(VLOOKUP($A10,'2020'!$B$2:$K$170,3,FALSE),0) -> 81 | AO10: =IFERROR(VLOOKUP($A10,'2020'!$B$2:$K$170,4,FALSE),0) -> 21 | AP10: =IFERROR(VLOOKUP($A10,'2020'!$B$2:$K$170,5,FALSE),0) -> 45 | AQ10: =IFERROR(VLOOKUP($A10,'2020'!$B$2:$K$170,8,FALSE),0) -> 0 | AR10: =IFERROR(VLOOKUP($A10,'2020'!$B$2:$K$170,10,FALSE),0) -> 0.556 | AS10: =IFERROR(VLOOKUP($A10,'2019'!$B$2:$K$170,3,FALSE),0) -> 69 | AT10: =IFERROR(VLOOKUP($A10,'2019'!$B$2:$K$170,4,FALSE),0) -> 15 | AU10: =IFERROR(VLOOKUP($A10,'2019'!$B$2:$K$170,5,FALSE),0) -> 28 | AV10: =IFERROR(VLOOKUP($A10,'2019'!$B$2:$K$170,8,FALSE),0) -> 0 | AW10: =IFERROR(VLOOKUP($A10,'2019'!$B$2:$K$170,10,FALSE),0) -> 0.406 | AX10: =IFERROR(VLOOKUP($A10,'2018'!$B$2:$K$170,3,FALSE),0) -> 71 | AY10: =IFERROR(VLOOKUP($A10,'2018'!$B$2:$K$170,4,FALSE),0) -> 23 | AZ10: =IFERROR(VLOOKUP($A10,'2018'!$B$2:$K$170,5,FALSE),0) -> 32 | BA10: =IFERROR(VLOOKUP($A10,'2018'!$B$2:$K$170,8,FALSE),0) -> 1 | BB10: =IFERROR(VLOOKUP($A10,'2018'!$B$2:$K$170,10,FALSE),0) -> 0.451 | BC10: =IFERROR(VLOOKUP($A10,'2017'!$B$2:$J$163,2,FALSE),0) -> 75 | BD10: =IFERROR(VLOOKUP($A10,'2017'!$B$2:$J$163,3,FALSE),0) -> 19 | BE10: =IFERROR(VLOOKUP($A10,'2017'!$B$2:$J$163,4,FALSE),0) -> 40 | BF10: =IFERROR(VLOOKUP($A10,'2017'!$B$2:$J$163,7,FALSE),0) -> 0 | BG10: =IFERROR(VLOOKUP($A10,'2017'!$B$2:$J$163,9,FALSE),0) -> 0.5333333333 | BH10: =IFERROR(VLOOKUP($A10,'2016'!$B$2:$K$165,3,FALSE),0) -> 70 | BI10: =IFERROR(VLOOKUP($A10,'2016'!$B$2:$K$165,4,FALSE),0) -> 20 | BJ10: =IFERROR(VLOOKUP($A10,'2016'!$B$2:$K$165,5,FALSE),0) -> 33 | BK10: =IFERROR(VLOOKUP($A10,'2016'!$B$2:$K$165,8,FALSE),0) -> 1 | BL10: =IFERROR(VLOOKUP($A10,'2016'!$B$2:$K$165,10,FALSE),0) -> 0.471 | BM10: =IFERROR(VLOOKUP($A10,'2015'!$B$2:$K$165,3,FALSE),0) -> 67 | BN10: =IFERROR(VLOOKUP($A10,'2015'!$B$2:$K$165,4,FALSE),0) -> 8 | BO10: =IFERROR(VLOOKUP($A10,'2015'!$B$2:$K$165,5,FALSE),0) -> 26 | BP10: =IFERROR(VLOOKUP($A10,'2015'!$B$2:$K$165,8,FALSE),0) -> 0 | BQ10: =IFERROR(VLOOKUP($A10,'2015'!$B$2:$K$165,10,FALSE),0) -> 0.3880597015 | BR10: =IFERROR(VLOOKUP($A10,'2014'!$B$2:$K$157,3,FALSE),0) -> 49 | BS10: =IFERROR(VLOOKUP($A10,'2014'!$B$2:$K$157,4,FALSE),0) -> 14 | BT10: =IFERROR(VLOOKUP($A10,'2014'!$B$2:$K$157,5,FALSE),0) -> 24 | BU10: =IFERROR(VLOOKUP($A10,'2014'!$B$2:$K$157,8,FALSE),0) -> 0 | BV10: =IFERROR(VLOOKUP($A10,'2014'!$B$2:$K$157,10,FALSE),0) -> 0.4897959184 | BW10: =IFERROR(VLOOKUP($A10,'2013'!$D$4:$I$249,2,FALSE),0) -> 72 | BX10: =IFERROR(VLOOKUP($A10,'2013'!$D$4:$I$249,3,FALSE),0) -> 27 | BY10: =IFERROR(VLOOKUP($A10,'2013'!$D$4:$I$249,4,FALSE),0) -> 42 | BZ10: =IFERROR(VLOOKUP($A10,'2013'!$D$4:$I$249,5,FALSE),0) -> 1 | CA10: =IFERROR(VLOOKUP($A10,'2013'!$D$4:$I$249,6,FALSE),0) -> 0.5833333333 | CB10: =IFERROR(VLOOKUP($A10,'2012'!$D$3:$O$172,2,FALSE),0) -> 1430 | CC10: =IFERROR(VLOOKUP($A10,'2012'!$D$3:$O$172,3,FALSE),0) -> 756 | CD10: =IFERROR(VLOOKUP($A10,'2012'!$D$3:$O$172,4,FALSE),0) -> 44 | CE10: =IFERROR(VLOOKUP($A10,'2012'!$D$3:$O$172,5,FALSE),0) -> 56 | CF10: =IFERROR(VLOOKUP($A10,'2012'!$D$3:$O$172,6,FALSE),0) -> 19 | CG10: =IFERROR(VLOOKUP($A10,'2012'!$D$3:$O$172,7,FALSE),0) -> 27 | CH10: =IFERROR(VLOOKUP($A10,'2012'!$D$3:$O$172,8,FALSE),0) -> 1 | CI10: =IFERROR(VLOOKUP($A10,'2012'!$D$3:$O$172,9,FALSE),0) -> 0.4821428571 | CJ10: =IFERROR(VLOOKUP($A10,'2012'!$D$3:$O$172,10,FALSE),0) -> 1374 | CK10: =IFERROR(VLOOKUP($A10,'2012'!$D$3:$O$172,11,FALSE),0) -> 729 | CL10: =IFERROR(VLOOKUP($A10,'2012'!$D$3:$O$172,12,FALSE),0) -> 43 | CM10: =IFERROR(VLOOKUP($A10,'2011'!$D$4:$I$251,2,FALSE),0) -> 50 | CN10: =IFERROR(VLOOKUP($A10,'2011'!$D$4:$I$251,3,FALSE),0) -> 14 | CO10: =IFERROR(VLOOKUP($A10,'2011'!$D$4:$I$251,4,FALSE),0) -> 24 | CP10: =IFERROR(VLOOKUP($A10,'2011'!$D$4:$I$251,5,FALSE),0) -> 3 | CQ10: =IFERROR(VLOOKUP($A10,'2011'!$D$4:$I$251,6,FALSE),0) -> 0.48 | CR10: =IFERROR(VLOOKUP($A10,'2010'!$C$3:$H$234,2,FALSE),0) -> 74 | CS10: =IFERROR(VLOOKUP($A10,'2010'!$C$3:$H$234,3,FALSE),0) -> 21 | CT10: =IFERROR(VLOOKUP($A10,'2010'!$C$3:$H$234,4,FALSE),0) -> 40 | CU10: =IFERROR(VLOOKUP($A10,'2010'!$C$3:$H$234,5,FALSE),0) -> 2 | CV10: =IFERROR(VLOOKUP($A10,'2010'!$C$3:$H$234,6,FALSE),0) -> 0.5405405405 | CW10: =IFERROR(VLOOKUP($A10,'2009'!$C$3:$H$242,2,FALSE),0) -> 84 | CX10: =IFERROR(VLOOKUP($A10,'2009'!$C$3:$H$242,3,FALSE),0) -> 29 | CY10: =IFERROR(VLOOKUP($A10,'2009'!$C$3:$H$242,4,FALSE),0) -> 41 | CZ10: =IFERROR(VLOOKUP($A10,'2009'!$C$3:$H$242,5,FALSE),0) -> 1 | DA10: =IFERROR(VLOOKUP($A10,'2009'!$C$3:$H$242,6,FALSE),0) -> 0.4880952381 | DB10: =IFERROR(VLOOKUP($A10,'2008'!$C$3:$H$229,2,FALSE),0) -> 74 | DC10: =IFERROR(VLOOKUP($A10,'2008'!$C$3:$H$229,3,FALSE),0) -> 30 | DD10: =IFERROR(VLOOKUP($A10,'2008'!$C$3:$H$229,4,FALSE),0) -> 48 | DE10: =IFERROR(VLOOKUP($A10,'2008'!$C$3:$H$229,5,FALSE),0) -> 8 | DF10: =IFERROR(VLOOKUP($A10,'2008'!$C$3:$H$229,6,FALSE),0) -> 0.6486486486 | DG10: =IFERROR(VLOOKUP($A10,'2007'!$C$3:$M$238,7,FALSE),0) -> 53 | DH10: =IFERROR(VLOOKUP($A10,'2007'!$C$3:$M$238,8,FALSE),0) -> 13 | DI10: =IFERROR(VLOOKUP($A10,'2007'!$C$3:$M$238,9,FALSE),0) -> 24 | DJ10: =IFERROR(VLOOKUP($A10,'2007'!$C$3:$M$238,10,FALSE),0) -> 0 | DK10: =IFERROR(VLOOKUP($A10,'2007'!$C$3:$M$238,11,FALSE),0) -> 0.4528301887 | DL10: =IFERROR(VLOOKUP($A10,'2006'!$A$2:$F$200,2,FALSE),0) -> 65 | DM10: =IFERROR(VLOOKUP($A10,'2006'!$A$2:$F$200,4,FALSE),0) -> 38 | DN10: =IFERROR(VLOOKUP($A10,'2006'!$A$2:$F$200,5,FALSE),0) -> 3 | DO10: =IFERROR(VLOOKUP($A10,'2006'!$A$2:$F$200,6,FALSE),0) -> 0.5846153846 | DP10: =IFERROR(VLOOKUP($A10,'2005'!$C$3:$M$205,8,FALSE),0) -> 71 | DQ10: =IFERROR(VLOOKUP($A10,'2005'!$C$3:$M$205,9,FALSE),0) -> 37 | DR10: =IFERROR(VLOOKUP($A10,'2005'!$C$3:$M$205,10,FALSE),0) -> 2 | DS10: =IFERROR(VLOOKUP($A10,'2005'!$C$3:$M$205,11,FALSE),0) -> 0.5211267606 | DT10: =IFERROR(VLOOKUP($A10,'2004'!$C$3:$M$213,8,FALSE),0) -> 49 | DU10: =IFERROR(VLOOKUP($A10,'2004'!$C$3:$M$213,9,FALSE),0) -> 23 | DV10: =IFERROR(VLOOKUP($A10,'2004'!$C$3:$M$213,10,FALSE),0) -> 0 | DW10: =IFERROR(VLOOKUP($A10,'2004'!$C$3:$M$213,11,FALSE),0) -> 0.4693877551 | DX10: =IFERROR(VLOOKUP($A10,'2003'!$C$3:$Q$214,12,FALSE),0) -> 76 | DY10: =IFERROR(VLOOKUP($A10,'2003'!$C$3:$Q$214,13,FALSE),0) -> 42 | DZ10: =IFERROR(VLOOKUP($A10,'2003'!$C$3:$Q$214,14,FALSE),0) -> 2 | EA10: =IFERROR(VLOOKUP($A10,'2003'!$C$3:$Q$214,15,FALSE),0) -> 0.5526315789 | EB10: =IFERROR(VLOOKUP($A10,'2002'!$D$3:$R$214,12,FALSE),0) -> 59 | EC10: =IFERROR(VLOOKUP($A10,'2002'!$D$3:$R$214,13,FALSE),0) -> 32 | ED10: =IFERROR(VLOOKUP($A10,'2002'!$D$3:$R$214,14,FALSE),0) -> 2 | EE10: =IFERROR(VLOOKUP($A10,'2002'!$D$3:$R$214,15,FALSE),0) -> 0.5423728814 | EF10: =IFERROR(VLOOKUP($A10,'Pre 2002'!$C$3:$CK$382,84,FALSE),0) -> 712 | EG10: =IFERROR(VLOOKUP($A10,'Pre 2002'!$C$3:$CK$382,85,FALSE),0) -> 376 | EH10: =IFERROR(VLOOKUP($A10,'Pre 2002'!$C$3:$CK$382,86,FALSE),0) -> 19 | EI10: =IFERROR(VLOOKUP($A10,'Pre 2002'!$C$3:$CK$382,87,FALSE),0) -> 0.5280898876 | EJ10: =IFERROR(VLOOKUP(A10,'Pre 2002'!$C$3:$CG$382,83,FALSE),0) -> 11
A11: Steve Griffin | B11: 2156 | C11: 1203 | D11: 75 | E11: 0.5579777365 | F11: 33 | G11: 1988 | H11: 26 | I11: 1655 | J11: 954 | K11: 75 | L11: 0.5764350453 | M11: 88 | N11: 3 | O11: =IFERROR(VLOOKUP($A11,'2025'!$A$2:$J$222,4,FALSE),0) -> 0 | P11: =IFERROR(VLOOKUP($A11,'2025'!$A$2:$J$222,5,FALSE),0) -> 0 | Q11: =IFERROR(VLOOKUP($A11,'2025'!$A$2:$J$222,6,FALSE),0) -> 0 | R11: =IFERROR(VLOOKUP($A11,'2025'!$A$2:$J$222,9,FALSE),0) -> 0 | S11: =IFERROR(VLOOKUP($A11,'2025'!$A$2:$J$222,10,FALSE),0) -> 0 | T11: =IFERROR(VLOOKUP($A11,'2024'!$A$2:$M$220,6,FALSE),0) -> 0 | U11: =IFERROR(VLOOKUP($A11,'2024'!$A$2:$M$220,7,FALSE),0) -> 0 | V11: =IFERROR(VLOOKUP($A11,'2024'!$A$2:$M$220,8,FALSE),0) -> 0 | W11: =IFERROR(VLOOKUP($A11,'2024'!$A$2:$M$220,11,FALSE),0) -> 0 | X11: =IFERROR(VLOOKUP($A11,'2024'!$A$2:$M$220,13,FALSE),0) -> 0 | Y11: =IFERROR(VLOOKUP($A11,'2023'!$A$2:$M$170,6,FALSE),0) -> 0 | Z11: =IFERROR(VLOOKUP($A11,'2023'!$A$2:$M$170,7,FALSE),0) -> 0 | AA11: =IFERROR(VLOOKUP($A11,'2023'!$A$2:$M$170,8,FALSE),0) -> 0 | AB11: =IFERROR(VLOOKUP($A11,'2023'!$A$2:$M$170,11,FALSE),0) -> 0 | AC11: =IFERROR(VLOOKUP($A11,'2023'!$A$2:$M$170,13,FALSE),0) -> 0 | AD11: =IFERROR(VLOOKUP($A11,'2022'!$B$2:$K$174,3,FALSE),0) -> 63 | AE11: =IFERROR(VLOOKUP($A11,'2022'!$B$2:$K$174,4,FALSE),0) -> 21 | AF11: =IFERROR(VLOOKUP($A11,'2022'!$B$2:$K$174,5,FALSE),0) -> 34 | AG11: =IFERROR(VLOOKUP($A11,'2022'!$B$2:$K$174,8,FALSE),0) -> 0 | AH11: =IFERROR(VLOOKUP($A11,'2022'!$B$2:$K$174,10,FALSE),0) -> 0.54 | AI11: =IFERROR(VLOOKUP($A11,'2021'!$B$2:$K$174,3,FALSE),0) -> 0 | AJ11: =IFERROR(VLOOKUP($A11,'2021'!$B$2:$K$174,4,FALSE),0) -> 0 | AK11: =IFERROR(VLOOKUP($A11,'2021'!$B$2:$K$174,5,FALSE),0) -> 0 | AL11: =IFERROR(VLOOKUP($A11,'2021'!$B$2:$K$174,8,FALSE),0) -> 0 | AM11: =IFERROR(VLOOKUP($A11,'2021'!$B$2:$K$174,10,FALSE),0) -> 0 | AN11: =IFERROR(VLOOKUP($A11,'2020'!$B$2:$K$170,3,FALSE),0) -> 54 | AO11: =IFERROR(VLOOKUP($A11,'2020'!$B$2:$K$170,4,FALSE),0) -> 14 | AP11: =IFERROR(VLOOKUP($A11,'2020'!$B$2:$K$170,5,FALSE),0) -> 27 | AQ11: =IFERROR(VLOOKUP($A11,'2020'!$B$2:$K$170,8,FALSE),0) -> 0 | AR11: =IFERROR(VLOOKUP($A11,'2020'!$B$2:$K$170,10,FALSE),0) -> 0.5 | AS11: =IFERROR(VLOOKUP($A11,'2019'!$B$2:$K$170,3,FALSE),0) -> 76 | AT11: =IFERROR(VLOOKUP($A11,'2019'!$B$2:$K$170,4,FALSE),0) -> 14 | AU11: =IFERROR(VLOOKUP($A11,'2019'!$B$2:$K$170,5,FALSE),0) -> 29 | AV11: =IFERROR(VLOOKUP($A11,'2019'!$B$2:$K$170,8,FALSE),0) -> 0 | AW11: =IFERROR(VLOOKUP($A11,'2019'!$B$2:$K$170,10,FALSE),0) -> 0.382 | AX11: =IFERROR(VLOOKUP($A11,'2018'!$B$2:$K$170,3,FALSE),0) -> 78 | AY11: =IFERROR(VLOOKUP($A11,'2018'!$B$2:$K$170,4,FALSE),0) -> 21 | AZ11: =IFERROR(VLOOKUP($A11,'2018'!$B$2:$K$170,5,FALSE),0) -> 41 | BA11: =IFERROR(VLOOKUP($A11,'2018'!$B$2:$K$170,8,FALSE),0) -> 0 | BB11: =IFERROR(VLOOKUP($A11,'2018'!$B$2:$K$170,10,FALSE),0) -> 0.526 | BC11: =IFERROR(VLOOKUP($A11,'2017'!$B$2:$J$163,2,FALSE),0) -> 78 | BD11: =IFERROR(VLOOKUP($A11,'2017'!$B$2:$J$163,3,FALSE),0) -> 23 | BE11: =IFERROR(VLOOKUP($A11,'2017'!$B$2:$J$163,4,FALSE),0) -> 44 | BF11: =IFERROR(VLOOKUP($A11,'2017'!$B$2:$J$163,7,FALSE),0) -> 0 | BG11: =IFERROR(VLOOKUP($A11,'2017'!$B$2:$J$163,9,FALSE),0) -> 0.5641025641 | BH11: =IFERROR(VLOOKUP($A11,'2016'!$B$2:$K$165,3,FALSE),0) -> 77 | BI11: =IFERROR(VLOOKUP($A11,'2016'!$B$2:$K$165,4,FALSE),0) -> 23 | BJ11: =IFERROR(VLOOKUP($A11,'2016'!$B$2:$K$165,5,FALSE),0) -> 35 | BK11: =IFERROR(VLOOKUP($A11,'2016'!$B$2:$K$165,8,FALSE),0) -> 0 | BL11: =IFERROR(VLOOKUP($A11,'2016'!$B$2:$K$165,10,FALSE),0) -> 0.455 | BM11: =IFERROR(VLOOKUP($A11,'2015'!$B$2:$K$165,3,FALSE),0) -> 75 | BN11: =IFERROR(VLOOKUP($A11,'2015'!$B$2:$K$165,4,FALSE),0) -> 30 | BO11: =IFERROR(VLOOKUP($A11,'2015'!$B$2:$K$165,5,FALSE),0) -> 39 | BP11: =IFERROR(VLOOKUP($A11,'2015'!$B$2:$K$165,8,FALSE),0) -> 0 | BQ11: =IFERROR(VLOOKUP($A11,'2015'!$B$2:$K$165,10,FALSE),0) -> 0.52 | BR11: =IFERROR(VLOOKUP($A11,'2014'!$B$2:$K$157,3,FALSE),0) -> 90 | BS11: =IFERROR(VLOOKUP($A11,'2014'!$B$2:$K$157,4,FALSE),0) -> 28 | BT11: =IFERROR(VLOOKUP($A11,'2014'!$B$2:$K$157,5,FALSE),0) -> 52 | BU11: =IFERROR(VLOOKUP($A11,'2014'!$B$2:$K$157,8,FALSE),0) -> 0 | BV11: =IFERROR(VLOOKUP($A11,'2014'!$B$2:$K$157,10,FALSE),0) -> 0.5777777778 | BW11: =IFERROR(VLOOKUP($A11,'2013'!$D$4:$I$249,2,FALSE),0) -> 84 | BX11: =IFERROR(VLOOKUP($A11,'2013'!$D$4:$I$249,3,FALSE),0) -> 35 | BY11: =IFERROR(VLOOKUP($A11,'2013'!$D$4:$I$249,4,FALSE),0) -> 57 | BZ11: =IFERROR(VLOOKUP($A11,'2013'!$D$4:$I$249,5,FALSE),0) -> 1 | CA11: =IFERROR(VLOOKUP($A11,'2013'!$D$4:$I$249,6,FALSE),0) -> 0.6785714286 | CB11: =IFERROR(VLOOKUP($A11,'2012'!$D$3:$O$172,2,FALSE),0) -> 1489 | CC11: =IFERROR(VLOOKUP($A11,'2012'!$D$3:$O$172,3,FALSE),0) -> 846 | CD11: =IFERROR(VLOOKUP($A11,'2012'!$D$3:$O$172,4,FALSE),0) -> 73 | CE11: =IFERROR(VLOOKUP($A11,'2012'!$D$3:$O$172,5,FALSE),0) -> 82 | CF11: =IFERROR(VLOOKUP($A11,'2012'!$D$3:$O$172,6,FALSE),0) -> 32 | CG11: =IFERROR(VLOOKUP($A11,'2012'!$D$3:$O$172,7,FALSE),0) -> 53 | CH11: =IFERROR(VLOOKUP($A11,'2012'!$D$3:$O$172,8,FALSE),0) -> 2 | CI11: =IFERROR(VLOOKUP($A11,'2012'!$D$3:$O$172,9,FALSE),0) -> 0.6463414634 | CJ11: =IFERROR(VLOOKUP($A11,'2012'!$D$3:$O$172,10,FALSE),0) -> 1407 | CK11: =IFERROR(VLOOKUP($A11,'2012'!$D$3:$O$172,11,FALSE),0) -> 793 | CL11: =IFERROR(VLOOKUP($A11,'2012'!$D$3:$O$172,12,FALSE),0) -> 71 | CM11: =IFERROR(VLOOKUP($A11,'2011'!$D$4:$I$251,2,FALSE),0) -> 0 | CN11: =IFERROR(VLOOKUP($A11,'2011'!$D$4:$I$251,3,FALSE),0) -> 0 | CO11: =IFERROR(VLOOKUP($A11,'2011'!$D$4:$I$251,4,FALSE),0) -> 0 | CP11: =IFERROR(VLOOKUP($A11,'2011'!$D$4:$I$251,5,FALSE),0) -> 0 | CQ11: =IFERROR(VLOOKUP($A11,'2011'!$D$4:$I$251,6,FALSE),0) -> 0 | CR11: =IFERROR(VLOOKUP($A11,'2010'!$C$3:$H$234,2,FALSE),0) -> 47 | CS11: =IFERROR(VLOOKUP($A11,'2010'!$C$3:$H$234,3,FALSE),0) -> 23 | CT11: =IFERROR(VLOOKUP($A11,'2010'!$C$3:$H$234,4,FALSE),0) -> 30 | CU11: =IFERROR(VLOOKUP($A11,'2010'!$C$3:$H$234,5,FALSE),0) -> 1 | CV11: =IFERROR(VLOOKUP($A11,'2010'!$C$3:$H$234,6,FALSE),0) -> 0.6382978723 | CW11: =IFERROR(VLOOKUP($A11,'2009'!$C$3:$H$242,2,FALSE),0) -> 65 | CX11: =IFERROR(VLOOKUP($A11,'2009'!$C$3:$H$242,3,FALSE),0) -> 25 | CY11: =IFERROR(VLOOKUP($A11,'2009'!$C$3:$H$242,4,FALSE),0) -> 35 | CZ11: =IFERROR(VLOOKUP($A11,'2009'!$C$3:$H$242,5,FALSE),0) -> 1 | DA11: =IFERROR(VLOOKUP($A11,'2009'!$C$3:$H$242,6,FALSE),0) -> 0.5384615385 | DB11: =IFERROR(VLOOKUP($A11,'2008'!$C$3:$H$229,2,FALSE),0) -> 63 | DC11: =IFERROR(VLOOKUP($A11,'2008'!$C$3:$H$229,3,FALSE),0) -> 25 | DD11: =IFERROR(VLOOKUP($A11,'2008'!$C$3:$H$229,4,FALSE),0) -> 32 | DE11: =IFERROR(VLOOKUP($A11,'2008'!$C$3:$H$229,5,FALSE),0) -> 4 | DF11: =IFERROR(VLOOKUP($A11,'2008'!$C$3:$H$229,6,FALSE),0) -> 0.5079365079 | DG11: =IFERROR(VLOOKUP($A11,'2007'!$C$3:$M$238,7,FALSE),0) -> 71 | DH11: =IFERROR(VLOOKUP($A11,'2007'!$C$3:$M$238,8,FALSE),0) -> 28 | DI11: =IFERROR(VLOOKUP($A11,'2007'!$C$3:$M$238,9,FALSE),0) -> 40 | DJ11: =IFERROR(VLOOKUP($A11,'2007'!$C$3:$M$238,10,FALSE),0) -> 2 | DK11: =IFERROR(VLOOKUP($A11,'2007'!$C$3:$M$238,11,FALSE),0) -> 0.5633802817 | DL11: =IFERROR(VLOOKUP($A11,'2006'!$A$2:$F$200,2,FALSE),0) -> 75 | DM11: =IFERROR(VLOOKUP($A11,'2006'!$A$2:$F$200,4,FALSE),0) -> 51 | DN11: =IFERROR(VLOOKUP($A11,'2006'!$A$2:$F$200,5,FALSE),0) -> 3 | DO11: =IFERROR(VLOOKUP($A11,'2006'!$A$2:$F$200,6,FALSE),0) -> 0.68 | DP11: =IFERROR(VLOOKUP($A11,'2005'!$C$3:$M$205,8,FALSE),0) -> 86 | DQ11: =IFERROR(VLOOKUP($A11,'2005'!$C$3:$M$205,9,FALSE),0) -> 50 | DR11: =IFERROR(VLOOKUP($A11,'2005'!$C$3:$M$205,10,FALSE),0) -> 6 | DS11: =IFERROR(VLOOKUP($A11,'2005'!$C$3:$M$205,11,FALSE),0) -> 0.5813953488 | DT11: =IFERROR(VLOOKUP($A11,'2004'!$C$3:$M$213,8,FALSE),0) -> 59 | DU11: =IFERROR(VLOOKUP($A11,'2004'!$C$3:$M$213,9,FALSE),0) -> 32 | DV11: =IFERROR(VLOOKUP($A11,'2004'!$C$3:$M$213,10,FALSE),0) -> 1 | DW11: =IFERROR(VLOOKUP($A11,'2004'!$C$3:$M$213,11,FALSE),0) -> 0.5423728814 | DX11: =IFERROR(VLOOKUP($A11,'2003'!$C$3:$Q$214,12,FALSE),0) -> 71 | DY11: =IFERROR(VLOOKUP($A11,'2003'!$C$3:$Q$214,13,FALSE),0) -> 49 | DZ11: =IFERROR(VLOOKUP($A11,'2003'!$C$3:$Q$214,14,FALSE),0) -> 4 | EA11: =IFERROR(VLOOKUP($A11,'2003'!$C$3:$Q$214,15,FALSE),0) -> 0.6901408451 | EB11: =IFERROR(VLOOKUP($A11,'2002'!$D$3:$R$214,12,FALSE),0) -> 43 | EC11: =IFERROR(VLOOKUP($A11,'2002'!$D$3:$R$214,13,FALSE),0) -> 29 | ED11: =IFERROR(VLOOKUP($A11,'2002'!$D$3:$R$214,14,FALSE),0) -> 1 | EE11: =IFERROR(VLOOKUP($A11,'2002'!$D$3:$R$214,15,FALSE),0) -> 0.6744186047 | EF11: =IFERROR(VLOOKUP($A11,'Pre 2002'!$C$3:$CK$382,84,FALSE),0) -> 819 | EG11: =IFERROR(VLOOKUP($A11,'Pre 2002'!$C$3:$CK$382,85,FALSE),0) -> 444 | EH11: =IFERROR(VLOOKUP($A11,'Pre 2002'!$C$3:$CK$382,86,FALSE),0) -> 49 | EI11: =IFERROR(VLOOKUP($A11,'Pre 2002'!$C$3:$CK$382,87,FALSE),0) -> 0.5421245421 | EJ11: =IFERROR(VLOOKUP(A11,'Pre 2002'!$C$3:$CG$382,83,FALSE),0) -> 14
A12: Mike Bendle | B12: 2171 | C12: 1202 | D12: 62 | E12: 0.553661907 | F12: 36 | G12: 1988 | H12: 27 | I12: 1716 | J12: 960 | K12: 60 | L12: 0.5594405594 | M12: 88 | N12: 2 | O12: =IFERROR(VLOOKUP($A12,'2025'!$A$2:$J$222,4,FALSE),0) -> 69 | P12: =IFERROR(VLOOKUP($A12,'2025'!$A$2:$J$222,5,FALSE),0) -> 10 | Q12: =IFERROR(VLOOKUP($A12,'2025'!$A$2:$J$222,6,FALSE),0) -> 31 | R12: =IFERROR(VLOOKUP($A12,'2025'!$A$2:$J$222,9,FALSE),0) -> 0 | S12: =IFERROR(VLOOKUP($A12,'2025'!$A$2:$J$222,10,FALSE),0) -> 0.449 | T12: =IFERROR(VLOOKUP($A12,'2024'!$A$2:$M$220,6,FALSE),0) -> 0 | U12: =IFERROR(VLOOKUP($A12,'2024'!$A$2:$M$220,7,FALSE),0) -> 0 | V12: =IFERROR(VLOOKUP($A12,'2024'!$A$2:$M$220,8,FALSE),0) -> 0 | W12: =IFERROR(VLOOKUP($A12,'2024'!$A$2:$M$220,11,FALSE),0) -> 0 | X12: =IFERROR(VLOOKUP($A12,'2024'!$A$2:$M$220,13,FALSE),0) -> 0 | Y12: =IFERROR(VLOOKUP($A12,'2023'!$A$2:$M$170,6,FALSE),0) -> 0 | Z12: =IFERROR(VLOOKUP($A12,'2023'!$A$2:$M$170,7,FALSE),0) -> 0 | AA12: =IFERROR(VLOOKUP($A12,'2023'!$A$2:$M$170,8,FALSE),0) -> 0 | AB12: =IFERROR(VLOOKUP($A12,'2023'!$A$2:$M$170,11,FALSE),0) -> 0 | AC12: =IFERROR(VLOOKUP($A12,'2023'!$A$2:$M$170,13,FALSE),0) -> 0 | AD12: =IFERROR(VLOOKUP($A12,'2022'!$B$2:$K$174,3,FALSE),0) -> 28 | AE12: =IFERROR(VLOOKUP($A12,'2022'!$B$2:$K$174,4,FALSE),0) -> 9 | AF12: =IFERROR(VLOOKUP($A12,'2022'!$B$2:$K$174,5,FALSE),0) -> 12 | AG12: =IFERROR(VLOOKUP($A12,'2022'!$B$2:$K$174,8,FALSE),0) -> 0 | AH12: =IFERROR(VLOOKUP($A12,'2022'!$B$2:$K$174,10,FALSE),0) -> 0.429 | AI12: =IFERROR(VLOOKUP($A12,'2021'!$B$2:$K$174,3,FALSE),0) -> 49 | AJ12: =IFERROR(VLOOKUP($A12,'2021'!$B$2:$K$174,4,FALSE),0) -> 13 | AK12: =IFERROR(VLOOKUP($A12,'2021'!$B$2:$K$174,5,FALSE),0) -> 20 | AL12: =IFERROR(VLOOKUP($A12,'2021'!$B$2:$K$174,8,FALSE),0) -> 0 | AM12: =IFERROR(VLOOKUP($A12,'2021'!$B$2:$K$174,10,FALSE),0) -> 0.408 | AN12: =IFERROR(VLOOKUP($A12,'2020'!$B$2:$K$170,3,FALSE),0) -> 54 | AO12: =IFERROR(VLOOKUP($A12,'2020'!$B$2:$K$170,4,FALSE),0) -> 13 | AP12: =IFERROR(VLOOKUP($A12,'2020'!$B$2:$K$170,5,FALSE),0) -> 32 | AQ12: =IFERROR(VLOOKUP($A12,'2020'!$B$2:$K$170,8,FALSE),0) -> 0 | AR12: =IFERROR(VLOOKUP($A12,'2020'!$B$2:$K$170,10,FALSE),0) -> 0.593 | AS12: =IFERROR(VLOOKUP($A12,'2019'!$B$2:$K$170,3,FALSE),0) -> 51 | AT12: =IFERROR(VLOOKUP($A12,'2019'!$B$2:$K$170,4,FALSE),0) -> 17 | AU12: =IFERROR(VLOOKUP($A12,'2019'!$B$2:$K$170,5,FALSE),0) -> 31 | AV12: =IFERROR(VLOOKUP($A12,'2019'!$B$2:$K$170,8,FALSE),0) -> 0 | AW12: =IFERROR(VLOOKUP($A12,'2019'!$B$2:$K$170,10,FALSE),0) -> 0.608 | AX12: =IFERROR(VLOOKUP($A12,'2018'!$B$2:$K$170,3,FALSE),0) -> 49 | AY12: =IFERROR(VLOOKUP($A12,'2018'!$B$2:$K$170,4,FALSE),0) -> 9 | AZ12: =IFERROR(VLOOKUP($A12,'2018'!$B$2:$K$170,5,FALSE),0) -> 30 | BA12: =IFERROR(VLOOKUP($A12,'2018'!$B$2:$K$170,8,FALSE),0) -> 0 | BB12: =IFERROR(VLOOKUP($A12,'2018'!$B$2:$K$170,10,FALSE),0) -> 0.612 | BC12: =IFERROR(VLOOKUP($A12,'2017'!$B$2:$J$163,2,FALSE),0) -> 60 | BD12: =IFERROR(VLOOKUP($A12,'2017'!$B$2:$J$163,3,FALSE),0) -> 20 | BE12: =IFERROR(VLOOKUP($A12,'2017'!$B$2:$J$163,4,FALSE),0) -> 32 | BF12: =IFERROR(VLOOKUP($A12,'2017'!$B$2:$J$163,7,FALSE),0) -> 1 | BG12: =IFERROR(VLOOKUP($A12,'2017'!$B$2:$J$163,9,FALSE),0) -> 0.5333333333 | BH12: =IFERROR(VLOOKUP($A12,'2016'!$B$2:$K$165,3,FALSE),0) -> 55 | BI12: =IFERROR(VLOOKUP($A12,'2016'!$B$2:$K$165,4,FALSE),0) -> 15 | BJ12: =IFERROR(VLOOKUP($A12,'2016'!$B$2:$K$165,5,FALSE),0) -> 32 | BK12: =IFERROR(VLOOKUP($A12,'2016'!$B$2:$K$165,8,FALSE),0) -> 1 | BL12: =IFERROR(VLOOKUP($A12,'2016'!$B$2:$K$165,10,FALSE),0) -> 0.582 | BM12: =IFERROR(VLOOKUP($A12,'2015'!$B$2:$K$165,3,FALSE),0) -> 40 | BN12: =IFERROR(VLOOKUP($A12,'2015'!$B$2:$K$165,4,FALSE),0) -> 9 | BO12: =IFERROR(VLOOKUP($A12,'2015'!$B$2:$K$165,5,FALSE),0) -> 22 | BP12: =IFERROR(VLOOKUP($A12,'2015'!$B$2:$K$165,8,FALSE),0) -> 0 | BQ12: =IFERROR(VLOOKUP($A12,'2015'!$B$2:$K$165,10,FALSE),0) -> 0.55 | BR12: =IFERROR(VLOOKUP($A12,'2014'!$B$2:$K$157,3,FALSE),0) -> 78 | BS12: =IFERROR(VLOOKUP($A12,'2014'!$B$2:$K$157,4,FALSE),0) -> 20 | BT12: =IFERROR(VLOOKUP($A12,'2014'!$B$2:$K$157,5,FALSE),0) -> 39 | BU12: =IFERROR(VLOOKUP($A12,'2014'!$B$2:$K$157,8,FALSE),0) -> 1 | BV12: =IFERROR(VLOOKUP($A12,'2014'!$B$2:$K$157,10,FALSE),0) -> 0.5 | BW12: =IFERROR(VLOOKUP($A12,'2013'!$D$4:$I$249,2,FALSE),0) -> 62 | BX12: =IFERROR(VLOOKUP($A12,'2013'!$D$4:$I$249,3,FALSE),0) -> 21 | BY12: =IFERROR(VLOOKUP($A12,'2013'!$D$4:$I$249,4,FALSE),0) -> 37 | BZ12: =IFERROR(VLOOKUP($A12,'2013'!$D$4:$I$249,5,FALSE),0) -> 1 | CA12: =IFERROR(VLOOKUP($A12,'2013'!$D$4:$I$249,6,FALSE),0) -> 0.5967741935 | CB12: =IFERROR(VLOOKUP($A12,'2012'!$D$3:$O$172,2,FALSE),0) -> 1576 | CC12: =IFERROR(VLOOKUP($A12,'2012'!$D$3:$O$172,3,FALSE),0) -> 884 | CD12: =IFERROR(VLOOKUP($A12,'2012'!$D$3:$O$172,4,FALSE),0) -> 58 | CE12: =IFERROR(VLOOKUP($A12,'2012'!$D$3:$O$172,5,FALSE),0) -> 52 | CF12: =IFERROR(VLOOKUP($A12,'2012'!$D$3:$O$172,6,FALSE),0) -> 14 | CG12: =IFERROR(VLOOKUP($A12,'2012'!$D$3:$O$172,7,FALSE),0) -> 26 | CH12: =IFERROR(VLOOKUP($A12,'2012'!$D$3:$O$172,8,FALSE),0) -> 0 | CI12: =IFERROR(VLOOKUP($A12,'2012'!$D$3:$O$172,9,FALSE),0) -> 0.5 | CJ12: =IFERROR(VLOOKUP($A12,'2012'!$D$3:$O$172,10,FALSE),0) -> 1524 | CK12: =IFERROR(VLOOKUP($A12,'2012'!$D$3:$O$172,11,FALSE),0) -> 858 | CL12: =IFERROR(VLOOKUP($A12,'2012'!$D$3:$O$172,12,FALSE),0) -> 58 | CM12: =IFERROR(VLOOKUP($A12,'2011'!$D$4:$I$251,2,FALSE),0) -> 64 | CN12: =IFERROR(VLOOKUP($A12,'2011'!$D$4:$I$251,3,FALSE),0) -> 18 | CO12: =IFERROR(VLOOKUP($A12,'2011'!$D$4:$I$251,4,FALSE),0) -> 33 | CP12: =IFERROR(VLOOKUP($A12,'2011'!$D$4:$I$251,5,FALSE),0) -> 2 | CQ12: =IFERROR(VLOOKUP($A12,'2011'!$D$4:$I$251,6,FALSE),0) -> 0.515625 | CR12: =IFERROR(VLOOKUP($A12,'2010'!$C$3:$H$234,2,FALSE),0) -> 65 | CS12: =IFERROR(VLOOKUP($A12,'2010'!$C$3:$H$234,3,FALSE),0) -> 19 | CT12: =IFERROR(VLOOKUP($A12,'2010'!$C$3:$H$234,4,FALSE),0) -> 36 | CU12: =IFERROR(VLOOKUP($A12,'2010'!$C$3:$H$234,5,FALSE),0) -> 2 | CV12: =IFERROR(VLOOKUP($A12,'2010'!$C$3:$H$234,6,FALSE),0) -> 0.5538461538 | CW12: =IFERROR(VLOOKUP($A12,'2009'!$C$3:$H$242,2,FALSE),0) -> 76 | CX12: =IFERROR(VLOOKUP($A12,'2009'!$C$3:$H$242,3,FALSE),0) -> 33 | CY12: =IFERROR(VLOOKUP($A12,'2009'!$C$3:$H$242,4,FALSE),0) -> 53 | CZ12: =IFERROR(VLOOKUP($A12,'2009'!$C$3:$H$242,5,FALSE),0) -> 2 | DA12: =IFERROR(VLOOKUP($A12,'2009'!$C$3:$H$242,6,FALSE),0) -> 0.6973684211 | DB12: =IFERROR(VLOOKUP($A12,'2008'!$C$3:$H$229,2,FALSE),0) -> 81 | DC12: =IFERROR(VLOOKUP($A12,'2008'!$C$3:$H$229,3,FALSE),0) -> 27 | DD12: =IFERROR(VLOOKUP($A12,'2008'!$C$3:$H$229,4,FALSE),0) -> 46 | DE12: =IFERROR(VLOOKUP($A12,'2008'!$C$3:$H$229,5,FALSE),0) -> 0 | DF12: =IFERROR(VLOOKUP($A12,'2008'!$C$3:$H$229,6,FALSE),0) -> 0.5679012346 | DG12: =IFERROR(VLOOKUP($A12,'2007'!$C$3:$M$238,7,FALSE),0) -> 77 | DH12: =IFERROR(VLOOKUP($A12,'2007'!$C$3:$M$238,8,FALSE),0) -> 26 | DI12: =IFERROR(VLOOKUP($A12,'2007'!$C$3:$M$238,9,FALSE),0) -> 49 | DJ12: =IFERROR(VLOOKUP($A12,'2007'!$C$3:$M$238,10,FALSE),0) -> 1 | DK12: =IFERROR(VLOOKUP($A12,'2007'!$C$3:$M$238,11,FALSE),0) -> 0.6363636364 | DL12: =IFERROR(VLOOKUP($A12,'2006'!$A$2:$F$200,2,FALSE),0) -> 64 | DM12: =IFERROR(VLOOKUP($A12,'2006'!$A$2:$F$200,4,FALSE),0) -> 42 | DN12: =IFERROR(VLOOKUP($A12,'2006'!$A$2:$F$200,5,FALSE),0) -> 1 | DO12: =IFERROR(VLOOKUP($A12,'2006'!$A$2:$F$200,6,FALSE),0) -> 0.65625 | DP12: =IFERROR(VLOOKUP($A12,'2005'!$C$3:$M$205,8,FALSE),0) -> 68 | DQ12: =IFERROR(VLOOKUP($A12,'2005'!$C$3:$M$205,9,FALSE),0) -> 38 | DR12: =IFERROR(VLOOKUP($A12,'2005'!$C$3:$M$205,10,FALSE),0) -> 1 | DS12: =IFERROR(VLOOKUP($A12,'2005'!$C$3:$M$205,11,FALSE),0) -> 0.5588235294 | DT12: =IFERROR(VLOOKUP($A12,'2004'!$C$3:$M$213,8,FALSE),0) -> 83 | DU12: =IFERROR(VLOOKUP($A12,'2004'!$C$3:$M$213,9,FALSE),0) -> 51 | DV12: =IFERROR(VLOOKUP($A12,'2004'!$C$3:$M$213,10,FALSE),0) -> 1 | DW12: =IFERROR(VLOOKUP($A12,'2004'!$C$3:$M$213,11,FALSE),0) -> 0.6144578313 | DX12: =IFERROR(VLOOKUP($A12,'2003'!$C$3:$Q$214,12,FALSE),0) -> 49 | DY12: =IFERROR(VLOOKUP($A12,'2003'!$C$3:$Q$214,13,FALSE),0) -> 31 | DZ12: =IFERROR(VLOOKUP($A12,'2003'!$C$3:$Q$214,14,FALSE),0) -> 1 | EA12: =IFERROR(VLOOKUP($A12,'2003'!$C$3:$Q$214,15,FALSE),0) -> 0.6326530612 | EB12: =IFERROR(VLOOKUP($A12,'2002'!$D$3:$R$214,12,FALSE),0) -> 61 | EC12: =IFERROR(VLOOKUP($A12,'2002'!$D$3:$R$214,13,FALSE),0) -> 34 | ED12: =IFERROR(VLOOKUP($A12,'2002'!$D$3:$R$214,14,FALSE),0) -> 2 | EE12: =IFERROR(VLOOKUP($A12,'2002'!$D$3:$R$214,15,FALSE),0) -> 0.5573770492 | EF12: =IFERROR(VLOOKUP($A12,'Pre 2002'!$C$3:$CK$382,84,FALSE),0) -> 836 | EG12: =IFERROR(VLOOKUP($A12,'Pre 2002'!$C$3:$CK$382,85,FALSE),0) -> 445 | EH12: =IFERROR(VLOOKUP($A12,'Pre 2002'!$C$3:$CK$382,86,FALSE),0) -> 45 | EI12: =IFERROR(VLOOKUP($A12,'Pre 2002'!$C$3:$CK$382,87,FALSE),0) -> 0.5322966507 | EJ12: =IFERROR(VLOOKUP(A12,'Pre 2002'!$C$3:$CG$382,83,FALSE),0) -> 14
A13: Lou Columbus | B13: 2010 | C13: 1184 | D13: 28 | E13: 0.5890547264 | F13: 30 | G13: 1995 | H13: 21 | I13: 1400 | J13: 835 | K13: 27 | L13: 0.5964285714 | M13: 95 | N13: 2 | O13: =IFERROR(VLOOKUP($A13,'2025'!$A$2:$J$222,4,FALSE),0) -> 71 | P13: =IFERROR(VLOOKUP($A13,'2025'!$A$2:$J$222,5,FALSE),0) -> 22 | Q13: =IFERROR(VLOOKUP($A13,'2025'!$A$2:$J$222,6,FALSE),0) -> 38 | R13: =IFERROR(VLOOKUP($A13,'2025'!$A$2:$J$222,9,FALSE),0) -> 0 | S13: =IFERROR(VLOOKUP($A13,'2025'!$A$2:$J$222,10,FALSE),0) -> 0.535 | T13: =IFERROR(VLOOKUP($A13,'2024'!$A$2:$M$220,6,FALSE),0) -> 81 | U13: =IFERROR(VLOOKUP($A13,'2024'!$A$2:$M$220,7,FALSE),0) -> 19 | V13: =IFERROR(VLOOKUP($A13,'2024'!$A$2:$M$220,8,FALSE),0) -> 49 | W13: =IFERROR(VLOOKUP($A13,'2024'!$A$2:$M$220,11,FALSE),0) -> 1 | X13: =IFERROR(VLOOKUP($A13,'2024'!$A$2:$M$220,13,FALSE),0) -> 0.605 | Y13: =IFERROR(VLOOKUP($A13,'2023'!$A$2:$M$170,6,FALSE),0) -> 77 | Z13: =IFERROR(VLOOKUP($A13,'2023'!$A$2:$M$170,7,FALSE),0) -> 13 | AA13: =IFERROR(VLOOKUP($A13,'2023'!$A$2:$M$170,8,FALSE),0) -> 44 | AB13: =IFERROR(VLOOKUP($A13,'2023'!$A$2:$M$170,11,FALSE),0) -> 0 | AC13: =IFERROR(VLOOKUP($A13,'2023'!$A$2:$M$170,13,FALSE),0) -> 0.571 | AD13: =IFERROR(VLOOKUP($A13,'2022'!$B$2:$K$174,3,FALSE),0) -> 79 | AE13: =IFERROR(VLOOKUP($A13,'2022'!$B$2:$K$174,4,FALSE),0) -> 22 | AF13: =IFERROR(VLOOKUP($A13,'2022'!$B$2:$K$174,5,FALSE),0) -> 45 | AG13: =IFERROR(VLOOKUP($A13,'2022'!$B$2:$K$174,8,FALSE),0) -> 0 | AH13: =IFERROR(VLOOKUP($A13,'2022'!$B$2:$K$174,10,FALSE),0) -> 0.57 | AI13: =IFERROR(VLOOKUP($A13,'2021'!$B$2:$K$174,3,FALSE),0) -> 69 | AJ13: =IFERROR(VLOOKUP($A13,'2021'!$B$2:$K$174,4,FALSE),0) -> 17 | AK13: =IFERROR(VLOOKUP($A13,'2021'!$B$2:$K$174,5,FALSE),0) -> 42 | AL13: =IFERROR(VLOOKUP($A13,'2021'!$B$2:$K$174,8,FALSE),0) -> 0 | AM13: =IFERROR(VLOOKUP($A13,'2021'!$B$2:$K$174,10,FALSE),0) -> 0.609 | AN13: =IFERROR(VLOOKUP($A13,'2020'!$B$2:$K$170,3,FALSE),0) -> 64 | AO13: =IFERROR(VLOOKUP($A13,'2020'!$B$2:$K$170,4,FALSE),0) -> 16 | AP13: =IFERROR(VLOOKUP($A13,'2020'!$B$2:$K$170,5,FALSE),0) -> 33 | AQ13: =IFERROR(VLOOKUP($A13,'2020'!$B$2:$K$170,8,FALSE),0) -> 0 | AR13: =IFERROR(VLOOKUP($A13,'2020'!$B$2:$K$170,10,FALSE),0) -> 0.516 | AS13: =IFERROR(VLOOKUP($A13,'2019'!$B$2:$K$170,3,FALSE),0) -> 66 | AT13: =IFERROR(VLOOKUP($A13,'2019'!$B$2:$K$170,4,FALSE),0) -> 21 | AU13: =IFERROR(VLOOKUP($A13,'2019'!$B$2:$K$170,5,FALSE),0) -> 31 | AV13: =IFERROR(VLOOKUP($A13,'2019'!$B$2:$K$170,8,FALSE),0) -> 0 | AW13: =IFERROR(VLOOKUP($A13,'2019'!$B$2:$K$170,10,FALSE),0) -> 0.47 | AX13: =IFERROR(VLOOKUP($A13,'2018'!$B$2:$K$170,3,FALSE),0) -> 0 | AY13: =IFERROR(VLOOKUP($A13,'2018'!$B$2:$K$170,4,FALSE),0) -> 0 | AZ13: =IFERROR(VLOOKUP($A13,'2018'!$B$2:$K$170,5,FALSE),0) -> 0 | BA13: =IFERROR(VLOOKUP($A13,'2018'!$B$2:$K$170,8,FALSE),0) -> 0 | BB13: =IFERROR(VLOOKUP($A13,'2018'!$B$2:$K$170,10,FALSE),0) -> 0 | BC13: =IFERROR(VLOOKUP($A13,'2017'!$B$2:$J$163,2,FALSE),0) -> 0 | BD13: =IFERROR(VLOOKUP($A13,'2017'!$B$2:$J$163,3,FALSE),0) -> 0 | BE13: =IFERROR(VLOOKUP($A13,'2017'!$B$2:$J$163,4,FALSE),0) -> 0 | BF13: =IFERROR(VLOOKUP($A13,'2017'!$B$2:$J$163,7,FALSE),0) -> 0 | BG13: =IFERROR(VLOOKUP($A13,'2017'!$B$2:$J$163,9,FALSE),0) -> 0 | BH13: =IFERROR(VLOOKUP($A13,'2016'!$B$2:$K$165,3,FALSE),0) -> 56 | BI13: =IFERROR(VLOOKUP($A13,'2016'!$B$2:$K$165,4,FALSE),0) -> 18 | BJ13: =IFERROR(VLOOKUP($A13,'2016'!$B$2:$K$165,5,FALSE),0) -> 37 | BK13: =IFERROR(VLOOKUP($A13,'2016'!$B$2:$K$165,8,FALSE),0) -> 0 | BL13: =IFERROR(VLOOKUP($A13,'2016'!$B$2:$K$165,10,FALSE),0) -> 0.661 | BM13: =IFERROR(VLOOKUP($A13,'2015'!$B$2:$K$165,3,FALSE),0) -> 47 | BN13: =IFERROR(VLOOKUP($A13,'2015'!$B$2:$K$165,4,FALSE),0) -> 13 | BO13: =IFERROR(VLOOKUP($A13,'2015'!$B$2:$K$165,5,FALSE),0) -> 30 | BP13: =IFERROR(VLOOKUP($A13,'2015'!$B$2:$K$165,8,FALSE),0) -> 0 | BQ13: =IFERROR(VLOOKUP($A13,'2015'!$B$2:$K$165,10,FALSE),0) -> 0.6382978723 | BR13: =IFERROR(VLOOKUP($A13,'2014'!$B$2:$K$157,3,FALSE),0) -> 85 | BS13: =IFERROR(VLOOKUP($A13,'2014'!$B$2:$K$157,4,FALSE),0) -> 34 | BT13: =IFERROR(VLOOKUP($A13,'2014'!$B$2:$K$157,5,FALSE),0) -> 50 | BU13: =IFERROR(VLOOKUP($A13,'2014'!$B$2:$K$157,8,FALSE),0) -> 0 | BV13: =IFERROR(VLOOKUP($A13,'2014'!$B$2:$K$157,10,FALSE),0) -> 0.5882352941 | BW13: =IFERROR(VLOOKUP($A13,'2013'!$D$4:$I$249,2,FALSE),0) -> 67 | BX13: =IFERROR(VLOOKUP($A13,'2013'!$D$4:$I$249,3,FALSE),0) -> 22 | BY13: =IFERROR(VLOOKUP($A13,'2013'!$D$4:$I$249,4,FALSE),0) -> 46 | BZ13: =IFERROR(VLOOKUP($A13,'2013'!$D$4:$I$249,5,FALSE),0) -> 1 | CA13: =IFERROR(VLOOKUP($A13,'2013'!$D$4:$I$249,6,FALSE),0) -> 0.6865671642 | CB13: =IFERROR(VLOOKUP($A13,'2012'!$D$3:$O$172,2,FALSE),0) -> 1248 | CC13: =IFERROR(VLOOKUP($A13,'2012'!$D$3:$O$172,3,FALSE),0) -> 739 | CD13: =IFERROR(VLOOKUP($A13,'2012'!$D$3:$O$172,4,FALSE),0) -> 26 | CE13: =IFERROR(VLOOKUP($A13,'2012'!$D$3:$O$172,5,FALSE),0) -> 79 | CF13: =IFERROR(VLOOKUP($A13,'2012'!$D$3:$O$172,6,FALSE),0) -> 30 | CG13: =IFERROR(VLOOKUP($A13,'2012'!$D$3:$O$172,7,FALSE),0) -> 46 | CH13: =IFERROR(VLOOKUP($A13,'2012'!$D$3:$O$172,8,FALSE),0) -> 1 | CI13: =IFERROR(VLOOKUP($A13,'2012'!$D$3:$O$172,9,FALSE),0) -> 0.582278481 | CJ13: =IFERROR(VLOOKUP($A13,'2012'!$D$3:$O$172,10,FALSE),0) -> 1169 | CK13: =IFERROR(VLOOKUP($A13,'2012'!$D$3:$O$172,11,FALSE),0) -> 693 | CL13: =IFERROR(VLOOKUP($A13,'2012'!$D$3:$O$172,12,FALSE),0) -> 25 | CM13: =IFERROR(VLOOKUP($A13,'2011'!$D$4:$I$251,2,FALSE),0) -> 75 | CN13: =IFERROR(VLOOKUP($A13,'2011'!$D$4:$I$251,3,FALSE),0) -> 28 | CO13: =IFERROR(VLOOKUP($A13,'2011'!$D$4:$I$251,4,FALSE),0) -> 44 | CP13: =IFERROR(VLOOKUP($A13,'2011'!$D$4:$I$251,5,FALSE),0) -> 3 | CQ13: =IFERROR(VLOOKUP($A13,'2011'!$D$4:$I$251,6,FALSE),0) -> 0.5866666667 | CR13: =IFERROR(VLOOKUP($A13,'2010'!$C$3:$H$234,2,FALSE),0) -> 79 | CS13: =IFERROR(VLOOKUP($A13,'2010'!$C$3:$H$234,3,FALSE),0) -> 29 | CT13: =IFERROR(VLOOKUP($A13,'2010'!$C$3:$H$234,4,FALSE),0) -> 50 | CU13: =IFERROR(VLOOKUP($A13,'2010'!$C$3:$H$234,5,FALSE),0) -> 3 | CV13: =IFERROR(VLOOKUP($A13,'2010'!$C$3:$H$234,6,FALSE),0) -> 0.6329113924 | CW13: =IFERROR(VLOOKUP($A13,'2009'!$C$3:$H$242,2,FALSE),0) -> 73 | CX13: =IFERROR(VLOOKUP($A13,'2009'!$C$3:$H$242,3,FALSE),0) -> 25 | CY13: =IFERROR(VLOOKUP($A13,'2009'!$C$3:$H$242,4,FALSE),0) -> 41 | CZ13: =IFERROR(VLOOKUP($A13,'2009'!$C$3:$H$242,5,FALSE),0) -> 1 | DA13: =IFERROR(VLOOKUP($A13,'2009'!$C$3:$H$242,6,FALSE),0) -> 0.5616438356 | DB13: =IFERROR(VLOOKUP($A13,'2008'!$C$3:$H$229,2,FALSE),0) -> 82 | DC13: =IFERROR(VLOOKUP($A13,'2008'!$C$3:$H$229,3,FALSE),0) -> 24 | DD13: =IFERROR(VLOOKUP($A13,'2008'!$C$3:$H$229,4,FALSE),0) -> 47 | DE13: =IFERROR(VLOOKUP($A13,'2008'!$C$3:$H$229,5,FALSE),0) -> 2 | DF13: =IFERROR(VLOOKUP($A13,'2008'!$C$3:$H$229,6,FALSE),0) -> 0.5731707317 | DG13: =IFERROR(VLOOKUP($A13,'2007'!$C$3:$M$238,7,FALSE),0) -> 73 | DH13: =IFERROR(VLOOKUP($A13,'2007'!$C$3:$M$238,8,FALSE),0) -> 26 | DI13: =IFERROR(VLOOKUP($A13,'2007'!$C$3:$M$238,9,FALSE),0) -> 43 | DJ13: =IFERROR(VLOOKUP($A13,'2007'!$C$3:$M$238,10,FALSE),0) -> 3 | DK13: =IFERROR(VLOOKUP($A13,'2007'!$C$3:$M$238,11,FALSE),0) -> 0.5890410959 | DL13: =IFERROR(VLOOKUP($A13,'2006'!$A$2:$F$200,2,FALSE),0) -> 67 | DM13: =IFERROR(VLOOKUP($A13,'2006'!$A$2:$F$200,4,FALSE),0) -> 39 | DN13: =IFERROR(VLOOKUP($A13,'2006'!$A$2:$F$200,5,FALSE),0) -> 0 | DO13: =IFERROR(VLOOKUP($A13,'2006'!$A$2:$F$200,6,FALSE),0) -> 0.5820895522 | DP13: =IFERROR(VLOOKUP($A13,'2005'!$C$3:$M$205,8,FALSE),0) -> 78 | DQ13: =IFERROR(VLOOKUP($A13,'2005'!$C$3:$M$205,9,FALSE),0) -> 50 | DR13: =IFERROR(VLOOKUP($A13,'2005'!$C$3:$M$205,10,FALSE),0) -> 0 | DS13: =IFERROR(VLOOKUP($A13,'2005'!$C$3:$M$205,11,FALSE),0) -> 0.641025641 | DT13: =IFERROR(VLOOKUP($A13,'2004'!$C$3:$M$213,8,FALSE),0) -> 76 | DU13: =IFERROR(VLOOKUP($A13,'2004'!$C$3:$M$213,9,FALSE),0) -> 40 | DV13: =IFERROR(VLOOKUP($A13,'2004'!$C$3:$M$213,10,FALSE),0) -> 0 | DW13: =IFERROR(VLOOKUP($A13,'2004'!$C$3:$M$213,11,FALSE),0) -> 0.5263157895 | DX13: =IFERROR(VLOOKUP($A13,'2003'!$C$3:$Q$214,12,FALSE),0) -> 54 | DY13: =IFERROR(VLOOKUP($A13,'2003'!$C$3:$Q$214,13,FALSE),0) -> 34 | DZ13: =IFERROR(VLOOKUP($A13,'2003'!$C$3:$Q$214,14,FALSE),0) -> 3 | EA13: =IFERROR(VLOOKUP($A13,'2003'!$C$3:$Q$214,15,FALSE),0) -> 0.6296296296 | EB13: =IFERROR(VLOOKUP($A13,'2002'!$D$3:$R$214,12,FALSE),0) -> 70 | EC13: =IFERROR(VLOOKUP($A13,'2002'!$D$3:$R$214,13,FALSE),0) -> 50 | ED13: =IFERROR(VLOOKUP($A13,'2002'!$D$3:$R$214,14,FALSE),0) -> 1 | EE13: =IFERROR(VLOOKUP($A13,'2002'!$D$3:$R$214,15,FALSE),0) -> 0.7142857143 | EF13: =IFERROR(VLOOKUP($A13,'Pre 2002'!$C$3:$CK$382,84,FALSE),0) -> 442 | EG13: =IFERROR(VLOOKUP($A13,'Pre 2002'!$C$3:$CK$382,85,FALSE),0) -> 255 | EH13: =IFERROR(VLOOKUP($A13,'Pre 2002'!$C$3:$CK$382,86,FALSE),0) -> 9 | EI13: =IFERROR(VLOOKUP($A13,'Pre 2002'!$C$3:$CK$382,87,FALSE),0) -> 0.5769230769 | EJ13: =IFERROR(VLOOKUP(A13,'Pre 2002'!$C$3:$CG$382,83,FALSE),0) -> 8
A14: Roger Bailey | B14: 2385 | C14: 1156 | D14: 9 | E14: 0.4846960168 | F14: 42 | G14: 1971 | H14: 42 | I14: 2385 | J14: 1156 | K14: 9 | L14: 0.4846960168 | O14: =IFERROR(VLOOKUP($A14,'2025'!$A$2:$J$222,4,FALSE),0) -> 0 | P14: =IFERROR(VLOOKUP($A14,'2025'!$A$2:$J$222,5,FALSE),0) -> 0 | Q14: =IFERROR(VLOOKUP($A14,'2025'!$A$2:$J$222,6,FALSE),0) -> 0 | R14: =IFERROR(VLOOKUP($A14,'2025'!$A$2:$J$222,9,FALSE),0) -> 0 | S14: =IFERROR(VLOOKUP($A14,'2025'!$A$2:$J$222,10,FALSE),0) -> 0 | T14: =IFERROR(VLOOKUP($A14,'2024'!$A$2:$M$220,6,FALSE),0) -> 0 | U14: =IFERROR(VLOOKUP($A14,'2024'!$A$2:$M$220,7,FALSE),0) -> 0 | V14: =IFERROR(VLOOKUP($A14,'2024'!$A$2:$M$220,8,FALSE),0) -> 0 | W14: =IFERROR(VLOOKUP($A14,'2024'!$A$2:$M$220,11,FALSE),0) -> 0 | X14: =IFERROR(VLOOKUP($A14,'2024'!$A$2:$M$220,13,FALSE),0) -> 0 | Y14: =IFERROR(VLOOKUP($A14,'2023'!$A$2:$M$170,6,FALSE),0) -> 0 | Z14: =IFERROR(VLOOKUP($A14,'2023'!$A$2:$M$170,7,FALSE),0) -> 0 | AA14: =IFERROR(VLOOKUP($A14,'2023'!$A$2:$M$170,8,FALSE),0) -> 0 | AB14: =IFERROR(VLOOKUP($A14,'2023'!$A$2:$M$170,11,FALSE),0) -> 0 | AC14: =IFERROR(VLOOKUP($A14,'2023'!$A$2:$M$170,13,FALSE),0) -> 0 | AD14: =IFERROR(VLOOKUP($A14,'2022'!$B$2:$K$174,3,FALSE),0) -> 0 | AE14: =IFERROR(VLOOKUP($A14,'2022'!$B$2:$K$174,4,FALSE),0) -> 0 | AF14: =IFERROR(VLOOKUP($A14,'2022'!$B$2:$K$174,5,FALSE),0) -> 0 | AG14: =IFERROR(VLOOKUP($A14,'2022'!$B$2:$K$174,8,FALSE),0) -> 0 | AH14: =IFERROR(VLOOKUP($A14,'2022'!$B$2:$K$174,10,FALSE),0) -> 0 | AI14: =IFERROR(VLOOKUP($A14,'2021'!$B$2:$K$174,3,FALSE),0) -> 0 | AJ14: =IFERROR(VLOOKUP($A14,'2021'!$B$2:$K$174,4,FALSE),0) -> 0 | AK14: =IFERROR(VLOOKUP($A14,'2021'!$B$2:$K$174,5,FALSE),0) -> 0 | AL14: =IFERROR(VLOOKUP($A14,'2021'!$B$2:$K$174,8,FALSE),0) -> 0 | AM14: =IFERROR(VLOOKUP($A14,'2021'!$B$2:$K$174,10,FALSE),0) -> 0 | AN14: =IFERROR(VLOOKUP($A14,'2020'!$B$2:$K$170,3,FALSE),0) -> 0 | AO14: =IFERROR(VLOOKUP($A14,'2020'!$B$2:$K$170,4,FALSE),0) -> 0 | AP14: =IFERROR(VLOOKUP($A14,'2020'!$B$2:$K$170,5,FALSE),0) -> 0 | AQ14: =IFERROR(VLOOKUP($A14,'2020'!$B$2:$K$170,8,FALSE),0) -> 0 | AR14: =IFERROR(VLOOKUP($A14,'2020'!$B$2:$K$170,10,FALSE),0) -> 0 | AS14: =IFERROR(VLOOKUP($A14,'2019'!$B$2:$K$170,3,FALSE),0) -> 0 | AT14: =IFERROR(VLOOKUP($A14,'2019'!$B$2:$K$170,4,FALSE),0) -> 0 | AU14: =IFERROR(VLOOKUP($A14,'2019'!$B$2:$K$170,5,FALSE),0) -> 0 | AV14: =IFERROR(VLOOKUP($A14,'2019'!$B$2:$K$170,8,FALSE),0) -> 0 | AW14: =IFERROR(VLOOKUP($A14,'2019'!$B$2:$K$170,10,FALSE),0) -> 0 | AX14: =IFERROR(VLOOKUP($A14,'2018'!$B$2:$K$170,3,FALSE),0) -> 0 | AY14: =IFERROR(VLOOKUP($A14,'2018'!$B$2:$K$170,4,FALSE),0) -> 0 | AZ14: =IFERROR(VLOOKUP($A14,'2018'!$B$2:$K$170,5,FALSE),0) -> 0 | BA14: =IFERROR(VLOOKUP($A14,'2018'!$B$2:$K$170,8,FALSE),0) -> 0 | BB14: =IFERROR(VLOOKUP($A14,'2018'!$B$2:$K$170,10,FALSE),0) -> 0 | BC14: =IFERROR(VLOOKUP($A14,'2017'!$B$2:$J$163,2,FALSE),0) -> 0 | BD14: =IFERROR(VLOOKUP($A14,'2017'!$B$2:$J$163,3,FALSE),0) -> 0 | BE14: =IFERROR(VLOOKUP($A14,'2017'!$B$2:$J$163,4,FALSE),0) -> 0 | BF14: =IFERROR(VLOOKUP($A14,'2017'!$B$2:$J$163,7,FALSE),0) -> 0 | BG14: =IFERROR(VLOOKUP($A14,'2017'!$B$2:$J$163,9,FALSE),0) -> 0 | BH14: =IFERROR(VLOOKUP($A14,'2016'!$B$2:$K$165,3,FALSE),0) -> 0 | BI14: =IFERROR(VLOOKUP($A14,'2016'!$B$2:$K$165,4,FALSE),0) -> 0 | BJ14: =IFERROR(VLOOKUP($A14,'2016'!$B$2:$K$165,5,FALSE),0) -> 0 | BK14: =IFERROR(VLOOKUP($A14,'2016'!$B$2:$K$165,8,FALSE),0) -> 0 | BL14: =IFERROR(VLOOKUP($A14,'2016'!$B$2:$K$165,10,FALSE),0) -> 0 | BM14: =IFERROR(VLOOKUP($A14,'2015'!$B$2:$K$165,3,FALSE),0) -> 0 | BN14: =IFERROR(VLOOKUP($A14,'2015'!$B$2:$K$165,4,FALSE),0) -> 0 | BO14: =IFERROR(VLOOKUP($A14,'2015'!$B$2:$K$165,5,FALSE),0) -> 0 | BP14: =IFERROR(VLOOKUP($A14,'2015'!$B$2:$K$165,8,FALSE),0) -> 0 | BQ14: =IFERROR(VLOOKUP($A14,'2015'!$B$2:$K$165,10,FALSE),0) -> 0 | BR14: =IFERROR(VLOOKUP($A14,'2014'!$B$2:$K$157,3,FALSE),0) -> 0 | BS14: =IFERROR(VLOOKUP($A14,'2014'!$B$2:$K$157,4,FALSE),0) -> 0 | BT14: =IFERROR(VLOOKUP($A14,'2014'!$B$2:$K$157,5,FALSE),0) -> 0 | BU14: =IFERROR(VLOOKUP($A14,'2014'!$B$2:$K$157,8,FALSE),0) -> 0 | BV14: =IFERROR(VLOOKUP($A14,'2014'!$B$2:$K$157,10,FALSE),0) -> 0 | BW14: =IFERROR(VLOOKUP($A14,'2013'!$D$4:$I$249,2,FALSE),0) -> 0 | BX14: =IFERROR(VLOOKUP($A14,'2013'!$D$4:$I$249,3,FALSE),0) -> 0 | BY14: =IFERROR(VLOOKUP($A14,'2013'!$D$4:$I$249,4,FALSE),0) -> 0 | BZ14: =IFERROR(VLOOKUP($A14,'2013'!$D$4:$I$249,5,FALSE),0) -> 0 | CA14: =IFERROR(VLOOKUP($A14,'2013'!$D$4:$I$249,6,FALSE),0) -> 0 | CB14: =IFERROR(VLOOKUP($A14,'2012'!$D$3:$O$172,2,FALSE),0) -> 2388 | CC14: =IFERROR(VLOOKUP($A14,'2012'!$D$3:$O$172,3,FALSE),0) -> 1156 | CD14: =IFERROR(VLOOKUP($A14,'2012'!$D$3:$O$172,4,FALSE),0) -> 9 | CE14: =IFERROR(VLOOKUP($A14,'2012'!$D$3:$O$172,5,FALSE),0) -> 36 | CF14: =IFERROR(VLOOKUP($A14,'2012'!$D$3:$O$172,6,FALSE),0) -> 16 | CG14: =IFERROR(VLOOKUP($A14,'2012'!$D$3:$O$172,7,FALSE),0) -> 17 | CH14: =IFERROR(VLOOKUP($A14,'2012'!$D$3:$O$172,8,FALSE),0) -> 0 | CI14: =IFERROR(VLOOKUP($A14,'2012'!$D$3:$O$172,9,FALSE),0) -> 0.4722222222 | CJ14: =IFERROR(VLOOKUP($A14,'2012'!$D$3:$O$172,10,FALSE),0) -> 2352 | CK14: =IFERROR(VLOOKUP($A14,'2012'!$D$3:$O$172,11,FALSE),0) -> 1139 | CL14: =IFERROR(VLOOKUP($A14,'2012'!$D$3:$O$172,12,FALSE),0) -> 9 | CM14: =IFERROR(VLOOKUP($A14,'2011'!$D$4:$I$251,2,FALSE),0) -> 35 | CN14: =IFERROR(VLOOKUP($A14,'2011'!$D$4:$I$251,3,FALSE),0) -> 8 | CO14: =IFERROR(VLOOKUP($A14,'2011'!$D$4:$I$251,4,FALSE),0) -> 16 | CP14: =IFERROR(VLOOKUP($A14,'2011'!$D$4:$I$251,5,FALSE),0) -> 0 | CQ14: =IFERROR(VLOOKUP($A14,'2011'!$D$4:$I$251,6,FALSE),0) -> 0.4571428571 | CR14: =IFERROR(VLOOKUP($A14,'2010'!$C$3:$H$234,2,FALSE),0) -> 41 | CS14: =IFERROR(VLOOKUP($A14,'2010'!$C$3:$H$234,3,FALSE),0) -> 11 | CT14: =IFERROR(VLOOKUP($A14,'2010'!$C$3:$H$234,4,FALSE),0) -> 19 | CU14: =IFERROR(VLOOKUP($A14,'2010'!$C$3:$H$234,5,FALSE),0) -> 0 | CV14: =IFERROR(VLOOKUP($A14,'2010'!$C$3:$H$234,6,FALSE),0) -> 0.4634146341 | CW14: =IFERROR(VLOOKUP($A14,'2009'!$C$3:$H$242,2,FALSE),0) -> 45 | CX14: =IFERROR(VLOOKUP($A14,'2009'!$C$3:$H$242,3,FALSE),0) -> 12 | CY14: =IFERROR(VLOOKUP($A14,'2009'!$C$3:$H$242,4,FALSE),0) -> 16 | CZ14: =IFERROR(VLOOKUP($A14,'2009'!$C$3:$H$242,5,FALSE),0) -> 0 | DA14: =IFERROR(VLOOKUP($A14,'2009'!$C$3:$H$242,6,FALSE),0) -> 0.3555555556 | DB14: =IFERROR(VLOOKUP($A14,'2008'!$C$3:$H$229,2,FALSE),0) -> 52 | DC14: =IFERROR(VLOOKUP($A14,'2008'!$C$3:$H$229,3,FALSE),0) -> 14 | DD14: =IFERROR(VLOOKUP($A14,'2008'!$C$3:$H$229,4,FALSE),0) -> 19 | DE14: =IFERROR(VLOOKUP($A14,'2008'!$C$3:$H$229,5,FALSE),0) -> 0 | DF14: =IFERROR(VLOOKUP($A14,'2008'!$C$3:$H$229,6,FALSE),0) -> 0.3653846154 | DG14: =IFERROR(VLOOKUP($A14,'2007'!$C$3:$M$238,7,FALSE),0) -> 69 | DH14: =IFERROR(VLOOKUP($A14,'2007'!$C$3:$M$238,8,FALSE),0) -> 21 | DI14: =IFERROR(VLOOKUP($A14,'2007'!$C$3:$M$238,9,FALSE),0) -> 36 | DJ14: =IFERROR(VLOOKUP($A14,'2007'!$C$3:$M$238,10,FALSE),0) -> 0 | DK14: =IFERROR(VLOOKUP($A14,'2007'!$C$3:$M$238,11,FALSE),0) -> 0.5217391304 | DL14: =IFERROR(VLOOKUP($A14,'2006'!$A$2:$F$200,2,FALSE),0) -> 54 | DM14: =IFERROR(VLOOKUP($A14,'2006'!$A$2:$F$200,4,FALSE),0) -> 25 | DN14: =IFERROR(VLOOKUP($A14,'2006'!$A$2:$F$200,5,FALSE),0) -> 0 | DO14: =IFERROR(VLOOKUP($A14,'2006'!$A$2:$F$200,6,FALSE),0) -> 0.462962963 | DP14: =IFERROR(VLOOKUP($A14,'2005'!$C$3:$M$205,8,FALSE),0) -> 64 | DQ14: =IFERROR(VLOOKUP($A14,'2005'!$C$3:$M$205,9,FALSE),0) -> 33 | DR14: =IFERROR(VLOOKUP($A14,'2005'!$C$3:$M$205,10,FALSE),0) -> 0 | DS14: =IFERROR(VLOOKUP($A14,'2005'!$C$3:$M$205,11,FALSE),0) -> 0.515625 | DT14: =IFERROR(VLOOKUP($A14,'2004'!$C$3:$M$213,8,FALSE),0) -> 52 | DU14: =IFERROR(VLOOKUP($A14,'2004'!$C$3:$M$213,9,FALSE),0) -> 34 | DV14: =IFERROR(VLOOKUP($A14,'2004'!$C$3:$M$213,10,FALSE),0) -> 0 | DW14: =IFERROR(VLOOKUP($A14,'2004'!$C$3:$M$213,11,FALSE),0) -> 0.6538461538 | DX14: =IFERROR(VLOOKUP($A14,'2003'!$C$3:$Q$214,12,FALSE),0) -> 47 | DY14: =IFERROR(VLOOKUP($A14,'2003'!$C$3:$Q$214,13,FALSE),0) -> 17 | DZ14: =IFERROR(VLOOKUP($A14,'2003'!$C$3:$Q$214,14,FALSE),0) -> 0 | EA14: =IFERROR(VLOOKUP($A14,'2003'!$C$3:$Q$214,15,FALSE),0) -> 0.3617021277 | EB14: =IFERROR(VLOOKUP($A14,'2002'!$D$3:$R$214,12,FALSE),0) -> 39 | EC14: =IFERROR(VLOOKUP($A14,'2002'!$D$3:$R$214,13,FALSE),0) -> 21 | ED14: =IFERROR(VLOOKUP($A14,'2002'!$D$3:$R$214,14,FALSE),0) -> 0 | EE14: =IFERROR(VLOOKUP($A14,'2002'!$D$3:$R$214,15,FALSE),0) -> 0.5384615385 | EF14: =IFERROR(VLOOKUP($A14,'Pre 2002'!$C$3:$CK$382,84,FALSE),0) -> 1851 | EG14: =IFERROR(VLOOKUP($A14,'Pre 2002'!$C$3:$CK$382,85,FALSE),0) -> 903 | EH14: =IFERROR(VLOOKUP($A14,'Pre 2002'!$C$3:$CK$382,86,FALSE),0) -> 9 | EI14: =IFERROR(VLOOKUP($A14,'Pre 2002'!$C$3:$CK$382,87,FALSE),0) -> 0.4878444084 | EJ14: =IFERROR(VLOOKUP(A14,'Pre 2002'!$C$3:$CG$382,83,FALSE),0) -> 31
A15: Buster Krueger | B15: 1680 | C15: 1149 | D15: 174 | E15: 0.6839285714 | F15: 24 | G15: 1990 | H15: 24 | I15: 1680 | J15: 1149 | K15: 174 | L15: 0.6839285714 | O15: =IFERROR(VLOOKUP($A15,'2025'!$A$2:$J$222,4,FALSE),0) -> 0 | P15: =IFERROR(VLOOKUP($A15,'2025'!$A$2:$J$222,5,FALSE),0) -> 0 | Q15: =IFERROR(VLOOKUP($A15,'2025'!$A$2:$J$222,6,FALSE),0) -> 0 | R15: =IFERROR(VLOOKUP($A15,'2025'!$A$2:$J$222,9,FALSE),0) -> 0 | S15: =IFERROR(VLOOKUP($A15,'2025'!$A$2:$J$222,10,FALSE),0) -> 0 | T15: =IFERROR(VLOOKUP($A15,'2024'!$A$2:$M$220,6,FALSE),0) -> 0 | U15: =IFERROR(VLOOKUP($A15,'2024'!$A$2:$M$220,7,FALSE),0) -> 0 | V15: =IFERROR(VLOOKUP($A15,'2024'!$A$2:$M$220,8,FALSE),0) -> 0 | W15: =IFERROR(VLOOKUP($A15,'2024'!$A$2:$M$220,11,FALSE),0) -> 0 | X15: =IFERROR(VLOOKUP($A15,'2024'!$A$2:$M$220,13,FALSE),0) -> 0 | Y15: =IFERROR(VLOOKUP($A15,'2023'!$A$2:$M$170,6,FALSE),0) -> 0 | Z15: =IFERROR(VLOOKUP($A15,'2023'!$A$2:$M$170,7,FALSE),0) -> 0 | AA15: =IFERROR(VLOOKUP($A15,'2023'!$A$2:$M$170,8,FALSE),0) -> 0 | AB15: =IFERROR(VLOOKUP($A15,'2023'!$A$2:$M$170,11,FALSE),0) -> 0 | AC15: =IFERROR(VLOOKUP($A15,'2023'!$A$2:$M$170,13,FALSE),0) -> 0 | AD15: =IFERROR(VLOOKUP($A15,'2022'!$B$2:$K$174,3,FALSE),0) -> 0 | AE15: =IFERROR(VLOOKUP($A15,'2022'!$B$2:$K$174,4,FALSE),0) -> 0 | AF15: =IFERROR(VLOOKUP($A15,'2022'!$B$2:$K$174,5,FALSE),0) -> 0 | AG15: =IFERROR(VLOOKUP($A15,'2022'!$B$2:$K$174,8,FALSE),0) -> 0 | AH15: =IFERROR(VLOOKUP($A15,'2022'!$B$2:$K$174,10,FALSE),0) -> 0 | AI15: =IFERROR(VLOOKUP($A15,'2021'!$B$2:$K$174,3,FALSE),0) -> 0 | AJ15: =IFERROR(VLOOKUP($A15,'2021'!$B$2:$K$174,4,FALSE),0) -> 0 | AK15: =IFERROR(VLOOKUP($A15,'2021'!$B$2:$K$174,5,FALSE),0) -> 0 | AL15: =IFERROR(VLOOKUP($A15,'2021'!$B$2:$K$174,8,FALSE),0) -> 0 | AM15: =IFERROR(VLOOKUP($A15,'2021'!$B$2:$K$174,10,FALSE),0) -> 0 | AN15: =IFERROR(VLOOKUP($A15,'2020'!$B$2:$K$170,3,FALSE),0) -> 0 | AO15: =IFERROR(VLOOKUP($A15,'2020'!$B$2:$K$170,4,FALSE),0) -> 0 | AP15: =IFERROR(VLOOKUP($A15,'2020'!$B$2:$K$170,5,FALSE),0) -> 0 | AQ15: =IFERROR(VLOOKUP($A15,'2020'!$B$2:$K$170,8,FALSE),0) -> 0 | AR15: =IFERROR(VLOOKUP($A15,'2020'!$B$2:$K$170,10,FALSE),0) -> 0 | AS15: =IFERROR(VLOOKUP($A15,'2019'!$B$2:$K$170,3,FALSE),0) -> 0 | AT15: =IFERROR(VLOOKUP($A15,'2019'!$B$2:$K$170,4,FALSE),0) -> 0 | AU15: =IFERROR(VLOOKUP($A15,'2019'!$B$2:$K$170,5,FALSE),0) -> 0 | AV15: =IFERROR(VLOOKUP($A15,'2019'!$B$2:$K$170,8,FALSE),0) -> 0 | AW15: =IFERROR(VLOOKUP($A15,'2019'!$B$2:$K$170,10,FALSE),0) -> 0 | AX15: =IFERROR(VLOOKUP($A15,'2018'!$B$2:$K$170,3,FALSE),0) -> 0 | AY15: =IFERROR(VLOOKUP($A15,'2018'!$B$2:$K$170,4,FALSE),0) -> 0 | AZ15: =IFERROR(VLOOKUP($A15,'2018'!$B$2:$K$170,5,FALSE),0) -> 0 | BA15: =IFERROR(VLOOKUP($A15,'2018'!$B$2:$K$170,8,FALSE),0) -> 0 | BB15: =IFERROR(VLOOKUP($A15,'2018'!$B$2:$K$170,10,FALSE),0) -> 0 | BC15: =IFERROR(VLOOKUP($A15,'2017'!$B$2:$J$163,2,FALSE),0) -> 0 | BD15: =IFERROR(VLOOKUP($A15,'2017'!$B$2:$J$163,3,FALSE),0) -> 0 | BE15: =IFERROR(VLOOKUP($A15,'2017'!$B$2:$J$163,4,FALSE),0) -> 0 | BF15: =IFERROR(VLOOKUP($A15,'2017'!$B$2:$J$163,7,FALSE),0) -> 0 | BG15: =IFERROR(VLOOKUP($A15,'2017'!$B$2:$J$163,9,FALSE),0) -> 0 | BH15: =IFERROR(VLOOKUP($A15,'2016'!$B$2:$K$165,3,FALSE),0) -> 0 | BI15: =IFERROR(VLOOKUP($A15,'2016'!$B$2:$K$165,4,FALSE),0) -> 0 | BJ15: =IFERROR(VLOOKUP($A15,'2016'!$B$2:$K$165,5,FALSE),0) -> 0 | BK15: =IFERROR(VLOOKUP($A15,'2016'!$B$2:$K$165,8,FALSE),0) -> 0 | BL15: =IFERROR(VLOOKUP($A15,'2016'!$B$2:$K$165,10,FALSE),0) -> 0 | BM15: =IFERROR(VLOOKUP($A15,'2015'!$B$2:$K$165,3,FALSE),0) -> 0 | BN15: =IFERROR(VLOOKUP($A15,'2015'!$B$2:$K$165,4,FALSE),0) -> 0 | BO15: =IFERROR(VLOOKUP($A15,'2015'!$B$2:$K$165,5,FALSE),0) -> 0 | BP15: =IFERROR(VLOOKUP($A15,'2015'!$B$2:$K$165,8,FALSE),0) -> 0 | BQ15: =IFERROR(VLOOKUP($A15,'2015'!$B$2:$K$165,10,FALSE),0) -> 0 | BR15: =IFERROR(VLOOKUP($A15,'2014'!$B$2:$K$157,3,FALSE),0) -> 0 | BS15: =IFERROR(VLOOKUP($A15,'2014'!$B$2:$K$157,4,FALSE),0) -> 0 | BT15: =IFERROR(VLOOKUP($A15,'2014'!$B$2:$K$157,5,FALSE),0) -> 0 | BU15: =IFERROR(VLOOKUP($A15,'2014'!$B$2:$K$157,8,FALSE),0) -> 0 | BV15: =IFERROR(VLOOKUP($A15,'2014'!$B$2:$K$157,10,FALSE),0) -> 0 | BW15: =IFERROR(VLOOKUP($A15,'2013'!$D$4:$I$249,2,FALSE),0) -> 85 | BX15: =IFERROR(VLOOKUP($A15,'2013'!$D$4:$I$249,3,FALSE),0) -> 42 | BY15: =IFERROR(VLOOKUP($A15,'2013'!$D$4:$I$249,4,FALSE),0) -> 64 | BZ15: =IFERROR(VLOOKUP($A15,'2013'!$D$4:$I$249,5,FALSE),0) -> 2 | CA15: =IFERROR(VLOOKUP($A15,'2013'!$D$4:$I$249,6,FALSE),0) -> 0.7529411765 | CB15: =IFERROR(VLOOKUP($A15,'2012'!$D$3:$O$172,2,FALSE),0) -> 1595 | CC15: =IFERROR(VLOOKUP($A15,'2012'!$D$3:$O$172,3,FALSE),0) -> 1085 | CD15: =IFERROR(VLOOKUP($A15,'2012'!$D$3:$O$172,4,FALSE),0) -> 172 | CE15: =IFERROR(VLOOKUP($A15,'2012'!$D$3:$O$172,5,FALSE),0) -> 75 | CF15: =IFERROR(VLOOKUP($A15,'2012'!$D$3:$O$172,6,FALSE),0) -> 50 | CG15: =IFERROR(VLOOKUP($A15,'2012'!$D$3:$O$172,7,FALSE),0) -> 54 | CH15: =IFERROR(VLOOKUP($A15,'2012'!$D$3:$O$172,8,FALSE),0) -> 12 | CI15: =IFERROR(VLOOKUP($A15,'2012'!$D$3:$O$172,9,FALSE),0) -> 0.72 | CJ15: =IFERROR(VLOOKUP($A15,'2012'!$D$3:$O$172,10,FALSE),0) -> 1520 | CK15: =IFERROR(VLOOKUP($A15,'2012'!$D$3:$O$172,11,FALSE),0) -> 1031 | CL15: =IFERROR(VLOOKUP($A15,'2012'!$D$3:$O$172,12,FALSE),0) -> 160 | CM15: =IFERROR(VLOOKUP($A15,'2011'!$D$4:$I$251,2,FALSE),0) -> 85 | CN15: =IFERROR(VLOOKUP($A15,'2011'!$D$4:$I$251,3,FALSE),0) -> 54 | CO15: =IFERROR(VLOOKUP($A15,'2011'!$D$4:$I$251,4,FALSE),0) -> 63 | CP15: =IFERROR(VLOOKUP($A15,'2011'!$D$4:$I$251,5,FALSE),0) -> 10 | CQ15: =IFERROR(VLOOKUP($A15,'2011'!$D$4:$I$251,6,FALSE),0) -> 0.7411764706 | CR15: =IFERROR(VLOOKUP($A15,'2010'!$C$3:$H$234,2,FALSE),0) -> 68 | CS15: =IFERROR(VLOOKUP($A15,'2010'!$C$3:$H$234,3,FALSE),0) -> 37 | CT15: =IFERROR(VLOOKUP($A15,'2010'!$C$3:$H$234,4,FALSE),0) -> 43 | CU15: =IFERROR(VLOOKUP($A15,'2010'!$C$3:$H$234,5,FALSE),0) -> 7 | CV15: =IFERROR(VLOOKUP($A15,'2010'!$C$3:$H$234,6,FALSE),0) -> 0.6323529412 | CW15: =IFERROR(VLOOKUP($A15,'2009'!$C$3:$H$242,2,FALSE),0) -> 61 | CX15: =IFERROR(VLOOKUP($A15,'2009'!$C$3:$H$242,3,FALSE),0) -> 31 | CY15: =IFERROR(VLOOKUP($A15,'2009'!$C$3:$H$242,4,FALSE),0) -> 39 | CZ15: =IFERROR(VLOOKUP($A15,'2009'!$C$3:$H$242,5,FALSE),0) -> 6 | DA15: =IFERROR(VLOOKUP($A15,'2009'!$C$3:$H$242,6,FALSE),0) -> 0.6393442623 | DB15: =IFERROR(VLOOKUP($A15,'2008'!$C$3:$H$229,2,FALSE),0) -> 75 | DC15: =IFERROR(VLOOKUP($A15,'2008'!$C$3:$H$229,3,FALSE),0) -> 42 | DD15: =IFERROR(VLOOKUP($A15,'2008'!$C$3:$H$229,4,FALSE),0) -> 55 | DE15: =IFERROR(VLOOKUP($A15,'2008'!$C$3:$H$229,5,FALSE),0) -> 10 | DF15: =IFERROR(VLOOKUP($A15,'2008'!$C$3:$H$229,6,FALSE),0) -> 0.7333333333 | DG15: =IFERROR(VLOOKUP($A15,'2007'!$C$3:$M$238,7,FALSE),0) -> 72 | DH15: =IFERROR(VLOOKUP($A15,'2007'!$C$3:$M$238,8,FALSE),0) -> 29 | DI15: =IFERROR(VLOOKUP($A15,'2007'!$C$3:$M$238,9,FALSE),0) -> 47 | DJ15: =IFERROR(VLOOKUP($A15,'2007'!$C$3:$M$238,10,FALSE),0) -> 3 | DK15: =IFERROR(VLOOKUP($A15,'2007'!$C$3:$M$238,11,FALSE),0) -> 0.6527777778 | DL15: =IFERROR(VLOOKUP($A15,'2006'!$A$2:$F$200,2,FALSE),0) -> 78 | DM15: =IFERROR(VLOOKUP($A15,'2006'!$A$2:$F$200,4,FALSE),0) -> 51 | DN15: =IFERROR(VLOOKUP($A15,'2006'!$A$2:$F$200,5,FALSE),0) -> 8 | DO15: =IFERROR(VLOOKUP($A15,'2006'!$A$2:$F$200,6,FALSE),0) -> 0.6538461538 | DP15: =IFERROR(VLOOKUP($A15,'2005'!$C$3:$M$205,8,FALSE),0) -> 50 | DQ15: =IFERROR(VLOOKUP($A15,'2005'!$C$3:$M$205,9,FALSE),0) -> 32 | DR15: =IFERROR(VLOOKUP($A15,'2005'!$C$3:$M$205,10,FALSE),0) -> 1 | DS15: =IFERROR(VLOOKUP($A15,'2005'!$C$3:$M$205,11,FALSE),0) -> 0.64 | DT15: =IFERROR(VLOOKUP($A15,'2004'!$C$3:$M$213,8,FALSE),0) -> 71 | DU15: =IFERROR(VLOOKUP($A15,'2004'!$C$3:$M$213,9,FALSE),0) -> 45 | DV15: =IFERROR(VLOOKUP($A15,'2004'!$C$3:$M$213,10,FALSE),0) -> 9 | DW15: =IFERROR(VLOOKUP($A15,'2004'!$C$3:$M$213,11,FALSE),0) -> 0.6338028169 | DX15: =IFERROR(VLOOKUP($A15,'2003'!$C$3:$Q$214,12,FALSE),0) -> 73 | DY15: =IFERROR(VLOOKUP($A15,'2003'!$C$3:$Q$214,13,FALSE),0) -> 49 | DZ15: =IFERROR(VLOOKUP($A15,'2003'!$C$3:$Q$214,14,FALSE),0) -> 7 | EA15: =IFERROR(VLOOKUP($A15,'2003'!$C$3:$Q$214,15,FALSE),0) -> 0.6712328767 | EB15: =IFERROR(VLOOKUP($A15,'2002'!$D$3:$R$214,12,FALSE),0) -> 75 | EC15: =IFERROR(VLOOKUP($A15,'2002'!$D$3:$R$214,13,FALSE),0) -> 55 | ED15: =IFERROR(VLOOKUP($A15,'2002'!$D$3:$R$214,14,FALSE),0) -> 7 | EE15: =IFERROR(VLOOKUP($A15,'2002'!$D$3:$R$214,15,FALSE),0) -> 0.7333333333 | EF15: =IFERROR(VLOOKUP($A15,'Pre 2002'!$C$3:$CK$382,84,FALSE),0) -> 812 | EG15: =IFERROR(VLOOKUP($A15,'Pre 2002'!$C$3:$CK$382,85,FALSE),0) -> 552 | EH15: =IFERROR(VLOOKUP($A15,'Pre 2002'!$C$3:$CK$382,86,FALSE),0) -> 92 | EI15: =IFERROR(VLOOKUP($A15,'Pre 2002'!$C$3:$CK$382,87,FALSE),0) -> 0.6798029557 | EJ15: =IFERROR(VLOOKUP(A15,'Pre 2002'!$C$3:$CG$382,83,FALSE),0) -> 12
A16: Dave Miller | B16: 2108 | C16: 1141 | D16: 51 | E16: 0.5412713472 | F16: 38 | G16: 1988 | H16: 27 | I16: 1590 | J16: 898 | K16: 51 | L16: 0.5647798742 | M16: 88 | N16: 4 | O16: =IFERROR(VLOOKUP($A16,'2025'!$A$2:$J$222,4,FALSE),0) -> 42 | P16: =IFERROR(VLOOKUP($A16,'2025'!$A$2:$J$222,5,FALSE),0) -> 22 | Q16: =IFERROR(VLOOKUP($A16,'2025'!$A$2:$J$222,6,FALSE),0) -> 20 | R16: =IFERROR(VLOOKUP($A16,'2025'!$A$2:$J$222,9,FALSE),0) -> 0 | S16: =IFERROR(VLOOKUP($A16,'2025'!$A$2:$J$222,10,FALSE),0) -> 0.476 | T16: =IFERROR(VLOOKUP($A16,'2024'!$A$2:$M$220,6,FALSE),0) -> 51 | U16: =IFERROR(VLOOKUP($A16,'2024'!$A$2:$M$220,7,FALSE),0) -> 8 | V16: =IFERROR(VLOOKUP($A16,'2024'!$A$2:$M$220,8,FALSE),0) -> 24 | W16: =IFERROR(VLOOKUP($A16,'2024'!$A$2:$M$220,11,FALSE),0) -> 0 | X16: =IFERROR(VLOOKUP($A16,'2024'!$A$2:$M$220,13,FALSE),0) -> 0.471 | Y16: =IFERROR(VLOOKUP($A16,'2023'!$A$2:$M$170,6,FALSE),0) -> 37 | Z16: =IFERROR(VLOOKUP($A16,'2023'!$A$2:$M$170,7,FALSE),0) -> 9 | AA16: =IFERROR(VLOOKUP($A16,'2023'!$A$2:$M$170,8,FALSE),0) -> 14 | AB16: =IFERROR(VLOOKUP($A16,'2023'!$A$2:$M$170,11,FALSE),0) -> 0 | AC16: =IFERROR(VLOOKUP($A16,'2023'!$A$2:$M$170,13,FALSE),0) -> 0.378 | AD16: =IFERROR(VLOOKUP($A16,'2022'!$B$2:$K$174,3,FALSE),0) -> 45 | AE16: =IFERROR(VLOOKUP($A16,'2022'!$B$2:$K$174,4,FALSE),0) -> 14 | AF16: =IFERROR(VLOOKUP($A16,'2022'!$B$2:$K$174,5,FALSE),0) -> 26 | AG16: =IFERROR(VLOOKUP($A16,'2022'!$B$2:$K$174,8,FALSE),0) -> 0 | AH16: =IFERROR(VLOOKUP($A16,'2022'!$B$2:$K$174,10,FALSE),0) -> 0.578 | AI16: =IFERROR(VLOOKUP($A16,'2021'!$B$2:$K$174,3,FALSE),0) -> 51 | AJ16: =IFERROR(VLOOKUP($A16,'2021'!$B$2:$K$174,4,FALSE),0) -> 11 | AK16: =IFERROR(VLOOKUP($A16,'2021'!$B$2:$K$174,5,FALSE),0) -> 20 | AL16: =IFERROR(VLOOKUP($A16,'2021'!$B$2:$K$174,8,FALSE),0) -> 0 | AM16: =IFERROR(VLOOKUP($A16,'2021'!$B$2:$K$174,10,FALSE),0) -> 0.392 | AN16: =IFERROR(VLOOKUP($A16,'2020'!$B$2:$K$170,3,FALSE),0) -> 44 | AO16: =IFERROR(VLOOKUP($A16,'2020'!$B$2:$K$170,4,FALSE),0) -> 14 | AP16: =IFERROR(VLOOKUP($A16,'2020'!$B$2:$K$170,5,FALSE),0) -> 22 | AQ16: =IFERROR(VLOOKUP($A16,'2020'!$B$2:$K$170,8,FALSE),0) -> 0 | AR16: =IFERROR(VLOOKUP($A16,'2020'!$B$2:$K$170,10,FALSE),0) -> 0.5 | AS16: =IFERROR(VLOOKUP($A16,'2019'!$B$2:$K$170,3,FALSE),0) -> 51 | AT16: =IFERROR(VLOOKUP($A16,'2019'!$B$2:$K$170,4,FALSE),0) -> 11 | AU16: =IFERROR(VLOOKUP($A16,'2019'!$B$2:$K$170,5,FALSE),0) -> 18 | AV16: =IFERROR(VLOOKUP($A16,'2019'!$B$2:$K$170,8,FALSE),0) -> 0 | AW16: =IFERROR(VLOOKUP($A16,'2019'!$B$2:$K$170,10,FALSE),0) -> 0.353 | AX16: =IFERROR(VLOOKUP($A16,'2018'!$B$2:$K$170,3,FALSE),0) -> 42 | AY16: =IFERROR(VLOOKUP($A16,'2018'!$B$2:$K$170,4,FALSE),0) -> 19 | AZ16: =IFERROR(VLOOKUP($A16,'2018'!$B$2:$K$170,5,FALSE),0) -> 18 | BA16: =IFERROR(VLOOKUP($A16,'2018'!$B$2:$K$170,8,FALSE),0) -> 0 | BB16: =IFERROR(VLOOKUP($A16,'2018'!$B$2:$K$170,10,FALSE),0) -> 0.429 | BC16: =IFERROR(VLOOKUP($A16,'2017'!$B$2:$J$163,2,FALSE),0) -> 44 | BD16: =IFERROR(VLOOKUP($A16,'2017'!$B$2:$J$163,3,FALSE),0) -> 18 | BE16: =IFERROR(VLOOKUP($A16,'2017'!$B$2:$J$163,4,FALSE),0) -> 25 | BF16: =IFERROR(VLOOKUP($A16,'2017'!$B$2:$J$163,7,FALSE),0) -> 0 | BG16: =IFERROR(VLOOKUP($A16,'2017'!$B$2:$J$163,9,FALSE),0) -> 0.5681818182 | BH16: =IFERROR(VLOOKUP($A16,'2016'!$B$2:$K$165,3,FALSE),0) -> 71 | BI16: =IFERROR(VLOOKUP($A16,'2016'!$B$2:$K$165,4,FALSE),0) -> 21 | BJ16: =IFERROR(VLOOKUP($A16,'2016'!$B$2:$K$165,5,FALSE),0) -> 40 | BK16: =IFERROR(VLOOKUP($A16,'2016'!$B$2:$K$165,8,FALSE),0) -> 0 | BL16: =IFERROR(VLOOKUP($A16,'2016'!$B$2:$K$165,10,FALSE),0) -> 0.563 | BM16: =IFERROR(VLOOKUP($A16,'2015'!$B$2:$K$165,3,FALSE),0) -> 40 | BN16: =IFERROR(VLOOKUP($A16,'2015'!$B$2:$K$165,4,FALSE),0) -> 10 | BO16: =IFERROR(VLOOKUP($A16,'2015'!$B$2:$K$165,5,FALSE),0) -> 16 | BP16: =IFERROR(VLOOKUP($A16,'2015'!$B$2:$K$165,8,FALSE),0) -> 0 | BQ16: =IFERROR(VLOOKUP($A16,'2015'!$B$2:$K$165,10,FALSE),0) -> 0.4 | BR16: =IFERROR(VLOOKUP($A16,'2014'!$B$2:$K$157,3,FALSE),0) -> 73 | BS16: =IFERROR(VLOOKUP($A16,'2014'!$B$2:$K$157,4,FALSE),0) -> 29 | BT16: =IFERROR(VLOOKUP($A16,'2014'!$B$2:$K$157,5,FALSE),0) -> 48 | BU16: =IFERROR(VLOOKUP($A16,'2014'!$B$2:$K$157,8,FALSE),0) -> 0 | BV16: =IFERROR(VLOOKUP($A16,'2014'!$B$2:$K$157,10,FALSE),0) -> 0.6575342466 | BW16: =IFERROR(VLOOKUP($A16,'2013'!$D$4:$I$249,2,FALSE),0) -> 35 | BX16: =IFERROR(VLOOKUP($A16,'2013'!$D$4:$I$249,3,FALSE),0) -> 15 | BY16: =IFERROR(VLOOKUP($A16,'2013'!$D$4:$I$249,4,FALSE),0) -> 20 | BZ16: =IFERROR(VLOOKUP($A16,'2013'!$D$4:$I$249,5,FALSE),0) -> 0 | CA16: =IFERROR(VLOOKUP($A16,'2013'!$D$4:$I$249,6,FALSE),0) -> 0.5714285714 | CB16: =IFERROR(VLOOKUP($A16,'2012'!$D$3:$O$172,2,FALSE),0) -> 1482 | CC16: =IFERROR(VLOOKUP($A16,'2012'!$D$3:$O$172,3,FALSE),0) -> 830 | CD16: =IFERROR(VLOOKUP($A16,'2012'!$D$3:$O$172,4,FALSE),0) -> 51 | CE16: =IFERROR(VLOOKUP($A16,'2012'!$D$3:$O$172,5,FALSE),0) -> 28 | CF16: =IFERROR(VLOOKUP($A16,'2012'!$D$3:$O$172,6,FALSE),0) -> 10 | CG16: =IFERROR(VLOOKUP($A16,'2012'!$D$3:$O$172,7,FALSE),0) -> 15 | CH16: =IFERROR(VLOOKUP($A16,'2012'!$D$3:$O$172,8,FALSE),0) -> 0 | CI16: =IFERROR(VLOOKUP($A16,'2012'!$D$3:$O$172,9,FALSE),0) -> 0.5357142857 | CJ16: =IFERROR(VLOOKUP($A16,'2012'!$D$3:$O$172,10,FALSE),0) -> 1454 | CK16: =IFERROR(VLOOKUP($A16,'2012'!$D$3:$O$172,11,FALSE),0) -> 815 | CL16: =IFERROR(VLOOKUP($A16,'2012'!$D$3:$O$172,12,FALSE),0) -> 51 | CM16: =IFERROR(VLOOKUP($A16,'2011'!$D$4:$I$251,2,FALSE),0) -> 56 | CN16: =IFERROR(VLOOKUP($A16,'2011'!$D$4:$I$251,3,FALSE),0) -> 20 | CO16: =IFERROR(VLOOKUP($A16,'2011'!$D$4:$I$251,4,FALSE),0) -> 31 | CP16: =IFERROR(VLOOKUP($A16,'2011'!$D$4:$I$251,5,FALSE),0) -> 0 | CQ16: =IFERROR(VLOOKUP($A16,'2011'!$D$4:$I$251,6,FALSE),0) -> 0.5535714286 | CR16: =IFERROR(VLOOKUP($A16,'2010'!$C$3:$H$234,2,FALSE),0) -> 60 | CS16: =IFERROR(VLOOKUP($A16,'2010'!$C$3:$H$234,3,FALSE),0) -> 13 | CT16: =IFERROR(VLOOKUP($A16,'2010'!$C$3:$H$234,4,FALSE),0) -> 29 | CU16: =IFERROR(VLOOKUP($A16,'2010'!$C$3:$H$234,5,FALSE),0) -> 2 | CV16: =IFERROR(VLOOKUP($A16,'2010'!$C$3:$H$234,6,FALSE),0) -> 0.4833333333 | CW16: =IFERROR(VLOOKUP($A16,'2009'!$C$3:$H$242,2,FALSE),0) -> 52 | CX16: =IFERROR(VLOOKUP($A16,'2009'!$C$3:$H$242,3,FALSE),0) -> 20 | CY16: =IFERROR(VLOOKUP($A16,'2009'!$C$3:$H$242,4,FALSE),0) -> 28 | CZ16: =IFERROR(VLOOKUP($A16,'2009'!$C$3:$H$242,5,FALSE),0) -> 0 | DA16: =IFERROR(VLOOKUP($A16,'2009'!$C$3:$H$242,6,FALSE),0) -> 0.5384615385 | DB16: =IFERROR(VLOOKUP($A16,'2008'!$C$3:$H$229,2,FALSE),0) -> 69 | DC16: =IFERROR(VLOOKUP($A16,'2008'!$C$3:$H$229,3,FALSE),0) -> 30 | DD16: =IFERROR(VLOOKUP($A16,'2008'!$C$3:$H$229,4,FALSE),0) -> 39 | DE16: =IFERROR(VLOOKUP($A16,'2008'!$C$3:$H$229,5,FALSE),0) -> 1 | DF16: =IFERROR(VLOOKUP($A16,'2008'!$C$3:$H$229,6,FALSE),0) -> 0.5652173913 | DG16: =IFERROR(VLOOKUP($A16,'2007'!$C$3:$M$238,7,FALSE),0) -> 63 | DH16: =IFERROR(VLOOKUP($A16,'2007'!$C$3:$M$238,8,FALSE),0) -> 29 | DI16: =IFERROR(VLOOKUP($A16,'2007'!$C$3:$M$238,9,FALSE),0) -> 43 | DJ16: =IFERROR(VLOOKUP($A16,'2007'!$C$3:$M$238,10,FALSE),0) -> 1 | DK16: =IFERROR(VLOOKUP($A16,'2007'!$C$3:$M$238,11,FALSE),0) -> 0.6825396825 | DL16: =IFERROR(VLOOKUP($A16,'2006'!$A$2:$F$200,2,FALSE),0) -> 46 | DM16: =IFERROR(VLOOKUP($A16,'2006'!$A$2:$F$200,4,FALSE),0) -> 21 | DN16: =IFERROR(VLOOKUP($A16,'2006'!$A$2:$F$200,5,FALSE),0) -> 0 | DO16: =IFERROR(VLOOKUP($A16,'2006'!$A$2:$F$200,6,FALSE),0) -> 0.4565217391 | DP16: =IFERROR(VLOOKUP($A16,'2005'!$C$3:$M$205,8,FALSE),0) -> 70 | DQ16: =IFERROR(VLOOKUP($A16,'2005'!$C$3:$M$205,9,FALSE),0) -> 40 | DR16: =IFERROR(VLOOKUP($A16,'2005'!$C$3:$M$205,10,FALSE),0) -> 0 | DS16: =IFERROR(VLOOKUP($A16,'2005'!$C$3:$M$205,11,FALSE),0) -> 0.5714285714 | DT16: =IFERROR(VLOOKUP($A16,'2004'!$C$3:$M$213,8,FALSE),0) -> 64 | DU16: =IFERROR(VLOOKUP($A16,'2004'!$C$3:$M$213,9,FALSE),0) -> 36 | DV16: =IFERROR(VLOOKUP($A16,'2004'!$C$3:$M$213,10,FALSE),0) -> 0 | DW16: =IFERROR(VLOOKUP($A16,'2004'!$C$3:$M$213,11,FALSE),0) -> 0.5625 | DX16: =IFERROR(VLOOKUP($A16,'2003'!$C$3:$Q$214,12,FALSE),0) -> 60 | DY16: =IFERROR(VLOOKUP($A16,'2003'!$C$3:$Q$214,13,FALSE),0) -> 36 | DZ16: =IFERROR(VLOOKUP($A16,'2003'!$C$3:$Q$214,14,FALSE),0) -> 0 | EA16: =IFERROR(VLOOKUP($A16,'2003'!$C$3:$Q$214,15,FALSE),0) -> 0.6 | EB16: =IFERROR(VLOOKUP($A16,'2002'!$D$3:$R$214,12,FALSE),0) -> 67 | EC16: =IFERROR(VLOOKUP($A16,'2002'!$D$3:$R$214,13,FALSE),0) -> 44 | ED16: =IFERROR(VLOOKUP($A16,'2002'!$D$3:$R$214,14,FALSE),0) -> 3 | EE16: =IFERROR(VLOOKUP($A16,'2002'!$D$3:$R$214,15,FALSE),0) -> 0.6567164179 | EF16: =IFERROR(VLOOKUP($A16,'Pre 2002'!$C$3:$CK$382,84,FALSE),0) -> 847 | EG16: =IFERROR(VLOOKUP($A16,'Pre 2002'!$C$3:$CK$382,85,FALSE),0) -> 468 | EH16: =IFERROR(VLOOKUP($A16,'Pre 2002'!$C$3:$CK$382,86,FALSE),0) -> 44 | EI16: =IFERROR(VLOOKUP($A16,'Pre 2002'!$C$3:$CK$382,87,FALSE),0) -> 0.5525383707 | EJ16: =IFERROR(VLOOKUP(A16,'Pre 2002'!$C$3:$CG$382,83,FALSE),0) -> 14
A17: Reed Nelson | B17: 1805 | C17: 1133 | D17: 53 | E17: 0.627700831 | F17: 23 | G17: 2004 | H17: 12 | I17: 948 | J17: 584 | K17: 43 | L17: 0.6160337553 | M17: 04 | N17: 0 | O17: =IFERROR(VLOOKUP($A17,'2025'!$A$2:$J$222,4,FALSE),0) -> 62 | P17: =IFERROR(VLOOKUP($A17,'2025'!$A$2:$J$222,5,FALSE),0) -> 41 | Q17: =IFERROR(VLOOKUP($A17,'2025'!$A$2:$J$222,6,FALSE),0) -> 42 | R17: =IFERROR(VLOOKUP($A17,'2025'!$A$2:$J$222,9,FALSE),0) -> 1 | S17: =IFERROR(VLOOKUP($A17,'2025'!$A$2:$J$222,10,FALSE),0) -> 0.677 | T17: =IFERROR(VLOOKUP($A17,'2024'!$A$2:$M$220,6,FALSE),0) -> 60 | U17: =IFERROR(VLOOKUP($A17,'2024'!$A$2:$M$220,7,FALSE),0) -> 27 | V17: =IFERROR(VLOOKUP($A17,'2024'!$A$2:$M$220,8,FALSE),0) -> 34 | W17: =IFERROR(VLOOKUP($A17,'2024'!$A$2:$M$220,11,FALSE),0) -> 0 | X17: =IFERROR(VLOOKUP($A17,'2024'!$A$2:$M$220,13,FALSE),0) -> 0.567 | Y17: =IFERROR(VLOOKUP($A17,'2023'!$A$2:$M$170,6,FALSE),0) -> 71 | Z17: =IFERROR(VLOOKUP($A17,'2023'!$A$2:$M$170,7,FALSE),0) -> 33 | AA17: =IFERROR(VLOOKUP($A17,'2023'!$A$2:$M$170,8,FALSE),0) -> 49 | AB17: =IFERROR(VLOOKUP($A17,'2023'!$A$2:$M$170,11,FALSE),0) -> 1 | AC17: =IFERROR(VLOOKUP($A17,'2023'!$A$2:$M$170,13,FALSE),0) -> 0.69 | AD17: =IFERROR(VLOOKUP($A17,'2022'!$B$2:$K$174,3,FALSE),0) -> 52 | AE17: =IFERROR(VLOOKUP($A17,'2022'!$B$2:$K$174,4,FALSE),0) -> 33 | AF17: =IFERROR(VLOOKUP($A17,'2022'!$B$2:$K$174,5,FALSE),0) -> 39 | AG17: =IFERROR(VLOOKUP($A17,'2022'!$B$2:$K$174,8,FALSE),0) -> 0 | AH17: =IFERROR(VLOOKUP($A17,'2022'!$B$2:$K$174,10,FALSE),0) -> 0.75 | AI17: =IFERROR(VLOOKUP($A17,'2021'!$B$2:$K$174,3,FALSE),0) -> 84 | AJ17: =IFERROR(VLOOKUP($A17,'2021'!$B$2:$K$174,4,FALSE),0) -> 45 | AK17: =IFERROR(VLOOKUP($A17,'2021'!$B$2:$K$174,5,FALSE),0) -> 55 | AL17: =IFERROR(VLOOKUP($A17,'2021'!$B$2:$K$174,8,FALSE),0) -> 0 | AM17: =IFERROR(VLOOKUP($A17,'2021'!$B$2:$K$174,10,FALSE),0) -> 0.655 | AN17: =IFERROR(VLOOKUP($A17,'2020'!$B$2:$K$170,3,FALSE),0) -> 90 | AO17: =IFERROR(VLOOKUP($A17,'2020'!$B$2:$K$170,4,FALSE),0) -> 48 | AP17: =IFERROR(VLOOKUP($A17,'2020'!$B$2:$K$170,5,FALSE),0) -> 61 | AQ17: =IFERROR(VLOOKUP($A17,'2020'!$B$2:$K$170,8,FALSE),0) -> 2 | AR17: =IFERROR(VLOOKUP($A17,'2020'!$B$2:$K$170,10,FALSE),0) -> 0.678 | AS17: =IFERROR(VLOOKUP($A17,'2019'!$B$2:$K$170,3,FALSE),0) -> 87 | AT17: =IFERROR(VLOOKUP($A17,'2019'!$B$2:$K$170,4,FALSE),0) -> 43 | AU17: =IFERROR(VLOOKUP($A17,'2019'!$B$2:$K$170,5,FALSE),0) -> 55 | AV17: =IFERROR(VLOOKUP($A17,'2019'!$B$2:$K$170,8,FALSE),0) -> 2 | AW17: =IFERROR(VLOOKUP($A17,'2019'!$B$2:$K$170,10,FALSE),0) -> 0.632 | AX17: =IFERROR(VLOOKUP($A17,'2018'!$B$2:$K$170,3,FALSE),0) -> 91 | AY17: =IFERROR(VLOOKUP($A17,'2018'!$B$2:$K$170,4,FALSE),0) -> 41 | AZ17: =IFERROR(VLOOKUP($A17,'2018'!$B$2:$K$170,5,FALSE),0) -> 56 | BA17: =IFERROR(VLOOKUP($A17,'2018'!$B$2:$K$170,8,FALSE),0) -> 1 | BB17: =IFERROR(VLOOKUP($A17,'2018'!$B$2:$K$170,10,FALSE),0) -> 0.615 | BC17: =IFERROR(VLOOKUP($A17,'2017'!$B$2:$J$163,2,FALSE),0) -> 78 | BD17: =IFERROR(VLOOKUP($A17,'2017'!$B$2:$J$163,3,FALSE),0) -> 32 | BE17: =IFERROR(VLOOKUP($A17,'2017'!$B$2:$J$163,4,FALSE),0) -> 49 | BF17: =IFERROR(VLOOKUP($A17,'2017'!$B$2:$J$163,7,FALSE),0) -> 0 | BG17: =IFERROR(VLOOKUP($A17,'2017'!$B$2:$J$163,9,FALSE),0) -> 0.6282051282 | BH17: =IFERROR(VLOOKUP($A17,'2016'!$B$2:$K$165,3,FALSE),0) -> 92 | BI17: =IFERROR(VLOOKUP($A17,'2016'!$B$2:$K$165,4,FALSE),0) -> 45 | BJ17: =IFERROR(VLOOKUP($A17,'2016'!$B$2:$K$165,5,FALSE),0) -> 58 | BK17: =IFERROR(VLOOKUP($A17,'2016'!$B$2:$K$165,8,FALSE),0) -> 3 | BL17: =IFERROR(VLOOKUP($A17,'2016'!$B$2:$K$165,10,FALSE),0) -> 0.63 | BM17: =IFERROR(VLOOKUP($A17,'2015'!$B$2:$K$165,3,FALSE),0) -> 90 | BN17: =IFERROR(VLOOKUP($A17,'2015'!$B$2:$K$165,4,FALSE),0) -> 45 | BO17: =IFERROR(VLOOKUP($A17,'2015'!$B$2:$K$165,5,FALSE),0) -> 51 | BP17: =IFERROR(VLOOKUP($A17,'2015'!$B$2:$K$165,8,FALSE),0) -> 0 | BQ17: =IFERROR(VLOOKUP($A17,'2015'!$B$2:$K$165,10,FALSE),0) -> 0.5666666667 | BR17: =IFERROR(VLOOKUP($A17,'2014'!$B$2:$K$157,3,FALSE),0) -> 83 | BS17: =IFERROR(VLOOKUP($A17,'2014'!$B$2:$K$157,4,FALSE),0) -> 36 | BT17: =IFERROR(VLOOKUP($A17,'2014'!$B$2:$K$157,5,FALSE),0) -> 50 | BU17: =IFERROR(VLOOKUP($A17,'2014'!$B$2:$K$157,8,FALSE),0) -> 3 | BV17: =IFERROR(VLOOKUP($A17,'2014'!$B$2:$K$157,10,FALSE),0) -> 0.6024096386 | BW17: =IFERROR(VLOOKUP($A17,'2013'!$D$4:$I$249,2,FALSE),0) -> 72 | BX17: =IFERROR(VLOOKUP($A17,'2013'!$D$4:$I$249,3,FALSE),0) -> 30 | BY17: =IFERROR(VLOOKUP($A17,'2013'!$D$4:$I$249,4,FALSE),0) -> 43 | BZ17: =IFERROR(VLOOKUP($A17,'2013'!$D$4:$I$249,5,FALSE),0) -> 1 | CA17: =IFERROR(VLOOKUP($A17,'2013'!$D$4:$I$249,6,FALSE),0) -> 0.5972222222 | CB17: =IFERROR(VLOOKUP($A17,'2012'!$D$3:$O$172,2,FALSE),0) -> 788 | CC17: =IFERROR(VLOOKUP($A17,'2012'!$D$3:$O$172,3,FALSE),0) -> 486 | CD17: =IFERROR(VLOOKUP($A17,'2012'!$D$3:$O$172,4,FALSE),0) -> 39 | CE17: =IFERROR(VLOOKUP($A17,'2012'!$D$3:$O$172,5,FALSE),0) -> 79 | CF17: =IFERROR(VLOOKUP($A17,'2012'!$D$3:$O$172,6,FALSE),0) -> 44 | CG17: =IFERROR(VLOOKUP($A17,'2012'!$D$3:$O$172,7,FALSE),0) -> 53 | CH17: =IFERROR(VLOOKUP($A17,'2012'!$D$3:$O$172,8,FALSE),0) -> 5 | CI17: =IFERROR(VLOOKUP($A17,'2012'!$D$3:$O$172,9,FALSE),0) -> 0.6708860759 | CJ17: =IFERROR(VLOOKUP($A17,'2012'!$D$3:$O$172,10,FALSE),0) -> 709 | CK17: =IFERROR(VLOOKUP($A17,'2012'!$D$3:$O$172,11,FALSE),0) -> 433 | CL17: =IFERROR(VLOOKUP($A17,'2012'!$D$3:$O$172,12,FALSE),0) -> 34 | CM17: =IFERROR(VLOOKUP($A17,'2011'!$D$4:$I$251,2,FALSE),0) -> 87 | CN17: =IFERROR(VLOOKUP($A17,'2011'!$D$4:$I$251,3,FALSE),0) -> 41 | CO17: =IFERROR(VLOOKUP($A17,'2011'!$D$4:$I$251,4,FALSE),0) -> 56 | CP17: =IFERROR(VLOOKUP($A17,'2011'!$D$4:$I$251,5,FALSE),0) -> 5 | CQ17: =IFERROR(VLOOKUP($A17,'2011'!$D$4:$I$251,6,FALSE),0) -> 0.6436781609 | CR17: =IFERROR(VLOOKUP($A17,'2010'!$C$3:$H$234,2,FALSE),0) -> 87 | CS17: =IFERROR(VLOOKUP($A17,'2010'!$C$3:$H$234,3,FALSE),0) -> 50 | CT17: =IFERROR(VLOOKUP($A17,'2010'!$C$3:$H$234,4,FALSE),0) -> 57 | CU17: =IFERROR(VLOOKUP($A17,'2010'!$C$3:$H$234,5,FALSE),0) -> 13 | CV17: =IFERROR(VLOOKUP($A17,'2010'!$C$3:$H$234,6,FALSE),0) -> 0.6551724138 | CW17: =IFERROR(VLOOKUP($A17,'2009'!$C$3:$H$242,2,FALSE),0) -> 74 | CX17: =IFERROR(VLOOKUP($A17,'2009'!$C$3:$H$242,3,FALSE),0) -> 40 | CY17: =IFERROR(VLOOKUP($A17,'2009'!$C$3:$H$242,4,FALSE),0) -> 46 | CZ17: =IFERROR(VLOOKUP($A17,'2009'!$C$3:$H$242,5,FALSE),0) -> 1 | DA17: =IFERROR(VLOOKUP($A17,'2009'!$C$3:$H$242,6,FALSE),0) -> 0.6216216216 | DB17: =IFERROR(VLOOKUP($A17,'2008'!$C$3:$H$229,2,FALSE),0) -> 85 | DC17: =IFERROR(VLOOKUP($A17,'2008'!$C$3:$H$229,3,FALSE),0) -> 47 | DD17: =IFERROR(VLOOKUP($A17,'2008'!$C$3:$H$229,4,FALSE),0) -> 53 | DE17: =IFERROR(VLOOKUP($A17,'2008'!$C$3:$H$229,5,FALSE),0) -> 6 | DF17: =IFERROR(VLOOKUP($A17,'2008'!$C$3:$H$229,6,FALSE),0) -> 0.6235294118 | DG17: =IFERROR(VLOOKUP($A17,'2007'!$C$3:$M$238,7,FALSE),0) -> 71 | DH17: =IFERROR(VLOOKUP($A17,'2007'!$C$3:$M$238,8,FALSE),0) -> 30 | DI17: =IFERROR(VLOOKUP($A17,'2007'!$C$3:$M$238,9,FALSE),0) -> 40 | DJ17: =IFERROR(VLOOKUP($A17,'2007'!$C$3:$M$238,10,FALSE),0) -> 1 | DK17: =IFERROR(VLOOKUP($A17,'2007'!$C$3:$M$238,11,FALSE),0) -> 0.5633802817 | DL17: =IFERROR(VLOOKUP($A17,'2006'!$A$2:$F$200,2,FALSE),0) -> 78 | DM17: =IFERROR(VLOOKUP($A17,'2006'!$A$2:$F$200,4,FALSE),0) -> 49 | DN17: =IFERROR(VLOOKUP($A17,'2006'!$A$2:$F$200,5,FALSE),0) -> 2 | DO17: =IFERROR(VLOOKUP($A17,'2006'!$A$2:$F$200,6,FALSE),0) -> 0.6282051282 | DP17: =IFERROR(VLOOKUP($A17,'2005'!$C$3:$M$205,8,FALSE),0) -> 81 | DQ17: =IFERROR(VLOOKUP($A17,'2005'!$C$3:$M$205,9,FALSE),0) -> 51 | DR17: =IFERROR(VLOOKUP($A17,'2005'!$C$3:$M$205,10,FALSE),0) -> 1 | DS17: =IFERROR(VLOOKUP($A17,'2005'!$C$3:$M$205,11,FALSE),0) -> 0.6296296296 | DT17: =IFERROR(VLOOKUP($A17,'2004'!$C$3:$M$213,8,FALSE),0) -> 82 | DU17: =IFERROR(VLOOKUP($A17,'2004'!$C$3:$M$213,9,FALSE),0) -> 51 | DV17: =IFERROR(VLOOKUP($A17,'2004'!$C$3:$M$213,10,FALSE),0) -> 2 | DW17: =IFERROR(VLOOKUP($A17,'2004'!$C$3:$M$213,11,FALSE),0) -> 0.6219512195 | DX17: =IFERROR(VLOOKUP($A17,'2003'!$C$3:$Q$214,12,FALSE),0) -> 69 | DY17: =IFERROR(VLOOKUP($A17,'2003'!$C$3:$Q$214,13,FALSE),0) -> 35 | DZ17: =IFERROR(VLOOKUP($A17,'2003'!$C$3:$Q$214,14,FALSE),0) -> 3 | EA17: =IFERROR(VLOOKUP($A17,'2003'!$C$3:$Q$214,15,FALSE),0) -> 0.5072463768 | EB17: =IFERROR(VLOOKUP($A17,'2002'!$D$3:$R$214,12,FALSE),0) -> 0 | EC17: =IFERROR(VLOOKUP($A17,'2002'!$D$3:$R$214,13,FALSE),0) -> 0 | ED17: =IFERROR(VLOOKUP($A17,'2002'!$D$3:$R$214,14,FALSE),0) -> 0 | EE17: =IFERROR(VLOOKUP($A17,'2002'!$D$3:$R$214,15,FALSE),0) -> 0 | EF17: =IFERROR(VLOOKUP($A17,'Pre 2002'!$C$3:$CK$382,84,FALSE),0) -> 0 | EG17: =IFERROR(VLOOKUP($A17,'Pre 2002'!$C$3:$CK$382,85,FALSE),0) -> 0 | EH17: =IFERROR(VLOOKUP($A17,'Pre 2002'!$C$3:$CK$382,86,FALSE),0) -> 0 | EI17: =IFERROR(VLOOKUP($A17,'Pre 2002'!$C$3:$CK$382,87,FALSE),0) -> 0 | EJ17: =IFERROR(VLOOKUP(A17,'Pre 2002'!$C$3:$CG$382,83,FALSE),0) -> 0
A18: Mark Sims | B18: 1874 | C18: 1100 | D18: 122 | E18: 0.5869797225 | F18: 30 | G18: 1985 | H18: 29 | I18: 1858 | J18: 1093 | K18: 122 | L18: 0.5882669537 | O18: =IFERROR(VLOOKUP($A18,'2025'!$A$2:$J$222,4,FALSE),0) -> 0 | P18: =IFERROR(VLOOKUP($A18,'2025'!$A$2:$J$222,5,FALSE),0) -> 0 | Q18: =IFERROR(VLOOKUP($A18,'2025'!$A$2:$J$222,6,FALSE),0) -> 0 | R18: =IFERROR(VLOOKUP($A18,'2025'!$A$2:$J$222,9,FALSE),0) -> 0 | S18: =IFERROR(VLOOKUP($A18,'2025'!$A$2:$J$222,10,FALSE),0) -> 0 | T18: =IFERROR(VLOOKUP($A18,'2024'!$A$2:$M$220,6,FALSE),0) -> 0 | U18: =IFERROR(VLOOKUP($A18,'2024'!$A$2:$M$220,7,FALSE),0) -> 0 | V18: =IFERROR(VLOOKUP($A18,'2024'!$A$2:$M$220,8,FALSE),0) -> 0 | W18: =IFERROR(VLOOKUP($A18,'2024'!$A$2:$M$220,11,FALSE),0) -> 0 | X18: =IFERROR(VLOOKUP($A18,'2024'!$A$2:$M$220,13,FALSE),0) -> 0 | Y18: =IFERROR(VLOOKUP($A18,'2023'!$A$2:$M$170,6,FALSE),0) -> 0 | Z18: =IFERROR(VLOOKUP($A18,'2023'!$A$2:$M$170,7,FALSE),0) -> 0 | AA18: =IFERROR(VLOOKUP($A18,'2023'!$A$2:$M$170,8,FALSE),0) -> 0 | AB18: =IFERROR(VLOOKUP($A18,'2023'!$A$2:$M$170,11,FALSE),0) -> 0 | AC18: =IFERROR(VLOOKUP($A18,'2023'!$A$2:$M$170,13,FALSE),0) -> 0 | AD18: =IFERROR(VLOOKUP($A18,'2022'!$B$2:$K$174,3,FALSE),0) -> 0 | AE18: =IFERROR(VLOOKUP($A18,'2022'!$B$2:$K$174,4,FALSE),0) -> 0 | AF18: =IFERROR(VLOOKUP($A18,'2022'!$B$2:$K$174,5,FALSE),0) -> 0 | AG18: =IFERROR(VLOOKUP($A18,'2022'!$B$2:$K$174,8,FALSE),0) -> 0 | AH18: =IFERROR(VLOOKUP($A18,'2022'!$B$2:$K$174,10,FALSE),0) -> 0 | AI18: =IFERROR(VLOOKUP($A18,'2021'!$B$2:$K$174,3,FALSE),0) -> 0 | AJ18: =IFERROR(VLOOKUP($A18,'2021'!$B$2:$K$174,4,FALSE),0) -> 0 | AK18: =IFERROR(VLOOKUP($A18,'2021'!$B$2:$K$174,5,FALSE),0) -> 0 | AL18: =IFERROR(VLOOKUP($A18,'2021'!$B$2:$K$174,8,FALSE),0) -> 0 | AM18: =IFERROR(VLOOKUP($A18,'2021'!$B$2:$K$174,10,FALSE),0) -> 0 | AN18: =IFERROR(VLOOKUP($A18,'2020'!$B$2:$K$170,3,FALSE),0) -> 0 | AO18: =IFERROR(VLOOKUP($A18,'2020'!$B$2:$K$170,4,FALSE),0) -> 0 | AP18: =IFERROR(VLOOKUP($A18,'2020'!$B$2:$K$170,5,FALSE),0) -> 0 | AQ18: =IFERROR(VLOOKUP($A18,'2020'!$B$2:$K$170,8,FALSE),0) -> 0 | AR18: =IFERROR(VLOOKUP($A18,'2020'!$B$2:$K$170,10,FALSE),0) -> 0 | AS18: =IFERROR(VLOOKUP($A18,'2019'!$B$2:$K$170,3,FALSE),0) -> 0 | AT18: =IFERROR(VLOOKUP($A18,'2019'!$B$2:$K$170,4,FALSE),0) -> 0 | AU18: =IFERROR(VLOOKUP($A18,'2019'!$B$2:$K$170,5,FALSE),0) -> 0 | AV18: =IFERROR(VLOOKUP($A18,'2019'!$B$2:$K$170,8,FALSE),0) -> 0 | AW18: =IFERROR(VLOOKUP($A18,'2019'!$B$2:$K$170,10,FALSE),0) -> 0 | AX18: =IFERROR(VLOOKUP($A18,'2018'!$B$2:$K$170,3,FALSE),0) -> 0 | AY18: =IFERROR(VLOOKUP($A18,'2018'!$B$2:$K$170,4,FALSE),0) -> 0 | AZ18: =IFERROR(VLOOKUP($A18,'2018'!$B$2:$K$170,5,FALSE),0) -> 0 | BA18: =IFERROR(VLOOKUP($A18,'2018'!$B$2:$K$170,8,FALSE),0) -> 0 | BB18: =IFERROR(VLOOKUP($A18,'2018'!$B$2:$K$170,10,FALSE),0) -> 0 | BC18: =IFERROR(VLOOKUP($A18,'2017'!$B$2:$J$163,2,FALSE),0) -> 0 | BD18: =IFERROR(VLOOKUP($A18,'2017'!$B$2:$J$163,3,FALSE),0) -> 0 | BE18: =IFERROR(VLOOKUP($A18,'2017'!$B$2:$J$163,4,FALSE),0) -> 0 | BF18: =IFERROR(VLOOKUP($A18,'2017'!$B$2:$J$163,7,FALSE),0) -> 0 | BG18: =IFERROR(VLOOKUP($A18,'2017'!$B$2:$J$163,9,FALSE),0) -> 0 | BH18: =IFERROR(VLOOKUP($A18,'2016'!$B$2:$K$165,3,FALSE),0) -> 16 | BI18: =IFERROR(VLOOKUP($A18,'2016'!$B$2:$K$165,4,FALSE),0) -> 2 | BJ18: =IFERROR(VLOOKUP($A18,'2016'!$B$2:$K$165,5,FALSE),0) -> 7 | BK18: =IFERROR(VLOOKUP($A18,'2016'!$B$2:$K$165,8,FALSE),0) -> 0 | BL18: =IFERROR(VLOOKUP($A18,'2016'!$B$2:$K$165,10,FALSE),0) -> 0.438 | BM18: =IFERROR(VLOOKUP($A18,'2015'!$B$2:$K$165,3,FALSE),0) -> 0 | BN18: =IFERROR(VLOOKUP($A18,'2015'!$B$2:$K$165,4,FALSE),0) -> 0 | BO18: =IFERROR(VLOOKUP($A18,'2015'!$B$2:$K$165,5,FALSE),0) -> 0 | BP18: =IFERROR(VLOOKUP($A18,'2015'!$B$2:$K$165,8,FALSE),0) -> 0 | BQ18: =IFERROR(VLOOKUP($A18,'2015'!$B$2:$K$165,10,FALSE),0) -> 0 | BR18: =IFERROR(VLOOKUP($A18,'2014'!$B$2:$K$157,3,FALSE),0) -> 0 | BS18: =IFERROR(VLOOKUP($A18,'2014'!$B$2:$K$157,4,FALSE),0) -> 0 | BT18: =IFERROR(VLOOKUP($A18,'2014'!$B$2:$K$157,5,FALSE),0) -> 0 | BU18: =IFERROR(VLOOKUP($A18,'2014'!$B$2:$K$157,8,FALSE),0) -> 0 | BV18: =IFERROR(VLOOKUP($A18,'2014'!$B$2:$K$157,10,FALSE),0) -> 0 | BW18: =IFERROR(VLOOKUP($A18,'2013'!$D$4:$I$249,2,FALSE),0) -> 0 | BX18: =IFERROR(VLOOKUP($A18,'2013'!$D$4:$I$249,3,FALSE),0) -> 0 | BY18: =IFERROR(VLOOKUP($A18,'2013'!$D$4:$I$249,4,FALSE),0) -> 0 | BZ18: =IFERROR(VLOOKUP($A18,'2013'!$D$4:$I$249,5,FALSE),0) -> 0 | CA18: =IFERROR(VLOOKUP($A18,'2013'!$D$4:$I$249,6,FALSE),0) -> 0 | CB18: =IFERROR(VLOOKUP($A18,'2012'!$D$3:$O$172,2,FALSE),0) -> 1858 | CC18: =IFERROR(VLOOKUP($A18,'2012'!$D$3:$O$172,3,FALSE),0) -> 1093 | CD18: =IFERROR(VLOOKUP($A18,'2012'!$D$3:$O$172,4,FALSE),0) -> 122 | CE18: =IFERROR(VLOOKUP($A18,'2012'!$D$3:$O$172,5,FALSE),0) -> 75 | CF18: =IFERROR(VLOOKUP($A18,'2012'!$D$3:$O$172,6,FALSE),0) -> 26 | CG18: =IFERROR(VLOOKUP($A18,'2012'!$D$3:$O$172,7,FALSE),0) -> 43 | CH18: =IFERROR(VLOOKUP($A18,'2012'!$D$3:$O$172,8,FALSE),0) -> 1 | CI18: =IFERROR(VLOOKUP($A18,'2012'!$D$3:$O$172,9,FALSE),0) -> 0.5733333333 | CJ18: =IFERROR(VLOOKUP($A18,'2012'!$D$3:$O$172,10,FALSE),0) -> 1783 | CK18: =IFERROR(VLOOKUP($A18,'2012'!$D$3:$O$172,11,FALSE),0) -> 1050 | CL18: =IFERROR(VLOOKUP($A18,'2012'!$D$3:$O$172,12,FALSE),0) -> 121 | CM18: =IFERROR(VLOOKUP($A18,'2011'!$D$4:$I$251,2,FALSE),0) -> 79 | CN18: =IFERROR(VLOOKUP($A18,'2011'!$D$4:$I$251,3,FALSE),0) -> 26 | CO18: =IFERROR(VLOOKUP($A18,'2011'!$D$4:$I$251,4,FALSE),0) -> 46 | CP18: =IFERROR(VLOOKUP($A18,'2011'!$D$4:$I$251,5,FALSE),0) -> 4 | CQ18: =IFERROR(VLOOKUP($A18,'2011'!$D$4:$I$251,6,FALSE),0) -> 0.582278481 | CR18: =IFERROR(VLOOKUP($A18,'2010'!$C$3:$H$234,2,FALSE),0) -> 87 | CS18: =IFERROR(VLOOKUP($A18,'2010'!$C$3:$H$234,3,FALSE),0) -> 34 | CT18: =IFERROR(VLOOKUP($A18,'2010'!$C$3:$H$234,4,FALSE),0) -> 58 | CU18: =IFERROR(VLOOKUP($A18,'2010'!$C$3:$H$234,5,FALSE),0) -> 2 | CV18: =IFERROR(VLOOKUP($A18,'2010'!$C$3:$H$234,6,FALSE),0) -> 0.6666666667 | CW18: =IFERROR(VLOOKUP($A18,'2009'!$C$3:$H$242,2,FALSE),0) -> 67 | CX18: =IFERROR(VLOOKUP($A18,'2009'!$C$3:$H$242,3,FALSE),0) -> 21 | CY18: =IFERROR(VLOOKUP($A18,'2009'!$C$3:$H$242,4,FALSE),0) -> 33 | CZ18: =IFERROR(VLOOKUP($A18,'2009'!$C$3:$H$242,5,FALSE),0) -> 2 | DA18: =IFERROR(VLOOKUP($A18,'2009'!$C$3:$H$242,6,FALSE),0) -> 0.4925373134 | DB18: =IFERROR(VLOOKUP($A18,'2008'!$C$3:$H$229,2,FALSE),0) -> 52 | DC18: =IFERROR(VLOOKUP($A18,'2008'!$C$3:$H$229,3,FALSE),0) -> 18 | DD18: =IFERROR(VLOOKUP($A18,'2008'!$C$3:$H$229,4,FALSE),0) -> 24 | DE18: =IFERROR(VLOOKUP($A18,'2008'!$C$3:$H$229,5,FALSE),0) -> 1 | DF18: =IFERROR(VLOOKUP($A18,'2008'!$C$3:$H$229,6,FALSE),0) -> 0.4615384615 | DG18: =IFERROR(VLOOKUP($A18,'2007'!$C$3:$M$238,7,FALSE),0) -> 77 | DH18: =IFERROR(VLOOKUP($A18,'2007'!$C$3:$M$238,8,FALSE),0) -> 29 | DI18: =IFERROR(VLOOKUP($A18,'2007'!$C$3:$M$238,9,FALSE),0) -> 40 | DJ18: =IFERROR(VLOOKUP($A18,'2007'!$C$3:$M$238,10,FALSE),0) -> 3 | DK18: =IFERROR(VLOOKUP($A18,'2007'!$C$3:$M$238,11,FALSE),0) -> 0.5194805195 | DL18: =IFERROR(VLOOKUP($A18,'2006'!$A$2:$F$200,2,FALSE),0) -> 74 | DM18: =IFERROR(VLOOKUP($A18,'2006'!$A$2:$F$200,4,FALSE),0) -> 49 | DN18: =IFERROR(VLOOKUP($A18,'2006'!$A$2:$F$200,5,FALSE),0) -> 2 | DO18: =IFERROR(VLOOKUP($A18,'2006'!$A$2:$F$200,6,FALSE),0) -> 0.6621621622 | DP18: =IFERROR(VLOOKUP($A18,'2005'!$C$3:$M$205,8,FALSE),0) -> 0 | DQ18: =IFERROR(VLOOKUP($A18,'2005'!$C$3:$M$205,9,FALSE),0) -> 0 | DR18: =IFERROR(VLOOKUP($A18,'2005'!$C$3:$M$205,10,FALSE),0) -> 0 | DS18: =IFERROR(VLOOKUP($A18,'2005'!$C$3:$M$205,11,FALSE),0) -> 0 | DT18: =IFERROR(VLOOKUP($A18,'2004'!$C$3:$M$213,8,FALSE),0) -> 49 | DU18: =IFERROR(VLOOKUP($A18,'2004'!$C$3:$M$213,9,FALSE),0) -> 29 | DV18: =IFERROR(VLOOKUP($A18,'2004'!$C$3:$M$213,10,FALSE),0) -> 4 | DW18: =IFERROR(VLOOKUP($A18,'2004'!$C$3:$M$213,11,FALSE),0) -> 0.5918367347 | DX18: =IFERROR(VLOOKUP($A18,'2003'!$C$3:$Q$214,12,FALSE),0) -> 36 | DY18: =IFERROR(VLOOKUP($A18,'2003'!$C$3:$Q$214,13,FALSE),0) -> 18 | DZ18: =IFERROR(VLOOKUP($A18,'2003'!$C$3:$Q$214,14,FALSE),0) -> 2 | EA18: =IFERROR(VLOOKUP($A18,'2003'!$C$3:$Q$214,15,FALSE),0) -> 0.5 | EB18: =IFERROR(VLOOKUP($A18,'2002'!$D$3:$R$214,12,FALSE),0) -> 0 | EC18: =IFERROR(VLOOKUP($A18,'2002'!$D$3:$R$214,13,FALSE),0) -> 0 | ED18: =IFERROR(VLOOKUP($A18,'2002'!$D$3:$R$214,14,FALSE),0) -> 0 | EE18: =IFERROR(VLOOKUP($A18,'2002'!$D$3:$R$214,15,FALSE),0) -> 0 | EF18: =IFERROR(VLOOKUP($A18,'Pre 2002'!$C$3:$CK$382,84,FALSE),0) -> 1262 | EG18: =IFERROR(VLOOKUP($A18,'Pre 2002'!$C$3:$CK$382,85,FALSE),0) -> 753 | EH18: =IFERROR(VLOOKUP($A18,'Pre 2002'!$C$3:$CK$382,86,FALSE),0) -> 101 | EI18: =IFERROR(VLOOKUP($A18,'Pre 2002'!$C$3:$CK$382,87,FALSE),0) -> 0.5966719493 | EJ18: =IFERROR(VLOOKUP(A18,'Pre 2002'!$C$3:$CG$382,83,FALSE),0) -> 20
A19: Marty Lietke | B19: 1888 | C19: 1083 | D19: 22 | E19: 0.5736228814 | F19: 29 | G19: 1970 | H19: 29 | I19: 1888 | J19: 1083 | K19: 22 | L19: 0.5736228814 | O19: =IFERROR(VLOOKUP($A19,'2025'!$A$2:$J$222,4,FALSE),0) -> 0 | P19: =IFERROR(VLOOKUP($A19,'2025'!$A$2:$J$222,5,FALSE),0) -> 0 | Q19: =IFERROR(VLOOKUP($A19,'2025'!$A$2:$J$222,6,FALSE),0) -> 0 | R19: =IFERROR(VLOOKUP($A19,'2025'!$A$2:$J$222,9,FALSE),0) -> 0 | S19: =IFERROR(VLOOKUP($A19,'2025'!$A$2:$J$222,10,FALSE),0) -> 0 | T19: =IFERROR(VLOOKUP($A19,'2024'!$A$2:$M$220,6,FALSE),0) -> 0 | U19: =IFERROR(VLOOKUP($A19,'2024'!$A$2:$M$220,7,FALSE),0) -> 0 | V19: =IFERROR(VLOOKUP($A19,'2024'!$A$2:$M$220,8,FALSE),0) -> 0 | W19: =IFERROR(VLOOKUP($A19,'2024'!$A$2:$M$220,11,FALSE),0) -> 0 | X19: =IFERROR(VLOOKUP($A19,'2024'!$A$2:$M$220,13,FALSE),0) -> 0 | Y19: =IFERROR(VLOOKUP($A19,'2023'!$A$2:$M$170,6,FALSE),0) -> 0 | Z19: =IFERROR(VLOOKUP($A19,'2023'!$A$2:$M$170,7,FALSE),0) -> 0 | AA19: =IFERROR(VLOOKUP($A19,'2023'!$A$2:$M$170,8,FALSE),0) -> 0 | AB19: =IFERROR(VLOOKUP($A19,'2023'!$A$2:$M$170,11,FALSE),0) -> 0 | AC19: =IFERROR(VLOOKUP($A19,'2023'!$A$2:$M$170,13,FALSE),0) -> 0 | AD19: =IFERROR(VLOOKUP($A19,'2022'!$B$2:$K$174,3,FALSE),0) -> 0 | AE19: =IFERROR(VLOOKUP($A19,'2022'!$B$2:$K$174,4,FALSE),0) -> 0 | AF19: =IFERROR(VLOOKUP($A19,'2022'!$B$2:$K$174,5,FALSE),0) -> 0 | AG19: =IFERROR(VLOOKUP($A19,'2022'!$B$2:$K$174,8,FALSE),0) -> 0 | AH19: =IFERROR(VLOOKUP($A19,'2022'!$B$2:$K$174,10,FALSE),0) -> 0 | AI19: =IFERROR(VLOOKUP($A19,'2021'!$B$2:$K$174,3,FALSE),0) -> 0 | AJ19: =IFERROR(VLOOKUP($A19,'2021'!$B$2:$K$174,4,FALSE),0) -> 0 | AK19: =IFERROR(VLOOKUP($A19,'2021'!$B$2:$K$174,5,FALSE),0) -> 0 | AL19: =IFERROR(VLOOKUP($A19,'2021'!$B$2:$K$174,8,FALSE),0) -> 0 | AM19: =IFERROR(VLOOKUP($A19,'2021'!$B$2:$K$174,10,FALSE),0) -> 0 | AN19: =IFERROR(VLOOKUP($A19,'2020'!$B$2:$K$170,3,FALSE),0) -> 0 | AO19: =IFERROR(VLOOKUP($A19,'2020'!$B$2:$K$170,4,FALSE),0) -> 0 | AP19: =IFERROR(VLOOKUP($A19,'2020'!$B$2:$K$170,5,FALSE),0) -> 0 | AQ19: =IFERROR(VLOOKUP($A19,'2020'!$B$2:$K$170,8,FALSE),0) -> 0 | AR19: =IFERROR(VLOOKUP($A19,'2020'!$B$2:$K$170,10,FALSE),0) -> 0 | AS19: =IFERROR(VLOOKUP($A19,'2019'!$B$2:$K$170,3,FALSE),0) -> 0 | AT19: =IFERROR(VLOOKUP($A19,'2019'!$B$2:$K$170,4,FALSE),0) -> 0 | AU19: =IFERROR(VLOOKUP($A19,'2019'!$B$2:$K$170,5,FALSE),0) -> 0 | AV19: =IFERROR(VLOOKUP($A19,'2019'!$B$2:$K$170,8,FALSE),0) -> 0 | AW19: =IFERROR(VLOOKUP($A19,'2019'!$B$2:$K$170,10,FALSE),0) -> 0 | AX19: =IFERROR(VLOOKUP($A19,'2018'!$B$2:$K$170,3,FALSE),0) -> 0 | AY19: =IFERROR(VLOOKUP($A19,'2018'!$B$2:$K$170,4,FALSE),0) -> 0 | AZ19: =IFERROR(VLOOKUP($A19,'2018'!$B$2:$K$170,5,FALSE),0) -> 0 | BA19: =IFERROR(VLOOKUP($A19,'2018'!$B$2:$K$170,8,FALSE),0) -> 0 | BB19: =IFERROR(VLOOKUP($A19,'2018'!$B$2:$K$170,10,FALSE),0) -> 0 | BC19: =IFERROR(VLOOKUP($A19,'2017'!$B$2:$J$163,2,FALSE),0) -> 0 | BD19: =IFERROR(VLOOKUP($A19,'2017'!$B$2:$J$163,3,FALSE),0) -> 0 | BE19: =IFERROR(VLOOKUP($A19,'2017'!$B$2:$J$163,4,FALSE),0) -> 0 | BF19: =IFERROR(VLOOKUP($A19,'2017'!$B$2:$J$163,7,FALSE),0) -> 0 | BG19: =IFERROR(VLOOKUP($A19,'2017'!$B$2:$J$163,9,FALSE),0) -> 0 | BH19: =IFERROR(VLOOKUP($A19,'2016'!$B$2:$K$165,3,FALSE),0) -> 0 | BI19: =IFERROR(VLOOKUP($A19,'2016'!$B$2:$K$165,4,FALSE),0) -> 0 | BJ19: =IFERROR(VLOOKUP($A19,'2016'!$B$2:$K$165,5,FALSE),0) -> 0 | BK19: =IFERROR(VLOOKUP($A19,'2016'!$B$2:$K$165,8,FALSE),0) -> 0 | BL19: =IFERROR(VLOOKUP($A19,'2016'!$B$2:$K$165,10,FALSE),0) -> 0 | BM19: =IFERROR(VLOOKUP($A19,'2015'!$B$2:$K$165,3,FALSE),0) -> 0 | BN19: =IFERROR(VLOOKUP($A19,'2015'!$B$2:$K$165,4,FALSE),0) -> 0 | BO19: =IFERROR(VLOOKUP($A19,'2015'!$B$2:$K$165,5,FALSE),0) -> 0 | BP19: =IFERROR(VLOOKUP($A19,'2015'!$B$2:$K$165,8,FALSE),0) -> 0 | BQ19: =IFERROR(VLOOKUP($A19,'2015'!$B$2:$K$165,10,FALSE),0) -> 0 | BR19: =IFERROR(VLOOKUP($A19,'2014'!$B$2:$K$157,3,FALSE),0) -> 0 | BS19: =IFERROR(VLOOKUP($A19,'2014'!$B$2:$K$157,4,FALSE),0) -> 0 | BT19: =IFERROR(VLOOKUP($A19,'2014'!$B$2:$K$157,5,FALSE),0) -> 0 | BU19: =IFERROR(VLOOKUP($A19,'2014'!$B$2:$K$157,8,FALSE),0) -> 0 | BV19: =IFERROR(VLOOKUP($A19,'2014'!$B$2:$K$157,10,FALSE),0) -> 0 | BW19: =IFERROR(VLOOKUP($A19,'2013'!$D$4:$I$249,2,FALSE),0) -> 0 | BX19: =IFERROR(VLOOKUP($A19,'2013'!$D$4:$I$249,3,FALSE),0) -> 0 | BY19: =IFERROR(VLOOKUP($A19,'2013'!$D$4:$I$249,4,FALSE),0) -> 0 | BZ19: =IFERROR(VLOOKUP($A19,'2013'!$D$4:$I$249,5,FALSE),0) -> 0 | CA19: =IFERROR(VLOOKUP($A19,'2013'!$D$4:$I$249,6,FALSE),0) -> 0 | CB19: =IFERROR(VLOOKUP($A19,'2012'!$D$3:$O$172,2,FALSE),0) -> 0 | CC19: =IFERROR(VLOOKUP($A19,'2012'!$D$3:$O$172,3,FALSE),0) -> 0 | CD19: =IFERROR(VLOOKUP($A19,'2012'!$D$3:$O$172,4,FALSE),0) -> 0 | CE19: =IFERROR(VLOOKUP($A19,'2012'!$D$3:$O$172,5,FALSE),0) -> 0 | CF19: =IFERROR(VLOOKUP($A19,'2012'!$D$3:$O$172,6,FALSE),0) -> 0 | CG19: =IFERROR(VLOOKUP($A19,'2012'!$D$3:$O$172,7,FALSE),0) -> 0 | CH19: =IFERROR(VLOOKUP($A19,'2012'!$D$3:$O$172,8,FALSE),0) -> 0 | CI19: =IFERROR(VLOOKUP($A19,'2012'!$D$3:$O$172,9,FALSE),0) -> 0 | CM19: =IFERROR(VLOOKUP($A19,'2011'!$D$4:$I$251,2,FALSE),0) -> 0 | CN19: =IFERROR(VLOOKUP($A19,'2011'!$D$4:$I$251,3,FALSE),0) -> 0 | CO19: =IFERROR(VLOOKUP($A19,'2011'!$D$4:$I$251,4,FALSE),0) -> 0 | CP19: =IFERROR(VLOOKUP($A19,'2011'!$D$4:$I$251,5,FALSE),0) -> 0 | CQ19: =IFERROR(VLOOKUP($A19,'2011'!$D$4:$I$251,6,FALSE),0) -> 0 | CR19: =IFERROR(VLOOKUP($A19,'2010'!$C$3:$H$234,2,FALSE),0) -> 0 | CS19: =IFERROR(VLOOKUP($A19,'2010'!$C$3:$H$234,3,FALSE),0) -> 0 | CT19: =IFERROR(VLOOKUP($A19,'2010'!$C$3:$H$234,4,FALSE),0) -> 0 | CU19: =IFERROR(VLOOKUP($A19,'2010'!$C$3:$H$234,5,FALSE),0) -> 0 | CV19: =IFERROR(VLOOKUP($A19,'2010'!$C$3:$H$234,6,FALSE),0) -> 0 | CW19: =IFERROR(VLOOKUP($A19,'2009'!$C$3:$H$242,2,FALSE),0) -> 0 | CX19: =IFERROR(VLOOKUP($A19,'2009'!$C$3:$H$242,3,FALSE),0) -> 0 | CY19: =IFERROR(VLOOKUP($A19,'2009'!$C$3:$H$242,4,FALSE),0) -> 0 | CZ19: =IFERROR(VLOOKUP($A19,'2009'!$C$3:$H$242,5,FALSE),0) -> 0 | DA19: =IFERROR(VLOOKUP($A19,'2009'!$C$3:$H$242,6,FALSE),0) -> 0 | DB19: =IFERROR(VLOOKUP($A19,'2008'!$C$3:$H$229,2,FALSE),0) -> 0 | DC19: =IFERROR(VLOOKUP($A19,'2008'!$C$3:$H$229,3,FALSE),0) -> 0 | DD19: =IFERROR(VLOOKUP($A19,'2008'!$C$3:$H$229,4,FALSE),0) -> 0 | DE19: =IFERROR(VLOOKUP($A19,'2008'!$C$3:$H$229,5,FALSE),0) -> 0 | DF19: =IFERROR(VLOOKUP($A19,'2008'!$C$3:$H$229,6,FALSE),0) -> 0 | DG19: =IFERROR(VLOOKUP($A19,'2007'!$C$3:$M$238,7,FALSE),0) -> 0 | DH19: =IFERROR(VLOOKUP($A19,'2007'!$C$3:$M$238,8,FALSE),0) -> 0 | DI19: =IFERROR(VLOOKUP($A19,'2007'!$C$3:$M$238,9,FALSE),0) -> 0 | DJ19: =IFERROR(VLOOKUP($A19,'2007'!$C$3:$M$238,10,FALSE),0) -> 0 | DK19: =IFERROR(VLOOKUP($A19,'2007'!$C$3:$M$238,11,FALSE),0) -> 0 | DL19: =IFERROR(VLOOKUP($A19,'2006'!$A$2:$F$200,2,FALSE),0) -> 0 | DM19: =IFERROR(VLOOKUP($A19,'2006'!$A$2:$F$200,4,FALSE),0) -> 0 | DN19: =IFERROR(VLOOKUP($A19,'2006'!$A$2:$F$200,5,FALSE),0) -> 0 | DO19: =IFERROR(VLOOKUP($A19,'2006'!$A$2:$F$200,6,FALSE),0) -> 0 | DP19: =IFERROR(VLOOKUP($A19,'2005'!$C$3:$M$205,8,FALSE),0) -> 0 | DQ19: =IFERROR(VLOOKUP($A19,'2005'!$C$3:$M$205,9,FALSE),0) -> 0 | DR19: =IFERROR(VLOOKUP($A19,'2005'!$C$3:$M$205,10,FALSE),0) -> 0 | DS19: =IFERROR(VLOOKUP($A19,'2005'!$C$3:$M$205,11,FALSE),0) -> 0 | DT19: =IFERROR(VLOOKUP($A19,'2004'!$C$3:$M$213,8,FALSE),0) -> 0 | DU19: =IFERROR(VLOOKUP($A19,'2004'!$C$3:$M$213,9,FALSE),0) -> 0 | DV19: =IFERROR(VLOOKUP($A19,'2004'!$C$3:$M$213,10,FALSE),0) -> 0 | DW19: =IFERROR(VLOOKUP($A19,'2004'!$C$3:$M$213,11,FALSE),0) -> 0 | DX19: =IFERROR(VLOOKUP($A19,'2003'!$C$3:$Q$214,12,FALSE),0) -> 0 | DY19: =IFERROR(VLOOKUP($A19,'2003'!$C$3:$Q$214,13,FALSE),0) -> 0 | DZ19: =IFERROR(VLOOKUP($A19,'2003'!$C$3:$Q$214,14,FALSE),0) -> 0 | EA19: =IFERROR(VLOOKUP($A19,'2003'!$C$3:$Q$214,15,FALSE),0) -> 0 | EB19: =IFERROR(VLOOKUP($A19,'2002'!$D$3:$R$214,12,FALSE),0) -> 0 | EC19: =IFERROR(VLOOKUP($A19,'2002'!$D$3:$R$214,13,FALSE),0) -> 0 | ED19: =IFERROR(VLOOKUP($A19,'2002'!$D$3:$R$214,14,FALSE),0) -> 0 | EE19: =IFERROR(VLOOKUP($A19,'2002'!$D$3:$R$214,15,FALSE),0) -> 0 | EF19: =IFERROR(VLOOKUP($A19,'Pre 2002'!$C$3:$CK$382,84,FALSE),0) -> 1888 | EG19: =IFERROR(VLOOKUP($A19,'Pre 2002'!$C$3:$CK$382,85,FALSE),0) -> 1083 | EH19: =IFERROR(VLOOKUP($A19,'Pre 2002'!$C$3:$CK$382,86,FALSE),0) -> 22 | EI19: =IFERROR(VLOOKUP($A19,'Pre 2002'!$C$3:$CK$382,87,FALSE),0) -> 0.5736228814 | EJ19: =IFERROR(VLOOKUP(A19,'Pre 2002'!$C$3:$CG$382,83,FALSE),0) -> 29
A20: Derek Stark | B20: 1940 | C20: 1081 | D20: 43 | E20: 0.5572164948 | F20: 28 | G20: 1998 | H20: 17 | I20: 1194 | J20: 685 | K20: 39 | L20: 0.5737018425 | M20: 98 | N20: 0 | O20: =IFERROR(VLOOKUP($A20,'2025'!$A$2:$J$222,4,FALSE),0) -> 8 | P20: =IFERROR(VLOOKUP($A20,'2025'!$A$2:$J$222,5,FALSE),0) -> 2 | Q20: =IFERROR(VLOOKUP($A20,'2025'!$A$2:$J$222,6,FALSE),0) -> 3 | R20: =IFERROR(VLOOKUP($A20,'2025'!$A$2:$J$222,9,FALSE),0) -> 0 | S20: =IFERROR(VLOOKUP($A20,'2025'!$A$2:$J$222,10,FALSE),0) -> 0.375 | T20: =IFERROR(VLOOKUP($A20,'2024'!$A$2:$M$220,6,FALSE),0) -> 75 | U20: =IFERROR(VLOOKUP($A20,'2024'!$A$2:$M$220,7,FALSE),0) -> 19 | V20: =IFERROR(VLOOKUP($A20,'2024'!$A$2:$M$220,8,FALSE),0) -> 36 | W20: =IFERROR(VLOOKUP($A20,'2024'!$A$2:$M$220,11,FALSE),0) -> 0 | X20: =IFERROR(VLOOKUP($A20,'2024'!$A$2:$M$220,13,FALSE),0) -> 0.48 | Y20: =IFERROR(VLOOKUP($A20,'2023'!$A$2:$M$170,6,FALSE),0) -> 75 | Z20: =IFERROR(VLOOKUP($A20,'2023'!$A$2:$M$170,7,FALSE),0) -> 20 | AA20: =IFERROR(VLOOKUP($A20,'2023'!$A$2:$M$170,8,FALSE),0) -> 43 | AB20: =IFERROR(VLOOKUP($A20,'2023'!$A$2:$M$170,11,FALSE),0) -> 0 | AC20: =IFERROR(VLOOKUP($A20,'2023'!$A$2:$M$170,13,FALSE),0) -> 0.573 | AD20: =IFERROR(VLOOKUP($A20,'2022'!$B$2:$K$174,3,FALSE),0) -> 88 | AE20: =IFERROR(VLOOKUP($A20,'2022'!$B$2:$K$174,4,FALSE),0) -> 28 | AF20: =IFERROR(VLOOKUP($A20,'2022'!$B$2:$K$174,5,FALSE),0) -> 54 | AG20: =IFERROR(VLOOKUP($A20,'2022'!$B$2:$K$174,8,FALSE),0) -> 0 | AH20: =IFERROR(VLOOKUP($A20,'2022'!$B$2:$K$174,10,FALSE),0) -> 0.614 | AI20: =IFERROR(VLOOKUP($A20,'2021'!$B$2:$K$174,3,FALSE),0) -> 78 | AJ20: =IFERROR(VLOOKUP($A20,'2021'!$B$2:$K$174,4,FALSE),0) -> 17 | AK20: =IFERROR(VLOOKUP($A20,'2021'!$B$2:$K$174,5,FALSE),0) -> 40 | AL20: =IFERROR(VLOOKUP($A20,'2021'!$B$2:$K$174,8,FALSE),0) -> 2 | AM20: =IFERROR(VLOOKUP($A20,'2021'!$B$2:$K$174,10,FALSE),0) -> 0.513 | AN20: =IFERROR(VLOOKUP($A20,'2020'!$B$2:$K$170,3,FALSE),0) -> 30 | AO20: =IFERROR(VLOOKUP($A20,'2020'!$B$2:$K$170,4,FALSE),0) -> 10 | AP20: =IFERROR(VLOOKUP($A20,'2020'!$B$2:$K$170,5,FALSE),0) -> 15 | AQ20: =IFERROR(VLOOKUP($A20,'2020'!$B$2:$K$170,8,FALSE),0) -> 0 | AR20: =IFERROR(VLOOKUP($A20,'2020'!$B$2:$K$170,10,FALSE),0) -> 0.5 | AS20: =IFERROR(VLOOKUP($A20,'2019'!$B$2:$K$170,3,FALSE),0) -> 67 | AT20: =IFERROR(VLOOKUP($A20,'2019'!$B$2:$K$170,4,FALSE),0) -> 27 | AU20: =IFERROR(VLOOKUP($A20,'2019'!$B$2:$K$170,5,FALSE),0) -> 38 | AV20: =IFERROR(VLOOKUP($A20,'2019'!$B$2:$K$170,8,FALSE),0) -> 0 | AW20: =IFERROR(VLOOKUP($A20,'2019'!$B$2:$K$170,10,FALSE),0) -> 0.567 | AX20: =IFERROR(VLOOKUP($A20,'2018'!$B$2:$K$170,3,FALSE),0) -> 82 | AY20: =IFERROR(VLOOKUP($A20,'2018'!$B$2:$K$170,4,FALSE),0) -> 20 | AZ20: =IFERROR(VLOOKUP($A20,'2018'!$B$2:$K$170,5,FALSE),0) -> 41 | BA20: =IFERROR(VLOOKUP($A20,'2018'!$B$2:$K$170,8,FALSE),0) -> 1 | BB20: =IFERROR(VLOOKUP($A20,'2018'!$B$2:$K$170,10,FALSE),0) -> 0.5 | BC20: =IFERROR(VLOOKUP($A20,'2017'!$B$2:$J$163,2,FALSE),0) -> 69 | BD20: =IFERROR(VLOOKUP($A20,'2017'!$B$2:$J$163,3,FALSE),0) -> 21 | BE20: =IFERROR(VLOOKUP($A20,'2017'!$B$2:$J$163,4,FALSE),0) -> 30 | BF20: =IFERROR(VLOOKUP($A20,'2017'!$B$2:$J$163,7,FALSE),0) -> 0 | BG20: =IFERROR(VLOOKUP($A20,'2017'!$B$2:$J$163,9,FALSE),0) -> 0.4347826087 | BH20: =IFERROR(VLOOKUP($A20,'2016'!$B$2:$K$165,3,FALSE),0) -> 82 | BI20: =IFERROR(VLOOKUP($A20,'2016'!$B$2:$K$165,4,FALSE),0) -> 24 | BJ20: =IFERROR(VLOOKUP($A20,'2016'!$B$2:$K$165,5,FALSE),0) -> 45 | BK20: =IFERROR(VLOOKUP($A20,'2016'!$B$2:$K$165,8,FALSE),0) -> 0 | BL20: =IFERROR(VLOOKUP($A20,'2016'!$B$2:$K$165,10,FALSE),0) -> 0.549 | BM20: =IFERROR(VLOOKUP($A20,'2015'!$B$2:$K$165,3,FALSE),0) -> 92 | BN20: =IFERROR(VLOOKUP($A20,'2015'!$B$2:$K$165,4,FALSE),0) -> 29 | BO20: =IFERROR(VLOOKUP($A20,'2015'!$B$2:$K$165,5,FALSE),0) -> 51 | BP20: =IFERROR(VLOOKUP($A20,'2015'!$B$2:$K$165,8,FALSE),0) -> 1 | BQ20: =IFERROR(VLOOKUP($A20,'2015'!$B$2:$K$165,10,FALSE),0) -> 0.5543478261 | BR20: =IFERROR(VLOOKUP($A20,'2014'!$B$2:$K$157,3,FALSE),0) -> 78 | BS20: =IFERROR(VLOOKUP($A20,'2014'!$B$2:$K$157,4,FALSE),0) -> 32 | BT20: =IFERROR(VLOOKUP($A20,'2014'!$B$2:$K$157,5,FALSE),0) -> 41 | BU20: =IFERROR(VLOOKUP($A20,'2014'!$B$2:$K$157,8,FALSE),0) -> 1 | BV20: =IFERROR(VLOOKUP($A20,'2014'!$B$2:$K$157,10,FALSE),0) -> 0.5256410256 | BW20: =IFERROR(VLOOKUP($A20,'2013'!$D$4:$I$249,2,FALSE),0) -> 87 | BX20: =IFERROR(VLOOKUP($A20,'2013'!$D$4:$I$249,3,FALSE),0) -> 34 | BY20: =IFERROR(VLOOKUP($A20,'2013'!$D$4:$I$249,4,FALSE),0) -> 48 | BZ20: =IFERROR(VLOOKUP($A20,'2013'!$D$4:$I$249,5,FALSE),0) -> 0 | CA20: =IFERROR(VLOOKUP($A20,'2013'!$D$4:$I$249,6,FALSE),0) -> 0.5517241379 | CB20: =IFERROR(VLOOKUP($A20,'2012'!$D$3:$O$172,2,FALSE),0) -> 1029 | CC20: =IFERROR(VLOOKUP($A20,'2012'!$D$3:$O$172,3,FALSE),0) -> 596 | CD20: =IFERROR(VLOOKUP($A20,'2012'!$D$3:$O$172,4,FALSE),0) -> 38 | CE20: =IFERROR(VLOOKUP($A20,'2012'!$D$3:$O$172,5,FALSE),0) -> 70 | CF20: =IFERROR(VLOOKUP($A20,'2012'!$D$3:$O$172,6,FALSE),0) -> 31 | CG20: =IFERROR(VLOOKUP($A20,'2012'!$D$3:$O$172,7,FALSE),0) -> 40 | CH20: =IFERROR(VLOOKUP($A20,'2012'!$D$3:$O$172,8,FALSE),0) -> 5 | CI20: =IFERROR(VLOOKUP($A20,'2012'!$D$3:$O$172,9,FALSE),0) -> 0.5714285714 | CJ20: =IFERROR(VLOOKUP($A20,'2012'!$D$3:$O$172,10,FALSE),0) -> 959 | CK20: =IFERROR(VLOOKUP($A20,'2012'!$D$3:$O$172,11,FALSE),0) -> 556 | CL20: =IFERROR(VLOOKUP($A20,'2012'!$D$3:$O$172,12,FALSE),0) -> 33 | CM20: =IFERROR(VLOOKUP($A20,'2011'!$D$4:$I$251,2,FALSE),0) -> 86 | CN20: =IFERROR(VLOOKUP($A20,'2011'!$D$4:$I$251,3,FALSE),0) -> 32 | CO20: =IFERROR(VLOOKUP($A20,'2011'!$D$4:$I$251,4,FALSE),0) -> 50 | CP20: =IFERROR(VLOOKUP($A20,'2011'!$D$4:$I$251,5,FALSE),0) -> 4 | CQ20: =IFERROR(VLOOKUP($A20,'2011'!$D$4:$I$251,6,FALSE),0) -> 0.5813953488 | CR20: =IFERROR(VLOOKUP($A20,'2010'!$C$3:$H$234,2,FALSE),0) -> 85 | CS20: =IFERROR(VLOOKUP($A20,'2010'!$C$3:$H$234,3,FALSE),0) -> 55 | CT20: =IFERROR(VLOOKUP($A20,'2010'!$C$3:$H$234,4,FALSE),0) -> 56 | CU20: =IFERROR(VLOOKUP($A20,'2010'!$C$3:$H$234,5,FALSE),0) -> 7 | CV20: =IFERROR(VLOOKUP($A20,'2010'!$C$3:$H$234,6,FALSE),0) -> 0.6588235294 | CW20: =IFERROR(VLOOKUP($A20,'2009'!$C$3:$H$242,2,FALSE),0) -> 78 | CX20: =IFERROR(VLOOKUP($A20,'2009'!$C$3:$H$242,3,FALSE),0) -> 29 | CY20: =IFERROR(VLOOKUP($A20,'2009'!$C$3:$H$242,4,FALSE),0) -> 46 | CZ20: =IFERROR(VLOOKUP($A20,'2009'!$C$3:$H$242,5,FALSE),0) -> 4 | DA20: =IFERROR(VLOOKUP($A20,'2009'!$C$3:$H$242,6,FALSE),0) -> 0.5897435897 | DB20: =IFERROR(VLOOKUP($A20,'2008'!$C$3:$H$229,2,FALSE),0) -> 80 | DC20: =IFERROR(VLOOKUP($A20,'2008'!$C$3:$H$229,3,FALSE),0) -> 26 | DD20: =IFERROR(VLOOKUP($A20,'2008'!$C$3:$H$229,4,FALSE),0) -> 49 | DE20: =IFERROR(VLOOKUP($A20,'2008'!$C$3:$H$229,5,FALSE),0) -> 2 | DF20: =IFERROR(VLOOKUP($A20,'2008'!$C$3:$H$229,6,FALSE),0) -> 0.6125 | DG20: =IFERROR(VLOOKUP($A20,'2007'!$C$3:$M$238,7,FALSE),0) -> 82 | DH20: =IFERROR(VLOOKUP($A20,'2007'!$C$3:$M$238,8,FALSE),0) -> 35 | DI20: =IFERROR(VLOOKUP($A20,'2007'!$C$3:$M$238,9,FALSE),0) -> 48 | DJ20: =IFERROR(VLOOKUP($A20,'2007'!$C$3:$M$238,10,FALSE),0) -> 2 | DK20: =IFERROR(VLOOKUP($A20,'2007'!$C$3:$M$238,11,FALSE),0) -> 0.5853658537 | DL20: =IFERROR(VLOOKUP($A20,'2006'!$A$2:$F$200,2,FALSE),0) -> 78 | DM20: =IFERROR(VLOOKUP($A20,'2006'!$A$2:$F$200,4,FALSE),0) -> 36 | DN20: =IFERROR(VLOOKUP($A20,'2006'!$A$2:$F$200,5,FALSE),0) -> 1 | DO20: =IFERROR(VLOOKUP($A20,'2006'!$A$2:$F$200,6,FALSE),0) -> 0.4615384615 | DP20: =IFERROR(VLOOKUP($A20,'2005'!$C$3:$M$205,8,FALSE),0) -> 49 | DQ20: =IFERROR(VLOOKUP($A20,'2005'!$C$3:$M$205,9,FALSE),0) -> 29 | DR20: =IFERROR(VLOOKUP($A20,'2005'!$C$3:$M$205,10,FALSE),0) -> 3 | DS20: =IFERROR(VLOOKUP($A20,'2005'!$C$3:$M$205,11,FALSE),0) -> 0.5918367347 | DT20: =IFERROR(VLOOKUP($A20,'2004'!$C$3:$M$213,8,FALSE),0) -> 74 | DU20: =IFERROR(VLOOKUP($A20,'2004'!$C$3:$M$213,9,FALSE),0) -> 42 | DV20: =IFERROR(VLOOKUP($A20,'2004'!$C$3:$M$213,10,FALSE),0) -> 1 | DW20: =IFERROR(VLOOKUP($A20,'2004'!$C$3:$M$213,11,FALSE),0) -> 0.5675675676 | DX20: =IFERROR(VLOOKUP($A20,'2003'!$C$3:$Q$214,12,FALSE),0) -> 87 | DY20: =IFERROR(VLOOKUP($A20,'2003'!$C$3:$Q$214,13,FALSE),0) -> 52 | DZ20: =IFERROR(VLOOKUP($A20,'2003'!$C$3:$Q$214,14,FALSE),0) -> 6 | EA20: =IFERROR(VLOOKUP($A20,'2003'!$C$3:$Q$214,15,FALSE),0) -> 0.5977011494 | EB20: =IFERROR(VLOOKUP($A20,'2002'!$D$3:$R$214,12,FALSE),0) -> 69 | EC20: =IFERROR(VLOOKUP($A20,'2002'!$D$3:$R$214,13,FALSE),0) -> 45 | ED20: =IFERROR(VLOOKUP($A20,'2002'!$D$3:$R$214,14,FALSE),0) -> 1 | EE20: =IFERROR(VLOOKUP($A20,'2002'!$D$3:$R$214,15,FALSE),0) -> 0.652173913 | EF20: =IFERROR(VLOOKUP($A20,'Pre 2002'!$C$3:$CK$382,84,FALSE),0) -> 191 | EG20: =IFERROR(VLOOKUP($A20,'Pre 2002'!$C$3:$CK$382,85,FALSE),0) -> 103 | EH20: =IFERROR(VLOOKUP($A20,'Pre 2002'!$C$3:$CK$382,86,FALSE),0) -> 2 | EI20: =IFERROR(VLOOKUP($A20,'Pre 2002'!$C$3:$CK$382,87,FALSE),0) -> 0.5392670157 | EJ20: =IFERROR(VLOOKUP(A20,'Pre 2002'!$C$3:$CG$382,83,FALSE),0) -> 4
A21: Bobby Sanchez | B21: 1660 | C21: 1067 | D21: 202 | E21: 0.6427710843 | F21: 25 | G21: 1999 | H21: 16 | I21: 1083 | J21: 725 | K21: 161 | L21: 0.6694367498 | M21: 99 | N21: 5 | O21: =IFERROR(VLOOKUP($A21,'2025'!$A$2:$J$222,4,FALSE),0) -> 0 | P21: =IFERROR(VLOOKUP($A21,'2025'!$A$2:$J$222,5,FALSE),0) -> 0 | Q21: =IFERROR(VLOOKUP($A21,'2025'!$A$2:$J$222,6,FALSE),0) -> 0 | R21: =IFERROR(VLOOKUP($A21,'2025'!$A$2:$J$222,9,FALSE),0) -> 0 | S21: =IFERROR(VLOOKUP($A21,'2025'!$A$2:$J$222,10,FALSE),0) -> 0 | T21: =IFERROR(VLOOKUP($A21,'2024'!$A$2:$M$220,6,FALSE),0) -> 0 | U21: =IFERROR(VLOOKUP($A21,'2024'!$A$2:$M$220,7,FALSE),0) -> 0 | V21: =IFERROR(VLOOKUP($A21,'2024'!$A$2:$M$220,8,FALSE),0) -> 0 | W21: =IFERROR(VLOOKUP($A21,'2024'!$A$2:$M$220,11,FALSE),0) -> 0 | X21: =IFERROR(VLOOKUP($A21,'2024'!$A$2:$M$220,13,FALSE),0) -> 0 | Y21: =IFERROR(VLOOKUP($A21,'2023'!$A$2:$M$170,6,FALSE),0) -> 77 | Z21: =IFERROR(VLOOKUP($A21,'2023'!$A$2:$M$170,7,FALSE),0) -> 31 | AA21: =IFERROR(VLOOKUP($A21,'2023'!$A$2:$M$170,8,FALSE),0) -> 48 | AB21: =IFERROR(VLOOKUP($A21,'2023'!$A$2:$M$170,11,FALSE),0) -> 0 | AC21: =IFERROR(VLOOKUP($A21,'2023'!$A$2:$M$170,13,FALSE),0) -> 0.623 | AD21: =IFERROR(VLOOKUP($A21,'2022'!$B$2:$K$174,3,FALSE),0) -> 87 | AE21: =IFERROR(VLOOKUP($A21,'2022'!$B$2:$K$174,4,FALSE),0) -> 46 | AF21: =IFERROR(VLOOKUP($A21,'2022'!$B$2:$K$174,5,FALSE),0) -> 56 | AG21: =IFERROR(VLOOKUP($A21,'2022'!$B$2:$K$174,8,FALSE),0) -> 3 | AH21: =IFERROR(VLOOKUP($A21,'2022'!$B$2:$K$174,10,FALSE),0) -> 0.644 | AI21: =IFERROR(VLOOKUP($A21,'2021'!$B$2:$K$174,3,FALSE),0) -> 49 | AJ21: =IFERROR(VLOOKUP($A21,'2021'!$B$2:$K$174,4,FALSE),0) -> 14 | AK21: =IFERROR(VLOOKUP($A21,'2021'!$B$2:$K$174,5,FALSE),0) -> 28 | AL21: =IFERROR(VLOOKUP($A21,'2021'!$B$2:$K$174,8,FALSE),0) -> 1 | AM21: =IFERROR(VLOOKUP($A21,'2021'!$B$2:$K$174,10,FALSE),0) -> 0.571 | AN21: =IFERROR(VLOOKUP($A21,'2020'!$B$2:$K$170,3,FALSE),0) -> 79 | AO21: =IFERROR(VLOOKUP($A21,'2020'!$B$2:$K$170,4,FALSE),0) -> 29 | AP21: =IFERROR(VLOOKUP($A21,'2020'!$B$2:$K$170,5,FALSE),0) -> 50 | AQ21: =IFERROR(VLOOKUP($A21,'2020'!$B$2:$K$170,8,FALSE),0) -> 7 | AR21: =IFERROR(VLOOKUP($A21,'2020'!$B$2:$K$170,10,FALSE),0) -> 0.633 | AS21: =IFERROR(VLOOKUP($A21,'2019'!$B$2:$K$170,3,FALSE),0) -> 76 | AT21: =IFERROR(VLOOKUP($A21,'2019'!$B$2:$K$170,4,FALSE),0) -> 25 | AU21: =IFERROR(VLOOKUP($A21,'2019'!$B$2:$K$170,5,FALSE),0) -> 35 | AV21: =IFERROR(VLOOKUP($A21,'2019'!$B$2:$K$170,8,FALSE),0) -> 9 | AW21: =IFERROR(VLOOKUP($A21,'2019'!$B$2:$K$170,10,FALSE),0) -> 0.461 | AX21: =IFERROR(VLOOKUP($A21,'2018'!$B$2:$K$170,3,FALSE),0) -> 11 | AY21: =IFERROR(VLOOKUP($A21,'2018'!$B$2:$K$170,4,FALSE),0) -> 5 | AZ21: =IFERROR(VLOOKUP($A21,'2018'!$B$2:$K$170,5,FALSE),0) -> 7 | BA21: =IFERROR(VLOOKUP($A21,'2018'!$B$2:$K$170,8,FALSE),0) -> 0 | BB21: =IFERROR(VLOOKUP($A21,'2018'!$B$2:$K$170,10,FALSE),0) -> 0.636 | BC21: =IFERROR(VLOOKUP($A21,'2017'!$B$2:$J$163,2,FALSE),0) -> 41 | BD21: =IFERROR(VLOOKUP($A21,'2017'!$B$2:$J$163,3,FALSE),0) -> 15 | BE21: =IFERROR(VLOOKUP($A21,'2017'!$B$2:$J$163,4,FALSE),0) -> 24 | BF21: =IFERROR(VLOOKUP($A21,'2017'!$B$2:$J$163,7,FALSE),0) -> 4 | BG21: =IFERROR(VLOOKUP($A21,'2017'!$B$2:$J$163,9,FALSE),0) -> 0.5853658537 | BH21: =IFERROR(VLOOKUP($A21,'2016'!$B$2:$K$165,3,FALSE),0) -> 77 | BI21: =IFERROR(VLOOKUP($A21,'2016'!$B$2:$K$165,4,FALSE),0) -> 39 | BJ21: =IFERROR(VLOOKUP($A21,'2016'!$B$2:$K$165,5,FALSE),0) -> 47 | BK21: =IFERROR(VLOOKUP($A21,'2016'!$B$2:$K$165,8,FALSE),0) -> 11 | BL21: =IFERROR(VLOOKUP($A21,'2016'!$B$2:$K$165,10,FALSE),0) -> 0.61 | BM21: =IFERROR(VLOOKUP($A21,'2015'!$B$2:$K$165,3,FALSE),0) -> 80 | BN21: =IFERROR(VLOOKUP($A21,'2015'!$B$2:$K$165,4,FALSE),0) -> 29 | BO21: =IFERROR(VLOOKUP($A21,'2015'!$B$2:$K$165,5,FALSE),0) -> 47 | BP21: =IFERROR(VLOOKUP($A21,'2015'!$B$2:$K$165,8,FALSE),0) -> 6 | BQ21: =IFERROR(VLOOKUP($A21,'2015'!$B$2:$K$165,10,FALSE),0) -> 0.5875 | BR21: =IFERROR(VLOOKUP($A21,'2014'!$B$2:$K$157,3,FALSE),0) -> 61 | BS21: =IFERROR(VLOOKUP($A21,'2014'!$B$2:$K$157,4,FALSE),0) -> 25 | BT21: =IFERROR(VLOOKUP($A21,'2014'!$B$2:$K$157,5,FALSE),0) -> 38 | BU21: =IFERROR(VLOOKUP($A21,'2014'!$B$2:$K$157,8,FALSE),0) -> 9 | BV21: =IFERROR(VLOOKUP($A21,'2014'!$B$2:$K$157,10,FALSE),0) -> 0.6229508197 | BW21: =IFERROR(VLOOKUP($A21,'2013'!$D$4:$I$249,2,FALSE),0) -> 43 | BX21: =IFERROR(VLOOKUP($A21,'2013'!$D$4:$I$249,3,FALSE),0) -> 36 | BY21: =IFERROR(VLOOKUP($A21,'2013'!$D$4:$I$249,4,FALSE),0) -> 34 | BZ21: =IFERROR(VLOOKUP($A21,'2013'!$D$4:$I$249,5,FALSE),0) -> 11 | CA21: =IFERROR(VLOOKUP($A21,'2013'!$D$4:$I$249,6,FALSE),0) -> 0.7906976744 | CB21: =IFERROR(VLOOKUP($A21,'2012'!$D$3:$O$172,2,FALSE),0) -> 979 | CC21: =IFERROR(VLOOKUP($A21,'2012'!$D$3:$O$172,3,FALSE),0) -> 653 | CD21: =IFERROR(VLOOKUP($A21,'2012'!$D$3:$O$172,4,FALSE),0) -> 141 | CE21: =IFERROR(VLOOKUP($A21,'2012'!$D$3:$O$172,5,FALSE),0) -> 72 | CF21: =IFERROR(VLOOKUP($A21,'2012'!$D$3:$O$172,6,FALSE),0) -> 43 | CG21: =IFERROR(VLOOKUP($A21,'2012'!$D$3:$O$172,7,FALSE),0) -> 52 | CH21: =IFERROR(VLOOKUP($A21,'2012'!$D$3:$O$172,8,FALSE),0) -> 8 | CI21: =IFERROR(VLOOKUP($A21,'2012'!$D$3:$O$172,9,FALSE),0) -> 0.7222222222 | CJ21: =IFERROR(VLOOKUP($A21,'2012'!$D$3:$O$172,10,FALSE),0) -> 907 | CK21: =IFERROR(VLOOKUP($A21,'2012'!$D$3:$O$172,11,FALSE),0) -> 601 | CL21: =IFERROR(VLOOKUP($A21,'2012'!$D$3:$O$172,12,FALSE),0) -> 133 | CM21: =IFERROR(VLOOKUP($A21,'2011'!$D$4:$I$251,2,FALSE),0) -> 83 | CN21: =IFERROR(VLOOKUP($A21,'2011'!$D$4:$I$251,3,FALSE),0) -> 53 | CO21: =IFERROR(VLOOKUP($A21,'2011'!$D$4:$I$251,4,FALSE),0) -> 67 | CP21: =IFERROR(VLOOKUP($A21,'2011'!$D$4:$I$251,5,FALSE),0) -> 17 | CQ21: =IFERROR(VLOOKUP($A21,'2011'!$D$4:$I$251,6,FALSE),0) -> 0.8072289157 | CR21: =IFERROR(VLOOKUP($A21,'2010'!$C$3:$H$234,2,FALSE),0) -> 75 | CS21: =IFERROR(VLOOKUP($A21,'2010'!$C$3:$H$234,3,FALSE),0) -> 43 | CT21: =IFERROR(VLOOKUP($A21,'2010'!$C$3:$H$234,4,FALSE),0) -> 51 | CU21: =IFERROR(VLOOKUP($A21,'2010'!$C$3:$H$234,5,FALSE),0) -> 11 | CV21: =IFERROR(VLOOKUP($A21,'2010'!$C$3:$H$234,6,FALSE),0) -> 0.68 | CW21: =IFERROR(VLOOKUP($A21,'2009'!$C$3:$H$242,2,FALSE),0) -> 81 | CX21: =IFERROR(VLOOKUP($A21,'2009'!$C$3:$H$242,3,FALSE),0) -> 39 | CY21: =IFERROR(VLOOKUP($A21,'2009'!$C$3:$H$242,4,FALSE),0) -> 47 | CZ21: =IFERROR(VLOOKUP($A21,'2009'!$C$3:$H$242,5,FALSE),0) -> 12 | DA21: =IFERROR(VLOOKUP($A21,'2009'!$C$3:$H$242,6,FALSE),0) -> 0.5802469136 | DB21: =IFERROR(VLOOKUP($A21,'2008'!$C$3:$H$229,2,FALSE),0) -> 85 | DC21: =IFERROR(VLOOKUP($A21,'2008'!$C$3:$H$229,3,FALSE),0) -> 53 | DD21: =IFERROR(VLOOKUP($A21,'2008'!$C$3:$H$229,4,FALSE),0) -> 63 | DE21: =IFERROR(VLOOKUP($A21,'2008'!$C$3:$H$229,5,FALSE),0) -> 12 | DF21: =IFERROR(VLOOKUP($A21,'2008'!$C$3:$H$229,6,FALSE),0) -> 0.7411764706 | DG21: =IFERROR(VLOOKUP($A21,'2007'!$C$3:$M$238,7,FALSE),0) -> 69 | DH21: =IFERROR(VLOOKUP($A21,'2007'!$C$3:$M$238,8,FALSE),0) -> 22 | DI21: =IFERROR(VLOOKUP($A21,'2007'!$C$3:$M$238,9,FALSE),0) -> 41 | DJ21: =IFERROR(VLOOKUP($A21,'2007'!$C$3:$M$238,10,FALSE),0) -> 3 | DK21: =IFERROR(VLOOKUP($A21,'2007'!$C$3:$M$238,11,FALSE),0) -> 0.5942028986 | DL21: =IFERROR(VLOOKUP($A21,'2006'!$A$2:$F$200,2,FALSE),0) -> 79 | DM21: =IFERROR(VLOOKUP($A21,'2006'!$A$2:$F$200,4,FALSE),0) -> 51 | DN21: =IFERROR(VLOOKUP($A21,'2006'!$A$2:$F$200,5,FALSE),0) -> 10 | DO21: =IFERROR(VLOOKUP($A21,'2006'!$A$2:$F$200,6,FALSE),0) -> 0.6455696203 | DP21: =IFERROR(VLOOKUP($A21,'2005'!$C$3:$M$205,8,FALSE),0) -> 0 | DQ21: =IFERROR(VLOOKUP($A21,'2005'!$C$3:$M$205,9,FALSE),0) -> 0 | DR21: =IFERROR(VLOOKUP($A21,'2005'!$C$3:$M$205,10,FALSE),0) -> 0 | DS21: =IFERROR(VLOOKUP($A21,'2005'!$C$3:$M$205,11,FALSE),0) -> 0 | DT21: =IFERROR(VLOOKUP($A21,'2004'!$C$3:$M$213,8,FALSE),0) -> 70 | DU21: =IFERROR(VLOOKUP($A21,'2004'!$C$3:$M$213,9,FALSE),0) -> 60 | DV21: =IFERROR(VLOOKUP($A21,'2004'!$C$3:$M$213,10,FALSE),0) -> 14 | DW21: =IFERROR(VLOOKUP($A21,'2004'!$C$3:$M$213,11,FALSE),0) -> 0.8571428571 | DX21: =IFERROR(VLOOKUP($A21,'2003'!$C$3:$Q$214,12,FALSE),0) -> 71 | DY21: =IFERROR(VLOOKUP($A21,'2003'!$C$3:$Q$214,13,FALSE),0) -> 48 | DZ21: =IFERROR(VLOOKUP($A21,'2003'!$C$3:$Q$214,14,FALSE),0) -> 8 | EA21: =IFERROR(VLOOKUP($A21,'2003'!$C$3:$Q$214,15,FALSE),0) -> 0.676056338 | EB21: =IFERROR(VLOOKUP($A21,'2002'!$D$3:$R$214,12,FALSE),0) -> 61 | EC21: =IFERROR(VLOOKUP($A21,'2002'!$D$3:$R$214,13,FALSE),0) -> 33 | ED21: =IFERROR(VLOOKUP($A21,'2002'!$D$3:$R$214,14,FALSE),0) -> 11 | EE21: =IFERROR(VLOOKUP($A21,'2002'!$D$3:$R$214,15,FALSE),0) -> 0.5409836066 | EF21: =IFERROR(VLOOKUP($A21,'Pre 2002'!$C$3:$CK$382,84,FALSE),0) -> 233 | EG21: =IFERROR(VLOOKUP($A21,'Pre 2002'!$C$3:$CK$382,85,FALSE),0) -> 140 | EH21: =IFERROR(VLOOKUP($A21,'Pre 2002'!$C$3:$CK$382,86,FALSE),0) -> 35 | EI21: =IFERROR(VLOOKUP($A21,'Pre 2002'!$C$3:$CK$382,87,FALSE),0) -> 0.6008583691 | EJ21: =IFERROR(VLOOKUP(A21,'Pre 2002'!$C$3:$CG$382,83,FALSE),0) -> 4
A22: Mike Chamarro | B22: 1791 | C22: 1058 | D22: 76 | E22: 0.590731435 | F22: 30 | G22: =2002-EJ22 -> 1978 | H22: 30 | I22: 1791 | J22: 1058 | K22: 76 | L22: 0.590731435 | O22: =IFERROR(VLOOKUP($A22,'2025'!$A$2:$J$222,4,FALSE),0) -> 0 | P22: =IFERROR(VLOOKUP($A22,'2025'!$A$2:$J$222,5,FALSE),0) -> 0 | Q22: =IFERROR(VLOOKUP($A22,'2025'!$A$2:$J$222,6,FALSE),0) -> 0 | R22: =IFERROR(VLOOKUP($A22,'2025'!$A$2:$J$222,9,FALSE),0) -> 0 | S22: =IFERROR(VLOOKUP($A22,'2025'!$A$2:$J$222,10,FALSE),0) -> 0 | T22: =IFERROR(VLOOKUP($A22,'2024'!$A$2:$M$220,6,FALSE),0) -> 0 | U22: =IFERROR(VLOOKUP($A22,'2024'!$A$2:$M$220,7,FALSE),0) -> 0 | V22: =IFERROR(VLOOKUP($A22,'2024'!$A$2:$M$220,8,FALSE),0) -> 0 | W22: =IFERROR(VLOOKUP($A22,'2024'!$A$2:$M$220,11,FALSE),0) -> 0 | X22: =IFERROR(VLOOKUP($A22,'2024'!$A$2:$M$220,13,FALSE),0) -> 0 | Y22: =IFERROR(VLOOKUP($A22,'2023'!$A$2:$M$170,6,FALSE),0) -> 0 | Z22: =IFERROR(VLOOKUP($A22,'2023'!$A$2:$M$170,7,FALSE),0) -> 0 | AA22: =IFERROR(VLOOKUP($A22,'2023'!$A$2:$M$170,8,FALSE),0) -> 0 | AB22: =IFERROR(VLOOKUP($A22,'2023'!$A$2:$M$170,11,FALSE),0) -> 0 | AC22: =IFERROR(VLOOKUP($A22,'2023'!$A$2:$M$170,13,FALSE),0) -> 0 | AD22: =IFERROR(VLOOKUP($A22,'2022'!$B$2:$K$174,3,FALSE),0) -> 0 | AE22: =IFERROR(VLOOKUP($A22,'2022'!$B$2:$K$174,4,FALSE),0) -> 0 | AF22: =IFERROR(VLOOKUP($A22,'2022'!$B$2:$K$174,5,FALSE),0) -> 0 | AG22: =IFERROR(VLOOKUP($A22,'2022'!$B$2:$K$174,8,FALSE),0) -> 0 | AH22: =IFERROR(VLOOKUP($A22,'2022'!$B$2:$K$174,10,FALSE),0) -> 0 | AI22: =IFERROR(VLOOKUP($A22,'2021'!$B$2:$K$174,3,FALSE),0) -> 0 | AJ22: =IFERROR(VLOOKUP($A22,'2021'!$B$2:$K$174,4,FALSE),0) -> 0 | AK22: =IFERROR(VLOOKUP($A22,'2021'!$B$2:$K$174,5,FALSE),0) -> 0 | AL22: =IFERROR(VLOOKUP($A22,'2021'!$B$2:$K$174,8,FALSE),0) -> 0 | AM22: =IFERROR(VLOOKUP($A22,'2021'!$B$2:$K$174,10,FALSE),0) -> 0 | AN22: =IFERROR(VLOOKUP($A22,'2020'!$B$2:$K$170,3,FALSE),0) -> 0 | AO22: =IFERROR(VLOOKUP($A22,'2020'!$B$2:$K$170,4,FALSE),0) -> 0 | AP22: =IFERROR(VLOOKUP($A22,'2020'!$B$2:$K$170,5,FALSE),0) -> 0 | AQ22: =IFERROR(VLOOKUP($A22,'2020'!$B$2:$K$170,8,FALSE),0) -> 0 | AR22: =IFERROR(VLOOKUP($A22,'2020'!$B$2:$K$170,10,FALSE),0) -> 0 | AS22: =IFERROR(VLOOKUP($A22,'2019'!$B$2:$K$170,3,FALSE),0) -> 0 | AT22: =IFERROR(VLOOKUP($A22,'2019'!$B$2:$K$170,4,FALSE),0) -> 0 | AU22: =IFERROR(VLOOKUP($A22,'2019'!$B$2:$K$170,5,FALSE),0) -> 0 | AV22: =IFERROR(VLOOKUP($A22,'2019'!$B$2:$K$170,8,FALSE),0) -> 0 | AW22: =IFERROR(VLOOKUP($A22,'2019'!$B$2:$K$170,10,FALSE),0) -> 0 | AX22: =IFERROR(VLOOKUP($A22,'2018'!$B$2:$K$170,3,FALSE),0) -> 0 | AY22: =IFERROR(VLOOKUP($A22,'2018'!$B$2:$K$170,4,FALSE),0) -> 0 | AZ22: =IFERROR(VLOOKUP($A22,'2018'!$B$2:$K$170,5,FALSE),0) -> 0 | BA22: =IFERROR(VLOOKUP($A22,'2018'!$B$2:$K$170,8,FALSE),0) -> 0 | BB22: =IFERROR(VLOOKUP($A22,'2018'!$B$2:$K$170,10,FALSE),0) -> 0 | BC22: =IFERROR(VLOOKUP($A22,'2017'!$B$2:$J$163,2,FALSE),0) -> 0 | BD22: =IFERROR(VLOOKUP($A22,'2017'!$B$2:$J$163,3,FALSE),0) -> 0 | BE22: =IFERROR(VLOOKUP($A22,'2017'!$B$2:$J$163,4,FALSE),0) -> 0 | BF22: =IFERROR(VLOOKUP($A22,'2017'!$B$2:$J$163,7,FALSE),0) -> 0 | BG22: =IFERROR(VLOOKUP($A22,'2017'!$B$2:$J$163,9,FALSE),0) -> 0 | BH22: =IFERROR(VLOOKUP($A22,'2016'!$B$2:$K$165,3,FALSE),0) -> 0 | BI22: =IFERROR(VLOOKUP($A22,'2016'!$B$2:$K$165,4,FALSE),0) -> 0 | BJ22: =IFERROR(VLOOKUP($A22,'2016'!$B$2:$K$165,5,FALSE),0) -> 0 | BK22: =IFERROR(VLOOKUP($A22,'2016'!$B$2:$K$165,8,FALSE),0) -> 0 | BL22: =IFERROR(VLOOKUP($A22,'2016'!$B$2:$K$165,10,FALSE),0) -> 0 | BM22: =IFERROR(VLOOKUP($A22,'2015'!$B$2:$K$165,3,FALSE),0) -> 0 | BN22: =IFERROR(VLOOKUP($A22,'2015'!$B$2:$K$165,4,FALSE),0) -> 0 | BO22: =IFERROR(VLOOKUP($A22,'2015'!$B$2:$K$165,5,FALSE),0) -> 0 | BP22: =IFERROR(VLOOKUP($A22,'2015'!$B$2:$K$165,8,FALSE),0) -> 0 | BQ22: =IFERROR(VLOOKUP($A22,'2015'!$B$2:$K$165,10,FALSE),0) -> 0 | BR22: =IFERROR(VLOOKUP($A22,'2014'!$B$2:$K$157,3,FALSE),0) -> 0 | BS22: =IFERROR(VLOOKUP($A22,'2014'!$B$2:$K$157,4,FALSE),0) -> 0 | BT22: =IFERROR(VLOOKUP($A22,'2014'!$B$2:$K$157,5,FALSE),0) -> 0 | BU22: =IFERROR(VLOOKUP($A22,'2014'!$B$2:$K$157,8,FALSE),0) -> 0 | BV22: =IFERROR(VLOOKUP($A22,'2014'!$B$2:$K$157,10,FALSE),0) -> 0 | BW22: =IFERROR(VLOOKUP($A22,'2013'!$D$4:$I$249,2,FALSE),0) -> 0 | BX22: =IFERROR(VLOOKUP($A22,'2013'!$D$4:$I$249,3,FALSE),0) -> 0 | BY22: =IFERROR(VLOOKUP($A22,'2013'!$D$4:$I$249,4,FALSE),0) -> 0 | BZ22: =IFERROR(VLOOKUP($A22,'2013'!$D$4:$I$249,5,FALSE),0) -> 0 | CA22: =IFERROR(VLOOKUP($A22,'2013'!$D$4:$I$249,6,FALSE),0) -> 0 | CB22: =IFERROR(VLOOKUP($A22,'2012'!$D$3:$O$172,2,FALSE),0) -> 0 | CC22: =IFERROR(VLOOKUP($A22,'2012'!$D$3:$O$172,3,FALSE),0) -> 0 | CD22: =IFERROR(VLOOKUP($A22,'2012'!$D$3:$O$172,4,FALSE),0) -> 0 | CE22: =IFERROR(VLOOKUP($A22,'2012'!$D$3:$O$172,5,FALSE),0) -> 0 | CF22: =IFERROR(VLOOKUP($A22,'2012'!$D$3:$O$172,6,FALSE),0) -> 0 | CG22: =IFERROR(VLOOKUP($A22,'2012'!$D$3:$O$172,7,FALSE),0) -> 0 | CH22: =IFERROR(VLOOKUP($A22,'2012'!$D$3:$O$172,8,FALSE),0) -> 0 | CI22: =IFERROR(VLOOKUP($A22,'2012'!$D$3:$O$172,9,FALSE),0) -> 0 | CM22: =IFERROR(VLOOKUP($A22,'2011'!$D$4:$I$251,2,FALSE),0) -> 0 | CN22: =IFERROR(VLOOKUP($A22,'2011'!$D$4:$I$251,3,FALSE),0) -> 0 | CO22: =IFERROR(VLOOKUP($A22,'2011'!$D$4:$I$251,4,FALSE),0) -> 0 | CP22: =IFERROR(VLOOKUP($A22,'2011'!$D$4:$I$251,5,FALSE),0) -> 0 | CQ22: =IFERROR(VLOOKUP($A22,'2011'!$D$4:$I$251,6,FALSE),0) -> 0 | CR22: =IFERROR(VLOOKUP($A22,'2010'!$C$3:$H$234,2,FALSE),0) -> 0 | CS22: =IFERROR(VLOOKUP($A22,'2010'!$C$3:$H$234,3,FALSE),0) -> 0 | CT22: =IFERROR(VLOOKUP($A22,'2010'!$C$3:$H$234,4,FALSE),0) -> 0 | CU22: =IFERROR(VLOOKUP($A22,'2010'!$C$3:$H$234,5,FALSE),0) -> 0 | CV22: =IFERROR(VLOOKUP($A22,'2010'!$C$3:$H$234,6,FALSE),0) -> 0 | CW22: =IFERROR(VLOOKUP($A22,'2009'!$C$3:$H$242,2,FALSE),0) -> 0 | CX22: =IFERROR(VLOOKUP($A22,'2009'!$C$3:$H$242,3,FALSE),0) -> 0 | CY22: =IFERROR(VLOOKUP($A22,'2009'!$C$3:$H$242,4,FALSE),0) -> 0 | CZ22: =IFERROR(VLOOKUP($A22,'2009'!$C$3:$H$242,5,FALSE),0) -> 0 | DA22: =IFERROR(VLOOKUP($A22,'2009'!$C$3:$H$242,6,FALSE),0) -> 0 | DB22: =IFERROR(VLOOKUP($A22,'2008'!$C$3:$H$229,2,FALSE),0) -> 0 | DC22: =IFERROR(VLOOKUP($A22,'2008'!$C$3:$H$229,3,FALSE),0) -> 0 | DD22: =IFERROR(VLOOKUP($A22,'2008'!$C$3:$H$229,4,FALSE),0) -> 0 | DE22: =IFERROR(VLOOKUP($A22,'2008'!$C$3:$H$229,5,FALSE),0) -> 0 | DF22: =IFERROR(VLOOKUP($A22,'2008'!$C$3:$H$229,6,FALSE),0) -> 0 | DG22: =IFERROR(VLOOKUP($A22,'2007'!$C$3:$M$238,7,FALSE),0) -> 64 | DH22: =IFERROR(VLOOKUP($A22,'2007'!$C$3:$M$238,8,FALSE),0) -> 21 | DI22: =IFERROR(VLOOKUP($A22,'2007'!$C$3:$M$238,9,FALSE),0) -> 39 | DJ22: =IFERROR(VLOOKUP($A22,'2007'!$C$3:$M$238,10,FALSE),0) -> 0 | DK22: =IFERROR(VLOOKUP($A22,'2007'!$C$3:$M$238,11,FALSE),0) -> 0.609375 | DL22: =IFERROR(VLOOKUP($A22,'2006'!$A$2:$F$200,2,FALSE),0) -> 54 | DM22: =IFERROR(VLOOKUP($A22,'2006'!$A$2:$F$200,4,FALSE),0) -> 25 | DN22: =IFERROR(VLOOKUP($A22,'2006'!$A$2:$F$200,5,FALSE),0) -> 0 | DO22: =IFERROR(VLOOKUP($A22,'2006'!$A$2:$F$200,6,FALSE),0) -> 0.462962963 | DP22: =IFERROR(VLOOKUP($A22,'2005'!$C$3:$M$205,8,FALSE),0) -> 65 | DQ22: =IFERROR(VLOOKUP($A22,'2005'!$C$3:$M$205,9,FALSE),0) -> 42 | DR22: =IFERROR(VLOOKUP($A22,'2005'!$C$3:$M$205,10,FALSE),0) -> 1 | DS22: =IFERROR(VLOOKUP($A22,'2005'!$C$3:$M$205,11,FALSE),0) -> 0.6461538462 | DT22: =IFERROR(VLOOKUP($A22,'2004'!$C$3:$M$213,8,FALSE),0) -> 59 | DU22: =IFERROR(VLOOKUP($A22,'2004'!$C$3:$M$213,9,FALSE),0) -> 29 | DV22: =IFERROR(VLOOKUP($A22,'2004'!$C$3:$M$213,10,FALSE),0) -> 2 | DW22: =IFERROR(VLOOKUP($A22,'2004'!$C$3:$M$213,11,FALSE),0) -> 0.4915254237 | DX22: =IFERROR(VLOOKUP($A22,'2003'!$C$3:$Q$214,12,FALSE),0) -> 62 | DY22: =IFERROR(VLOOKUP($A22,'2003'!$C$3:$Q$214,13,FALSE),0) -> 35 | DZ22: =IFERROR(VLOOKUP($A22,'2003'!$C$3:$Q$214,14,FALSE),0) -> 2 | EA22: =IFERROR(VLOOKUP($A22,'2003'!$C$3:$Q$214,15,FALSE),0) -> 0.564516129 | EB22: =IFERROR(VLOOKUP($A22,'2002'!$D$3:$R$214,12,FALSE),0) -> 62 | EC22: =IFERROR(VLOOKUP($A22,'2002'!$D$3:$R$214,13,FALSE),0) -> 45 | ED22: =IFERROR(VLOOKUP($A22,'2002'!$D$3:$R$214,14,FALSE),0) -> 0 | EE22: =IFERROR(VLOOKUP($A22,'2002'!$D$3:$R$214,15,FALSE),0) -> 0.7258064516 | EF22: =IFERROR(VLOOKUP($A22,'Pre 2002'!$C$3:$CK$382,84,FALSE),0) -> 1425 | EG22: =IFERROR(VLOOKUP($A22,'Pre 2002'!$C$3:$CK$382,85,FALSE),0) -> 843 | EH22: =IFERROR(VLOOKUP($A22,'Pre 2002'!$C$3:$CK$382,86,FALSE),0) -> 71 | EI22: =IFERROR(VLOOKUP($A22,'Pre 2002'!$C$3:$CK$382,87,FALSE),0) -> 0.5915789474 | EJ22: =IFERROR(VLOOKUP(A22,'Pre 2002'!$C$3:$CG$382,83,FALSE),0) -> 24
A23: Garrett Poulin | B23: 1735 | C23: 1037 | D23: 25 | E23: 0.5976945245 | F23: 22 | G23: 2006 | H23: 11 | I23: 859 | J23: 527 | K23: 23 | L23: 0.6135040745 | M23: 06 | N23: 0 | O23: =IFERROR(VLOOKUP($A23,'2025'!$A$2:$J$222,4,FALSE),0) -> 65 | P23: =IFERROR(VLOOKUP($A23,'2025'!$A$2:$J$222,5,FALSE),0) -> 20 | Q23: =IFERROR(VLOOKUP($A23,'2025'!$A$2:$J$222,6,FALSE),0) -> 35 | R23: =IFERROR(VLOOKUP($A23,'2025'!$A$2:$J$222,9,FALSE),0) -> 0 | S23: =IFERROR(VLOOKUP($A23,'2025'!$A$2:$J$222,10,FALSE),0) -> 0.538 | T23: =IFERROR(VLOOKUP($A23,'2024'!$A$2:$M$220,6,FALSE),0) -> 85 | U23: =IFERROR(VLOOKUP($A23,'2024'!$A$2:$M$220,7,FALSE),0) -> 38 | V23: =IFERROR(VLOOKUP($A23,'2024'!$A$2:$M$220,8,FALSE),0) -> 49 | W23: =IFERROR(VLOOKUP($A23,'2024'!$A$2:$M$220,11,FALSE),0) -> 0 | X23: =IFERROR(VLOOKUP($A23,'2024'!$A$2:$M$220,13,FALSE),0) -> 0.576 | Y23: =IFERROR(VLOOKUP($A23,'2023'!$A$2:$M$170,6,FALSE),0) -> 75 | Z23: =IFERROR(VLOOKUP($A23,'2023'!$A$2:$M$170,7,FALSE),0) -> 29 | AA23: =IFERROR(VLOOKUP($A23,'2023'!$A$2:$M$170,8,FALSE),0) -> 38 | AB23: =IFERROR(VLOOKUP($A23,'2023'!$A$2:$M$170,11,FALSE),0) -> 0 | AC23: =IFERROR(VLOOKUP($A23,'2023'!$A$2:$M$170,13,FALSE),0) -> 0.507 | AD23: =IFERROR(VLOOKUP($A23,'2022'!$B$2:$K$174,3,FALSE),0) -> 69 | AE23: =IFERROR(VLOOKUP($A23,'2022'!$B$2:$K$174,4,FALSE),0) -> 33 | AF23: =IFERROR(VLOOKUP($A23,'2022'!$B$2:$K$174,5,FALSE),0) -> 45 | AG23: =IFERROR(VLOOKUP($A23,'2022'!$B$2:$K$174,8,FALSE),0) -> 0 | AH23: =IFERROR(VLOOKUP($A23,'2022'!$B$2:$K$174,10,FALSE),0) -> 0.652 | AI23: =IFERROR(VLOOKUP($A23,'2021'!$B$2:$K$174,3,FALSE),0) -> 88 | AJ23: =IFERROR(VLOOKUP($A23,'2021'!$B$2:$K$174,4,FALSE),0) -> 37 | AK23: =IFERROR(VLOOKUP($A23,'2021'!$B$2:$K$174,5,FALSE),0) -> 52 | AL23: =IFERROR(VLOOKUP($A23,'2021'!$B$2:$K$174,8,FALSE),0) -> 0 | AM23: =IFERROR(VLOOKUP($A23,'2021'!$B$2:$K$174,10,FALSE),0) -> 0.591 | AN23: =IFERROR(VLOOKUP($A23,'2020'!$B$2:$K$170,3,FALSE),0) -> 85 | AO23: =IFERROR(VLOOKUP($A23,'2020'!$B$2:$K$170,4,FALSE),0) -> 37 | AP23: =IFERROR(VLOOKUP($A23,'2020'!$B$2:$K$170,5,FALSE),0) -> 53 | AQ23: =IFERROR(VLOOKUP($A23,'2020'!$B$2:$K$170,8,FALSE),0) -> 0 | AR23: =IFERROR(VLOOKUP($A23,'2020'!$B$2:$K$170,10,FALSE),0) -> 0.624 | AS23: =IFERROR(VLOOKUP($A23,'2019'!$B$2:$K$170,3,FALSE),0) -> 89 | AT23: =IFERROR(VLOOKUP($A23,'2019'!$B$2:$K$170,4,FALSE),0) -> 47 | AU23: =IFERROR(VLOOKUP($A23,'2019'!$B$2:$K$170,5,FALSE),0) -> 59 | AV23: =IFERROR(VLOOKUP($A23,'2019'!$B$2:$K$170,8,FALSE),0) -> 1 | AW23: =IFERROR(VLOOKUP($A23,'2019'!$B$2:$K$170,10,FALSE),0) -> 0.663 | AX23: =IFERROR(VLOOKUP($A23,'2018'!$B$2:$K$170,3,FALSE),0) -> 82 | AY23: =IFERROR(VLOOKUP($A23,'2018'!$B$2:$K$170,4,FALSE),0) -> 18 | AZ23: =IFERROR(VLOOKUP($A23,'2018'!$B$2:$K$170,5,FALSE),0) -> 38 | BA23: =IFERROR(VLOOKUP($A23,'2018'!$B$2:$K$170,8,FALSE),0) -> 0 | BB23: =IFERROR(VLOOKUP($A23,'2018'!$B$2:$K$170,10,FALSE),0) -> 0.463 | BC23: =IFERROR(VLOOKUP($A23,'2017'!$B$2:$J$163,2,FALSE),0) -> 85 | BD23: =IFERROR(VLOOKUP($A23,'2017'!$B$2:$J$163,3,FALSE),0) -> 32 | BE23: =IFERROR(VLOOKUP($A23,'2017'!$B$2:$J$163,4,FALSE),0) -> 49 | BF23: =IFERROR(VLOOKUP($A23,'2017'!$B$2:$J$163,7,FALSE),0) -> 0 | BG23: =IFERROR(VLOOKUP($A23,'2017'!$B$2:$J$163,9,FALSE),0) -> 0.5764705882 | BH23: =IFERROR(VLOOKUP($A23,'2016'!$B$2:$K$165,3,FALSE),0) -> 87 | BI23: =IFERROR(VLOOKUP($A23,'2016'!$B$2:$K$165,4,FALSE),0) -> 42 | BJ23: =IFERROR(VLOOKUP($A23,'2016'!$B$2:$K$165,5,FALSE),0) -> 52 | BK23: =IFERROR(VLOOKUP($A23,'2016'!$B$2:$K$165,8,FALSE),0) -> 1 | BL23: =IFERROR(VLOOKUP($A23,'2016'!$B$2:$K$165,10,FALSE),0) -> 0.598 | BM23: =IFERROR(VLOOKUP($A23,'2015'!$B$2:$K$165,3,FALSE),0) -> 66 | BN23: =IFERROR(VLOOKUP($A23,'2015'!$B$2:$K$165,4,FALSE),0) -> 28 | BO23: =IFERROR(VLOOKUP($A23,'2015'!$B$2:$K$165,5,FALSE),0) -> 40 | BP23: =IFERROR(VLOOKUP($A23,'2015'!$B$2:$K$165,8,FALSE),0) -> 0 | BQ23: =IFERROR(VLOOKUP($A23,'2015'!$B$2:$K$165,10,FALSE),0) -> 0.6060606061 | BR23: =IFERROR(VLOOKUP($A23,'2014'!$B$2:$K$157,3,FALSE),0) -> 89 | BS23: =IFERROR(VLOOKUP($A23,'2014'!$B$2:$K$157,4,FALSE),0) -> 46 | BT23: =IFERROR(VLOOKUP($A23,'2014'!$B$2:$K$157,5,FALSE),0) -> 59 | BU23: =IFERROR(VLOOKUP($A23,'2014'!$B$2:$K$157,8,FALSE),0) -> 3 | BV23: =IFERROR(VLOOKUP($A23,'2014'!$B$2:$K$157,10,FALSE),0) -> 0.6629213483 | BW23: =IFERROR(VLOOKUP($A23,'2013'!$D$4:$I$249,2,FALSE),0) -> 81 | BX23: =IFERROR(VLOOKUP($A23,'2013'!$D$4:$I$249,3,FALSE),0) -> 35 | BY23: =IFERROR(VLOOKUP($A23,'2013'!$D$4:$I$249,4,FALSE),0) -> 44 | BZ23: =IFERROR(VLOOKUP($A23,'2013'!$D$4:$I$249,5,FALSE),0) -> 0 | CA23: =IFERROR(VLOOKUP($A23,'2013'!$D$4:$I$249,6,FALSE),0) -> 0.5432098765 | CB23: =IFERROR(VLOOKUP($A23,'2012'!$D$3:$O$172,2,FALSE),0) -> 689 | CC23: =IFERROR(VLOOKUP($A23,'2012'!$D$3:$O$172,3,FALSE),0) -> 424 | CD23: =IFERROR(VLOOKUP($A23,'2012'!$D$3:$O$172,4,FALSE),0) -> 20 | CE23: =IFERROR(VLOOKUP($A23,'2012'!$D$3:$O$172,5,FALSE),0) -> 75 | CF23: =IFERROR(VLOOKUP($A23,'2012'!$D$3:$O$172,6,FALSE),0) -> 32 | CG23: =IFERROR(VLOOKUP($A23,'2012'!$D$3:$O$172,7,FALSE),0) -> 47 | CH23: =IFERROR(VLOOKUP($A23,'2012'!$D$3:$O$172,8,FALSE),0) -> 1 | CI23: =IFERROR(VLOOKUP($A23,'2012'!$D$3:$O$172,9,FALSE),0) -> 0.6266666667 | CJ23: =IFERROR(VLOOKUP($A23,'2012'!$D$3:$O$172,10,FALSE),0) -> 614 | CK23: =IFERROR(VLOOKUP($A23,'2012'!$D$3:$O$172,11,FALSE),0) -> 377 | CL23: =IFERROR(VLOOKUP($A23,'2012'!$D$3:$O$172,12,FALSE),0) -> 19 | CM23: =IFERROR(VLOOKUP($A23,'2011'!$D$4:$I$251,2,FALSE),0) -> 72 | CN23: =IFERROR(VLOOKUP($A23,'2011'!$D$4:$I$251,3,FALSE),0) -> 24 | CO23: =IFERROR(VLOOKUP($A23,'2011'!$D$4:$I$251,4,FALSE),0) -> 42 | CP23: =IFERROR(VLOOKUP($A23,'2011'!$D$4:$I$251,5,FALSE),0) -> 1 | CQ23: =IFERROR(VLOOKUP($A23,'2011'!$D$4:$I$251,6,FALSE),0) -> 0.5833333333 | CR23: =IFERROR(VLOOKUP($A23,'2010'!$C$3:$H$234,2,FALSE),0) -> 82 | CS23: =IFERROR(VLOOKUP($A23,'2010'!$C$3:$H$234,3,FALSE),0) -> 36 | CT23: =IFERROR(VLOOKUP($A23,'2010'!$C$3:$H$234,4,FALSE),0) -> 47 | CU23: =IFERROR(VLOOKUP($A23,'2010'!$C$3:$H$234,5,FALSE),0) -> 3 | CV23: =IFERROR(VLOOKUP($A23,'2010'!$C$3:$H$234,6,FALSE),0) -> 0.5731707317 | CW23: =IFERROR(VLOOKUP($A23,'2009'!$C$3:$H$242,2,FALSE),0) -> 71 | CX23: =IFERROR(VLOOKUP($A23,'2009'!$C$3:$H$242,3,FALSE),0) -> 39 | CY23: =IFERROR(VLOOKUP($A23,'2009'!$C$3:$H$242,4,FALSE),0) -> 48 | CZ23: =IFERROR(VLOOKUP($A23,'2009'!$C$3:$H$242,5,FALSE),0) -> 3 | DA23: =IFERROR(VLOOKUP($A23,'2009'!$C$3:$H$242,6,FALSE),0) -> 0.676056338 | DB23: =IFERROR(VLOOKUP($A23,'2008'!$C$3:$H$229,2,FALSE),0) -> 89 | DC23: =IFERROR(VLOOKUP($A23,'2008'!$C$3:$H$229,3,FALSE),0) -> 46 | DD23: =IFERROR(VLOOKUP($A23,'2008'!$C$3:$H$229,4,FALSE),0) -> 63 | DE23: =IFERROR(VLOOKUP($A23,'2008'!$C$3:$H$229,5,FALSE),0) -> 5 | DF23: =IFERROR(VLOOKUP($A23,'2008'!$C$3:$H$229,6,FALSE),0) -> 0.7078651685 | DG23: =IFERROR(VLOOKUP($A23,'2007'!$C$3:$M$238,7,FALSE),0) -> 65 | DH23: =IFERROR(VLOOKUP($A23,'2007'!$C$3:$M$238,8,FALSE),0) -> 20 | DI23: =IFERROR(VLOOKUP($A23,'2007'!$C$3:$M$238,9,FALSE),0) -> 40 | DJ23: =IFERROR(VLOOKUP($A23,'2007'!$C$3:$M$238,10,FALSE),0) -> 0 | DK23: =IFERROR(VLOOKUP($A23,'2007'!$C$3:$M$238,11,FALSE),0) -> 0.6153846154 | DL23: =IFERROR(VLOOKUP($A23,'2006'!$A$2:$F$200,2,FALSE),0) -> 79 | DM23: =IFERROR(VLOOKUP($A23,'2006'!$A$2:$F$200,4,FALSE),0) -> 45 | DN23: =IFERROR(VLOOKUP($A23,'2006'!$A$2:$F$200,5,FALSE),0) -> 0 | DO23: =IFERROR(VLOOKUP($A23,'2006'!$A$2:$F$200,6,FALSE),0) -> 0.5696202532 | DP23: =IFERROR(VLOOKUP($A23,'2005'!$C$3:$M$205,8,FALSE),0) -> 81 | DQ23: =IFERROR(VLOOKUP($A23,'2005'!$C$3:$M$205,9,FALSE),0) -> 55 | DR23: =IFERROR(VLOOKUP($A23,'2005'!$C$3:$M$205,10,FALSE),0) -> 5 | DS23: =IFERROR(VLOOKUP($A23,'2005'!$C$3:$M$205,11,FALSE),0) -> 0.6790123457 | DT23: =IFERROR(VLOOKUP($A23,'2004'!$C$3:$M$213,8,FALSE),0) -> 75 | DU23: =IFERROR(VLOOKUP($A23,'2004'!$C$3:$M$213,9,FALSE),0) -> 37 | DV23: =IFERROR(VLOOKUP($A23,'2004'!$C$3:$M$213,10,FALSE),0) -> 2 | DW23: =IFERROR(VLOOKUP($A23,'2004'!$C$3:$M$213,11,FALSE),0) -> 0.4933333333 | DX23: =IFERROR(VLOOKUP($A23,'2003'!$C$3:$Q$214,12,FALSE),0) -> 0 | DY23: =IFERROR(VLOOKUP($A23,'2003'!$C$3:$Q$214,13,FALSE),0) -> 0 | DZ23: =IFERROR(VLOOKUP($A23,'2003'!$C$3:$Q$214,14,FALSE),0) -> 0 | EA23: =IFERROR(VLOOKUP($A23,'2003'!$C$3:$Q$214,15,FALSE),0) -> 0 | EB23: =IFERROR(VLOOKUP($A23,'2002'!$D$3:$R$214,12,FALSE),0) -> 0 | EC23: =IFERROR(VLOOKUP($A23,'2002'!$D$3:$R$214,13,FALSE),0) -> 0 | ED23: =IFERROR(VLOOKUP($A23,'2002'!$D$3:$R$214,14,FALSE),0) -> 0 | EE23: =IFERROR(VLOOKUP($A23,'2002'!$D$3:$R$214,15,FALSE),0) -> 0 | EF23: =IFERROR(VLOOKUP($A23,'Pre 2002'!$C$3:$CK$382,84,FALSE),0) -> 0 | EG23: =IFERROR(VLOOKUP($A23,'Pre 2002'!$C$3:$CK$382,85,FALSE),0) -> 0 | EH23: =IFERROR(VLOOKUP($A23,'Pre 2002'!$C$3:$CK$382,86,FALSE),0) -> 0 | EI23: =IFERROR(VLOOKUP($A23,'Pre 2002'!$C$3:$CK$382,87,FALSE),0) -> 0 | EJ23: =IFERROR(VLOOKUP(A23,'Pre 2002'!$C$3:$CG$382,83,FALSE),0) -> 0
A24: Rob Griffin | B24: 1838 | C24: 1035 | D24: 6 | E24: 0.5631120783 | F24: 28 | G24: 1988 | H24: 26 | I24: 1711 | J24: 974 | K24: 6 | L24: 0.569257744 | M24: 88 | N24: 3 | O24: =IFERROR(VLOOKUP($A24,'2025'!$A$2:$J$222,4,FALSE),0) -> 0 | P24: =IFERROR(VLOOKUP($A24,'2025'!$A$2:$J$222,5,FALSE),0) -> 0 | Q24: =IFERROR(VLOOKUP($A24,'2025'!$A$2:$J$222,6,FALSE),0) -> 0 | R24: =IFERROR(VLOOKUP($A24,'2025'!$A$2:$J$222,9,FALSE),0) -> 0 | S24: =IFERROR(VLOOKUP($A24,'2025'!$A$2:$J$222,10,FALSE),0) -> 0 | T24: =IFERROR(VLOOKUP($A24,'2024'!$A$2:$M$220,6,FALSE),0) -> 0 | U24: =IFERROR(VLOOKUP($A24,'2024'!$A$2:$M$220,7,FALSE),0) -> 0 | V24: =IFERROR(VLOOKUP($A24,'2024'!$A$2:$M$220,8,FALSE),0) -> 0 | W24: =IFERROR(VLOOKUP($A24,'2024'!$A$2:$M$220,11,FALSE),0) -> 0 | X24: =IFERROR(VLOOKUP($A24,'2024'!$A$2:$M$220,13,FALSE),0) -> 0 | Y24: =IFERROR(VLOOKUP($A24,'2023'!$A$2:$M$170,6,FALSE),0) -> 0 | Z24: =IFERROR(VLOOKUP($A24,'2023'!$A$2:$M$170,7,FALSE),0) -> 0 | AA24: =IFERROR(VLOOKUP($A24,'2023'!$A$2:$M$170,8,FALSE),0) -> 0 | AB24: =IFERROR(VLOOKUP($A24,'2023'!$A$2:$M$170,11,FALSE),0) -> 0 | AC24: =IFERROR(VLOOKUP($A24,'2023'!$A$2:$M$170,13,FALSE),0) -> 0 | AD24: =IFERROR(VLOOKUP($A24,'2022'!$B$2:$K$174,3,FALSE),0) -> 0 | AE24: =IFERROR(VLOOKUP($A24,'2022'!$B$2:$K$174,4,FALSE),0) -> 0 | AF24: =IFERROR(VLOOKUP($A24,'2022'!$B$2:$K$174,5,FALSE),0) -> 0 | AG24: =IFERROR(VLOOKUP($A24,'2022'!$B$2:$K$174,8,FALSE),0) -> 0 | AH24: =IFERROR(VLOOKUP($A24,'2022'!$B$2:$K$174,10,FALSE),0) -> 0 | AI24: =IFERROR(VLOOKUP($A24,'2021'!$B$2:$K$174,3,FALSE),0) -> 0 | AJ24: =IFERROR(VLOOKUP($A24,'2021'!$B$2:$K$174,4,FALSE),0) -> 0 | AK24: =IFERROR(VLOOKUP($A24,'2021'!$B$2:$K$174,5,FALSE),0) -> 0 | AL24: =IFERROR(VLOOKUP($A24,'2021'!$B$2:$K$174,8,FALSE),0) -> 0 | AM24: =IFERROR(VLOOKUP($A24,'2021'!$B$2:$K$174,10,FALSE),0) -> 0 | AN24: =IFERROR(VLOOKUP($A24,'2020'!$B$2:$K$170,3,FALSE),0) -> 0 | AO24: =IFERROR(VLOOKUP($A24,'2020'!$B$2:$K$170,4,FALSE),0) -> 0 | AP24: =IFERROR(VLOOKUP($A24,'2020'!$B$2:$K$170,5,FALSE),0) -> 0 | AQ24: =IFERROR(VLOOKUP($A24,'2020'!$B$2:$K$170,8,FALSE),0) -> 0 | AR24: =IFERROR(VLOOKUP($A24,'2020'!$B$2:$K$170,10,FALSE),0) -> 0 | AS24: =IFERROR(VLOOKUP($A24,'2019'!$B$2:$K$170,3,FALSE),0) -> 0 | AT24: =IFERROR(VLOOKUP($A24,'2019'!$B$2:$K$170,4,FALSE),0) -> 0 | AU24: =IFERROR(VLOOKUP($A24,'2019'!$B$2:$K$170,5,FALSE),0) -> 0 | AV24: =IFERROR(VLOOKUP($A24,'2019'!$B$2:$K$170,8,FALSE),0) -> 0 | AW24: =IFERROR(VLOOKUP($A24,'2019'!$B$2:$K$170,10,FALSE),0) -> 0 | AX24: =IFERROR(VLOOKUP($A24,'2018'!$B$2:$K$170,3,FALSE),0) -> 0 | AY24: =IFERROR(VLOOKUP($A24,'2018'!$B$2:$K$170,4,FALSE),0) -> 0 | AZ24: =IFERROR(VLOOKUP($A24,'2018'!$B$2:$K$170,5,FALSE),0) -> 0 | BA24: =IFERROR(VLOOKUP($A24,'2018'!$B$2:$K$170,8,FALSE),0) -> 0 | BB24: =IFERROR(VLOOKUP($A24,'2018'!$B$2:$K$170,10,FALSE),0) -> 0 | BC24: =IFERROR(VLOOKUP($A24,'2017'!$B$2:$J$163,2,FALSE),0) -> 60 | BD24: =IFERROR(VLOOKUP($A24,'2017'!$B$2:$J$163,3,FALSE),0) -> 17 | BE24: =IFERROR(VLOOKUP($A24,'2017'!$B$2:$J$163,4,FALSE),0) -> 28 | BF24: =IFERROR(VLOOKUP($A24,'2017'!$B$2:$J$163,7,FALSE),0) -> 0 | BG24: =IFERROR(VLOOKUP($A24,'2017'!$B$2:$J$163,9,FALSE),0) -> 0.4666666667 | BH24: =IFERROR(VLOOKUP($A24,'2016'!$B$2:$K$165,3,FALSE),0) -> 0 | BI24: =IFERROR(VLOOKUP($A24,'2016'!$B$2:$K$165,4,FALSE),0) -> 0 | BJ24: =IFERROR(VLOOKUP($A24,'2016'!$B$2:$K$165,5,FALSE),0) -> 0 | BK24: =IFERROR(VLOOKUP($A24,'2016'!$B$2:$K$165,8,FALSE),0) -> 0 | BL24: =IFERROR(VLOOKUP($A24,'2016'!$B$2:$K$165,10,FALSE),0) -> 0 | BM24: =IFERROR(VLOOKUP($A24,'2015'!$B$2:$K$165,3,FALSE),0) -> 67 | BN24: =IFERROR(VLOOKUP($A24,'2015'!$B$2:$K$165,4,FALSE),0) -> 15 | BO24: =IFERROR(VLOOKUP($A24,'2015'!$B$2:$K$165,5,FALSE),0) -> 33 | BP24: =IFERROR(VLOOKUP($A24,'2015'!$B$2:$K$165,8,FALSE),0) -> 0 | BQ24: =IFERROR(VLOOKUP($A24,'2015'!$B$2:$K$165,10,FALSE),0) -> 0.4925373134 | BR24: =IFERROR(VLOOKUP($A24,'2014'!$B$2:$K$157,3,FALSE),0) -> 79 | BS24: =IFERROR(VLOOKUP($A24,'2014'!$B$2:$K$157,4,FALSE),0) -> 18 | BT24: =IFERROR(VLOOKUP($A24,'2014'!$B$2:$K$157,5,FALSE),0) -> 41 | BU24: =IFERROR(VLOOKUP($A24,'2014'!$B$2:$K$157,8,FALSE),0) -> 0 | BV24: =IFERROR(VLOOKUP($A24,'2014'!$B$2:$K$157,10,FALSE),0) -> 0.5189873418 | BW24: =IFERROR(VLOOKUP($A24,'2013'!$D$4:$I$249,2,FALSE),0) -> 74 | BX24: =IFERROR(VLOOKUP($A24,'2013'!$D$4:$I$249,3,FALSE),0) -> 18 | BY24: =IFERROR(VLOOKUP($A24,'2013'!$D$4:$I$249,4,FALSE),0) -> 38 | BZ24: =IFERROR(VLOOKUP($A24,'2013'!$D$4:$I$249,5,FALSE),0) -> 0 | CA24: =IFERROR(VLOOKUP($A24,'2013'!$D$4:$I$249,6,FALSE),0) -> 0.5135135135 | CB24: =IFERROR(VLOOKUP($A24,'2012'!$D$3:$O$172,2,FALSE),0) -> 1558 | CC24: =IFERROR(VLOOKUP($A24,'2012'!$D$3:$O$172,3,FALSE),0) -> 895 | CD24: =IFERROR(VLOOKUP($A24,'2012'!$D$3:$O$172,4,FALSE),0) -> 6 | CE24: =IFERROR(VLOOKUP($A24,'2012'!$D$3:$O$172,5,FALSE),0) -> 67 | CF24: =IFERROR(VLOOKUP($A24,'2012'!$D$3:$O$172,6,FALSE),0) -> 15 | CG24: =IFERROR(VLOOKUP($A24,'2012'!$D$3:$O$172,7,FALSE),0) -> 37 | CH24: =IFERROR(VLOOKUP($A24,'2012'!$D$3:$O$172,8,FALSE),0) -> 0 | CI24: =IFERROR(VLOOKUP($A24,'2012'!$D$3:$O$172,9,FALSE),0) -> 0.552238806 | CJ24: =IFERROR(VLOOKUP($A24,'2012'!$D$3:$O$172,10,FALSE),0) -> 1491 | CK24: =IFERROR(VLOOKUP($A24,'2012'!$D$3:$O$172,11,FALSE),0) -> 858 | CL24: =IFERROR(VLOOKUP($A24,'2012'!$D$3:$O$172,12,FALSE),0) -> 6 | CM24: =IFERROR(VLOOKUP($A24,'2011'!$D$4:$I$251,2,FALSE),0) -> 38 | CN24: =IFERROR(VLOOKUP($A24,'2011'!$D$4:$I$251,3,FALSE),0) -> 7 | CO24: =IFERROR(VLOOKUP($A24,'2011'!$D$4:$I$251,4,FALSE),0) -> 17 | CP24: =IFERROR(VLOOKUP($A24,'2011'!$D$4:$I$251,5,FALSE),0) -> 0 | CQ24: =IFERROR(VLOOKUP($A24,'2011'!$D$4:$I$251,6,FALSE),0) -> 0.4473684211 | CR24: =IFERROR(VLOOKUP($A24,'2010'!$C$3:$H$234,2,FALSE),0) -> 70 | CS24: =IFERROR(VLOOKUP($A24,'2010'!$C$3:$H$234,3,FALSE),0) -> 15 | CT24: =IFERROR(VLOOKUP($A24,'2010'!$C$3:$H$234,4,FALSE),0) -> 36 | CU24: =IFERROR(VLOOKUP($A24,'2010'!$C$3:$H$234,5,FALSE),0) -> 0 | CV24: =IFERROR(VLOOKUP($A24,'2010'!$C$3:$H$234,6,FALSE),0) -> 0.5142857143 | CW24: =IFERROR(VLOOKUP($A24,'2009'!$C$3:$H$242,2,FALSE),0) -> 74 | CX24: =IFERROR(VLOOKUP($A24,'2009'!$C$3:$H$242,3,FALSE),0) -> 20 | CY24: =IFERROR(VLOOKUP($A24,'2009'!$C$3:$H$242,4,FALSE),0) -> 42 | CZ24: =IFERROR(VLOOKUP($A24,'2009'!$C$3:$H$242,5,FALSE),0) -> 0 | DA24: =IFERROR(VLOOKUP($A24,'2009'!$C$3:$H$242,6,FALSE),0) -> 0.5675675676 | DB24: =IFERROR(VLOOKUP($A24,'2008'!$C$3:$H$229,2,FALSE),0) -> 60 | DC24: =IFERROR(VLOOKUP($A24,'2008'!$C$3:$H$229,3,FALSE),0) -> 26 | DD24: =IFERROR(VLOOKUP($A24,'2008'!$C$3:$H$229,4,FALSE),0) -> 35 | DE24: =IFERROR(VLOOKUP($A24,'2008'!$C$3:$H$229,5,FALSE),0) -> 0 | DF24: =IFERROR(VLOOKUP($A24,'2008'!$C$3:$H$229,6,FALSE),0) -> 0.5833333333 | DG24: =IFERROR(VLOOKUP($A24,'2007'!$C$3:$M$238,7,FALSE),0) -> 77 | DH24: =IFERROR(VLOOKUP($A24,'2007'!$C$3:$M$238,8,FALSE),0) -> 27 | DI24: =IFERROR(VLOOKUP($A24,'2007'!$C$3:$M$238,9,FALSE),0) -> 52 | DJ24: =IFERROR(VLOOKUP($A24,'2007'!$C$3:$M$238,10,FALSE),0) -> 0 | DK24: =IFERROR(VLOOKUP($A24,'2007'!$C$3:$M$238,11,FALSE),0) -> 0.6753246753 | DL24: =IFERROR(VLOOKUP($A24,'2006'!$A$2:$F$200,2,FALSE),0) -> 64 | DM24: =IFERROR(VLOOKUP($A24,'2006'!$A$2:$F$200,4,FALSE),0) -> 25 | DN24: =IFERROR(VLOOKUP($A24,'2006'!$A$2:$F$200,5,FALSE),0) -> 0 | DO24: =IFERROR(VLOOKUP($A24,'2006'!$A$2:$F$200,6,FALSE),0) -> 0.390625 | DP24: =IFERROR(VLOOKUP($A24,'2005'!$C$3:$M$205,8,FALSE),0) -> 70 | DQ24: =IFERROR(VLOOKUP($A24,'2005'!$C$3:$M$205,9,FALSE),0) -> 46 | DR24: =IFERROR(VLOOKUP($A24,'2005'!$C$3:$M$205,10,FALSE),0) -> 0 | DS24: =IFERROR(VLOOKUP($A24,'2005'!$C$3:$M$205,11,FALSE),0) -> 0.6571428571 | DT24: =IFERROR(VLOOKUP($A24,'2004'!$C$3:$M$213,8,FALSE),0) -> 69 | DU24: =IFERROR(VLOOKUP($A24,'2004'!$C$3:$M$213,9,FALSE),0) -> 37 | DV24: =IFERROR(VLOOKUP($A24,'2004'!$C$3:$M$213,10,FALSE),0) -> 0 | DW24: =IFERROR(VLOOKUP($A24,'2004'!$C$3:$M$213,11,FALSE),0) -> 0.5362318841 | DX24: =IFERROR(VLOOKUP($A24,'2003'!$C$3:$Q$214,12,FALSE),0) -> 90 | DY24: =IFERROR(VLOOKUP($A24,'2003'!$C$3:$Q$214,13,FALSE),0) -> 59 | DZ24: =IFERROR(VLOOKUP($A24,'2003'!$C$3:$Q$214,14,FALSE),0) -> 0 | EA24: =IFERROR(VLOOKUP($A24,'2003'!$C$3:$Q$214,15,FALSE),0) -> 0.6555555556 | EB24: =IFERROR(VLOOKUP($A24,'2002'!$D$3:$R$214,12,FALSE),0) -> 56 | EC24: =IFERROR(VLOOKUP($A24,'2002'!$D$3:$R$214,13,FALSE),0) -> 35 | ED24: =IFERROR(VLOOKUP($A24,'2002'!$D$3:$R$214,14,FALSE),0) -> 0 | EE24: =IFERROR(VLOOKUP($A24,'2002'!$D$3:$R$214,15,FALSE),0) -> 0.625 | EF24: =IFERROR(VLOOKUP($A24,'Pre 2002'!$C$3:$CK$382,84,FALSE),0) -> 823 | EG24: =IFERROR(VLOOKUP($A24,'Pre 2002'!$C$3:$CK$382,85,FALSE),0) -> 474 | EH24: =IFERROR(VLOOKUP($A24,'Pre 2002'!$C$3:$CK$382,86,FALSE),0) -> 6 | EI24: =IFERROR(VLOOKUP($A24,'Pre 2002'!$C$3:$CK$382,87,FALSE),0) -> 0.5759416768 | EJ24: =IFERROR(VLOOKUP(A24,'Pre 2002'!$C$3:$CG$382,83,FALSE),0) -> 13
A25: Tim Scribner | B25: 1763 | C25: 1033 | D25: 111 | E25: 0.5859330686 | F25: 33 | G25: 1986 | H25: 31 | I25: 1698 | J25: 1000 | K25: 111 | L25: 0.5889281508 | M25: 86 | N25: 3 | O25: =IFERROR(VLOOKUP($A25,'2025'!$A$2:$J$222,4,FALSE),0) -> 0 | P25: =IFERROR(VLOOKUP($A25,'2025'!$A$2:$J$222,5,FALSE),0) -> 0 | Q25: =IFERROR(VLOOKUP($A25,'2025'!$A$2:$J$222,6,FALSE),0) -> 0 | R25: =IFERROR(VLOOKUP($A25,'2025'!$A$2:$J$222,9,FALSE),0) -> 0 | S25: =IFERROR(VLOOKUP($A25,'2025'!$A$2:$J$222,10,FALSE),0) -> 0 | T25: =IFERROR(VLOOKUP($A25,'2024'!$A$2:$M$220,6,FALSE),0) -> 0 | U25: =IFERROR(VLOOKUP($A25,'2024'!$A$2:$M$220,7,FALSE),0) -> 0 | V25: =IFERROR(VLOOKUP($A25,'2024'!$A$2:$M$220,8,FALSE),0) -> 0 | W25: =IFERROR(VLOOKUP($A25,'2024'!$A$2:$M$220,11,FALSE),0) -> 0 | X25: =IFERROR(VLOOKUP($A25,'2024'!$A$2:$M$220,13,FALSE),0) -> 0 | Y25: =IFERROR(VLOOKUP($A25,'2023'!$A$2:$M$170,6,FALSE),0) -> 0 | Z25: =IFERROR(VLOOKUP($A25,'2023'!$A$2:$M$170,7,FALSE),0) -> 0 | AA25: =IFERROR(VLOOKUP($A25,'2023'!$A$2:$M$170,8,FALSE),0) -> 0 | AB25: =IFERROR(VLOOKUP($A25,'2023'!$A$2:$M$170,11,FALSE),0) -> 0 | AC25: =IFERROR(VLOOKUP($A25,'2023'!$A$2:$M$170,13,FALSE),0) -> 0 | AD25: =IFERROR(VLOOKUP($A25,'2022'!$B$2:$K$174,3,FALSE),0) -> 0 | AE25: =IFERROR(VLOOKUP($A25,'2022'!$B$2:$K$174,4,FALSE),0) -> 0 | AF25: =IFERROR(VLOOKUP($A25,'2022'!$B$2:$K$174,5,FALSE),0) -> 0 | AG25: =IFERROR(VLOOKUP($A25,'2022'!$B$2:$K$174,8,FALSE),0) -> 0 | AH25: =IFERROR(VLOOKUP($A25,'2022'!$B$2:$K$174,10,FALSE),0) -> 0 | AI25: =IFERROR(VLOOKUP($A25,'2021'!$B$2:$K$174,3,FALSE),0) -> 0 | AJ25: =IFERROR(VLOOKUP($A25,'2021'!$B$2:$K$174,4,FALSE),0) -> 0 | AK25: =IFERROR(VLOOKUP($A25,'2021'!$B$2:$K$174,5,FALSE),0) -> 0 | AL25: =IFERROR(VLOOKUP($A25,'2021'!$B$2:$K$174,8,FALSE),0) -> 0 | AM25: =IFERROR(VLOOKUP($A25,'2021'!$B$2:$K$174,10,FALSE),0) -> 0 | AN25: =IFERROR(VLOOKUP($A25,'2020'!$B$2:$K$170,3,FALSE),0) -> 0 | AO25: =IFERROR(VLOOKUP($A25,'2020'!$B$2:$K$170,4,FALSE),0) -> 0 | AP25: =IFERROR(VLOOKUP($A25,'2020'!$B$2:$K$170,5,FALSE),0) -> 0 | AQ25: =IFERROR(VLOOKUP($A25,'2020'!$B$2:$K$170,8,FALSE),0) -> 0 | AR25: =IFERROR(VLOOKUP($A25,'2020'!$B$2:$K$170,10,FALSE),0) -> 0 | AS25: =IFERROR(VLOOKUP($A25,'2019'!$B$2:$K$170,3,FALSE),0) -> 0 | AT25: =IFERROR(VLOOKUP($A25,'2019'!$B$2:$K$170,4,FALSE),0) -> 0 | AU25: =IFERROR(VLOOKUP($A25,'2019'!$B$2:$K$170,5,FALSE),0) -> 0 | AV25: =IFERROR(VLOOKUP($A25,'2019'!$B$2:$K$170,8,FALSE),0) -> 0 | AW25: =IFERROR(VLOOKUP($A25,'2019'!$B$2:$K$170,10,FALSE),0) -> 0 | AX25: =IFERROR(VLOOKUP($A25,'2018'!$B$2:$K$170,3,FALSE),0) -> 0 | AY25: =IFERROR(VLOOKUP($A25,'2018'!$B$2:$K$170,4,FALSE),0) -> 0 | AZ25: =IFERROR(VLOOKUP($A25,'2018'!$B$2:$K$170,5,FALSE),0) -> 0 | BA25: =IFERROR(VLOOKUP($A25,'2018'!$B$2:$K$170,8,FALSE),0) -> 0 | BB25: =IFERROR(VLOOKUP($A25,'2018'!$B$2:$K$170,10,FALSE),0) -> 0 | BC25: =IFERROR(VLOOKUP($A25,'2017'!$B$2:$J$163,2,FALSE),0) -> 0 | BD25: =IFERROR(VLOOKUP($A25,'2017'!$B$2:$J$163,3,FALSE),0) -> 0 | BE25: =IFERROR(VLOOKUP($A25,'2017'!$B$2:$J$163,4,FALSE),0) -> 0 | BF25: =IFERROR(VLOOKUP($A25,'2017'!$B$2:$J$163,7,FALSE),0) -> 0 | BG25: =IFERROR(VLOOKUP($A25,'2017'!$B$2:$J$163,9,FALSE),0) -> 0 | BH25: =IFERROR(VLOOKUP($A25,'2016'!$B$2:$K$165,3,FALSE),0) -> 8 | BI25: =IFERROR(VLOOKUP($A25,'2016'!$B$2:$K$165,4,FALSE),0) -> 3 | BJ25: =IFERROR(VLOOKUP($A25,'2016'!$B$2:$K$165,5,FALSE),0) -> 4 | BK25: =IFERROR(VLOOKUP($A25,'2016'!$B$2:$K$165,8,FALSE),0) -> 0 | BL25: =IFERROR(VLOOKUP($A25,'2016'!$B$2:$K$165,10,FALSE),0) -> 0.5 | BM25: =IFERROR(VLOOKUP($A25,'2015'!$B$2:$K$165,3,FALSE),0) -> 57 | BN25: =IFERROR(VLOOKUP($A25,'2015'!$B$2:$K$165,4,FALSE),0) -> 14 | BO25: =IFERROR(VLOOKUP($A25,'2015'!$B$2:$K$165,5,FALSE),0) -> 29 | BP25: =IFERROR(VLOOKUP($A25,'2015'!$B$2:$K$165,8,FALSE),0) -> 0 | BQ25: =IFERROR(VLOOKUP($A25,'2015'!$B$2:$K$165,10,FALSE),0) -> 0.5087719298 | BR25: =IFERROR(VLOOKUP($A25,'2014'!$B$2:$K$157,3,FALSE),0) -> 5 | BS25: =IFERROR(VLOOKUP($A25,'2014'!$B$2:$K$157,4,FALSE),0) -> 1 | BT25: =IFERROR(VLOOKUP($A25,'2014'!$B$2:$K$157,5,FALSE),0) -> 2 | BU25: =IFERROR(VLOOKUP($A25,'2014'!$B$2:$K$157,8,FALSE),0) -> 0 | BV25: =IFERROR(VLOOKUP($A25,'2014'!$B$2:$K$157,10,FALSE),0) -> 0.4 | BW25: =IFERROR(VLOOKUP($A25,'2013'!$D$4:$I$249,2,FALSE),0) -> 73 | BX25: =IFERROR(VLOOKUP($A25,'2013'!$D$4:$I$249,3,FALSE),0) -> 16 | BY25: =IFERROR(VLOOKUP($A25,'2013'!$D$4:$I$249,4,FALSE),0) -> 42 | BZ25: =IFERROR(VLOOKUP($A25,'2013'!$D$4:$I$249,5,FALSE),0) -> 1 | CA25: =IFERROR(VLOOKUP($A25,'2013'!$D$4:$I$249,6,FALSE),0) -> 0.5753424658 | CB25: =IFERROR(VLOOKUP($A25,'2012'!$D$3:$O$172,2,FALSE),0) -> 1620 | CC25: =IFERROR(VLOOKUP($A25,'2012'!$D$3:$O$172,3,FALSE),0) -> 950 | CD25: =IFERROR(VLOOKUP($A25,'2012'!$D$3:$O$172,4,FALSE),0) -> 110 | CE25: =IFERROR(VLOOKUP($A25,'2012'!$D$3:$O$172,5,FALSE),0) -> 63 | CF25: =IFERROR(VLOOKUP($A25,'2012'!$D$3:$O$172,6,FALSE),0) -> 14 | CG25: =IFERROR(VLOOKUP($A25,'2012'!$D$3:$O$172,7,FALSE),0) -> 36 | CH25: =IFERROR(VLOOKUP($A25,'2012'!$D$3:$O$172,8,FALSE),0) -> 1 | CI25: =IFERROR(VLOOKUP($A25,'2012'!$D$3:$O$172,9,FALSE),0) -> 0.5714285714 | CJ25: =IFERROR(VLOOKUP($A25,'2012'!$D$3:$O$172,10,FALSE),0) -> 1557 | CK25: =IFERROR(VLOOKUP($A25,'2012'!$D$3:$O$172,11,FALSE),0) -> 914 | CL25: =IFERROR(VLOOKUP($A25,'2012'!$D$3:$O$172,12,FALSE),0) -> 109 | CM25: =IFERROR(VLOOKUP($A25,'2011'!$D$4:$I$251,2,FALSE),0) -> 63 | CN25: =IFERROR(VLOOKUP($A25,'2011'!$D$4:$I$251,3,FALSE),0) -> 22 | CO25: =IFERROR(VLOOKUP($A25,'2011'!$D$4:$I$251,4,FALSE),0) -> 36 | CP25: =IFERROR(VLOOKUP($A25,'2011'!$D$4:$I$251,5,FALSE),0) -> 3 | CQ25: =IFERROR(VLOOKUP($A25,'2011'!$D$4:$I$251,6,FALSE),0) -> 0.5714285714 | CR25: =IFERROR(VLOOKUP($A25,'2010'!$C$3:$H$234,2,FALSE),0) -> 51 | CS25: =IFERROR(VLOOKUP($A25,'2010'!$C$3:$H$234,3,FALSE),0) -> 12 | CT25: =IFERROR(VLOOKUP($A25,'2010'!$C$3:$H$234,4,FALSE),0) -> 26 | CU25: =IFERROR(VLOOKUP($A25,'2010'!$C$3:$H$234,5,FALSE),0) -> 1 | CV25: =IFERROR(VLOOKUP($A25,'2010'!$C$3:$H$234,6,FALSE),0) -> 0.5098039216 | CW25: =IFERROR(VLOOKUP($A25,'2009'!$C$3:$H$242,2,FALSE),0) -> 50 | CX25: =IFERROR(VLOOKUP($A25,'2009'!$C$3:$H$242,3,FALSE),0) -> 13 | CY25: =IFERROR(VLOOKUP($A25,'2009'!$C$3:$H$242,4,FALSE),0) -> 32 | CZ25: =IFERROR(VLOOKUP($A25,'2009'!$C$3:$H$242,5,FALSE),0) -> 1 | DA25: =IFERROR(VLOOKUP($A25,'2009'!$C$3:$H$242,6,FALSE),0) -> 0.64 | DB25: =IFERROR(VLOOKUP($A25,'2008'!$C$3:$H$229,2,FALSE),0) -> 60 | DC25: =IFERROR(VLOOKUP($A25,'2008'!$C$3:$H$229,3,FALSE),0) -> 17 | DD25: =IFERROR(VLOOKUP($A25,'2008'!$C$3:$H$229,4,FALSE),0) -> 31 | DE25: =IFERROR(VLOOKUP($A25,'2008'!$C$3:$H$229,5,FALSE),0) -> 4 | DF25: =IFERROR(VLOOKUP($A25,'2008'!$C$3:$H$229,6,FALSE),0) -> 0.5166666667 | DG25: =IFERROR(VLOOKUP($A25,'2007'!$C$3:$M$238,7,FALSE),0) -> 36 | DH25: =IFERROR(VLOOKUP($A25,'2007'!$C$3:$M$238,8,FALSE),0) -> 12 | DI25: =IFERROR(VLOOKUP($A25,'2007'!$C$3:$M$238,9,FALSE),0) -> 20 | DJ25: =IFERROR(VLOOKUP($A25,'2007'!$C$3:$M$238,10,FALSE),0) -> 0 | DK25: =IFERROR(VLOOKUP($A25,'2007'!$C$3:$M$238,11,FALSE),0) -> 0.5555555556 | DL25: =IFERROR(VLOOKUP($A25,'2006'!$A$2:$F$200,2,FALSE),0) -> 55 | DM25: =IFERROR(VLOOKUP($A25,'2006'!$A$2:$F$200,4,FALSE),0) -> 29 | DN25: =IFERROR(VLOOKUP($A25,'2006'!$A$2:$F$200,5,FALSE),0) -> 3 | DO25: =IFERROR(VLOOKUP($A25,'2006'!$A$2:$F$200,6,FALSE),0) -> 0.5272727273 | DP25: =IFERROR(VLOOKUP($A25,'2005'!$C$3:$M$205,8,FALSE),0) -> 74 | DQ25: =IFERROR(VLOOKUP($A25,'2005'!$C$3:$M$205,9,FALSE),0) -> 52 | DR25: =IFERROR(VLOOKUP($A25,'2005'!$C$3:$M$205,10,FALSE),0) -> 4 | DS25: =IFERROR(VLOOKUP($A25,'2005'!$C$3:$M$205,11,FALSE),0) -> 0.7027027027 | DT25: =IFERROR(VLOOKUP($A25,'2004'!$C$3:$M$213,8,FALSE),0) -> 56 | DU25: =IFERROR(VLOOKUP($A25,'2004'!$C$3:$M$213,9,FALSE),0) -> 36 | DV25: =IFERROR(VLOOKUP($A25,'2004'!$C$3:$M$213,10,FALSE),0) -> 4 | DW25: =IFERROR(VLOOKUP($A25,'2004'!$C$3:$M$213,11,FALSE),0) -> 0.6428571429 | DX25: =IFERROR(VLOOKUP($A25,'2003'!$C$3:$Q$214,12,FALSE),0) -> 67 | DY25: =IFERROR(VLOOKUP($A25,'2003'!$C$3:$Q$214,13,FALSE),0) -> 43 | DZ25: =IFERROR(VLOOKUP($A25,'2003'!$C$3:$Q$214,14,FALSE),0) -> 6 | EA25: =IFERROR(VLOOKUP($A25,'2003'!$C$3:$Q$214,15,FALSE),0) -> 0.6417910448 | EB25: =IFERROR(VLOOKUP($A25,'2002'!$D$3:$R$214,12,FALSE),0) -> 57 | EC25: =IFERROR(VLOOKUP($A25,'2002'!$D$3:$R$214,13,FALSE),0) -> 28 | ED25: =IFERROR(VLOOKUP($A25,'2002'!$D$3:$R$214,14,FALSE),0) -> 4 | EE25: =IFERROR(VLOOKUP($A25,'2002'!$D$3:$R$214,15,FALSE),0) -> 0.4912280702 | EF25: =IFERROR(VLOOKUP($A25,'Pre 2002'!$C$3:$CK$382,84,FALSE),0) -> 988 | EG25: =IFERROR(VLOOKUP($A25,'Pre 2002'!$C$3:$CK$382,85,FALSE),0) -> 587 | EH25: =IFERROR(VLOOKUP($A25,'Pre 2002'!$C$3:$CK$382,86,FALSE),0) -> 79 | EI25: =IFERROR(VLOOKUP($A25,'Pre 2002'!$C$3:$CK$382,87,FALSE),0) -> 0.5941295547 | EJ25: =IFERROR(VLOOKUP(A25,'Pre 2002'!$C$3:$CG$382,83,FALSE),0) -> 18
A26: Eric Brittingham | B26: 1671 | C26: 1032 | D26: 35 | E26: 0.6175942549 | F26: 22 | G26: 2004 | H26: 13 | I26: 974 | J26: 595 | K26: 19 | L26: 0.6108829569 | M26: 04 | N26: 0 | O26: =IFERROR(VLOOKUP($A26,'2025'!$A$2:$J$222,4,FALSE),0) -> 0 | P26: =IFERROR(VLOOKUP($A26,'2025'!$A$2:$J$222,5,FALSE),0) -> 0 | Q26: =IFERROR(VLOOKUP($A26,'2025'!$A$2:$J$222,6,FALSE),0) -> 0 | R26: =IFERROR(VLOOKUP($A26,'2025'!$A$2:$J$222,9,FALSE),0) -> 0 | S26: =IFERROR(VLOOKUP($A26,'2025'!$A$2:$J$222,10,FALSE),0) -> 0 | T26: =IFERROR(VLOOKUP($A26,'2024'!$A$2:$M$220,6,FALSE),0) -> 0 | U26: =IFERROR(VLOOKUP($A26,'2024'!$A$2:$M$220,7,FALSE),0) -> 0 | V26: =IFERROR(VLOOKUP($A26,'2024'!$A$2:$M$220,8,FALSE),0) -> 0 | W26: =IFERROR(VLOOKUP($A26,'2024'!$A$2:$M$220,11,FALSE),0) -> 0 | X26: =IFERROR(VLOOKUP($A26,'2024'!$A$2:$M$220,13,FALSE),0) -> 0 | Y26: =IFERROR(VLOOKUP($A26,'2023'!$A$2:$M$170,6,FALSE),0) -> 82 | Z26: =IFERROR(VLOOKUP($A26,'2023'!$A$2:$M$170,7,FALSE),0) -> 32 | AA26: =IFERROR(VLOOKUP($A26,'2023'!$A$2:$M$170,8,FALSE),0) -> 45 | AB26: =IFERROR(VLOOKUP($A26,'2023'!$A$2:$M$170,11,FALSE),0) -> 3 | AC26: =IFERROR(VLOOKUP($A26,'2023'!$A$2:$M$170,13,FALSE),0) -> 0.549 | AD26: =IFERROR(VLOOKUP($A26,'2022'!$B$2:$K$174,3,FALSE),0) -> 75 | AE26: =IFERROR(VLOOKUP($A26,'2022'!$B$2:$K$174,4,FALSE),0) -> 23 | AF26: =IFERROR(VLOOKUP($A26,'2022'!$B$2:$K$174,5,FALSE),0) -> 49 | AG26: =IFERROR(VLOOKUP($A26,'2022'!$B$2:$K$174,8,FALSE),0) -> 0 | AH26: =IFERROR(VLOOKUP($A26,'2022'!$B$2:$K$174,10,FALSE),0) -> 0.653 | AI26: =IFERROR(VLOOKUP($A26,'2021'!$B$2:$K$174,3,FALSE),0) -> 67 | AJ26: =IFERROR(VLOOKUP($A26,'2021'!$B$2:$K$174,4,FALSE),0) -> 35 | AK26: =IFERROR(VLOOKUP($A26,'2021'!$B$2:$K$174,5,FALSE),0) -> 45 | AL26: =IFERROR(VLOOKUP($A26,'2021'!$B$2:$K$174,8,FALSE),0) -> 0 | AM26: =IFERROR(VLOOKUP($A26,'2021'!$B$2:$K$174,10,FALSE),0) -> 0.672 | AN26: =IFERROR(VLOOKUP($A26,'2020'!$B$2:$K$170,3,FALSE),0) -> 86 | AO26: =IFERROR(VLOOKUP($A26,'2020'!$B$2:$K$170,4,FALSE),0) -> 41 | AP26: =IFERROR(VLOOKUP($A26,'2020'!$B$2:$K$170,5,FALSE),0) -> 52 | AQ26: =IFERROR(VLOOKUP($A26,'2020'!$B$2:$K$170,8,FALSE),0) -> 2 | AR26: =IFERROR(VLOOKUP($A26,'2020'!$B$2:$K$170,10,FALSE),0) -> 0.605 | AS26: =IFERROR(VLOOKUP($A26,'2019'!$B$2:$K$170,3,FALSE),0) -> 75 | AT26: =IFERROR(VLOOKUP($A26,'2019'!$B$2:$K$170,4,FALSE),0) -> 39 | AU26: =IFERROR(VLOOKUP($A26,'2019'!$B$2:$K$170,5,FALSE),0) -> 49 | AV26: =IFERROR(VLOOKUP($A26,'2019'!$B$2:$K$170,8,FALSE),0) -> 1 | AW26: =IFERROR(VLOOKUP($A26,'2019'!$B$2:$K$170,10,FALSE),0) -> 0.653 | AX26: =IFERROR(VLOOKUP($A26,'2018'!$B$2:$K$170,3,FALSE),0) -> 85 | AY26: =IFERROR(VLOOKUP($A26,'2018'!$B$2:$K$170,4,FALSE),0) -> 37 | AZ26: =IFERROR(VLOOKUP($A26,'2018'!$B$2:$K$170,5,FALSE),0) -> 48 | BA26: =IFERROR(VLOOKUP($A26,'2018'!$B$2:$K$170,8,FALSE),0) -> 4 | BB26: =IFERROR(VLOOKUP($A26,'2018'!$B$2:$K$170,10,FALSE),0) -> 0.565 | BC26: =IFERROR(VLOOKUP($A26,'2017'!$B$2:$J$163,2,FALSE),0) -> 80 | BD26: =IFERROR(VLOOKUP($A26,'2017'!$B$2:$J$163,3,FALSE),0) -> 38 | BE26: =IFERROR(VLOOKUP($A26,'2017'!$B$2:$J$163,4,FALSE),0) -> 57 | BF26: =IFERROR(VLOOKUP($A26,'2017'!$B$2:$J$163,7,FALSE),0) -> 3 | BG26: =IFERROR(VLOOKUP($A26,'2017'!$B$2:$J$163,9,FALSE),0) -> 0.7125 | BH26: =IFERROR(VLOOKUP($A26,'2016'!$B$2:$K$165,3,FALSE),0) -> 71 | BI26: =IFERROR(VLOOKUP($A26,'2016'!$B$2:$K$165,4,FALSE),0) -> 37 | BJ26: =IFERROR(VLOOKUP($A26,'2016'!$B$2:$K$165,5,FALSE),0) -> 48 | BK26: =IFERROR(VLOOKUP($A26,'2016'!$B$2:$K$165,8,FALSE),0) -> 1 | BL26: =IFERROR(VLOOKUP($A26,'2016'!$B$2:$K$165,10,FALSE),0) -> 0.676 | BM26: =IFERROR(VLOOKUP($A26,'2015'!$B$2:$K$165,3,FALSE),0) -> 76 | BN26: =IFERROR(VLOOKUP($A26,'2015'!$B$2:$K$165,4,FALSE),0) -> 24 | BO26: =IFERROR(VLOOKUP($A26,'2015'!$B$2:$K$165,5,FALSE),0) -> 44 | BP26: =IFERROR(VLOOKUP($A26,'2015'!$B$2:$K$165,8,FALSE),0) -> 2 | BQ26: =IFERROR(VLOOKUP($A26,'2015'!$B$2:$K$165,10,FALSE),0) -> 0.5789473684 | BR26: =IFERROR(VLOOKUP($A26,'2014'!$B$2:$K$157,3,FALSE),0) -> 81 | BS26: =IFERROR(VLOOKUP($A26,'2014'!$B$2:$K$157,4,FALSE),0) -> 49 | BT26: =IFERROR(VLOOKUP($A26,'2014'!$B$2:$K$157,5,FALSE),0) -> 62 | BU26: =IFERROR(VLOOKUP($A26,'2014'!$B$2:$K$157,8,FALSE),0) -> 1 | BV26: =IFERROR(VLOOKUP($A26,'2014'!$B$2:$K$157,10,FALSE),0) -> 0.7654320988 | BW26: =IFERROR(VLOOKUP($A26,'2013'!$D$4:$I$249,2,FALSE),0) -> 93 | BX26: =IFERROR(VLOOKUP($A26,'2013'!$D$4:$I$249,3,FALSE),0) -> 42 | BY26: =IFERROR(VLOOKUP($A26,'2013'!$D$4:$I$249,4,FALSE),0) -> 58 | BZ26: =IFERROR(VLOOKUP($A26,'2013'!$D$4:$I$249,5,FALSE),0) -> 0 | CA26: =IFERROR(VLOOKUP($A26,'2013'!$D$4:$I$249,6,FALSE),0) -> 0.623655914 | CB26: =IFERROR(VLOOKUP($A26,'2012'!$D$3:$O$172,2,FALSE),0) -> 800 | CC26: =IFERROR(VLOOKUP($A26,'2012'!$D$3:$O$172,3,FALSE),0) -> 475 | CD26: =IFERROR(VLOOKUP($A26,'2012'!$D$3:$O$172,4,FALSE),0) -> 18 | CE26: =IFERROR(VLOOKUP($A26,'2012'!$D$3:$O$172,5,FALSE),0) -> 76 | CF26: =IFERROR(VLOOKUP($A26,'2012'!$D$3:$O$172,6,FALSE),0) -> 28 | CG26: =IFERROR(VLOOKUP($A26,'2012'!$D$3:$O$172,7,FALSE),0) -> 42 | CH26: =IFERROR(VLOOKUP($A26,'2012'!$D$3:$O$172,8,FALSE),0) -> 0 | CI26: =IFERROR(VLOOKUP($A26,'2012'!$D$3:$O$172,9,FALSE),0) -> 0.5526315789 | CJ26: =IFERROR(VLOOKUP($A26,'2012'!$D$3:$O$172,10,FALSE),0) -> 724 | CK26: =IFERROR(VLOOKUP($A26,'2012'!$D$3:$O$172,11,FALSE),0) -> 433 | CL26: =IFERROR(VLOOKUP($A26,'2012'!$D$3:$O$172,12,FALSE),0) -> 18 | CM26: =IFERROR(VLOOKUP($A26,'2011'!$D$4:$I$251,2,FALSE),0) -> 98 | CN26: =IFERROR(VLOOKUP($A26,'2011'!$D$4:$I$251,3,FALSE),0) -> 53 | CO26: =IFERROR(VLOOKUP($A26,'2011'!$D$4:$I$251,4,FALSE),0) -> 62 | CP26: =IFERROR(VLOOKUP($A26,'2011'!$D$4:$I$251,5,FALSE),0) -> 4 | CQ26: =IFERROR(VLOOKUP($A26,'2011'!$D$4:$I$251,6,FALSE),0) -> 0.6326530612 | CR26: =IFERROR(VLOOKUP($A26,'2010'!$C$3:$H$234,2,FALSE),0) -> 74 | CS26: =IFERROR(VLOOKUP($A26,'2010'!$C$3:$H$234,3,FALSE),0) -> 31 | CT26: =IFERROR(VLOOKUP($A26,'2010'!$C$3:$H$234,4,FALSE),0) -> 49 | CU26: =IFERROR(VLOOKUP($A26,'2010'!$C$3:$H$234,5,FALSE),0) -> 2 | CV26: =IFERROR(VLOOKUP($A26,'2010'!$C$3:$H$234,6,FALSE),0) -> 0.6621621622 | CW26: =IFERROR(VLOOKUP($A26,'2009'!$C$3:$H$242,2,FALSE),0) -> 81 | CX26: =IFERROR(VLOOKUP($A26,'2009'!$C$3:$H$242,3,FALSE),0) -> 31 | CY26: =IFERROR(VLOOKUP($A26,'2009'!$C$3:$H$242,4,FALSE),0) -> 45 | CZ26: =IFERROR(VLOOKUP($A26,'2009'!$C$3:$H$242,5,FALSE),0) -> 1 | DA26: =IFERROR(VLOOKUP($A26,'2009'!$C$3:$H$242,6,FALSE),0) -> 0.5555555556 | DB26: =IFERROR(VLOOKUP($A26,'2008'!$C$3:$H$229,2,FALSE),0) -> 90 | DC26: =IFERROR(VLOOKUP($A26,'2008'!$C$3:$H$229,3,FALSE),0) -> 43 | DD26: =IFERROR(VLOOKUP($A26,'2008'!$C$3:$H$229,4,FALSE),0) -> 59 | DE26: =IFERROR(VLOOKUP($A26,'2008'!$C$3:$H$229,5,FALSE),0) -> 4 | DF26: =IFERROR(VLOOKUP($A26,'2008'!$C$3:$H$229,6,FALSE),0) -> 0.6555555556 | DG26: =IFERROR(VLOOKUP($A26,'2007'!$C$3:$M$238,7,FALSE),0) -> 83 | DH26: =IFERROR(VLOOKUP($A26,'2007'!$C$3:$M$238,8,FALSE),0) -> 28 | DI26: =IFERROR(VLOOKUP($A26,'2007'!$C$3:$M$238,9,FALSE),0) -> 52 | DJ26: =IFERROR(VLOOKUP($A26,'2007'!$C$3:$M$238,10,FALSE),0) -> 1 | DK26: =IFERROR(VLOOKUP($A26,'2007'!$C$3:$M$238,11,FALSE),0) -> 0.6265060241 | DL26: =IFERROR(VLOOKUP($A26,'2006'!$A$2:$F$200,2,FALSE),0) -> 50 | DM26: =IFERROR(VLOOKUP($A26,'2006'!$A$2:$F$200,4,FALSE),0) -> 27 | DN26: =IFERROR(VLOOKUP($A26,'2006'!$A$2:$F$200,5,FALSE),0) -> 1 | DO26: =IFERROR(VLOOKUP($A26,'2006'!$A$2:$F$200,6,FALSE),0) -> 0.54 | DP26: =IFERROR(VLOOKUP($A26,'2005'!$C$3:$M$205,8,FALSE),0) -> 69 | DQ26: =IFERROR(VLOOKUP($A26,'2005'!$C$3:$M$205,9,FALSE),0) -> 40 | DR26: =IFERROR(VLOOKUP($A26,'2005'!$C$3:$M$205,10,FALSE),0) -> 0 | DS26: =IFERROR(VLOOKUP($A26,'2005'!$C$3:$M$205,11,FALSE),0) -> 0.5797101449 | DT26: =IFERROR(VLOOKUP($A26,'2004'!$C$3:$M$213,8,FALSE),0) -> 66 | DU26: =IFERROR(VLOOKUP($A26,'2004'!$C$3:$M$213,9,FALSE),0) -> 32 | DV26: =IFERROR(VLOOKUP($A26,'2004'!$C$3:$M$213,10,FALSE),0) -> 1 | DW26: =IFERROR(VLOOKUP($A26,'2004'!$C$3:$M$213,11,FALSE),0) -> 0.4848484848 | DX26: =IFERROR(VLOOKUP($A26,'2003'!$C$3:$Q$214,12,FALSE),0) -> 66 | DY26: =IFERROR(VLOOKUP($A26,'2003'!$C$3:$Q$214,13,FALSE),0) -> 41 | DZ26: =IFERROR(VLOOKUP($A26,'2003'!$C$3:$Q$214,14,FALSE),0) -> 2 | EA26: =IFERROR(VLOOKUP($A26,'2003'!$C$3:$Q$214,15,FALSE),0) -> 0.6212121212 | EB26: =IFERROR(VLOOKUP($A26,'2002'!$D$3:$R$214,12,FALSE),0) -> 47 | EC26: =IFERROR(VLOOKUP($A26,'2002'!$D$3:$R$214,13,FALSE),0) -> 26 | ED26: =IFERROR(VLOOKUP($A26,'2002'!$D$3:$R$214,14,FALSE),0) -> 2 | EE26: =IFERROR(VLOOKUP($A26,'2002'!$D$3:$R$214,15,FALSE),0) -> 0.5531914894 | EF26: =IFERROR(VLOOKUP($A26,'Pre 2002'!$C$3:$CK$382,84,FALSE),0) -> 0 | EG26: =IFERROR(VLOOKUP($A26,'Pre 2002'!$C$3:$CK$382,85,FALSE),0) -> 0 | EH26: =IFERROR(VLOOKUP($A26,'Pre 2002'!$C$3:$CK$382,86,FALSE),0) -> 0 | EI26: =IFERROR(VLOOKUP($A26,'Pre 2002'!$C$3:$CK$382,87,FALSE),0) -> 0 | EJ26: =IFERROR(VLOOKUP(A26,'Pre 2002'!$C$3:$CG$382,83,FALSE),0) -> 0
A27: Kyle Fritz | B27: 1798 | C27: 1030 | D27: 3 | E27: 0.5728587319 | F27: 26 | G27: 2004 | H27: 16 | I27: 1100 | J27: 635 | K27: 3 | L27: 0.5772727273 | M27: 04 | N27: 0 | O27: =IFERROR(VLOOKUP($A27,'2025'!$A$2:$J$222,4,FALSE),0) -> 0 | P27: =IFERROR(VLOOKUP($A27,'2025'!$A$2:$J$222,5,FALSE),0) -> 0 | Q27: =IFERROR(VLOOKUP($A27,'2025'!$A$2:$J$222,6,FALSE),0) -> 0 | R27: =IFERROR(VLOOKUP($A27,'2025'!$A$2:$J$222,9,FALSE),0) -> 0 | S27: =IFERROR(VLOOKUP($A27,'2025'!$A$2:$J$222,10,FALSE),0) -> 0 | T27: =IFERROR(VLOOKUP($A27,'2024'!$A$2:$M$220,6,FALSE),0) -> 75 | U27: =IFERROR(VLOOKUP($A27,'2024'!$A$2:$M$220,7,FALSE),0) -> 21 | V27: =IFERROR(VLOOKUP($A27,'2024'!$A$2:$M$220,8,FALSE),0) -> 43 | W27: =IFERROR(VLOOKUP($A27,'2024'!$A$2:$M$220,11,FALSE),0) -> 0 | X27: =IFERROR(VLOOKUP($A27,'2024'!$A$2:$M$220,13,FALSE),0) -> 0.573 | Y27: =IFERROR(VLOOKUP($A27,'2023'!$A$2:$M$170,6,FALSE),0) -> 62 | Z27: =IFERROR(VLOOKUP($A27,'2023'!$A$2:$M$170,7,FALSE),0) -> 17 | AA27: =IFERROR(VLOOKUP($A27,'2023'!$A$2:$M$170,8,FALSE),0) -> 38 | AB27: =IFERROR(VLOOKUP($A27,'2023'!$A$2:$M$170,11,FALSE),0) -> 0 | AC27: =IFERROR(VLOOKUP($A27,'2023'!$A$2:$M$170,13,FALSE),0) -> 0.613 | AD27: =IFERROR(VLOOKUP($A27,'2022'!$B$2:$K$174,3,FALSE),0) -> 54 | AE27: =IFERROR(VLOOKUP($A27,'2022'!$B$2:$K$174,4,FALSE),0) -> 17 | AF27: =IFERROR(VLOOKUP($A27,'2022'!$B$2:$K$174,5,FALSE),0) -> 33 | AG27: =IFERROR(VLOOKUP($A27,'2022'!$B$2:$K$174,8,FALSE),0) -> 0 | AH27: =IFERROR(VLOOKUP($A27,'2022'!$B$2:$K$174,10,FALSE),0) -> 0.611 | AI27: =IFERROR(VLOOKUP($A27,'2021'!$B$2:$K$174,3,FALSE),0) -> 42 | AJ27: =IFERROR(VLOOKUP($A27,'2021'!$B$2:$K$174,4,FALSE),0) -> 7 | AK27: =IFERROR(VLOOKUP($A27,'2021'!$B$2:$K$174,5,FALSE),0) -> 13 | AL27: =IFERROR(VLOOKUP($A27,'2021'!$B$2:$K$174,8,FALSE),0) -> 0 | AM27: =IFERROR(VLOOKUP($A27,'2021'!$B$2:$K$174,10,FALSE),0) -> 0.31 | AN27: =IFERROR(VLOOKUP($A27,'2020'!$B$2:$K$170,3,FALSE),0) -> 79 | AO27: =IFERROR(VLOOKUP($A27,'2020'!$B$2:$K$170,4,FALSE),0) -> 32 | AP27: =IFERROR(VLOOKUP($A27,'2020'!$B$2:$K$170,5,FALSE),0) -> 45 | AQ27: =IFERROR(VLOOKUP($A27,'2020'!$B$2:$K$170,8,FALSE),0) -> 0 | AR27: =IFERROR(VLOOKUP($A27,'2020'!$B$2:$K$170,10,FALSE),0) -> 0.57 | AS27: =IFERROR(VLOOKUP($A27,'2019'!$B$2:$K$170,3,FALSE),0) -> 89 | AT27: =IFERROR(VLOOKUP($A27,'2019'!$B$2:$K$170,4,FALSE),0) -> 22 | AU27: =IFERROR(VLOOKUP($A27,'2019'!$B$2:$K$170,5,FALSE),0) -> 50 | AV27: =IFERROR(VLOOKUP($A27,'2019'!$B$2:$K$170,8,FALSE),0) -> 0 | AW27: =IFERROR(VLOOKUP($A27,'2019'!$B$2:$K$170,10,FALSE),0) -> 0.562 | AX27: =IFERROR(VLOOKUP($A27,'2018'!$B$2:$K$170,3,FALSE),0) -> 89 | AY27: =IFERROR(VLOOKUP($A27,'2018'!$B$2:$K$170,4,FALSE),0) -> 32 | AZ27: =IFERROR(VLOOKUP($A27,'2018'!$B$2:$K$170,5,FALSE),0) -> 53 | BA27: =IFERROR(VLOOKUP($A27,'2018'!$B$2:$K$170,8,FALSE),0) -> 0 | BB27: =IFERROR(VLOOKUP($A27,'2018'!$B$2:$K$170,10,FALSE),0) -> 0.596 | BC27: =IFERROR(VLOOKUP($A27,'2017'!$B$2:$J$163,2,FALSE),0) -> 61 | BD27: =IFERROR(VLOOKUP($A27,'2017'!$B$2:$J$163,3,FALSE),0) -> 38 | BE27: =IFERROR(VLOOKUP($A27,'2017'!$B$2:$J$163,4,FALSE),0) -> 36 | BF27: =IFERROR(VLOOKUP($A27,'2017'!$B$2:$J$163,7,FALSE),0) -> 0 | BG27: =IFERROR(VLOOKUP($A27,'2017'!$B$2:$J$163,9,FALSE),0) -> 0.5901639344 | BH27: =IFERROR(VLOOKUP($A27,'2016'!$B$2:$K$165,3,FALSE),0) -> 74 | BI27: =IFERROR(VLOOKUP($A27,'2016'!$B$2:$K$165,4,FALSE),0) -> 44 | BJ27: =IFERROR(VLOOKUP($A27,'2016'!$B$2:$K$165,5,FALSE),0) -> 46 | BK27: =IFERROR(VLOOKUP($A27,'2016'!$B$2:$K$165,8,FALSE),0) -> 0 | BL27: =IFERROR(VLOOKUP($A27,'2016'!$B$2:$K$165,10,FALSE),0) -> 0.622 | BM27: =IFERROR(VLOOKUP($A27,'2015'!$B$2:$K$165,3,FALSE),0) -> 73 | BN27: =IFERROR(VLOOKUP($A27,'2015'!$B$2:$K$165,4,FALSE),0) -> 25 | BO27: =IFERROR(VLOOKUP($A27,'2015'!$B$2:$K$165,5,FALSE),0) -> 38 | BP27: =IFERROR(VLOOKUP($A27,'2015'!$B$2:$K$165,8,FALSE),0) -> 0 | BQ27: =IFERROR(VLOOKUP($A27,'2015'!$B$2:$K$165,10,FALSE),0) -> 0.5205479452 | BR27: =IFERROR(VLOOKUP($A27,'2014'!$B$2:$K$157,3,FALSE),0) -> 92 | BS27: =IFERROR(VLOOKUP($A27,'2014'!$B$2:$K$157,4,FALSE),0) -> 32 | BT27: =IFERROR(VLOOKUP($A27,'2014'!$B$2:$K$157,5,FALSE),0) -> 48 | BU27: =IFERROR(VLOOKUP($A27,'2014'!$B$2:$K$157,8,FALSE),0) -> 0 | BV27: =IFERROR(VLOOKUP($A27,'2014'!$B$2:$K$157,10,FALSE),0) -> 0.5217391304 | BW27: =IFERROR(VLOOKUP($A27,'2013'!$D$4:$I$249,2,FALSE),0) -> 66 | BX27: =IFERROR(VLOOKUP($A27,'2013'!$D$4:$I$249,3,FALSE),0) -> 19 | BY27: =IFERROR(VLOOKUP($A27,'2013'!$D$4:$I$249,4,FALSE),0) -> 37 | BZ27: =IFERROR(VLOOKUP($A27,'2013'!$D$4:$I$249,5,FALSE),0) -> 0 | CA27: =IFERROR(VLOOKUP($A27,'2013'!$D$4:$I$249,6,FALSE),0) -> 0.5606060606 | CB27: =IFERROR(VLOOKUP($A27,'2012'!$D$3:$O$172,2,FALSE),0) -> 942 | CC27: =IFERROR(VLOOKUP($A27,'2012'!$D$3:$O$172,3,FALSE),0) -> 552 | CD27: =IFERROR(VLOOKUP($A27,'2012'!$D$3:$O$172,4,FALSE),0) -> 3 | CE27: =IFERROR(VLOOKUP($A27,'2012'!$D$3:$O$172,5,FALSE),0) -> 67 | CF27: =IFERROR(VLOOKUP($A27,'2012'!$D$3:$O$172,6,FALSE),0) -> 26 | CG27: =IFERROR(VLOOKUP($A27,'2012'!$D$3:$O$172,7,FALSE),0) -> 42 | CH27: =IFERROR(VLOOKUP($A27,'2012'!$D$3:$O$172,8,FALSE),0) -> 0 | CI27: =IFERROR(VLOOKUP($A27,'2012'!$D$3:$O$172,9,FALSE),0) -> 0.6268656716 | CJ27: =IFERROR(VLOOKUP($A27,'2012'!$D$3:$O$172,10,FALSE),0) -> 875 | CK27: =IFERROR(VLOOKUP($A27,'2012'!$D$3:$O$172,11,FALSE),0) -> 510 | CL27: =IFERROR(VLOOKUP($A27,'2012'!$D$3:$O$172,12,FALSE),0) -> 3 | CM27: =IFERROR(VLOOKUP($A27,'2011'!$D$4:$I$251,2,FALSE),0) -> 67 | CN27: =IFERROR(VLOOKUP($A27,'2011'!$D$4:$I$251,3,FALSE),0) -> 24 | CO27: =IFERROR(VLOOKUP($A27,'2011'!$D$4:$I$251,4,FALSE),0) -> 36 | CP27: =IFERROR(VLOOKUP($A27,'2011'!$D$4:$I$251,5,FALSE),0) -> 0 | CQ27: =IFERROR(VLOOKUP($A27,'2011'!$D$4:$I$251,6,FALSE),0) -> 0.5373134328 | CR27: =IFERROR(VLOOKUP($A27,'2010'!$C$3:$H$234,2,FALSE),0) -> 67 | CS27: =IFERROR(VLOOKUP($A27,'2010'!$C$3:$H$234,3,FALSE),0) -> 24 | CT27: =IFERROR(VLOOKUP($A27,'2010'!$C$3:$H$234,4,FALSE),0) -> 30 | CU27: =IFERROR(VLOOKUP($A27,'2010'!$C$3:$H$234,5,FALSE),0) -> 1 | CV27: =IFERROR(VLOOKUP($A27,'2010'!$C$3:$H$234,6,FALSE),0) -> 0.447761194 | CW27: =IFERROR(VLOOKUP($A27,'2009'!$C$3:$H$242,2,FALSE),0) -> 67 | CX27: =IFERROR(VLOOKUP($A27,'2009'!$C$3:$H$242,3,FALSE),0) -> 21 | CY27: =IFERROR(VLOOKUP($A27,'2009'!$C$3:$H$242,4,FALSE),0) -> 40 | CZ27: =IFERROR(VLOOKUP($A27,'2009'!$C$3:$H$242,5,FALSE),0) -> 0 | DA27: =IFERROR(VLOOKUP($A27,'2009'!$C$3:$H$242,6,FALSE),0) -> 0.5970149254 | DB27: =IFERROR(VLOOKUP($A27,'2008'!$C$3:$H$229,2,FALSE),0) -> 82 | DC27: =IFERROR(VLOOKUP($A27,'2008'!$C$3:$H$229,3,FALSE),0) -> 28 | DD27: =IFERROR(VLOOKUP($A27,'2008'!$C$3:$H$229,4,FALSE),0) -> 54 | DE27: =IFERROR(VLOOKUP($A27,'2008'!$C$3:$H$229,5,FALSE),0) -> 0 | DF27: =IFERROR(VLOOKUP($A27,'2008'!$C$3:$H$229,6,FALSE),0) -> 0.6585365854 | DG27: =IFERROR(VLOOKUP($A27,'2007'!$C$3:$M$238,7,FALSE),0) -> 67 | DH27: =IFERROR(VLOOKUP($A27,'2007'!$C$3:$M$238,8,FALSE),0) -> 22 | DI27: =IFERROR(VLOOKUP($A27,'2007'!$C$3:$M$238,9,FALSE),0) -> 32 | DJ27: =IFERROR(VLOOKUP($A27,'2007'!$C$3:$M$238,10,FALSE),0) -> 0 | DK27: =IFERROR(VLOOKUP($A27,'2007'!$C$3:$M$238,11,FALSE),0) -> 0.4776119403 | DL27: =IFERROR(VLOOKUP($A27,'2006'!$A$2:$F$200,2,FALSE),0) -> 77 | DM27: =IFERROR(VLOOKUP($A27,'2006'!$A$2:$F$200,4,FALSE),0) -> 45 | DN27: =IFERROR(VLOOKUP($A27,'2006'!$A$2:$F$200,5,FALSE),0) -> 0 | DO27: =IFERROR(VLOOKUP($A27,'2006'!$A$2:$F$200,6,FALSE),0) -> 0.5844155844 | DP27: =IFERROR(VLOOKUP($A27,'2005'!$C$3:$M$205,8,FALSE),0) -> 71 | DQ27: =IFERROR(VLOOKUP($A27,'2005'!$C$3:$M$205,9,FALSE),0) -> 41 | DR27: =IFERROR(VLOOKUP($A27,'2005'!$C$3:$M$205,10,FALSE),0) -> 0 | DS27: =IFERROR(VLOOKUP($A27,'2005'!$C$3:$M$205,11,FALSE),0) -> 0.5774647887 | DT27: =IFERROR(VLOOKUP($A27,'2004'!$C$3:$M$213,8,FALSE),0) -> 73 | DU27: =IFERROR(VLOOKUP($A27,'2004'!$C$3:$M$213,9,FALSE),0) -> 46 | DV27: =IFERROR(VLOOKUP($A27,'2004'!$C$3:$M$213,10,FALSE),0) -> 0 | DW27: =IFERROR(VLOOKUP($A27,'2004'!$C$3:$M$213,11,FALSE),0) -> 0.6301369863 | DX27: =IFERROR(VLOOKUP($A27,'2003'!$C$3:$Q$214,12,FALSE),0) -> 75 | DY27: =IFERROR(VLOOKUP($A27,'2003'!$C$3:$Q$214,13,FALSE),0) -> 46 | DZ27: =IFERROR(VLOOKUP($A27,'2003'!$C$3:$Q$214,14,FALSE),0) -> 1 | EA27: =IFERROR(VLOOKUP($A27,'2003'!$C$3:$Q$214,15,FALSE),0) -> 0.6133333333 | EB27: =IFERROR(VLOOKUP($A27,'2002'!$D$3:$R$214,12,FALSE),0) -> 55 | EC27: =IFERROR(VLOOKUP($A27,'2002'!$D$3:$R$214,13,FALSE),0) -> 35 | ED27: =IFERROR(VLOOKUP($A27,'2002'!$D$3:$R$214,14,FALSE),0) -> 0 | EE27: =IFERROR(VLOOKUP($A27,'2002'!$D$3:$R$214,15,FALSE),0) -> 0.6363636364 | EF27: =IFERROR(VLOOKUP($A27,'Pre 2002'!$C$3:$CK$382,84,FALSE),0) -> 174 | EG27: =IFERROR(VLOOKUP($A27,'Pre 2002'!$C$3:$CK$382,85,FALSE),0) -> 103 | EH27: =IFERROR(VLOOKUP($A27,'Pre 2002'!$C$3:$CK$382,86,FALSE),0) -> 1 | EI27: =IFERROR(VLOOKUP($A27,'Pre 2002'!$C$3:$CK$382,87,FALSE),0) -> 0.591954023 | EJ27: =IFERROR(VLOOKUP(A27,'Pre 2002'!$C$3:$CG$382,83,FALSE),0) -> 3
A28: Ricky Slater | B28: 1661 | C28: 1027 | D28: 46 | E28: 0.6183022276 | F28: 22 | G28: 2002 | H28: 14 | I28: 1061 | J28: 676 | K28: 42 | L28: 0.6371347785 | M28: 02 | N28: 1 | O28: =IFERROR(VLOOKUP($A28,'2025'!$A$2:$J$222,4,FALSE),0) -> 0 | P28: =IFERROR(VLOOKUP($A28,'2025'!$A$2:$J$222,5,FALSE),0) -> 0 | Q28: =IFERROR(VLOOKUP($A28,'2025'!$A$2:$J$222,6,FALSE),0) -> 0 | R28: =IFERROR(VLOOKUP($A28,'2025'!$A$2:$J$222,9,FALSE),0) -> 0 | S28: =IFERROR(VLOOKUP($A28,'2025'!$A$2:$J$222,10,FALSE),0) -> 0 | T28: =IFERROR(VLOOKUP($A28,'2024'!$A$2:$M$220,6,FALSE),0) -> 0 | U28: =IFERROR(VLOOKUP($A28,'2024'!$A$2:$M$220,7,FALSE),0) -> 0 | V28: =IFERROR(VLOOKUP($A28,'2024'!$A$2:$M$220,8,FALSE),0) -> 0 | W28: =IFERROR(VLOOKUP($A28,'2024'!$A$2:$M$220,11,FALSE),0) -> 0 | X28: =IFERROR(VLOOKUP($A28,'2024'!$A$2:$M$220,13,FALSE),0) -> 0 | Y28: =IFERROR(VLOOKUP($A28,'2023'!$A$2:$M$170,6,FALSE),0) -> 0 | Z28: =IFERROR(VLOOKUP($A28,'2023'!$A$2:$M$170,7,FALSE),0) -> 0 | AA28: =IFERROR(VLOOKUP($A28,'2023'!$A$2:$M$170,8,FALSE),0) -> 0 | AB28: =IFERROR(VLOOKUP($A28,'2023'!$A$2:$M$170,11,FALSE),0) -> 0 | AC28: =IFERROR(VLOOKUP($A28,'2023'!$A$2:$M$170,13,FALSE),0) -> 0 | AD28: =IFERROR(VLOOKUP($A28,'2022'!$B$2:$K$174,3,FALSE),0) -> 34 | AE28: =IFERROR(VLOOKUP($A28,'2022'!$B$2:$K$174,4,FALSE),0) -> 8 | AF28: =IFERROR(VLOOKUP($A28,'2022'!$B$2:$K$174,5,FALSE),0) -> 18 | AG28: =IFERROR(VLOOKUP($A28,'2022'!$B$2:$K$174,8,FALSE),0) -> 0 | AH28: =IFERROR(VLOOKUP($A28,'2022'!$B$2:$K$174,10,FALSE),0) -> 0.529 | AI28: =IFERROR(VLOOKUP($A28,'2021'!$B$2:$K$174,3,FALSE),0) -> 81 | AJ28: =IFERROR(VLOOKUP($A28,'2021'!$B$2:$K$174,4,FALSE),0) -> 29 | AK28: =IFERROR(VLOOKUP($A28,'2021'!$B$2:$K$174,5,FALSE),0) -> 46 | AL28: =IFERROR(VLOOKUP($A28,'2021'!$B$2:$K$174,8,FALSE),0) -> 1 | AM28: =IFERROR(VLOOKUP($A28,'2021'!$B$2:$K$174,10,FALSE),0) -> 0.568 | AN28: =IFERROR(VLOOKUP($A28,'2020'!$B$2:$K$170,3,FALSE),0) -> 77 | AO28: =IFERROR(VLOOKUP($A28,'2020'!$B$2:$K$170,4,FALSE),0) -> 26 | AP28: =IFERROR(VLOOKUP($A28,'2020'!$B$2:$K$170,5,FALSE),0) -> 46 | AQ28: =IFERROR(VLOOKUP($A28,'2020'!$B$2:$K$170,8,FALSE),0) -> 0 | AR28: =IFERROR(VLOOKUP($A28,'2020'!$B$2:$K$170,10,FALSE),0) -> 0.597 | AS28: =IFERROR(VLOOKUP($A28,'2019'!$B$2:$K$170,3,FALSE),0) -> 87 | AT28: =IFERROR(VLOOKUP($A28,'2019'!$B$2:$K$170,4,FALSE),0) -> 28 | AU28: =IFERROR(VLOOKUP($A28,'2019'!$B$2:$K$170,5,FALSE),0) -> 54 | AV28: =IFERROR(VLOOKUP($A28,'2019'!$B$2:$K$170,8,FALSE),0) -> 0 | AW28: =IFERROR(VLOOKUP($A28,'2019'!$B$2:$K$170,10,FALSE),0) -> 0.621 | AX28: =IFERROR(VLOOKUP($A28,'2018'!$B$2:$K$170,3,FALSE),0) -> 84 | AY28: =IFERROR(VLOOKUP($A28,'2018'!$B$2:$K$170,4,FALSE),0) -> 38 | AZ28: =IFERROR(VLOOKUP($A28,'2018'!$B$2:$K$170,5,FALSE),0) -> 47 | BA28: =IFERROR(VLOOKUP($A28,'2018'!$B$2:$K$170,8,FALSE),0) -> 0 | BB28: =IFERROR(VLOOKUP($A28,'2018'!$B$2:$K$170,10,FALSE),0) -> 0.56 | BC28: =IFERROR(VLOOKUP($A28,'2017'!$B$2:$J$163,2,FALSE),0) -> 80 | BD28: =IFERROR(VLOOKUP($A28,'2017'!$B$2:$J$163,3,FALSE),0) -> 36 | BE28: =IFERROR(VLOOKUP($A28,'2017'!$B$2:$J$163,4,FALSE),0) -> 44 | BF28: =IFERROR(VLOOKUP($A28,'2017'!$B$2:$J$163,7,FALSE),0) -> 2 | BG28: =IFERROR(VLOOKUP($A28,'2017'!$B$2:$J$163,9,FALSE),0) -> 0.55 | BH28: =IFERROR(VLOOKUP($A28,'2016'!$B$2:$K$165,3,FALSE),0) -> 83 | BI28: =IFERROR(VLOOKUP($A28,'2016'!$B$2:$K$165,4,FALSE),0) -> 36 | BJ28: =IFERROR(VLOOKUP($A28,'2016'!$B$2:$K$165,5,FALSE),0) -> 51 | BK28: =IFERROR(VLOOKUP($A28,'2016'!$B$2:$K$165,8,FALSE),0) -> 1 | BL28: =IFERROR(VLOOKUP($A28,'2016'!$B$2:$K$165,10,FALSE),0) -> 0.614 | BM28: =IFERROR(VLOOKUP($A28,'2015'!$B$2:$K$165,3,FALSE),0) -> 74 | BN28: =IFERROR(VLOOKUP($A28,'2015'!$B$2:$K$165,4,FALSE),0) -> 32 | BO28: =IFERROR(VLOOKUP($A28,'2015'!$B$2:$K$165,5,FALSE),0) -> 45 | BP28: =IFERROR(VLOOKUP($A28,'2015'!$B$2:$K$165,8,FALSE),0) -> 0 | BQ28: =IFERROR(VLOOKUP($A28,'2015'!$B$2:$K$165,10,FALSE),0) -> 0.6081081081 | BR28: =IFERROR(VLOOKUP($A28,'2014'!$B$2:$K$157,3,FALSE),0) -> 89 | BS28: =IFERROR(VLOOKUP($A28,'2014'!$B$2:$K$157,4,FALSE),0) -> 46 | BT28: =IFERROR(VLOOKUP($A28,'2014'!$B$2:$K$157,5,FALSE),0) -> 57 | BU28: =IFERROR(VLOOKUP($A28,'2014'!$B$2:$K$157,8,FALSE),0) -> 0 | BV28: =IFERROR(VLOOKUP($A28,'2014'!$B$2:$K$157,10,FALSE),0) -> 0.6404494382 | BW28: =IFERROR(VLOOKUP($A28,'2013'!$D$4:$I$249,2,FALSE),0) -> 79 | BX28: =IFERROR(VLOOKUP($A28,'2013'!$D$4:$I$249,3,FALSE),0) -> 40 | BY28: =IFERROR(VLOOKUP($A28,'2013'!$D$4:$I$249,4,FALSE),0) -> 48 | BZ28: =IFERROR(VLOOKUP($A28,'2013'!$D$4:$I$249,5,FALSE),0) -> 0 | CA28: =IFERROR(VLOOKUP($A28,'2013'!$D$4:$I$249,6,FALSE),0) -> 0.6075949367 | CB28: =IFERROR(VLOOKUP($A28,'2012'!$D$3:$O$172,2,FALSE),0) -> 893 | CC28: =IFERROR(VLOOKUP($A28,'2012'!$D$3:$O$172,3,FALSE),0) -> 571 | CD28: =IFERROR(VLOOKUP($A28,'2012'!$D$3:$O$172,4,FALSE),0) -> 42 | CE28: =IFERROR(VLOOKUP($A28,'2012'!$D$3:$O$172,5,FALSE),0) -> 84 | CF28: =IFERROR(VLOOKUP($A28,'2012'!$D$3:$O$172,6,FALSE),0) -> 50 | CG28: =IFERROR(VLOOKUP($A28,'2012'!$D$3:$O$172,7,FALSE),0) -> 56 | CH28: =IFERROR(VLOOKUP($A28,'2012'!$D$3:$O$172,8,FALSE),0) -> 5 | CI28: =IFERROR(VLOOKUP($A28,'2012'!$D$3:$O$172,9,FALSE),0) -> 0.6666666667 | CJ28: =IFERROR(VLOOKUP($A28,'2012'!$D$3:$O$172,10,FALSE),0) -> 809 | CK28: =IFERROR(VLOOKUP($A28,'2012'!$D$3:$O$172,11,FALSE),0) -> 515 | CL28: =IFERROR(VLOOKUP($A28,'2012'!$D$3:$O$172,12,FALSE),0) -> 37 | CM28: =IFERROR(VLOOKUP($A28,'2011'!$D$4:$I$251,2,FALSE),0) -> 82 | CN28: =IFERROR(VLOOKUP($A28,'2011'!$D$4:$I$251,3,FALSE),0) -> 45 | CO28: =IFERROR(VLOOKUP($A28,'2011'!$D$4:$I$251,4,FALSE),0) -> 52 | CP28: =IFERROR(VLOOKUP($A28,'2011'!$D$4:$I$251,5,FALSE),0) -> 3 | CQ28: =IFERROR(VLOOKUP($A28,'2011'!$D$4:$I$251,6,FALSE),0) -> 0.6341463415 | CR28: =IFERROR(VLOOKUP($A28,'2010'!$C$3:$H$234,2,FALSE),0) -> 80 | CS28: =IFERROR(VLOOKUP($A28,'2010'!$C$3:$H$234,3,FALSE),0) -> 42 | CT28: =IFERROR(VLOOKUP($A28,'2010'!$C$3:$H$234,4,FALSE),0) -> 47 | CU28: =IFERROR(VLOOKUP($A28,'2010'!$C$3:$H$234,5,FALSE),0) -> 2 | CV28: =IFERROR(VLOOKUP($A28,'2010'!$C$3:$H$234,6,FALSE),0) -> 0.5875 | CW28: =IFERROR(VLOOKUP($A28,'2009'!$C$3:$H$242,2,FALSE),0) -> 86 | CX28: =IFERROR(VLOOKUP($A28,'2009'!$C$3:$H$242,3,FALSE),0) -> 41 | CY28: =IFERROR(VLOOKUP($A28,'2009'!$C$3:$H$242,4,FALSE),0) -> 52 | CZ28: =IFERROR(VLOOKUP($A28,'2009'!$C$3:$H$242,5,FALSE),0) -> 5 | DA28: =IFERROR(VLOOKUP($A28,'2009'!$C$3:$H$242,6,FALSE),0) -> 0.6046511628 | DB28: =IFERROR(VLOOKUP($A28,'2008'!$C$3:$H$229,2,FALSE),0) -> 82 | DC28: =IFERROR(VLOOKUP($A28,'2008'!$C$3:$H$229,3,FALSE),0) -> 54 | DD28: =IFERROR(VLOOKUP($A28,'2008'!$C$3:$H$229,4,FALSE),0) -> 59 | DE28: =IFERROR(VLOOKUP($A28,'2008'!$C$3:$H$229,5,FALSE),0) -> 6 | DF28: =IFERROR(VLOOKUP($A28,'2008'!$C$3:$H$229,6,FALSE),0) -> 0.7195121951 | DG28: =IFERROR(VLOOKUP($A28,'2007'!$C$3:$M$238,7,FALSE),0) -> 68 | DH28: =IFERROR(VLOOKUP($A28,'2007'!$C$3:$M$238,8,FALSE),0) -> 26 | DI28: =IFERROR(VLOOKUP($A28,'2007'!$C$3:$M$238,9,FALSE),0) -> 39 | DJ28: =IFERROR(VLOOKUP($A28,'2007'!$C$3:$M$238,10,FALSE),0) -> 3 | DK28: =IFERROR(VLOOKUP($A28,'2007'!$C$3:$M$238,11,FALSE),0) -> 0.5735294118 | DL28: =IFERROR(VLOOKUP($A28,'2006'!$A$2:$F$200,2,FALSE),0) -> 54 | DM28: =IFERROR(VLOOKUP($A28,'2006'!$A$2:$F$200,4,FALSE),0) -> 29 | DN28: =IFERROR(VLOOKUP($A28,'2006'!$A$2:$F$200,5,FALSE),0) -> 1 | DO28: =IFERROR(VLOOKUP($A28,'2006'!$A$2:$F$200,6,FALSE),0) -> 0.537037037 | DP28: =IFERROR(VLOOKUP($A28,'2005'!$C$3:$M$205,8,FALSE),0) -> 85 | DQ28: =IFERROR(VLOOKUP($A28,'2005'!$C$3:$M$205,9,FALSE),0) -> 53 | DR28: =IFERROR(VLOOKUP($A28,'2005'!$C$3:$M$205,10,FALSE),0) -> 4 | DS28: =IFERROR(VLOOKUP($A28,'2005'!$C$3:$M$205,11,FALSE),0) -> 0.6235294118 | DT28: =IFERROR(VLOOKUP($A28,'2004'!$C$3:$M$213,8,FALSE),0) -> 91 | DU28: =IFERROR(VLOOKUP($A28,'2004'!$C$3:$M$213,9,FALSE),0) -> 52 | DV28: =IFERROR(VLOOKUP($A28,'2004'!$C$3:$M$213,10,FALSE),0) -> 1 | DW28: =IFERROR(VLOOKUP($A28,'2004'!$C$3:$M$213,11,FALSE),0) -> 0.5714285714 | DX28: =IFERROR(VLOOKUP($A28,'2003'!$C$3:$Q$214,12,FALSE),0) -> 65 | DY28: =IFERROR(VLOOKUP($A28,'2003'!$C$3:$Q$214,13,FALSE),0) -> 46 | DZ28: =IFERROR(VLOOKUP($A28,'2003'!$C$3:$Q$214,14,FALSE),0) -> 5 | EA28: =IFERROR(VLOOKUP($A28,'2003'!$C$3:$Q$214,15,FALSE),0) -> 0.7076923077 | EB28: =IFERROR(VLOOKUP($A28,'2002'!$D$3:$R$214,12,FALSE),0) -> 67 | EC28: =IFERROR(VLOOKUP($A28,'2002'!$D$3:$R$214,13,FALSE),0) -> 54 | ED28: =IFERROR(VLOOKUP($A28,'2002'!$D$3:$R$214,14,FALSE),0) -> 6 | EE28: =IFERROR(VLOOKUP($A28,'2002'!$D$3:$R$214,15,FALSE),0) -> 0.8059701493 | EF28: =IFERROR(VLOOKUP($A28,'Pre 2002'!$C$3:$CK$382,84,FALSE),0) -> 49 | EG28: =IFERROR(VLOOKUP($A28,'Pre 2002'!$C$3:$CK$382,85,FALSE),0) -> 32 | EH28: =IFERROR(VLOOKUP($A28,'Pre 2002'!$C$3:$CK$382,86,FALSE),0) -> 1 | EI28: =IFERROR(VLOOKUP($A28,'Pre 2002'!$C$3:$CK$382,87,FALSE),0) -> 0.6530612245 | EJ28: =IFERROR(VLOOKUP(A28,'Pre 2002'!$C$3:$CG$382,83,FALSE),0) -> 1
A29: John Vackaro | B29: 1813 | C29: 1023 | D29: 64 | E29: 0.5642581357 | F29: 29 | G29: 1990 | H29: 26 | I29: 1686 | J29: 965 | K29: 64 | L29: 0.5723606168 | M29: 90 | N29: 4 | O29: =IFERROR(VLOOKUP($A29,'2025'!$A$2:$J$222,4,FALSE),0) -> 0 | P29: =IFERROR(VLOOKUP($A29,'2025'!$A$2:$J$222,5,FALSE),0) -> 0 | Q29: =IFERROR(VLOOKUP($A29,'2025'!$A$2:$J$222,6,FALSE),0) -> 0 | R29: =IFERROR(VLOOKUP($A29,'2025'!$A$2:$J$222,9,FALSE),0) -> 0 | S29: =IFERROR(VLOOKUP($A29,'2025'!$A$2:$J$222,10,FALSE),0) -> 0 | T29: =IFERROR(VLOOKUP($A29,'2024'!$A$2:$M$220,6,FALSE),0) -> 0 | U29: =IFERROR(VLOOKUP($A29,'2024'!$A$2:$M$220,7,FALSE),0) -> 0 | V29: =IFERROR(VLOOKUP($A29,'2024'!$A$2:$M$220,8,FALSE),0) -> 0 | W29: =IFERROR(VLOOKUP($A29,'2024'!$A$2:$M$220,11,FALSE),0) -> 0 | X29: =IFERROR(VLOOKUP($A29,'2024'!$A$2:$M$220,13,FALSE),0) -> 0 | Y29: =IFERROR(VLOOKUP($A29,'2023'!$A$2:$M$170,6,FALSE),0) -> 0 | Z29: =IFERROR(VLOOKUP($A29,'2023'!$A$2:$M$170,7,FALSE),0) -> 0 | AA29: =IFERROR(VLOOKUP($A29,'2023'!$A$2:$M$170,8,FALSE),0) -> 0 | AB29: =IFERROR(VLOOKUP($A29,'2023'!$A$2:$M$170,11,FALSE),0) -> 0 | AC29: =IFERROR(VLOOKUP($A29,'2023'!$A$2:$M$170,13,FALSE),0) -> 0 | AD29: =IFERROR(VLOOKUP($A29,'2022'!$B$2:$K$174,3,FALSE),0) -> 0 | AE29: =IFERROR(VLOOKUP($A29,'2022'!$B$2:$K$174,4,FALSE),0) -> 0 | AF29: =IFERROR(VLOOKUP($A29,'2022'!$B$2:$K$174,5,FALSE),0) -> 0 | AG29: =IFERROR(VLOOKUP($A29,'2022'!$B$2:$K$174,8,FALSE),0) -> 0 | AH29: =IFERROR(VLOOKUP($A29,'2022'!$B$2:$K$174,10,FALSE),0) -> 0 | AI29: =IFERROR(VLOOKUP($A29,'2021'!$B$2:$K$174,3,FALSE),0) -> 0 | AJ29: =IFERROR(VLOOKUP($A29,'2021'!$B$2:$K$174,4,FALSE),0) -> 0 | AK29: =IFERROR(VLOOKUP($A29,'2021'!$B$2:$K$174,5,FALSE),0) -> 0 | AL29: =IFERROR(VLOOKUP($A29,'2021'!$B$2:$K$174,8,FALSE),0) -> 0 | AM29: =IFERROR(VLOOKUP($A29,'2021'!$B$2:$K$174,10,FALSE),0) -> 0 | AN29: =IFERROR(VLOOKUP($A29,'2020'!$B$2:$K$170,3,FALSE),0) -> 0 | AO29: =IFERROR(VLOOKUP($A29,'2020'!$B$2:$K$170,4,FALSE),0) -> 0 | AP29: =IFERROR(VLOOKUP($A29,'2020'!$B$2:$K$170,5,FALSE),0) -> 0 | AQ29: =IFERROR(VLOOKUP($A29,'2020'!$B$2:$K$170,8,FALSE),0) -> 0 | AR29: =IFERROR(VLOOKUP($A29,'2020'!$B$2:$K$170,10,FALSE),0) -> 0 | AS29: =IFERROR(VLOOKUP($A29,'2019'!$B$2:$K$170,3,FALSE),0) -> 0 | AT29: =IFERROR(VLOOKUP($A29,'2019'!$B$2:$K$170,4,FALSE),0) -> 0 | AU29: =IFERROR(VLOOKUP($A29,'2019'!$B$2:$K$170,5,FALSE),0) -> 0 | AV29: =IFERROR(VLOOKUP($A29,'2019'!$B$2:$K$170,8,FALSE),0) -> 0 | AW29: =IFERROR(VLOOKUP($A29,'2019'!$B$2:$K$170,10,FALSE),0) -> 0 | AX29: =IFERROR(VLOOKUP($A29,'2018'!$B$2:$K$170,3,FALSE),0) -> 0 | AY29: =IFERROR(VLOOKUP($A29,'2018'!$B$2:$K$170,4,FALSE),0) -> 0 | AZ29: =IFERROR(VLOOKUP($A29,'2018'!$B$2:$K$170,5,FALSE),0) -> 0 | BA29: =IFERROR(VLOOKUP($A29,'2018'!$B$2:$K$170,8,FALSE),0) -> 0 | BB29: =IFERROR(VLOOKUP($A29,'2018'!$B$2:$K$170,10,FALSE),0) -> 0 | BC29: =IFERROR(VLOOKUP($A29,'2017'!$B$2:$J$163,2,FALSE),0) -> 12 | BD29: =IFERROR(VLOOKUP($A29,'2017'!$B$2:$J$163,3,FALSE),0) -> 1 | BE29: =IFERROR(VLOOKUP($A29,'2017'!$B$2:$J$163,4,FALSE),0) -> 5 | BF29: =IFERROR(VLOOKUP($A29,'2017'!$B$2:$J$163,7,FALSE),0) -> 0 | BG29: =IFERROR(VLOOKUP($A29,'2017'!$B$2:$J$163,9,FALSE),0) -> 0.4166666667 | BH29: =IFERROR(VLOOKUP($A29,'2016'!$B$2:$K$165,3,FALSE),0) -> 79 | BI29: =IFERROR(VLOOKUP($A29,'2016'!$B$2:$K$165,4,FALSE),0) -> 18 | BJ29: =IFERROR(VLOOKUP($A29,'2016'!$B$2:$K$165,5,FALSE),0) -> 39 | BK29: =IFERROR(VLOOKUP($A29,'2016'!$B$2:$K$165,8,FALSE),0) -> 0 | BL29: =IFERROR(VLOOKUP($A29,'2016'!$B$2:$K$165,10,FALSE),0) -> 0.494 | BM29: =IFERROR(VLOOKUP($A29,'2015'!$B$2:$K$165,3,FALSE),0) -> 36 | BN29: =IFERROR(VLOOKUP($A29,'2015'!$B$2:$K$165,4,FALSE),0) -> 8 | BO29: =IFERROR(VLOOKUP($A29,'2015'!$B$2:$K$165,5,FALSE),0) -> 14 | BP29: =IFERROR(VLOOKUP($A29,'2015'!$B$2:$K$165,8,FALSE),0) -> 0 | BQ29: =IFERROR(VLOOKUP($A29,'2015'!$B$2:$K$165,10,FALSE),0) -> 0.3888888889 | BR29: =IFERROR(VLOOKUP($A29,'2014'!$B$2:$K$157,3,FALSE),0) -> 72 | BS29: =IFERROR(VLOOKUP($A29,'2014'!$B$2:$K$157,4,FALSE),0) -> 39 | BT29: =IFERROR(VLOOKUP($A29,'2014'!$B$2:$K$157,5,FALSE),0) -> 50 | BU29: =IFERROR(VLOOKUP($A29,'2014'!$B$2:$K$157,8,FALSE),0) -> 0 | BV29: =IFERROR(VLOOKUP($A29,'2014'!$B$2:$K$157,10,FALSE),0) -> 0.6944444444 | BW29: =IFERROR(VLOOKUP($A29,'2013'!$D$4:$I$249,2,FALSE),0) -> 69 | BX29: =IFERROR(VLOOKUP($A29,'2013'!$D$4:$I$249,3,FALSE),0) -> 13 | BY29: =IFERROR(VLOOKUP($A29,'2013'!$D$4:$I$249,4,FALSE),0) -> 35 | BZ29: =IFERROR(VLOOKUP($A29,'2013'!$D$4:$I$249,5,FALSE),0) -> 0 | CA29: =IFERROR(VLOOKUP($A29,'2013'!$D$4:$I$249,6,FALSE),0) -> 0.5072463768 | CB29: =IFERROR(VLOOKUP($A29,'2012'!$D$3:$O$172,2,FALSE),0) -> 1534 | CC29: =IFERROR(VLOOKUP($A29,'2012'!$D$3:$O$172,3,FALSE),0) -> 873 | CD29: =IFERROR(VLOOKUP($A29,'2012'!$D$3:$O$172,4,FALSE),0) -> 64 | CE29: =IFERROR(VLOOKUP($A29,'2012'!$D$3:$O$172,5,FALSE),0) -> 71 | CF29: =IFERROR(VLOOKUP($A29,'2012'!$D$3:$O$172,6,FALSE),0) -> 24 | CG29: =IFERROR(VLOOKUP($A29,'2012'!$D$3:$O$172,7,FALSE),0) -> 47 | CH29: =IFERROR(VLOOKUP($A29,'2012'!$D$3:$O$172,8,FALSE),0) -> 3 | CI29: =IFERROR(VLOOKUP($A29,'2012'!$D$3:$O$172,9,FALSE),0) -> 0.661971831 | CJ29: =IFERROR(VLOOKUP($A29,'2012'!$D$3:$O$172,10,FALSE),0) -> 1463 | CK29: =IFERROR(VLOOKUP($A29,'2012'!$D$3:$O$172,11,FALSE),0) -> 826 | CL29: =IFERROR(VLOOKUP($A29,'2012'!$D$3:$O$172,12,FALSE),0) -> 61 | CM29: =IFERROR(VLOOKUP($A29,'2011'!$D$4:$I$251,2,FALSE),0) -> 86 | CN29: =IFERROR(VLOOKUP($A29,'2011'!$D$4:$I$251,3,FALSE),0) -> 45 | CO29: =IFERROR(VLOOKUP($A29,'2011'!$D$4:$I$251,4,FALSE),0) -> 57 | CP29: =IFERROR(VLOOKUP($A29,'2011'!$D$4:$I$251,5,FALSE),0) -> 4 | CQ29: =IFERROR(VLOOKUP($A29,'2011'!$D$4:$I$251,6,FALSE),0) -> 0.6627906977 | CR29: =IFERROR(VLOOKUP($A29,'2010'!$C$3:$H$234,2,FALSE),0) -> 57 | CS29: =IFERROR(VLOOKUP($A29,'2010'!$C$3:$H$234,3,FALSE),0) -> 19 | CT29: =IFERROR(VLOOKUP($A29,'2010'!$C$3:$H$234,4,FALSE),0) -> 30 | CU29: =IFERROR(VLOOKUP($A29,'2010'!$C$3:$H$234,5,FALSE),0) -> 1 | CV29: =IFERROR(VLOOKUP($A29,'2010'!$C$3:$H$234,6,FALSE),0) -> 0.5263157895 | CW29: =IFERROR(VLOOKUP($A29,'2009'!$C$3:$H$242,2,FALSE),0) -> 73 | CX29: =IFERROR(VLOOKUP($A29,'2009'!$C$3:$H$242,3,FALSE),0) -> 27 | CY29: =IFERROR(VLOOKUP($A29,'2009'!$C$3:$H$242,4,FALSE),0) -> 41 | CZ29: =IFERROR(VLOOKUP($A29,'2009'!$C$3:$H$242,5,FALSE),0) -> 4 | DA29: =IFERROR(VLOOKUP($A29,'2009'!$C$3:$H$242,6,FALSE),0) -> 0.5616438356 | DB29: =IFERROR(VLOOKUP($A29,'2008'!$C$3:$H$229,2,FALSE),0) -> 85 | DC29: =IFERROR(VLOOKUP($A29,'2008'!$C$3:$H$229,3,FALSE),0) -> 39 | DD29: =IFERROR(VLOOKUP($A29,'2008'!$C$3:$H$229,4,FALSE),0) -> 54 | DE29: =IFERROR(VLOOKUP($A29,'2008'!$C$3:$H$229,5,FALSE),0) -> 7 | DF29: =IFERROR(VLOOKUP($A29,'2008'!$C$3:$H$229,6,FALSE),0) -> 0.6352941176 | DG29: =IFERROR(VLOOKUP($A29,'2007'!$C$3:$M$238,7,FALSE),0) -> 46 | DH29: =IFERROR(VLOOKUP($A29,'2007'!$C$3:$M$238,8,FALSE),0) -> 14 | DI29: =IFERROR(VLOOKUP($A29,'2007'!$C$3:$M$238,9,FALSE),0) -> 32 | DJ29: =IFERROR(VLOOKUP($A29,'2007'!$C$3:$M$238,10,FALSE),0) -> 3 | DK29: =IFERROR(VLOOKUP($A29,'2007'!$C$3:$M$238,11,FALSE),0) -> 0.6956521739 | DL29: =IFERROR(VLOOKUP($A29,'2006'!$A$2:$F$200,2,FALSE),0) -> 13 | DM29: =IFERROR(VLOOKUP($A29,'2006'!$A$2:$F$200,4,FALSE),0) -> 8 | DN29: =IFERROR(VLOOKUP($A29,'2006'!$A$2:$F$200,5,FALSE),0) -> 0 | DO29: =IFERROR(VLOOKUP($A29,'2006'!$A$2:$F$200,6,FALSE),0) -> 0.6153846154 | DP29: =IFERROR(VLOOKUP($A29,'2005'!$C$3:$M$205,8,FALSE),0) -> 74 | DQ29: =IFERROR(VLOOKUP($A29,'2005'!$C$3:$M$205,9,FALSE),0) -> 45 | DR29: =IFERROR(VLOOKUP($A29,'2005'!$C$3:$M$205,10,FALSE),0) -> 3 | DS29: =IFERROR(VLOOKUP($A29,'2005'!$C$3:$M$205,11,FALSE),0) -> 0.6081081081 | DT29: =IFERROR(VLOOKUP($A29,'2004'!$C$3:$M$213,8,FALSE),0) -> 73 | DU29: =IFERROR(VLOOKUP($A29,'2004'!$C$3:$M$213,9,FALSE),0) -> 42 | DV29: =IFERROR(VLOOKUP($A29,'2004'!$C$3:$M$213,10,FALSE),0) -> 2 | DW29: =IFERROR(VLOOKUP($A29,'2004'!$C$3:$M$213,11,FALSE),0) -> 0.5753424658 | DX29: =IFERROR(VLOOKUP($A29,'2003'!$C$3:$Q$214,12,FALSE),0) -> 61 | DY29: =IFERROR(VLOOKUP($A29,'2003'!$C$3:$Q$214,13,FALSE),0) -> 33 | DZ29: =IFERROR(VLOOKUP($A29,'2003'!$C$3:$Q$214,14,FALSE),0) -> 3 | EA29: =IFERROR(VLOOKUP($A29,'2003'!$C$3:$Q$214,15,FALSE),0) -> 0.5409836066 | EB29: =IFERROR(VLOOKUP($A29,'2002'!$D$3:$R$214,12,FALSE),0) -> 64 | EC29: =IFERROR(VLOOKUP($A29,'2002'!$D$3:$R$214,13,FALSE),0) -> 36 | ED29: =IFERROR(VLOOKUP($A29,'2002'!$D$3:$R$214,14,FALSE),0) -> 0 | EE29: =IFERROR(VLOOKUP($A29,'2002'!$D$3:$R$214,15,FALSE),0) -> 0.5625 | EF29: =IFERROR(VLOOKUP($A29,'Pre 2002'!$C$3:$CK$382,84,FALSE),0) -> 842 | EG29: =IFERROR(VLOOKUP($A29,'Pre 2002'!$C$3:$CK$382,85,FALSE),0) -> 455 | EH29: =IFERROR(VLOOKUP($A29,'Pre 2002'!$C$3:$CK$382,86,FALSE),0) -> 34 | EI29: =IFERROR(VLOOKUP($A29,'Pre 2002'!$C$3:$CK$382,87,FALSE),0) -> 0.5403800475 | EJ29: =IFERROR(VLOOKUP(A29,'Pre 2002'!$C$3:$CG$382,83,FALSE),0) -> 13
A30: Ray Hillman | B30: 1777 | C30: 1020 | D30: 42 | E30: 0.5740011255 | F30: 26 | G30: 1977 | H30: 26 | I30: 1777 | J30: 1020 | K30: 42 | L30: 0.5740011255 | O30: =IFERROR(VLOOKUP($A30,'2025'!$A$2:$J$222,4,FALSE),0) -> 0 | P30: =IFERROR(VLOOKUP($A30,'2025'!$A$2:$J$222,5,FALSE),0) -> 0 | Q30: =IFERROR(VLOOKUP($A30,'2025'!$A$2:$J$222,6,FALSE),0) -> 0 | R30: =IFERROR(VLOOKUP($A30,'2025'!$A$2:$J$222,9,FALSE),0) -> 0 | S30: =IFERROR(VLOOKUP($A30,'2025'!$A$2:$J$222,10,FALSE),0) -> 0 | T30: =IFERROR(VLOOKUP($A30,'2024'!$A$2:$M$220,6,FALSE),0) -> 0 | U30: =IFERROR(VLOOKUP($A30,'2024'!$A$2:$M$220,7,FALSE),0) -> 0 | V30: =IFERROR(VLOOKUP($A30,'2024'!$A$2:$M$220,8,FALSE),0) -> 0 | W30: =IFERROR(VLOOKUP($A30,'2024'!$A$2:$M$220,11,FALSE),0) -> 0 | X30: =IFERROR(VLOOKUP($A30,'2024'!$A$2:$M$220,13,FALSE),0) -> 0 | Y30: =IFERROR(VLOOKUP($A30,'2023'!$A$2:$M$170,6,FALSE),0) -> 0 | Z30: =IFERROR(VLOOKUP($A30,'2023'!$A$2:$M$170,7,FALSE),0) -> 0 | AA30: =IFERROR(VLOOKUP($A30,'2023'!$A$2:$M$170,8,FALSE),0) -> 0 | AB30: =IFERROR(VLOOKUP($A30,'2023'!$A$2:$M$170,11,FALSE),0) -> 0 | AC30: =IFERROR(VLOOKUP($A30,'2023'!$A$2:$M$170,13,FALSE),0) -> 0 | AD30: =IFERROR(VLOOKUP($A30,'2022'!$B$2:$K$174,3,FALSE),0) -> 0 | AE30: =IFERROR(VLOOKUP($A30,'2022'!$B$2:$K$174,4,FALSE),0) -> 0 | AF30: =IFERROR(VLOOKUP($A30,'2022'!$B$2:$K$174,5,FALSE),0) -> 0 | AG30: =IFERROR(VLOOKUP($A30,'2022'!$B$2:$K$174,8,FALSE),0) -> 0 | AH30: =IFERROR(VLOOKUP($A30,'2022'!$B$2:$K$174,10,FALSE),0) -> 0 | AI30: =IFERROR(VLOOKUP($A30,'2021'!$B$2:$K$174,3,FALSE),0) -> 0 | AJ30: =IFERROR(VLOOKUP($A30,'2021'!$B$2:$K$174,4,FALSE),0) -> 0 | AK30: =IFERROR(VLOOKUP($A30,'2021'!$B$2:$K$174,5,FALSE),0) -> 0 | AL30: =IFERROR(VLOOKUP($A30,'2021'!$B$2:$K$174,8,FALSE),0) -> 0 | AM30: =IFERROR(VLOOKUP($A30,'2021'!$B$2:$K$174,10,FALSE),0) -> 0 | AN30: =IFERROR(VLOOKUP($A30,'2020'!$B$2:$K$170,3,FALSE),0) -> 0 | AO30: =IFERROR(VLOOKUP($A30,'2020'!$B$2:$K$170,4,FALSE),0) -> 0 | AP30: =IFERROR(VLOOKUP($A30,'2020'!$B$2:$K$170,5,FALSE),0) -> 0 | AQ30: =IFERROR(VLOOKUP($A30,'2020'!$B$2:$K$170,8,FALSE),0) -> 0 | AR30: =IFERROR(VLOOKUP($A30,'2020'!$B$2:$K$170,10,FALSE),0) -> 0 | AS30: =IFERROR(VLOOKUP($A30,'2019'!$B$2:$K$170,3,FALSE),0) -> 0 | AT30: =IFERROR(VLOOKUP($A30,'2019'!$B$2:$K$170,4,FALSE),0) -> 0 | AU30: =IFERROR(VLOOKUP($A30,'2019'!$B$2:$K$170,5,FALSE),0) -> 0 | AV30: =IFERROR(VLOOKUP($A30,'2019'!$B$2:$K$170,8,FALSE),0) -> 0 | AW30: =IFERROR(VLOOKUP($A30,'2019'!$B$2:$K$170,10,FALSE),0) -> 0 | AX30: =IFERROR(VLOOKUP($A30,'2018'!$B$2:$K$170,3,FALSE),0) -> 0 | AY30: =IFERROR(VLOOKUP($A30,'2018'!$B$2:$K$170,4,FALSE),0) -> 0 | AZ30: =IFERROR(VLOOKUP($A30,'2018'!$B$2:$K$170,5,FALSE),0) -> 0 | BA30: =IFERROR(VLOOKUP($A30,'2018'!$B$2:$K$170,8,FALSE),0) -> 0 | BB30: =IFERROR(VLOOKUP($A30,'2018'!$B$2:$K$170,10,FALSE),0) -> 0 | BC30: =IFERROR(VLOOKUP($A30,'2017'!$B$2:$J$163,2,FALSE),0) -> 0 | BD30: =IFERROR(VLOOKUP($A30,'2017'!$B$2:$J$163,3,FALSE),0) -> 0 | BE30: =IFERROR(VLOOKUP($A30,'2017'!$B$2:$J$163,4,FALSE),0) -> 0 | BF30: =IFERROR(VLOOKUP($A30,'2017'!$B$2:$J$163,7,FALSE),0) -> 0 | BG30: =IFERROR(VLOOKUP($A30,'2017'!$B$2:$J$163,9,FALSE),0) -> 0 | BH30: =IFERROR(VLOOKUP($A30,'2016'!$B$2:$K$165,3,FALSE),0) -> 0 | BI30: =IFERROR(VLOOKUP($A30,'2016'!$B$2:$K$165,4,FALSE),0) -> 0 | BJ30: =IFERROR(VLOOKUP($A30,'2016'!$B$2:$K$165,5,FALSE),0) -> 0 | BK30: =IFERROR(VLOOKUP($A30,'2016'!$B$2:$K$165,8,FALSE),0) -> 0 | BL30: =IFERROR(VLOOKUP($A30,'2016'!$B$2:$K$165,10,FALSE),0) -> 0 | BM30: =IFERROR(VLOOKUP($A30,'2015'!$B$2:$K$165,3,FALSE),0) -> 0 | BN30: =IFERROR(VLOOKUP($A30,'2015'!$B$2:$K$165,4,FALSE),0) -> 0 | BO30: =IFERROR(VLOOKUP($A30,'2015'!$B$2:$K$165,5,FALSE),0) -> 0 | BP30: =IFERROR(VLOOKUP($A30,'2015'!$B$2:$K$165,8,FALSE),0) -> 0 | BQ30: =IFERROR(VLOOKUP($A30,'2015'!$B$2:$K$165,10,FALSE),0) -> 0 | BR30: =IFERROR(VLOOKUP($A30,'2014'!$B$2:$K$157,3,FALSE),0) -> 0 | BS30: =IFERROR(VLOOKUP($A30,'2014'!$B$2:$K$157,4,FALSE),0) -> 0 | BT30: =IFERROR(VLOOKUP($A30,'2014'!$B$2:$K$157,5,FALSE),0) -> 0 | BU30: =IFERROR(VLOOKUP($A30,'2014'!$B$2:$K$157,8,FALSE),0) -> 0 | BV30: =IFERROR(VLOOKUP($A30,'2014'!$B$2:$K$157,10,FALSE),0) -> 0 | BW30: =IFERROR(VLOOKUP($A30,'2013'!$D$4:$I$249,2,FALSE),0) -> 0 | BX30: =IFERROR(VLOOKUP($A30,'2013'!$D$4:$I$249,3,FALSE),0) -> 0 | BY30: =IFERROR(VLOOKUP($A30,'2013'!$D$4:$I$249,4,FALSE),0) -> 0 | BZ30: =IFERROR(VLOOKUP($A30,'2013'!$D$4:$I$249,5,FALSE),0) -> 0 | CA30: =IFERROR(VLOOKUP($A30,'2013'!$D$4:$I$249,6,FALSE),0) -> 0 | CB30: =IFERROR(VLOOKUP($A30,'2012'!$D$3:$O$172,2,FALSE),0) -> 0 | CC30: =IFERROR(VLOOKUP($A30,'2012'!$D$3:$O$172,3,FALSE),0) -> 0 | CD30: =IFERROR(VLOOKUP($A30,'2012'!$D$3:$O$172,4,FALSE),0) -> 0 | CE30: =IFERROR(VLOOKUP($A30,'2012'!$D$3:$O$172,5,FALSE),0) -> 0 | CF30: =IFERROR(VLOOKUP($A30,'2012'!$D$3:$O$172,6,FALSE),0) -> 0 | CG30: =IFERROR(VLOOKUP($A30,'2012'!$D$3:$O$172,7,FALSE),0) -> 0 | CH30: =IFERROR(VLOOKUP($A30,'2012'!$D$3:$O$172,8,FALSE),0) -> 0 | CI30: =IFERROR(VLOOKUP($A30,'2012'!$D$3:$O$172,9,FALSE),0) -> 0 | CM30: =IFERROR(VLOOKUP($A30,'2011'!$D$4:$I$251,2,FALSE),0) -> 0 | CN30: =IFERROR(VLOOKUP($A30,'2011'!$D$4:$I$251,3,FALSE),0) -> 0 | CO30: =IFERROR(VLOOKUP($A30,'2011'!$D$4:$I$251,4,FALSE),0) -> 0 | CP30: =IFERROR(VLOOKUP($A30,'2011'!$D$4:$I$251,5,FALSE),0) -> 0 | CQ30: =IFERROR(VLOOKUP($A30,'2011'!$D$4:$I$251,6,FALSE),0) -> 0 | CR30: =IFERROR(VLOOKUP($A30,'2010'!$C$3:$H$234,2,FALSE),0) -> 0 | CS30: =IFERROR(VLOOKUP($A30,'2010'!$C$3:$H$234,3,FALSE),0) -> 0 | CT30: =IFERROR(VLOOKUP($A30,'2010'!$C$3:$H$234,4,FALSE),0) -> 0 | CU30: =IFERROR(VLOOKUP($A30,'2010'!$C$3:$H$234,5,FALSE),0) -> 0 | CV30: =IFERROR(VLOOKUP($A30,'2010'!$C$3:$H$234,6,FALSE),0) -> 0 | CW30: =IFERROR(VLOOKUP($A30,'2009'!$C$3:$H$242,2,FALSE),0) -> 0 | CX30: =IFERROR(VLOOKUP($A30,'2009'!$C$3:$H$242,3,FALSE),0) -> 0 | CY30: =IFERROR(VLOOKUP($A30,'2009'!$C$3:$H$242,4,FALSE),0) -> 0 | CZ30: =IFERROR(VLOOKUP($A30,'2009'!$C$3:$H$242,5,FALSE),0) -> 0 | DA30: =IFERROR(VLOOKUP($A30,'2009'!$C$3:$H$242,6,FALSE),0) -> 0 | DB30: =IFERROR(VLOOKUP($A30,'2008'!$C$3:$H$229,2,FALSE),0) -> 0 | DC30: =IFERROR(VLOOKUP($A30,'2008'!$C$3:$H$229,3,FALSE),0) -> 0 | DD30: =IFERROR(VLOOKUP($A30,'2008'!$C$3:$H$229,4,FALSE),0) -> 0 | DE30: =IFERROR(VLOOKUP($A30,'2008'!$C$3:$H$229,5,FALSE),0) -> 0 | DF30: =IFERROR(VLOOKUP($A30,'2008'!$C$3:$H$229,6,FALSE),0) -> 0 | DG30: =IFERROR(VLOOKUP($A30,'2007'!$C$3:$M$238,7,FALSE),0) -> 0 | DH30: =IFERROR(VLOOKUP($A30,'2007'!$C$3:$M$238,8,FALSE),0) -> 0 | DI30: =IFERROR(VLOOKUP($A30,'2007'!$C$3:$M$238,9,FALSE),0) -> 0 | DJ30: =IFERROR(VLOOKUP($A30,'2007'!$C$3:$M$238,10,FALSE),0) -> 0 | DK30: =IFERROR(VLOOKUP($A30,'2007'!$C$3:$M$238,11,FALSE),0) -> 0 | DL30: =IFERROR(VLOOKUP($A30,'2006'!$A$2:$F$200,2,FALSE),0) -> 0 | DM30: =IFERROR(VLOOKUP($A30,'2006'!$A$2:$F$200,4,FALSE),0) -> 0 | DN30: =IFERROR(VLOOKUP($A30,'2006'!$A$2:$F$200,5,FALSE),0) -> 0 | DO30: =IFERROR(VLOOKUP($A30,'2006'!$A$2:$F$200,6,FALSE),0) -> 0 | DP30: =IFERROR(VLOOKUP($A30,'2005'!$C$3:$M$205,8,FALSE),0) -> 0 | DQ30: =IFERROR(VLOOKUP($A30,'2005'!$C$3:$M$205,9,FALSE),0) -> 0 | DR30: =IFERROR(VLOOKUP($A30,'2005'!$C$3:$M$205,10,FALSE),0) -> 0 | DS30: =IFERROR(VLOOKUP($A30,'2005'!$C$3:$M$205,11,FALSE),0) -> 0 | DT30: =IFERROR(VLOOKUP($A30,'2004'!$C$3:$M$213,8,FALSE),0) -> 0 | DU30: =IFERROR(VLOOKUP($A30,'2004'!$C$3:$M$213,9,FALSE),0) -> 0 | DV30: =IFERROR(VLOOKUP($A30,'2004'!$C$3:$M$213,10,FALSE),0) -> 0 | DW30: =IFERROR(VLOOKUP($A30,'2004'!$C$3:$M$213,11,FALSE),0) -> 0 | DX30: =IFERROR(VLOOKUP($A30,'2003'!$C$3:$Q$214,12,FALSE),0) -> 54 | DY30: =IFERROR(VLOOKUP($A30,'2003'!$C$3:$Q$214,13,FALSE),0) -> 27 | DZ30: =IFERROR(VLOOKUP($A30,'2003'!$C$3:$Q$214,14,FALSE),0) -> 1 | EA30: =IFERROR(VLOOKUP($A30,'2003'!$C$3:$Q$214,15,FALSE),0) -> 0.5 | EB30: =IFERROR(VLOOKUP($A30,'2002'!$D$3:$R$214,12,FALSE),0) -> 56 | EC30: =IFERROR(VLOOKUP($A30,'2002'!$D$3:$R$214,13,FALSE),0) -> 26 | ED30: =IFERROR(VLOOKUP($A30,'2002'!$D$3:$R$214,14,FALSE),0) -> 1 | EE30: =IFERROR(VLOOKUP($A30,'2002'!$D$3:$R$214,15,FALSE),0) -> 0.4642857143 | EF30: =IFERROR(VLOOKUP($A30,'Pre 2002'!$C$3:$CK$382,84,FALSE),0) -> 1667 | EG30: =IFERROR(VLOOKUP($A30,'Pre 2002'!$C$3:$CK$382,85,FALSE),0) -> 967 | EH30: =IFERROR(VLOOKUP($A30,'Pre 2002'!$C$3:$CK$382,86,FALSE),0) -> 40 | EI30: =IFERROR(VLOOKUP($A30,'Pre 2002'!$C$3:$CK$382,87,FALSE),0) -> 0.5800839832 | EJ30: =IFERROR(VLOOKUP(A30,'Pre 2002'!$C$3:$CG$382,83,FALSE),0) -> 24
A31: Keith Lester | B31: 1819 | C31: 1018 | D31: 32 | E31: 0.5596481583 | F31: 28 | G31: 1989 | H31: 26 | I31: 1725 | J31: 967 | K31: 32 | L31: 0.5605797101 | M31: 89 | N31: 4 | O31: =IFERROR(VLOOKUP($A31,'2025'!$A$2:$J$222,4,FALSE),0) -> 0 | P31: =IFERROR(VLOOKUP($A31,'2025'!$A$2:$J$222,5,FALSE),0) -> 0 | Q31: =IFERROR(VLOOKUP($A31,'2025'!$A$2:$J$222,6,FALSE),0) -> 0 | R31: =IFERROR(VLOOKUP($A31,'2025'!$A$2:$J$222,9,FALSE),0) -> 0 | S31: =IFERROR(VLOOKUP($A31,'2025'!$A$2:$J$222,10,FALSE),0) -> 0 | T31: =IFERROR(VLOOKUP($A31,'2024'!$A$2:$M$220,6,FALSE),0) -> 0 | U31: =IFERROR(VLOOKUP($A31,'2024'!$A$2:$M$220,7,FALSE),0) -> 0 | V31: =IFERROR(VLOOKUP($A31,'2024'!$A$2:$M$220,8,FALSE),0) -> 0 | W31: =IFERROR(VLOOKUP($A31,'2024'!$A$2:$M$220,11,FALSE),0) -> 0 | X31: =IFERROR(VLOOKUP($A31,'2024'!$A$2:$M$220,13,FALSE),0) -> 0 | Y31: =IFERROR(VLOOKUP($A31,'2023'!$A$2:$M$170,6,FALSE),0) -> 0 | Z31: =IFERROR(VLOOKUP($A31,'2023'!$A$2:$M$170,7,FALSE),0) -> 0 | AA31: =IFERROR(VLOOKUP($A31,'2023'!$A$2:$M$170,8,FALSE),0) -> 0 | AB31: =IFERROR(VLOOKUP($A31,'2023'!$A$2:$M$170,11,FALSE),0) -> 0 | AC31: =IFERROR(VLOOKUP($A31,'2023'!$A$2:$M$170,13,FALSE),0) -> 0 | AD31: =IFERROR(VLOOKUP($A31,'2022'!$B$2:$K$174,3,FALSE),0) -> 0 | AE31: =IFERROR(VLOOKUP($A31,'2022'!$B$2:$K$174,4,FALSE),0) -> 0 | AF31: =IFERROR(VLOOKUP($A31,'2022'!$B$2:$K$174,5,FALSE),0) -> 0 | AG31: =IFERROR(VLOOKUP($A31,'2022'!$B$2:$K$174,8,FALSE),0) -> 0 | AH31: =IFERROR(VLOOKUP($A31,'2022'!$B$2:$K$174,10,FALSE),0) -> 0 | AI31: =IFERROR(VLOOKUP($A31,'2021'!$B$2:$K$174,3,FALSE),0) -> 0 | AJ31: =IFERROR(VLOOKUP($A31,'2021'!$B$2:$K$174,4,FALSE),0) -> 0 | AK31: =IFERROR(VLOOKUP($A31,'2021'!$B$2:$K$174,5,FALSE),0) -> 0 | AL31: =IFERROR(VLOOKUP($A31,'2021'!$B$2:$K$174,8,FALSE),0) -> 0 | AM31: =IFERROR(VLOOKUP($A31,'2021'!$B$2:$K$174,10,FALSE),0) -> 0 | AN31: =IFERROR(VLOOKUP($A31,'2020'!$B$2:$K$170,3,FALSE),0) -> 0 | AO31: =IFERROR(VLOOKUP($A31,'2020'!$B$2:$K$170,4,FALSE),0) -> 0 | AP31: =IFERROR(VLOOKUP($A31,'2020'!$B$2:$K$170,5,FALSE),0) -> 0 | AQ31: =IFERROR(VLOOKUP($A31,'2020'!$B$2:$K$170,8,FALSE),0) -> 0 | AR31: =IFERROR(VLOOKUP($A31,'2020'!$B$2:$K$170,10,FALSE),0) -> 0 | AS31: =IFERROR(VLOOKUP($A31,'2019'!$B$2:$K$170,3,FALSE),0) -> 0 | AT31: =IFERROR(VLOOKUP($A31,'2019'!$B$2:$K$170,4,FALSE),0) -> 0 | AU31: =IFERROR(VLOOKUP($A31,'2019'!$B$2:$K$170,5,FALSE),0) -> 0 | AV31: =IFERROR(VLOOKUP($A31,'2019'!$B$2:$K$170,8,FALSE),0) -> 0 | AW31: =IFERROR(VLOOKUP($A31,'2019'!$B$2:$K$170,10,FALSE),0) -> 0 | AX31: =IFERROR(VLOOKUP($A31,'2018'!$B$2:$K$170,3,FALSE),0) -> 0 | AY31: =IFERROR(VLOOKUP($A31,'2018'!$B$2:$K$170,4,FALSE),0) -> 0 | AZ31: =IFERROR(VLOOKUP($A31,'2018'!$B$2:$K$170,5,FALSE),0) -> 0 | BA31: =IFERROR(VLOOKUP($A31,'2018'!$B$2:$K$170,8,FALSE),0) -> 0 | BB31: =IFERROR(VLOOKUP($A31,'2018'!$B$2:$K$170,10,FALSE),0) -> 0 | BC31: =IFERROR(VLOOKUP($A31,'2017'!$B$2:$J$163,2,FALSE),0) -> 0 | BD31: =IFERROR(VLOOKUP($A31,'2017'!$B$2:$J$163,3,FALSE),0) -> 0 | BE31: =IFERROR(VLOOKUP($A31,'2017'!$B$2:$J$163,4,FALSE),0) -> 0 | BF31: =IFERROR(VLOOKUP($A31,'2017'!$B$2:$J$163,7,FALSE),0) -> 0 | BG31: =IFERROR(VLOOKUP($A31,'2017'!$B$2:$J$163,9,FALSE),0) -> 0 | BH31: =IFERROR(VLOOKUP($A31,'2016'!$B$2:$K$165,3,FALSE),0) -> 40 | BI31: =IFERROR(VLOOKUP($A31,'2016'!$B$2:$K$165,4,FALSE),0) -> 13 | BJ31: =IFERROR(VLOOKUP($A31,'2016'!$B$2:$K$165,5,FALSE),0) -> 24 | BK31: =IFERROR(VLOOKUP($A31,'2016'!$B$2:$K$165,8,FALSE),0) -> 0 | BL31: =IFERROR(VLOOKUP($A31,'2016'!$B$2:$K$165,10,FALSE),0) -> 0.6 | BM31: =IFERROR(VLOOKUP($A31,'2015'!$B$2:$K$165,3,FALSE),0) -> 54 | BN31: =IFERROR(VLOOKUP($A31,'2015'!$B$2:$K$165,4,FALSE),0) -> 13 | BO31: =IFERROR(VLOOKUP($A31,'2015'!$B$2:$K$165,5,FALSE),0) -> 27 | BP31: =IFERROR(VLOOKUP($A31,'2015'!$B$2:$K$165,8,FALSE),0) -> 0 | BQ31: =IFERROR(VLOOKUP($A31,'2015'!$B$2:$K$165,10,FALSE),0) -> 0.5 | BR31: =IFERROR(VLOOKUP($A31,'2014'!$B$2:$K$157,3,FALSE),0) -> 61 | BS31: =IFERROR(VLOOKUP($A31,'2014'!$B$2:$K$157,4,FALSE),0) -> 18 | BT31: =IFERROR(VLOOKUP($A31,'2014'!$B$2:$K$157,5,FALSE),0) -> 29 | BU31: =IFERROR(VLOOKUP($A31,'2014'!$B$2:$K$157,8,FALSE),0) -> 0 | BV31: =IFERROR(VLOOKUP($A31,'2014'!$B$2:$K$157,10,FALSE),0) -> 0.4754098361 | BW31: =IFERROR(VLOOKUP($A31,'2013'!$D$4:$I$249,2,FALSE),0) -> 43 | BX31: =IFERROR(VLOOKUP($A31,'2013'!$D$4:$I$249,3,FALSE),0) -> 14 | BY31: =IFERROR(VLOOKUP($A31,'2013'!$D$4:$I$249,4,FALSE),0) -> 21 | BZ31: =IFERROR(VLOOKUP($A31,'2013'!$D$4:$I$249,5,FALSE),0) -> 0 | CA31: =IFERROR(VLOOKUP($A31,'2013'!$D$4:$I$249,6,FALSE),0) -> 0.488372093 | CB31: =IFERROR(VLOOKUP($A31,'2012'!$D$3:$O$172,2,FALSE),0) -> 1629 | CC31: =IFERROR(VLOOKUP($A31,'2012'!$D$3:$O$172,3,FALSE),0) -> 924 | CD31: =IFERROR(VLOOKUP($A31,'2012'!$D$3:$O$172,4,FALSE),0) -> 35 | CE31: =IFERROR(VLOOKUP($A31,'2012'!$D$3:$O$172,5,FALSE),0) -> 47 | CF31: =IFERROR(VLOOKUP($A31,'2012'!$D$3:$O$172,6,FALSE),0) -> 13 | CG31: =IFERROR(VLOOKUP($A31,'2012'!$D$3:$O$172,7,FALSE),0) -> 16 | CH31: =IFERROR(VLOOKUP($A31,'2012'!$D$3:$O$172,8,FALSE),0) -> 0 | CI31: =IFERROR(VLOOKUP($A31,'2012'!$D$3:$O$172,9,FALSE),0) -> 0.3404255319 | CJ31: =IFERROR(VLOOKUP($A31,'2012'!$D$3:$O$172,10,FALSE),0) -> 1582 | CK31: =IFERROR(VLOOKUP($A31,'2012'!$D$3:$O$172,11,FALSE),0) -> 908 | CL31: =IFERROR(VLOOKUP($A31,'2012'!$D$3:$O$172,12,FALSE),0) -> 35 | CM31: =IFERROR(VLOOKUP($A31,'2011'!$D$4:$I$251,2,FALSE),0) -> 61 | CN31: =IFERROR(VLOOKUP($A31,'2011'!$D$4:$I$251,3,FALSE),0) -> 23 | CO31: =IFERROR(VLOOKUP($A31,'2011'!$D$4:$I$251,4,FALSE),0) -> 34 | CP31: =IFERROR(VLOOKUP($A31,'2011'!$D$4:$I$251,5,FALSE),0) -> 0 | CQ31: =IFERROR(VLOOKUP($A31,'2011'!$D$4:$I$251,6,FALSE),0) -> 0.5573770492 | CR31: =IFERROR(VLOOKUP($A31,'2010'!$C$3:$H$234,2,FALSE),0) -> 88 | CS31: =IFERROR(VLOOKUP($A31,'2010'!$C$3:$H$234,3,FALSE),0) -> 35 | CT31: =IFERROR(VLOOKUP($A31,'2010'!$C$3:$H$234,4,FALSE),0) -> 61 | CU31: =IFERROR(VLOOKUP($A31,'2010'!$C$3:$H$234,5,FALSE),0) -> 0 | CV31: =IFERROR(VLOOKUP($A31,'2010'!$C$3:$H$234,6,FALSE),0) -> 0.6931818182 | CW31: =IFERROR(VLOOKUP($A31,'2009'!$C$3:$H$242,2,FALSE),0) -> 65 | CX31: =IFERROR(VLOOKUP($A31,'2009'!$C$3:$H$242,3,FALSE),0) -> 21 | CY31: =IFERROR(VLOOKUP($A31,'2009'!$C$3:$H$242,4,FALSE),0) -> 34 | CZ31: =IFERROR(VLOOKUP($A31,'2009'!$C$3:$H$242,5,FALSE),0) -> 0 | DA31: =IFERROR(VLOOKUP($A31,'2009'!$C$3:$H$242,6,FALSE),0) -> 0.5230769231 | DB31: =IFERROR(VLOOKUP($A31,'2008'!$C$3:$H$229,2,FALSE),0) -> 67 | DC31: =IFERROR(VLOOKUP($A31,'2008'!$C$3:$H$229,3,FALSE),0) -> 21 | DD31: =IFERROR(VLOOKUP($A31,'2008'!$C$3:$H$229,4,FALSE),0) -> 39 | DE31: =IFERROR(VLOOKUP($A31,'2008'!$C$3:$H$229,5,FALSE),0) -> 0 | DF31: =IFERROR(VLOOKUP($A31,'2008'!$C$3:$H$229,6,FALSE),0) -> 0.5820895522 | DG31: =IFERROR(VLOOKUP($A31,'2007'!$C$3:$M$238,7,FALSE),0) -> 78 | DH31: =IFERROR(VLOOKUP($A31,'2007'!$C$3:$M$238,8,FALSE),0) -> 27 | DI31: =IFERROR(VLOOKUP($A31,'2007'!$C$3:$M$238,9,FALSE),0) -> 44 | DJ31: =IFERROR(VLOOKUP($A31,'2007'!$C$3:$M$238,10,FALSE),0) -> 0 | DK31: =IFERROR(VLOOKUP($A31,'2007'!$C$3:$M$238,11,FALSE),0) -> 0.5641025641 | DL31: =IFERROR(VLOOKUP($A31,'2006'!$A$2:$F$200,2,FALSE),0) -> 67 | DM31: =IFERROR(VLOOKUP($A31,'2006'!$A$2:$F$200,4,FALSE),0) -> 37 | DN31: =IFERROR(VLOOKUP($A31,'2006'!$A$2:$F$200,5,FALSE),0) -> 0 | DO31: =IFERROR(VLOOKUP($A31,'2006'!$A$2:$F$200,6,FALSE),0) -> 0.552238806 | DP31: =IFERROR(VLOOKUP($A31,'2005'!$C$3:$M$205,8,FALSE),0) -> 66 | DQ31: =IFERROR(VLOOKUP($A31,'2005'!$C$3:$M$205,9,FALSE),0) -> 38 | DR31: =IFERROR(VLOOKUP($A31,'2005'!$C$3:$M$205,10,FALSE),0) -> 2 | DS31: =IFERROR(VLOOKUP($A31,'2005'!$C$3:$M$205,11,FALSE),0) -> 0.5757575758 | DT31: =IFERROR(VLOOKUP($A31,'2004'!$C$3:$M$213,8,FALSE),0) -> 65 | DU31: =IFERROR(VLOOKUP($A31,'2004'!$C$3:$M$213,9,FALSE),0) -> 33 | DV31: =IFERROR(VLOOKUP($A31,'2004'!$C$3:$M$213,10,FALSE),0) -> 0 | DW31: =IFERROR(VLOOKUP($A31,'2004'!$C$3:$M$213,11,FALSE),0) -> 0.5076923077 | DX31: =IFERROR(VLOOKUP($A31,'2003'!$C$3:$Q$214,12,FALSE),0) -> 70 | DY31: =IFERROR(VLOOKUP($A31,'2003'!$C$3:$Q$214,13,FALSE),0) -> 43 | DZ31: =IFERROR(VLOOKUP($A31,'2003'!$C$3:$Q$214,14,FALSE),0) -> 3 | EA31: =IFERROR(VLOOKUP($A31,'2003'!$C$3:$Q$214,15,FALSE),0) -> 0.6142857143 | EB31: =IFERROR(VLOOKUP($A31,'2002'!$D$3:$R$214,12,FALSE),0) -> 59 | EC31: =IFERROR(VLOOKUP($A31,'2002'!$D$3:$R$214,13,FALSE),0) -> 40 | ED31: =IFERROR(VLOOKUP($A31,'2002'!$D$3:$R$214,14,FALSE),0) -> 1 | EE31: =IFERROR(VLOOKUP($A31,'2002'!$D$3:$R$214,15,FALSE),0) -> 0.6779661017 | EF31: =IFERROR(VLOOKUP($A31,'Pre 2002'!$C$3:$CK$382,84,FALSE),0) -> 888 | EG31: =IFERROR(VLOOKUP($A31,'Pre 2002'!$C$3:$CK$382,85,FALSE),0) -> 498 | EH31: =IFERROR(VLOOKUP($A31,'Pre 2002'!$C$3:$CK$382,86,FALSE),0) -> 26 | EI31: =IFERROR(VLOOKUP($A31,'Pre 2002'!$C$3:$CK$382,87,FALSE),0) -> 0.5608108108 | EJ31: =IFERROR(VLOOKUP(A31,'Pre 2002'!$C$3:$CG$382,83,FALSE),0) -> 13
A32: Keith Bergum | B32: 1682 | C32: 974 | D32: 29 | E32: 0.5790725327 | F32: 24 | G32: 1993 | H32: 21 | I32: 1444 | J32: 840 | K32: 29 | L32: 0.5817174515 | O32: =IFERROR(VLOOKUP($A32,'2025'!$A$2:$J$222,4,FALSE),0) -> 0 | P32: =IFERROR(VLOOKUP($A32,'2025'!$A$2:$J$222,5,FALSE),0) -> 0 | Q32: =IFERROR(VLOOKUP($A32,'2025'!$A$2:$J$222,6,FALSE),0) -> 0 | R32: =IFERROR(VLOOKUP($A32,'2025'!$A$2:$J$222,9,FALSE),0) -> 0 | S32: =IFERROR(VLOOKUP($A32,'2025'!$A$2:$J$222,10,FALSE),0) -> 0 | T32: =IFERROR(VLOOKUP($A32,'2024'!$A$2:$M$220,6,FALSE),0) -> 0 | U32: =IFERROR(VLOOKUP($A32,'2024'!$A$2:$M$220,7,FALSE),0) -> 0 | V32: =IFERROR(VLOOKUP($A32,'2024'!$A$2:$M$220,8,FALSE),0) -> 0 | W32: =IFERROR(VLOOKUP($A32,'2024'!$A$2:$M$220,11,FALSE),0) -> 0 | X32: =IFERROR(VLOOKUP($A32,'2024'!$A$2:$M$220,13,FALSE),0) -> 0 | Y32: =IFERROR(VLOOKUP($A32,'2023'!$A$2:$M$170,6,FALSE),0) -> 0 | Z32: =IFERROR(VLOOKUP($A32,'2023'!$A$2:$M$170,7,FALSE),0) -> 0 | AA32: =IFERROR(VLOOKUP($A32,'2023'!$A$2:$M$170,8,FALSE),0) -> 0 | AB32: =IFERROR(VLOOKUP($A32,'2023'!$A$2:$M$170,11,FALSE),0) -> 0 | AC32: =IFERROR(VLOOKUP($A32,'2023'!$A$2:$M$170,13,FALSE),0) -> 0 | AD32: =IFERROR(VLOOKUP($A32,'2022'!$B$2:$K$174,3,FALSE),0) -> 0 | AE32: =IFERROR(VLOOKUP($A32,'2022'!$B$2:$K$174,4,FALSE),0) -> 0 | AF32: =IFERROR(VLOOKUP($A32,'2022'!$B$2:$K$174,5,FALSE),0) -> 0 | AG32: =IFERROR(VLOOKUP($A32,'2022'!$B$2:$K$174,8,FALSE),0) -> 0 | AH32: =IFERROR(VLOOKUP($A32,'2022'!$B$2:$K$174,10,FALSE),0) -> 0 | AI32: =IFERROR(VLOOKUP($A32,'2021'!$B$2:$K$174,3,FALSE),0) -> 0 | AJ32: =IFERROR(VLOOKUP($A32,'2021'!$B$2:$K$174,4,FALSE),0) -> 0 | AK32: =IFERROR(VLOOKUP($A32,'2021'!$B$2:$K$174,5,FALSE),0) -> 0 | AL32: =IFERROR(VLOOKUP($A32,'2021'!$B$2:$K$174,8,FALSE),0) -> 0 | AM32: =IFERROR(VLOOKUP($A32,'2021'!$B$2:$K$174,10,FALSE),0) -> 0 | AN32: =IFERROR(VLOOKUP($A32,'2020'!$B$2:$K$170,3,FALSE),0) -> 0 | AO32: =IFERROR(VLOOKUP($A32,'2020'!$B$2:$K$170,4,FALSE),0) -> 0 | AP32: =IFERROR(VLOOKUP($A32,'2020'!$B$2:$K$170,5,FALSE),0) -> 0 | AQ32: =IFERROR(VLOOKUP($A32,'2020'!$B$2:$K$170,8,FALSE),0) -> 0 | AR32: =IFERROR(VLOOKUP($A32,'2020'!$B$2:$K$170,10,FALSE),0) -> 0 | AS32: =IFERROR(VLOOKUP($A32,'2019'!$B$2:$K$170,3,FALSE),0) -> 66 | AT32: =IFERROR(VLOOKUP($A32,'2019'!$B$2:$K$170,4,FALSE),0) -> 19 | AU32: =IFERROR(VLOOKUP($A32,'2019'!$B$2:$K$170,5,FALSE),0) -> 38 | AV32: =IFERROR(VLOOKUP($A32,'2019'!$B$2:$K$170,8,FALSE),0) -> 0 | AW32: =IFERROR(VLOOKUP($A32,'2019'!$B$2:$K$170,10,FALSE),0) -> 0.576 | AX32: =IFERROR(VLOOKUP($A32,'2018'!$B$2:$K$170,3,FALSE),0) -> 88 | AY32: =IFERROR(VLOOKUP($A32,'2018'!$B$2:$K$170,4,FALSE),0) -> 25 | AZ32: =IFERROR(VLOOKUP($A32,'2018'!$B$2:$K$170,5,FALSE),0) -> 48 | BA32: =IFERROR(VLOOKUP($A32,'2018'!$B$2:$K$170,8,FALSE),0) -> 0 | BB32: =IFERROR(VLOOKUP($A32,'2018'!$B$2:$K$170,10,FALSE),0) -> 0.545 | BC32: =IFERROR(VLOOKUP($A32,'2017'!$B$2:$J$163,2,FALSE),0) -> 84 | BD32: =IFERROR(VLOOKUP($A32,'2017'!$B$2:$J$163,3,FALSE),0) -> 32 | BE32: =IFERROR(VLOOKUP($A32,'2017'!$B$2:$J$163,4,FALSE),0) -> 48 | BF32: =IFERROR(VLOOKUP($A32,'2017'!$B$2:$J$163,7,FALSE),0) -> 0 | BG32: =IFERROR(VLOOKUP($A32,'2017'!$B$2:$J$163,9,FALSE),0) -> 0.5714285714 | BH32: =IFERROR(VLOOKUP($A32,'2016'!$B$2:$K$165,3,FALSE),0) -> 0 | BI32: =IFERROR(VLOOKUP($A32,'2016'!$B$2:$K$165,4,FALSE),0) -> 0 | BJ32: =IFERROR(VLOOKUP($A32,'2016'!$B$2:$K$165,5,FALSE),0) -> 0 | BK32: =IFERROR(VLOOKUP($A32,'2016'!$B$2:$K$165,8,FALSE),0) -> 0 | BL32: =IFERROR(VLOOKUP($A32,'2016'!$B$2:$K$165,10,FALSE),0) -> 0 | BM32: =IFERROR(VLOOKUP($A32,'2015'!$B$2:$K$165,3,FALSE),0) -> 0 | BN32: =IFERROR(VLOOKUP($A32,'2015'!$B$2:$K$165,4,FALSE),0) -> 0 | BO32: =IFERROR(VLOOKUP($A32,'2015'!$B$2:$K$165,5,FALSE),0) -> 0 | BP32: =IFERROR(VLOOKUP($A32,'2015'!$B$2:$K$165,8,FALSE),0) -> 0 | BQ32: =IFERROR(VLOOKUP($A32,'2015'!$B$2:$K$165,10,FALSE),0) -> 0 | BR32: =IFERROR(VLOOKUP($A32,'2014'!$B$2:$K$157,3,FALSE),0) -> 0 | BS32: =IFERROR(VLOOKUP($A32,'2014'!$B$2:$K$157,4,FALSE),0) -> 0 | BT32: =IFERROR(VLOOKUP($A32,'2014'!$B$2:$K$157,5,FALSE),0) -> 0 | BU32: =IFERROR(VLOOKUP($A32,'2014'!$B$2:$K$157,8,FALSE),0) -> 0 | BV32: =IFERROR(VLOOKUP($A32,'2014'!$B$2:$K$157,10,FALSE),0) -> 0 | BW32: =IFERROR(VLOOKUP($A32,'2013'!$D$4:$I$249,2,FALSE),0) -> 78 | BX32: =IFERROR(VLOOKUP($A32,'2013'!$D$4:$I$249,3,FALSE),0) -> 27 | BY32: =IFERROR(VLOOKUP($A32,'2013'!$D$4:$I$249,4,FALSE),0) -> 38 | BZ32: =IFERROR(VLOOKUP($A32,'2013'!$D$4:$I$249,5,FALSE),0) -> 0 | CA32: =IFERROR(VLOOKUP($A32,'2013'!$D$4:$I$249,6,FALSE),0) -> 0.4871794872 | CB32: =IFERROR(VLOOKUP($A32,'2012'!$D$3:$O$172,2,FALSE),0) -> 1366 | CC32: =IFERROR(VLOOKUP($A32,'2012'!$D$3:$O$172,3,FALSE),0) -> 803 | CD32: =IFERROR(VLOOKUP($A32,'2012'!$D$3:$O$172,4,FALSE),0) -> 29 | CE32: =IFERROR(VLOOKUP($A32,'2012'!$D$3:$O$172,5,FALSE),0) -> 91 | CF32: =IFERROR(VLOOKUP($A32,'2012'!$D$3:$O$172,6,FALSE),0) -> 36 | CG32: =IFERROR(VLOOKUP($A32,'2012'!$D$3:$O$172,7,FALSE),0) -> 57 | CH32: =IFERROR(VLOOKUP($A32,'2012'!$D$3:$O$172,8,FALSE),0) -> 1 | CI32: =IFERROR(VLOOKUP($A32,'2012'!$D$3:$O$172,9,FALSE),0) -> 0.6263736264 | CJ32: =IFERROR(VLOOKUP($A32,'2012'!$D$3:$O$172,10,FALSE),0) -> 1275 | CK32: =IFERROR(VLOOKUP($A32,'2012'!$D$3:$O$172,11,FALSE),0) -> 746 | CL32: =IFERROR(VLOOKUP($A32,'2012'!$D$3:$O$172,12,FALSE),0) -> 28 | CM32: =IFERROR(VLOOKUP($A32,'2011'!$D$4:$I$251,2,FALSE),0) -> 84 | CN32: =IFERROR(VLOOKUP($A32,'2011'!$D$4:$I$251,3,FALSE),0) -> 28 | CO32: =IFERROR(VLOOKUP($A32,'2011'!$D$4:$I$251,4,FALSE),0) -> 43 | CP32: =IFERROR(VLOOKUP($A32,'2011'!$D$4:$I$251,5,FALSE),0) -> 0 | CQ32: =IFERROR(VLOOKUP($A32,'2011'!$D$4:$I$251,6,FALSE),0) -> 0.5119047619 | CR32: =IFERROR(VLOOKUP($A32,'2010'!$C$3:$H$234,2,FALSE),0) -> 89 | CS32: =IFERROR(VLOOKUP($A32,'2010'!$C$3:$H$234,3,FALSE),0) -> 36 | CT32: =IFERROR(VLOOKUP($A32,'2010'!$C$3:$H$234,4,FALSE),0) -> 54 | CU32: =IFERROR(VLOOKUP($A32,'2010'!$C$3:$H$234,5,FALSE),0) -> 0 | CV32: =IFERROR(VLOOKUP($A32,'2010'!$C$3:$H$234,6,FALSE),0) -> 0.606741573 | CW32: =IFERROR(VLOOKUP($A32,'2009'!$C$3:$H$242,2,FALSE),0) -> 64 | CX32: =IFERROR(VLOOKUP($A32,'2009'!$C$3:$H$242,3,FALSE),0) -> 29 | CY32: =IFERROR(VLOOKUP($A32,'2009'!$C$3:$H$242,4,FALSE),0) -> 38 | CZ32: =IFERROR(VLOOKUP($A32,'2009'!$C$3:$H$242,5,FALSE),0) -> 0 | DA32: =IFERROR(VLOOKUP($A32,'2009'!$C$3:$H$242,6,FALSE),0) -> 0.59375 | DB32: =IFERROR(VLOOKUP($A32,'2008'!$C$3:$H$229,2,FALSE),0) -> 87 | DC32: =IFERROR(VLOOKUP($A32,'2008'!$C$3:$H$229,3,FALSE),0) -> 46 | DD32: =IFERROR(VLOOKUP($A32,'2008'!$C$3:$H$229,4,FALSE),0) -> 57 | DE32: =IFERROR(VLOOKUP($A32,'2008'!$C$3:$H$229,5,FALSE),0) -> 3 | DF32: =IFERROR(VLOOKUP($A32,'2008'!$C$3:$H$229,6,FALSE),0) -> 0.6551724138 | DG32: =IFERROR(VLOOKUP($A32,'2007'!$C$3:$M$238,7,FALSE),0) -> 76 | DH32: =IFERROR(VLOOKUP($A32,'2007'!$C$3:$M$238,8,FALSE),0) -> 36 | DI32: =IFERROR(VLOOKUP($A32,'2007'!$C$3:$M$238,9,FALSE),0) -> 43 | DJ32: =IFERROR(VLOOKUP($A32,'2007'!$C$3:$M$238,10,FALSE),0) -> 1 | DK32: =IFERROR(VLOOKUP($A32,'2007'!$C$3:$M$238,11,FALSE),0) -> 0.5657894737 | DL32: =IFERROR(VLOOKUP($A32,'2006'!$A$2:$F$200,2,FALSE),0) -> 73 | DM32: =IFERROR(VLOOKUP($A32,'2006'!$A$2:$F$200,4,FALSE),0) -> 43 | DN32: =IFERROR(VLOOKUP($A32,'2006'!$A$2:$F$200,5,FALSE),0) -> 1 | DO32: =IFERROR(VLOOKUP($A32,'2006'!$A$2:$F$200,6,FALSE),0) -> 0.5890410959 | DP32: =IFERROR(VLOOKUP($A32,'2005'!$C$3:$M$205,8,FALSE),0) -> 74 | DQ32: =IFERROR(VLOOKUP($A32,'2005'!$C$3:$M$205,9,FALSE),0) -> 48 | DR32: =IFERROR(VLOOKUP($A32,'2005'!$C$3:$M$205,10,FALSE),0) -> 2 | DS32: =IFERROR(VLOOKUP($A32,'2005'!$C$3:$M$205,11,FALSE),0) -> 0.6486486486 | DT32: =IFERROR(VLOOKUP($A32,'2004'!$C$3:$M$213,8,FALSE),0) -> 72 | DU32: =IFERROR(VLOOKUP($A32,'2004'!$C$3:$M$213,9,FALSE),0) -> 49 | DV32: =IFERROR(VLOOKUP($A32,'2004'!$C$3:$M$213,10,FALSE),0) -> 1 | DW32: =IFERROR(VLOOKUP($A32,'2004'!$C$3:$M$213,11,FALSE),0) -> 0.6805555556 | DX32: =IFERROR(VLOOKUP($A32,'2003'!$C$3:$Q$214,12,FALSE),0) -> 0 | DY32: =IFERROR(VLOOKUP($A32,'2003'!$C$3:$Q$214,13,FALSE),0) -> 0 | DZ32: =IFERROR(VLOOKUP($A32,'2003'!$C$3:$Q$214,14,FALSE),0) -> 0 | EA32: =IFERROR(VLOOKUP($A32,'2003'!$C$3:$Q$214,15,FALSE),0) -> 0 | EB32: =IFERROR(VLOOKUP($A32,'2002'!$D$3:$R$214,12,FALSE),0) -> 0 | EC32: =IFERROR(VLOOKUP($A32,'2002'!$D$3:$R$214,13,FALSE),0) -> 0 | ED32: =IFERROR(VLOOKUP($A32,'2002'!$D$3:$R$214,14,FALSE),0) -> 0 | EE32: =IFERROR(VLOOKUP($A32,'2002'!$D$3:$R$214,15,FALSE),0) -> 0 | EF32: =IFERROR(VLOOKUP($A32,'Pre 2002'!$C$3:$CK$382,84,FALSE),0) -> 656 | EG32: =IFERROR(VLOOKUP($A32,'Pre 2002'!$C$3:$CK$382,85,FALSE),0) -> 370 | EH32: =IFERROR(VLOOKUP($A32,'Pre 2002'!$C$3:$CK$382,86,FALSE),0) -> 20 | EI32: =IFERROR(VLOOKUP($A32,'Pre 2002'!$C$3:$CK$382,87,FALSE),0) -> 0.5640243902 | EJ32: =IFERROR(VLOOKUP(A32,'Pre 2002'!$C$3:$CG$382,83,FALSE),0) -> 11
A33: Eric Peplowski | B33: 1504 | C33: 969 | D33: 50 | E33: 0.6442819149 | F33: 22 | G33: 2004 | H33: 11 | I33: 798 | J33: 535 | K33: 40 | L33: 0.6704260652 | M33: 04 | N33: 0 | O33: =IFERROR(VLOOKUP($A33,'2025'!$A$2:$J$222,4,FALSE),0) -> 56 | P33: =IFERROR(VLOOKUP($A33,'2025'!$A$2:$J$222,5,FALSE),0) -> 12 | Q33: =IFERROR(VLOOKUP($A33,'2025'!$A$2:$J$222,6,FALSE),0) -> 28 | R33: =IFERROR(VLOOKUP($A33,'2025'!$A$2:$J$222,9,FALSE),0) -> 0 | S33: =IFERROR(VLOOKUP($A33,'2025'!$A$2:$J$222,10,FALSE),0) -> 0.5 | T33: =IFERROR(VLOOKUP($A33,'2024'!$A$2:$M$220,6,FALSE),0) -> 57 | U33: =IFERROR(VLOOKUP($A33,'2024'!$A$2:$M$220,7,FALSE),0) -> 14 | V33: =IFERROR(VLOOKUP($A33,'2024'!$A$2:$M$220,8,FALSE),0) -> 32 | W33: =IFERROR(VLOOKUP($A33,'2024'!$A$2:$M$220,11,FALSE),0) -> 1 | X33: =IFERROR(VLOOKUP($A33,'2024'!$A$2:$M$220,13,FALSE),0) -> 0.561 | Y33: =IFERROR(VLOOKUP($A33,'2023'!$A$2:$M$170,6,FALSE),0) -> 76 | Z33: =IFERROR(VLOOKUP($A33,'2023'!$A$2:$M$170,7,FALSE),0) -> 24 | AA33: =IFERROR(VLOOKUP($A33,'2023'!$A$2:$M$170,8,FALSE),0) -> 43 | AB33: =IFERROR(VLOOKUP($A33,'2023'!$A$2:$M$170,11,FALSE),0) -> 1 | AC33: =IFERROR(VLOOKUP($A33,'2023'!$A$2:$M$170,13,FALSE),0) -> 0.566 | AD33: =IFERROR(VLOOKUP($A33,'2022'!$B$2:$K$174,3,FALSE),0) -> 70 | AE33: =IFERROR(VLOOKUP($A33,'2022'!$B$2:$K$174,4,FALSE),0) -> 29 | AF33: =IFERROR(VLOOKUP($A33,'2022'!$B$2:$K$174,5,FALSE),0) -> 44 | AG33: =IFERROR(VLOOKUP($A33,'2022'!$B$2:$K$174,8,FALSE),0) -> 0 | AH33: =IFERROR(VLOOKUP($A33,'2022'!$B$2:$K$174,10,FALSE),0) -> 0.629 | AI33: =IFERROR(VLOOKUP($A33,'2021'!$B$2:$K$174,3,FALSE),0) -> 68 | AJ33: =IFERROR(VLOOKUP($A33,'2021'!$B$2:$K$174,4,FALSE),0) -> 28 | AK33: =IFERROR(VLOOKUP($A33,'2021'!$B$2:$K$174,5,FALSE),0) -> 44 | AL33: =IFERROR(VLOOKUP($A33,'2021'!$B$2:$K$174,8,FALSE),0) -> 0 | AM33: =IFERROR(VLOOKUP($A33,'2021'!$B$2:$K$174,10,FALSE),0) -> 0.647 | AN33: =IFERROR(VLOOKUP($A33,'2020'!$B$2:$K$170,3,FALSE),0) -> 63 | AO33: =IFERROR(VLOOKUP($A33,'2020'!$B$2:$K$170,4,FALSE),0) -> 26 | AP33: =IFERROR(VLOOKUP($A33,'2020'!$B$2:$K$170,5,FALSE),0) -> 39 | AQ33: =IFERROR(VLOOKUP($A33,'2020'!$B$2:$K$170,8,FALSE),0) -> 4 | AR33: =IFERROR(VLOOKUP($A33,'2020'!$B$2:$K$170,10,FALSE),0) -> 0.619 | AS33: =IFERROR(VLOOKUP($A33,'2019'!$B$2:$K$170,3,FALSE),0) -> 66 | AT33: =IFERROR(VLOOKUP($A33,'2019'!$B$2:$K$170,4,FALSE),0) -> 28 | AU33: =IFERROR(VLOOKUP($A33,'2019'!$B$2:$K$170,5,FALSE),0) -> 39 | AV33: =IFERROR(VLOOKUP($A33,'2019'!$B$2:$K$170,8,FALSE),0) -> 3 | AW33: =IFERROR(VLOOKUP($A33,'2019'!$B$2:$K$170,10,FALSE),0) -> 0.591 | AX33: =IFERROR(VLOOKUP($A33,'2018'!$B$2:$K$170,3,FALSE),0) -> 56 | AY33: =IFERROR(VLOOKUP($A33,'2018'!$B$2:$K$170,4,FALSE),0) -> 24 | AZ33: =IFERROR(VLOOKUP($A33,'2018'!$B$2:$K$170,5,FALSE),0) -> 39 | BA33: =IFERROR(VLOOKUP($A33,'2018'!$B$2:$K$170,8,FALSE),0) -> 0 | BB33: =IFERROR(VLOOKUP($A33,'2018'!$B$2:$K$170,10,FALSE),0) -> 0.696 | BC33: =IFERROR(VLOOKUP($A33,'2017'!$B$2:$J$163,2,FALSE),0) -> 55 | BD33: =IFERROR(VLOOKUP($A33,'2017'!$B$2:$J$163,3,FALSE),0) -> 22 | BE33: =IFERROR(VLOOKUP($A33,'2017'!$B$2:$J$163,4,FALSE),0) -> 40 | BF33: =IFERROR(VLOOKUP($A33,'2017'!$B$2:$J$163,7,FALSE),0) -> 0 | BG33: =IFERROR(VLOOKUP($A33,'2017'!$B$2:$J$163,9,FALSE),0) -> 0.7272727273 | BH33: =IFERROR(VLOOKUP($A33,'2016'!$B$2:$K$165,3,FALSE),0) -> 77 | BI33: =IFERROR(VLOOKUP($A33,'2016'!$B$2:$K$165,4,FALSE),0) -> 21 | BJ33: =IFERROR(VLOOKUP($A33,'2016'!$B$2:$K$165,5,FALSE),0) -> 48 | BK33: =IFERROR(VLOOKUP($A33,'2016'!$B$2:$K$165,8,FALSE),0) -> 1 | BL33: =IFERROR(VLOOKUP($A33,'2016'!$B$2:$K$165,10,FALSE),0) -> 0.623 | BM33: =IFERROR(VLOOKUP($A33,'2015'!$B$2:$K$165,3,FALSE),0) -> 62 | BN33: =IFERROR(VLOOKUP($A33,'2015'!$B$2:$K$165,4,FALSE),0) -> 21 | BO33: =IFERROR(VLOOKUP($A33,'2015'!$B$2:$K$165,5,FALSE),0) -> 38 | BP33: =IFERROR(VLOOKUP($A33,'2015'!$B$2:$K$165,8,FALSE),0) -> 0 | BQ33: =IFERROR(VLOOKUP($A33,'2015'!$B$2:$K$165,10,FALSE),0) -> 0.6129032258 | BR33: =IFERROR(VLOOKUP($A33,'2014'!$B$2:$K$157,3,FALSE),0) -> 83 | BS33: =IFERROR(VLOOKUP($A33,'2014'!$B$2:$K$157,4,FALSE),0) -> 32 | BT33: =IFERROR(VLOOKUP($A33,'2014'!$B$2:$K$157,5,FALSE),0) -> 53 | BU33: =IFERROR(VLOOKUP($A33,'2014'!$B$2:$K$157,8,FALSE),0) -> 0 | BV33: =IFERROR(VLOOKUP($A33,'2014'!$B$2:$K$157,10,FALSE),0) -> 0.6385542169 | BW33: =IFERROR(VLOOKUP($A33,'2013'!$D$4:$I$249,2,FALSE),0) -> 78 | BX33: =IFERROR(VLOOKUP($A33,'2013'!$D$4:$I$249,3,FALSE),0) -> 43 | BY33: =IFERROR(VLOOKUP($A33,'2013'!$D$4:$I$249,4,FALSE),0) -> 55 | BZ33: =IFERROR(VLOOKUP($A33,'2013'!$D$4:$I$249,5,FALSE),0) -> 3 | CA33: =IFERROR(VLOOKUP($A33,'2013'!$D$4:$I$249,6,FALSE),0) -> 0.7051282051 | CB33: =IFERROR(VLOOKUP($A33,'2012'!$D$3:$O$172,2,FALSE),0) -> 632 | CC33: =IFERROR(VLOOKUP($A33,'2012'!$D$3:$O$172,3,FALSE),0) -> 424 | CD33: =IFERROR(VLOOKUP($A33,'2012'!$D$3:$O$172,4,FALSE),0) -> 37 | CE33: =IFERROR(VLOOKUP($A33,'2012'!$D$3:$O$172,5,FALSE),0) -> 66 | CF33: =IFERROR(VLOOKUP($A33,'2012'!$D$3:$O$172,6,FALSE),0) -> 29 | CG33: =IFERROR(VLOOKUP($A33,'2012'!$D$3:$O$172,7,FALSE),0) -> 48 | CH33: =IFERROR(VLOOKUP($A33,'2012'!$D$3:$O$172,8,FALSE),0) -> 3 | CI33: =IFERROR(VLOOKUP($A33,'2012'!$D$3:$O$172,9,FALSE),0) -> 0.7272727273 | CJ33: =IFERROR(VLOOKUP($A33,'2012'!$D$3:$O$172,10,FALSE),0) -> 566 | CK33: =IFERROR(VLOOKUP($A33,'2012'!$D$3:$O$172,11,FALSE),0) -> 376 | CL33: =IFERROR(VLOOKUP($A33,'2012'!$D$3:$O$172,12,FALSE),0) -> 34 | CM33: =IFERROR(VLOOKUP($A33,'2011'!$D$4:$I$251,2,FALSE),0) -> 71 | CN33: =IFERROR(VLOOKUP($A33,'2011'!$D$4:$I$251,3,FALSE),0) -> 30 | CO33: =IFERROR(VLOOKUP($A33,'2011'!$D$4:$I$251,4,FALSE),0) -> 39 | CP33: =IFERROR(VLOOKUP($A33,'2011'!$D$4:$I$251,5,FALSE),0) -> 2 | CQ33: =IFERROR(VLOOKUP($A33,'2011'!$D$4:$I$251,6,FALSE),0) -> 0.5492957746 | CR33: =IFERROR(VLOOKUP($A33,'2010'!$C$3:$H$234,2,FALSE),0) -> 83 | CS33: =IFERROR(VLOOKUP($A33,'2010'!$C$3:$H$234,3,FALSE),0) -> 43 | CT33: =IFERROR(VLOOKUP($A33,'2010'!$C$3:$H$234,4,FALSE),0) -> 59 | CU33: =IFERROR(VLOOKUP($A33,'2010'!$C$3:$H$234,5,FALSE),0) -> 4 | CV33: =IFERROR(VLOOKUP($A33,'2010'!$C$3:$H$234,6,FALSE),0) -> 0.7108433735 | CW33: =IFERROR(VLOOKUP($A33,'2009'!$C$3:$H$242,2,FALSE),0) -> 72 | CX33: =IFERROR(VLOOKUP($A33,'2009'!$C$3:$H$242,3,FALSE),0) -> 40 | CY33: =IFERROR(VLOOKUP($A33,'2009'!$C$3:$H$242,4,FALSE),0) -> 52 | CZ33: =IFERROR(VLOOKUP($A33,'2009'!$C$3:$H$242,5,FALSE),0) -> 7 | DA33: =IFERROR(VLOOKUP($A33,'2009'!$C$3:$H$242,6,FALSE),0) -> 0.7222222222 | DB33: =IFERROR(VLOOKUP($A33,'2008'!$C$3:$H$229,2,FALSE),0) -> 71 | DC33: =IFERROR(VLOOKUP($A33,'2008'!$C$3:$H$229,3,FALSE),0) -> 34 | DD33: =IFERROR(VLOOKUP($A33,'2008'!$C$3:$H$229,4,FALSE),0) -> 50 | DE33: =IFERROR(VLOOKUP($A33,'2008'!$C$3:$H$229,5,FALSE),0) -> 5 | DF33: =IFERROR(VLOOKUP($A33,'2008'!$C$3:$H$229,6,FALSE),0) -> 0.7042253521 | DG33: =IFERROR(VLOOKUP($A33,'2007'!$C$3:$M$238,7,FALSE),0) -> 72 | DH33: =IFERROR(VLOOKUP($A33,'2007'!$C$3:$M$238,8,FALSE),0) -> 32 | DI33: =IFERROR(VLOOKUP($A33,'2007'!$C$3:$M$238,9,FALSE),0) -> 41 | DJ33: =IFERROR(VLOOKUP($A33,'2007'!$C$3:$M$238,10,FALSE),0) -> 6 | DK33: =IFERROR(VLOOKUP($A33,'2007'!$C$3:$M$238,11,FALSE),0) -> 0.5694444444 | DL33: =IFERROR(VLOOKUP($A33,'2006'!$A$2:$F$200,2,FALSE),0) -> 80 | DM33: =IFERROR(VLOOKUP($A33,'2006'!$A$2:$F$200,4,FALSE),0) -> 54 | DN33: =IFERROR(VLOOKUP($A33,'2006'!$A$2:$F$200,5,FALSE),0) -> 5 | DO33: =IFERROR(VLOOKUP($A33,'2006'!$A$2:$F$200,6,FALSE),0) -> 0.675 | DP33: =IFERROR(VLOOKUP($A33,'2005'!$C$3:$M$205,8,FALSE),0) -> 70 | DQ33: =IFERROR(VLOOKUP($A33,'2005'!$C$3:$M$205,9,FALSE),0) -> 49 | DR33: =IFERROR(VLOOKUP($A33,'2005'!$C$3:$M$205,10,FALSE),0) -> 2 | DS33: =IFERROR(VLOOKUP($A33,'2005'!$C$3:$M$205,11,FALSE),0) -> 0.7 | DT33: =IFERROR(VLOOKUP($A33,'2004'!$C$3:$M$213,8,FALSE),0) -> 52 | DU33: =IFERROR(VLOOKUP($A33,'2004'!$C$3:$M$213,9,FALSE),0) -> 35 | DV33: =IFERROR(VLOOKUP($A33,'2004'!$C$3:$M$213,10,FALSE),0) -> 3 | DW33: =IFERROR(VLOOKUP($A33,'2004'!$C$3:$M$213,11,FALSE),0) -> 0.6730769231 | DX33: =IFERROR(VLOOKUP($A33,'2003'!$C$3:$Q$214,12,FALSE),0) -> 0 | DY33: =IFERROR(VLOOKUP($A33,'2003'!$C$3:$Q$214,13,FALSE),0) -> 0 | DZ33: =IFERROR(VLOOKUP($A33,'2003'!$C$3:$Q$214,14,FALSE),0) -> 0 | EA33: =IFERROR(VLOOKUP($A33,'2003'!$C$3:$Q$214,15,FALSE),0) -> 0 | EB33: =IFERROR(VLOOKUP($A33,'2002'!$D$3:$R$214,12,FALSE),0) -> 0 | EC33: =IFERROR(VLOOKUP($A33,'2002'!$D$3:$R$214,13,FALSE),0) -> 0 | ED33: =IFERROR(VLOOKUP($A33,'2002'!$D$3:$R$214,14,FALSE),0) -> 0 | EE33: =IFERROR(VLOOKUP($A33,'2002'!$D$3:$R$214,15,FALSE),0) -> 0 | EF33: =IFERROR(VLOOKUP($A33,'Pre 2002'!$C$3:$CK$382,84,FALSE),0) -> 0 | EG33: =IFERROR(VLOOKUP($A33,'Pre 2002'!$C$3:$CK$382,85,FALSE),0) -> 0 | EH33: =IFERROR(VLOOKUP($A33,'Pre 2002'!$C$3:$CK$382,86,FALSE),0) -> 0 | EI33: =IFERROR(VLOOKUP($A33,'Pre 2002'!$C$3:$CK$382,87,FALSE),0) -> 0 | EJ33: =IFERROR(VLOOKUP(A33,'Pre 2002'!$C$3:$CG$382,83,FALSE),0) -> 0
A34: Ron Brunson | B34: 1637 | C34: 948 | D34: 4 | E34: 0.5791081246 | F34: 22 | G34: 2004 | H34: 11 | I34: 823 | J34: 509 | K34: 4 | L34: 0.6184690158 | M34: 04 | N34: 1 | O34: =IFERROR(VLOOKUP($A34,'2025'!$A$2:$J$222,4,FALSE),0) -> 59 | P34: =IFERROR(VLOOKUP($A34,'2025'!$A$2:$J$222,5,FALSE),0) -> 11 | Q34: =IFERROR(VLOOKUP($A34,'2025'!$A$2:$J$222,6,FALSE),0) -> 22 | R34: =IFERROR(VLOOKUP($A34,'2025'!$A$2:$J$222,9,FALSE),0) -> 0 | S34: =IFERROR(VLOOKUP($A34,'2025'!$A$2:$J$222,10,FALSE),0) -> 0.373 | T34: =IFERROR(VLOOKUP($A34,'2024'!$A$2:$M$220,6,FALSE),0) -> 67 | U34: =IFERROR(VLOOKUP($A34,'2024'!$A$2:$M$220,7,FALSE),0) -> 17 | V34: =IFERROR(VLOOKUP($A34,'2024'!$A$2:$M$220,8,FALSE),0) -> 33 | W34: =IFERROR(VLOOKUP($A34,'2024'!$A$2:$M$220,11,FALSE),0) -> 0 | X34: =IFERROR(VLOOKUP($A34,'2024'!$A$2:$M$220,13,FALSE),0) -> 0.493 | Y34: =IFERROR(VLOOKUP($A34,'2023'!$A$2:$M$170,6,FALSE),0) -> 80 | Z34: =IFERROR(VLOOKUP($A34,'2023'!$A$2:$M$170,7,FALSE),0) -> 23 | AA34: =IFERROR(VLOOKUP($A34,'2023'!$A$2:$M$170,8,FALSE),0) -> 41 | AB34: =IFERROR(VLOOKUP($A34,'2023'!$A$2:$M$170,11,FALSE),0) -> 0 | AC34: =IFERROR(VLOOKUP($A34,'2023'!$A$2:$M$170,13,FALSE),0) -> 0.513 | AD34: =IFERROR(VLOOKUP($A34,'2022'!$B$2:$K$174,3,FALSE),0) -> 68 | AE34: =IFERROR(VLOOKUP($A34,'2022'!$B$2:$K$174,4,FALSE),0) -> 17 | AF34: =IFERROR(VLOOKUP($A34,'2022'!$B$2:$K$174,5,FALSE),0) -> 32 | AG34: =IFERROR(VLOOKUP($A34,'2022'!$B$2:$K$174,8,FALSE),0) -> 0 | AH34: =IFERROR(VLOOKUP($A34,'2022'!$B$2:$K$174,10,FALSE),0) -> 0.471 | AI34: =IFERROR(VLOOKUP($A34,'2021'!$B$2:$K$174,3,FALSE),0) -> 87 | AJ34: =IFERROR(VLOOKUP($A34,'2021'!$B$2:$K$174,4,FALSE),0) -> 31 | AK34: =IFERROR(VLOOKUP($A34,'2021'!$B$2:$K$174,5,FALSE),0) -> 45 | AL34: =IFERROR(VLOOKUP($A34,'2021'!$B$2:$K$174,8,FALSE),0) -> 0 | AM34: =IFERROR(VLOOKUP($A34,'2021'!$B$2:$K$174,10,FALSE),0) -> 0.517 | AN34: =IFERROR(VLOOKUP($A34,'2020'!$B$2:$K$170,3,FALSE),0) -> 82 | AO34: =IFERROR(VLOOKUP($A34,'2020'!$B$2:$K$170,4,FALSE),0) -> 28 | AP34: =IFERROR(VLOOKUP($A34,'2020'!$B$2:$K$170,5,FALSE),0) -> 47 | AQ34: =IFERROR(VLOOKUP($A34,'2020'!$B$2:$K$170,8,FALSE),0) -> 0 | AR34: =IFERROR(VLOOKUP($A34,'2020'!$B$2:$K$170,10,FALSE),0) -> 0.573 | AS34: =IFERROR(VLOOKUP($A34,'2019'!$B$2:$K$170,3,FALSE),0) -> 76 | AT34: =IFERROR(VLOOKUP($A34,'2019'!$B$2:$K$170,4,FALSE),0) -> 27 | AU34: =IFERROR(VLOOKUP($A34,'2019'!$B$2:$K$170,5,FALSE),0) -> 43 | AV34: =IFERROR(VLOOKUP($A34,'2019'!$B$2:$K$170,8,FALSE),0) -> 0 | AW34: =IFERROR(VLOOKUP($A34,'2019'!$B$2:$K$170,10,FALSE),0) -> 0.566 | AX34: =IFERROR(VLOOKUP($A34,'2018'!$B$2:$K$170,3,FALSE),0) -> 73 | AY34: =IFERROR(VLOOKUP($A34,'2018'!$B$2:$K$170,4,FALSE),0) -> 15 | AZ34: =IFERROR(VLOOKUP($A34,'2018'!$B$2:$K$170,5,FALSE),0) -> 37 | BA34: =IFERROR(VLOOKUP($A34,'2018'!$B$2:$K$170,8,FALSE),0) -> 0 | BB34: =IFERROR(VLOOKUP($A34,'2018'!$B$2:$K$170,10,FALSE),0) -> 0.507 | BC34: =IFERROR(VLOOKUP($A34,'2017'!$B$2:$J$163,2,FALSE),0) -> 68 | BD34: =IFERROR(VLOOKUP($A34,'2017'!$B$2:$J$163,3,FALSE),0) -> 29 | BE34: =IFERROR(VLOOKUP($A34,'2017'!$B$2:$J$163,4,FALSE),0) -> 40 | BF34: =IFERROR(VLOOKUP($A34,'2017'!$B$2:$J$163,7,FALSE),0) -> 0 | BG34: =IFERROR(VLOOKUP($A34,'2017'!$B$2:$J$163,9,FALSE),0) -> 0.5882352941 | BH34: =IFERROR(VLOOKUP($A34,'2016'!$B$2:$K$165,3,FALSE),0) -> 86 | BI34: =IFERROR(VLOOKUP($A34,'2016'!$B$2:$K$165,4,FALSE),0) -> 42 | BJ34: =IFERROR(VLOOKUP($A34,'2016'!$B$2:$K$165,5,FALSE),0) -> 58 | BK34: =IFERROR(VLOOKUP($A34,'2016'!$B$2:$K$165,8,FALSE),0) -> 0 | BL34: =IFERROR(VLOOKUP($A34,'2016'!$B$2:$K$165,10,FALSE),0) -> 0.674 | BM34: =IFERROR(VLOOKUP($A34,'2015'!$B$2:$K$165,3,FALSE),0) -> 68 | BN34: =IFERROR(VLOOKUP($A34,'2015'!$B$2:$K$165,4,FALSE),0) -> 22 | BO34: =IFERROR(VLOOKUP($A34,'2015'!$B$2:$K$165,5,FALSE),0) -> 41 | BP34: =IFERROR(VLOOKUP($A34,'2015'!$B$2:$K$165,8,FALSE),0) -> 0 | BQ34: =IFERROR(VLOOKUP($A34,'2015'!$B$2:$K$165,10,FALSE),0) -> 0.6029411765 | BR34: =IFERROR(VLOOKUP($A34,'2014'!$B$2:$K$157,3,FALSE),0) -> 65 | BS34: =IFERROR(VLOOKUP($A34,'2014'!$B$2:$K$157,4,FALSE),0) -> 15 | BT34: =IFERROR(VLOOKUP($A34,'2014'!$B$2:$K$157,5,FALSE),0) -> 33 | BU34: =IFERROR(VLOOKUP($A34,'2014'!$B$2:$K$157,8,FALSE),0) -> 0 | BV34: =IFERROR(VLOOKUP($A34,'2014'!$B$2:$K$157,10,FALSE),0) -> 0.5076923077 | BW34: =IFERROR(VLOOKUP($A34,'2013'!$D$4:$I$249,2,FALSE),0) -> 92 | BX34: =IFERROR(VLOOKUP($A34,'2013'!$D$4:$I$249,3,FALSE),0) -> 37 | BY34: =IFERROR(VLOOKUP($A34,'2013'!$D$4:$I$249,4,FALSE),0) -> 52 | BZ34: =IFERROR(VLOOKUP($A34,'2013'!$D$4:$I$249,5,FALSE),0) -> 0 | CA34: =IFERROR(VLOOKUP($A34,'2013'!$D$4:$I$249,6,FALSE),0) -> 0.5652173913 | CB34: =IFERROR(VLOOKUP($A34,'2012'!$D$3:$O$172,2,FALSE),0) -> 666 | CC34: =IFERROR(VLOOKUP($A34,'2012'!$D$3:$O$172,3,FALSE),0) -> 424 | CD34: =IFERROR(VLOOKUP($A34,'2012'!$D$3:$O$172,4,FALSE),0) -> 4 | CE34: =IFERROR(VLOOKUP($A34,'2012'!$D$3:$O$172,5,FALSE),0) -> 80 | CF34: =IFERROR(VLOOKUP($A34,'2012'!$D$3:$O$172,6,FALSE),0) -> 34 | CG34: =IFERROR(VLOOKUP($A34,'2012'!$D$3:$O$172,7,FALSE),0) -> 49 | CH34: =IFERROR(VLOOKUP($A34,'2012'!$D$3:$O$172,8,FALSE),0) -> 1 | CI34: =IFERROR(VLOOKUP($A34,'2012'!$D$3:$O$172,9,FALSE),0) -> 0.6125 | CJ34: =IFERROR(VLOOKUP($A34,'2012'!$D$3:$O$172,10,FALSE),0) -> 586 | CK34: =IFERROR(VLOOKUP($A34,'2012'!$D$3:$O$172,11,FALSE),0) -> 375 | CL34: =IFERROR(VLOOKUP($A34,'2012'!$D$3:$O$172,12,FALSE),0) -> 3 | CM34: =IFERROR(VLOOKUP($A34,'2011'!$D$4:$I$251,2,FALSE),0) -> 82 | CN34: =IFERROR(VLOOKUP($A34,'2011'!$D$4:$I$251,3,FALSE),0) -> 39 | CO34: =IFERROR(VLOOKUP($A34,'2011'!$D$4:$I$251,4,FALSE),0) -> 54 | CP34: =IFERROR(VLOOKUP($A34,'2011'!$D$4:$I$251,5,FALSE),0) -> 0 | CQ34: =IFERROR(VLOOKUP($A34,'2011'!$D$4:$I$251,6,FALSE),0) -> 0.6585365854 | CR34: =IFERROR(VLOOKUP($A34,'2010'!$C$3:$H$234,2,FALSE),0) -> 67 | CS34: =IFERROR(VLOOKUP($A34,'2010'!$C$3:$H$234,3,FALSE),0) -> 28 | CT34: =IFERROR(VLOOKUP($A34,'2010'!$C$3:$H$234,4,FALSE),0) -> 39 | CU34: =IFERROR(VLOOKUP($A34,'2010'!$C$3:$H$234,5,FALSE),0) -> 0 | CV34: =IFERROR(VLOOKUP($A34,'2010'!$C$3:$H$234,6,FALSE),0) -> 0.5820895522 | CW34: =IFERROR(VLOOKUP($A34,'2009'!$C$3:$H$242,2,FALSE),0) -> 75 | CX34: =IFERROR(VLOOKUP($A34,'2009'!$C$3:$H$242,3,FALSE),0) -> 35 | CY34: =IFERROR(VLOOKUP($A34,'2009'!$C$3:$H$242,4,FALSE),0) -> 48 | CZ34: =IFERROR(VLOOKUP($A34,'2009'!$C$3:$H$242,5,FALSE),0) -> 2 | DA34: =IFERROR(VLOOKUP($A34,'2009'!$C$3:$H$242,6,FALSE),0) -> 0.64 | DB34: =IFERROR(VLOOKUP($A34,'2008'!$C$3:$H$229,2,FALSE),0) -> 73 | DC34: =IFERROR(VLOOKUP($A34,'2008'!$C$3:$H$229,3,FALSE),0) -> 31 | DD34: =IFERROR(VLOOKUP($A34,'2008'!$C$3:$H$229,4,FALSE),0) -> 42 | DE34: =IFERROR(VLOOKUP($A34,'2008'!$C$3:$H$229,5,FALSE),0) -> 0 | DF34: =IFERROR(VLOOKUP($A34,'2008'!$C$3:$H$229,6,FALSE),0) -> 0.5753424658 | DG34: =IFERROR(VLOOKUP($A34,'2007'!$C$3:$M$238,7,FALSE),0) -> 62 | DH34: =IFERROR(VLOOKUP($A34,'2007'!$C$3:$M$238,8,FALSE),0) -> 22 | DI34: =IFERROR(VLOOKUP($A34,'2007'!$C$3:$M$238,9,FALSE),0) -> 46 | DJ34: =IFERROR(VLOOKUP($A34,'2007'!$C$3:$M$238,10,FALSE),0) -> 0 | DK34: =IFERROR(VLOOKUP($A34,'2007'!$C$3:$M$238,11,FALSE),0) -> 0.7419354839 | DL34: =IFERROR(VLOOKUP($A34,'2006'!$A$2:$F$200,2,FALSE),0) -> 63 | DM34: =IFERROR(VLOOKUP($A34,'2006'!$A$2:$F$200,4,FALSE),0) -> 33 | DN34: =IFERROR(VLOOKUP($A34,'2006'!$A$2:$F$200,5,FALSE),0) -> 0 | DO34: =IFERROR(VLOOKUP($A34,'2006'!$A$2:$F$200,6,FALSE),0) -> 0.5238095238 | DP34: =IFERROR(VLOOKUP($A34,'2005'!$C$3:$M$205,8,FALSE),0) -> 80 | DQ34: =IFERROR(VLOOKUP($A34,'2005'!$C$3:$M$205,9,FALSE),0) -> 56 | DR34: =IFERROR(VLOOKUP($A34,'2005'!$C$3:$M$205,10,FALSE),0) -> 0 | DS34: =IFERROR(VLOOKUP($A34,'2005'!$C$3:$M$205,11,FALSE),0) -> 0.7 | DT34: =IFERROR(VLOOKUP($A34,'2004'!$C$3:$M$213,8,FALSE),0) -> 84 | DU34: =IFERROR(VLOOKUP($A34,'2004'!$C$3:$M$213,9,FALSE),0) -> 57 | DV34: =IFERROR(VLOOKUP($A34,'2004'!$C$3:$M$213,10,FALSE),0) -> 1 | DW34: =IFERROR(VLOOKUP($A34,'2004'!$C$3:$M$213,11,FALSE),0) -> 0.6785714286 | DX34: =IFERROR(VLOOKUP($A34,'2003'!$C$3:$Q$214,12,FALSE),0) -> 0 | DY34: =IFERROR(VLOOKUP($A34,'2003'!$C$3:$Q$214,13,FALSE),0) -> 0 | DZ34: =IFERROR(VLOOKUP($A34,'2003'!$C$3:$Q$214,14,FALSE),0) -> 0 | EA34: =IFERROR(VLOOKUP($A34,'2003'!$C$3:$Q$214,15,FALSE),0) -> 0 | EB34: =IFERROR(VLOOKUP($A34,'2002'!$D$3:$R$214,12,FALSE),0) -> 0 | EC34: =IFERROR(VLOOKUP($A34,'2002'!$D$3:$R$214,13,FALSE),0) -> 0 | ED34: =IFERROR(VLOOKUP($A34,'2002'!$D$3:$R$214,14,FALSE),0) -> 0 | EE34: =IFERROR(VLOOKUP($A34,'2002'!$D$3:$R$214,15,FALSE),0) -> 0 | EF34: =IFERROR(VLOOKUP($A34,'Pre 2002'!$C$3:$CK$382,84,FALSE),0) -> 0 | EG34: =IFERROR(VLOOKUP($A34,'Pre 2002'!$C$3:$CK$382,85,FALSE),0) -> 0 | EH34: =IFERROR(VLOOKUP($A34,'Pre 2002'!$C$3:$CK$382,86,FALSE),0) -> 0 | EI34: =IFERROR(VLOOKUP($A34,'Pre 2002'!$C$3:$CK$382,87,FALSE),0) -> 0 | EJ34: =IFERROR(VLOOKUP(A34,'Pre 2002'!$C$3:$CG$382,83,FALSE),0) -> 0
A35: Ron Biggs | B35: 1729 | C35: 933 | D35: 12 | E35: 0.5396182765 | F35: 26 | G35: 2000 | H35: =IF(BR35>0,1,0)+IF(BW35>0,1,0)+IF(CE35>0,1,0)+IF(CM35>0,1,0)+IF(CR35>0,1,0)+IF(CW35>0,1,0)+IF(DB35>0,1,0)+IF(DG35>0,1,0)+IF(DL35>0,1,0)+IF(DP35>0,1,0)+IF(DT35>0,1,0)+IF(DX35>0,1,0)+IF(EB35>0,1,0)+EJ35 -> 15 | I35: =SUM(BR35,BW35,CE35,CM35,CR35,CW35,DB35,DG35,DL35,DP35,DT35,DX35,EB35,EF35) -> 1037 | J35: =SUM(BT35,BY35,CG35,CO35,CT35,CY35,DD35,DI35,DM35,DQ35,DU35,DY35,EC35,EG35) -> 560 | K35: =SUM(BU35,BZ35,CH35,CP35,CU35,CZ35,DE35,DJ35,DN35,DR35,DV35,DZ35,ED35,EH35) -> 11 | L35: =IF(I35=0,0,J35/I35) -> 0.5400192864 | M35: 00 | N35: 0 | O35: =IFERROR(VLOOKUP($A35,'2025'!$A$2:$J$222,4,FALSE),0) -> 53 | P35: =IFERROR(VLOOKUP($A35,'2025'!$A$2:$J$222,5,FALSE),0) -> 12 | Q35: =IFERROR(VLOOKUP($A35,'2025'!$A$2:$J$222,6,FALSE),0) -> 30 | R35: =IFERROR(VLOOKUP($A35,'2025'!$A$2:$J$222,9,FALSE),0) -> 0 | S35: =IFERROR(VLOOKUP($A35,'2025'!$A$2:$J$222,10,FALSE),0) -> 0.566 | T35: =IFERROR(VLOOKUP($A35,'2024'!$A$2:$M$220,6,FALSE),0) -> 71 | U35: =IFERROR(VLOOKUP($A35,'2024'!$A$2:$M$220,7,FALSE),0) -> 20 | V35: =IFERROR(VLOOKUP($A35,'2024'!$A$2:$M$220,8,FALSE),0) -> 40 | W35: =IFERROR(VLOOKUP($A35,'2024'!$A$2:$M$220,11,FALSE),0) -> 0 | X35: =IFERROR(VLOOKUP($A35,'2024'!$A$2:$M$220,13,FALSE),0) -> 0.563 | Y35: =IFERROR(VLOOKUP($A35,'2023'!$A$2:$M$170,6,FALSE),0) -> 74 | Z35: =IFERROR(VLOOKUP($A35,'2023'!$A$2:$M$170,7,FALSE),0) -> 11 | AA35: =IFERROR(VLOOKUP($A35,'2023'!$A$2:$M$170,8,FALSE),0) -> 38 | AB35: =IFERROR(VLOOKUP($A35,'2023'!$A$2:$M$170,11,FALSE),0) -> 0 | AC35: =IFERROR(VLOOKUP($A35,'2023'!$A$2:$M$170,13,FALSE),0) -> 0.514 | AD35: =IFERROR(VLOOKUP($A35,'2022'!$B$2:$K$174,3,FALSE),0) -> 45 | AE35: =IFERROR(VLOOKUP($A35,'2022'!$B$2:$K$174,4,FALSE),0) -> 8 | AF35: =IFERROR(VLOOKUP($A35,'2022'!$B$2:$K$174,5,FALSE),0) -> 19 | AG35: =IFERROR(VLOOKUP($A35,'2022'!$B$2:$K$174,8,FALSE),0) -> 0 | AH35: =IFERROR(VLOOKUP($A35,'2022'!$B$2:$K$174,10,FALSE),0) -> 0.422 | AI35: =IFERROR(VLOOKUP($A35,'2021'!$B$2:$K$174,3,FALSE),0) -> 83 | AJ35: =IFERROR(VLOOKUP($A35,'2021'!$B$2:$K$174,4,FALSE),0) -> 21 | AK35: =IFERROR(VLOOKUP($A35,'2021'!$B$2:$K$174,5,FALSE),0) -> 46 | AL35: =IFERROR(VLOOKUP($A35,'2021'!$B$2:$K$174,8,FALSE),0) -> 1 | AM35: =IFERROR(VLOOKUP($A35,'2021'!$B$2:$K$174,10,FALSE),0) -> 0.554 | AN35: =IFERROR(VLOOKUP($A35,'2020'!$B$2:$K$170,3,FALSE),0) -> 70 | AO35: =IFERROR(VLOOKUP($A35,'2020'!$B$2:$K$170,4,FALSE),0) -> 21 | AP35: =IFERROR(VLOOKUP($A35,'2020'!$B$2:$K$170,5,FALSE),0) -> 42 | AQ35: =IFERROR(VLOOKUP($A35,'2020'!$B$2:$K$170,8,FALSE),0) -> 0 | AR35: =IFERROR(VLOOKUP($A35,'2020'!$B$2:$K$170,10,FALSE),0) -> 0.6 | AS35: =IFERROR(VLOOKUP($A35,'2019'!$B$2:$K$170,3,FALSE),0) -> 52 | AT35: =IFERROR(VLOOKUP($A35,'2019'!$B$2:$K$170,4,FALSE),0) -> 21 | AU35: =IFERROR(VLOOKUP($A35,'2019'!$B$2:$K$170,5,FALSE),0) -> 33 | AV35: =IFERROR(VLOOKUP($A35,'2019'!$B$2:$K$170,8,FALSE),0) -> 0 | AW35: =IFERROR(VLOOKUP($A35,'2019'!$B$2:$K$170,10,FALSE),0) -> 0.635 | AX35: =IFERROR(VLOOKUP($A35,'2018'!$B$2:$K$170,3,FALSE),0) -> 55 | AY35: =IFERROR(VLOOKUP($A35,'2018'!$B$2:$K$170,4,FALSE),0) -> 13 | AZ35: =IFERROR(VLOOKUP($A35,'2018'!$B$2:$K$170,5,FALSE),0) -> 28 | BA35: =IFERROR(VLOOKUP($A35,'2018'!$B$2:$K$170,8,FALSE),0) -> 0 | BB35: =IFERROR(VLOOKUP($A35,'2018'!$B$2:$K$170,10,FALSE),0) -> 0.509 | BC35: =IFERROR(VLOOKUP($A35,'2017'!$B$2:$J$163,2,FALSE),0) -> 47 | BD35: =IFERROR(VLOOKUP($A35,'2017'!$B$2:$J$163,3,FALSE),0) -> 13 | BE35: =IFERROR(VLOOKUP($A35,'2017'!$B$2:$J$163,4,FALSE),0) -> 24 | BF35: =IFERROR(VLOOKUP($A35,'2017'!$B$2:$J$163,7,FALSE),0) -> 0 | BG35: =IFERROR(VLOOKUP($A35,'2017'!$B$2:$J$163,9,FALSE),0) -> 0.5106382979 | BH35: =IFERROR(VLOOKUP($A35,'2016'!$B$2:$K$165,3,FALSE),0) -> 72 | BI35: =IFERROR(VLOOKUP($A35,'2016'!$B$2:$K$165,4,FALSE),0) -> 31 | BJ35: =IFERROR(VLOOKUP($A35,'2016'!$B$2:$K$165,5,FALSE),0) -> 37 | BK35: =IFERROR(VLOOKUP($A35,'2016'!$B$2:$K$165,8,FALSE),0) -> 0 | BL35: =IFERROR(VLOOKUP($A35,'2016'!$B$2:$K$165,10,FALSE),0) -> 0.514 | BM35: =IFERROR(VLOOKUP($A35,'2015'!$B$2:$K$165,3,FALSE),0) -> 70 | BN35: =IFERROR(VLOOKUP($A35,'2015'!$B$2:$K$165,4,FALSE),0) -> 18 | BO35: =IFERROR(VLOOKUP($A35,'2015'!$B$2:$K$165,5,FALSE),0) -> 36 | BP35: =IFERROR(VLOOKUP($A35,'2015'!$B$2:$K$165,8,FALSE),0) -> 0 | BQ35: =IFERROR(VLOOKUP($A35,'2015'!$B$2:$K$165,10,FALSE),0) -> 0.5142857143 | BR35: =IFERROR(VLOOKUP($A35,'2014'!$B$2:$K$157,3,FALSE),0) -> 81 | BS35: =IFERROR(VLOOKUP($A35,'2014'!$B$2:$K$157,4,FALSE),0) -> 16 | BT35: =IFERROR(VLOOKUP($A35,'2014'!$B$2:$K$157,5,FALSE),0) -> 43 | BU35: =IFERROR(VLOOKUP($A35,'2014'!$B$2:$K$157,8,FALSE),0) -> 0 | BV35: =IFERROR(VLOOKUP($A35,'2014'!$B$2:$K$157,10,FALSE),0) -> 0.5308641975 | BW35: =IFERROR(VLOOKUP($A35,'2013'!$D$4:$I$249,2,FALSE),0) -> 80 | BX35: =IFERROR(VLOOKUP($A35,'2013'!$D$4:$I$249,3,FALSE),0) -> 22 | BY35: =IFERROR(VLOOKUP($A35,'2013'!$D$4:$I$249,4,FALSE),0) -> 36 | BZ35: =IFERROR(VLOOKUP($A35,'2013'!$D$4:$I$249,5,FALSE),0) -> 0 | CA35: =IFERROR(VLOOKUP($A35,'2013'!$D$4:$I$249,6,FALSE),0) -> 0.45 | CB35: =IFERROR(VLOOKUP($A35,'2012'!$D$3:$O$172,2,FALSE),0) -> 866 | CC35: =IFERROR(VLOOKUP($A35,'2012'!$D$3:$O$172,3,FALSE),0) -> 474 | CD35: =IFERROR(VLOOKUP($A35,'2012'!$D$3:$O$172,4,FALSE),0) -> 12 | CE35: =IFERROR(VLOOKUP($A35,'2012'!$D$3:$O$172,5,FALSE),0) -> 74 | CF35: =IFERROR(VLOOKUP($A35,'2012'!$D$3:$O$172,6,FALSE),0) -> 30 | CG35: =IFERROR(VLOOKUP($A35,'2012'!$D$3:$O$172,7,FALSE),0) -> 42 | CH35: =IFERROR(VLOOKUP($A35,'2012'!$D$3:$O$172,8,FALSE),0) -> 4 | CI35: =IFERROR(VLOOKUP($A35,'2012'!$D$3:$O$172,9,FALSE),0) -> 0.5675675676 | CJ35: =IFERROR(VLOOKUP($A35,'2012'!$D$3:$O$172,10,FALSE),0) -> 792 | CK35: =IFERROR(VLOOKUP($A35,'2012'!$D$3:$O$172,11,FALSE),0) -> 432 | CL35: =IFERROR(VLOOKUP($A35,'2012'!$D$3:$O$172,12,FALSE),0) -> 8 | CM35: =IFERROR(VLOOKUP($A35,'2011'!$D$4:$I$251,2,FALSE),0) -> 68 | CN35: =IFERROR(VLOOKUP($A35,'2011'!$D$4:$I$251,3,FALSE),0) -> 21 | CO35: =IFERROR(VLOOKUP($A35,'2011'!$D$4:$I$251,4,FALSE),0) -> 37 | CP35: =IFERROR(VLOOKUP($A35,'2011'!$D$4:$I$251,5,FALSE),0) -> 0 | CQ35: =IFERROR(VLOOKUP($A35,'2011'!$D$4:$I$251,6,FALSE),0) -> 0.5441176471 | CR35: =IFERROR(VLOOKUP($A35,'2010'!$C$3:$H$234,2,FALSE),0) -> 55 | CS35: =IFERROR(VLOOKUP($A35,'2010'!$C$3:$H$234,3,FALSE),0) -> 21 | CT35: =IFERROR(VLOOKUP($A35,'2010'!$C$3:$H$234,4,FALSE),0) -> 39 | CU35: =IFERROR(VLOOKUP($A35,'2010'!$C$3:$H$234,5,FALSE),0) -> 0 | CV35: =IFERROR(VLOOKUP($A35,'2010'!$C$3:$H$234,6,FALSE),0) -> 0.7090909091 | CW35: =IFERROR(VLOOKUP($A35,'2009'!$C$3:$H$242,2,FALSE),0) -> 59 | CX35: =IFERROR(VLOOKUP($A35,'2009'!$C$3:$H$242,3,FALSE),0) -> 18 | CY35: =IFERROR(VLOOKUP($A35,'2009'!$C$3:$H$242,4,FALSE),0) -> 33 | CZ35: =IFERROR(VLOOKUP($A35,'2009'!$C$3:$H$242,5,FALSE),0) -> 0 | DA35: =IFERROR(VLOOKUP($A35,'2009'!$C$3:$H$242,6,FALSE),0) -> 0.5593220339 | DB35: =IFERROR(VLOOKUP($A35,'2008'!$C$3:$H$229,2,FALSE),0) -> 63 | DC35: =IFERROR(VLOOKUP($A35,'2008'!$C$3:$H$229,3,FALSE),0) -> 15 | DD35: =IFERROR(VLOOKUP($A35,'2008'!$C$3:$H$229,4,FALSE),0) -> 29 | DE35: =IFERROR(VLOOKUP($A35,'2008'!$C$3:$H$229,5,FALSE),0) -> 1 | DF35: =IFERROR(VLOOKUP($A35,'2008'!$C$3:$H$229,6,FALSE),0) -> 0.4603174603 | DG35: =IFERROR(VLOOKUP($A35,'2007'!$C$3:$M$238,7,FALSE),0) -> 74 | DH35: =IFERROR(VLOOKUP($A35,'2007'!$C$3:$M$238,8,FALSE),0) -> 19 | DI35: =IFERROR(VLOOKUP($A35,'2007'!$C$3:$M$238,9,FALSE),0) -> 34 | DJ35: =IFERROR(VLOOKUP($A35,'2007'!$C$3:$M$238,10,FALSE),0) -> 1 | DK35: =IFERROR(VLOOKUP($A35,'2007'!$C$3:$M$238,11,FALSE),0) -> 0.4594594595 | DL35: =IFERROR(VLOOKUP($A35,'2006'!$A$2:$F$200,2,FALSE),0) -> 52 | DM35: =IFERROR(VLOOKUP($A35,'2006'!$A$2:$F$200,4,FALSE),0) -> 28 | DN35: =IFERROR(VLOOKUP($A35,'2006'!$A$2:$F$200,5,FALSE),0) -> 0 | DO35: =IFERROR(VLOOKUP($A35,'2006'!$A$2:$F$200,6,FALSE),0) -> 0.5384615385 | DP35: =IFERROR(VLOOKUP($A35,'2005'!$C$3:$M$205,8,FALSE),0) -> 75 | DQ35: =IFERROR(VLOOKUP($A35,'2005'!$C$3:$M$205,9,FALSE),0) -> 44 | DR35: =IFERROR(VLOOKUP($A35,'2005'!$C$3:$M$205,10,FALSE),0) -> 0 | DS35: =IFERROR(VLOOKUP($A35,'2005'!$C$3:$M$205,11,FALSE),0) -> 0.5866666667 | DT35: =IFERROR(VLOOKUP($A35,'2004'!$C$3:$M$213,8,FALSE),0) -> 78 | DU35: =IFERROR(VLOOKUP($A35,'2004'!$C$3:$M$213,9,FALSE),0) -> 47 | DV35: =IFERROR(VLOOKUP($A35,'2004'!$C$3:$M$213,10,FALSE),0) -> 2 | DW35: =IFERROR(VLOOKUP($A35,'2004'!$C$3:$M$213,11,FALSE),0) -> 0.6025641026 | DX35: =IFERROR(VLOOKUP($A35,'2003'!$C$3:$Q$214,12,FALSE),0) -> 74 | DY35: =IFERROR(VLOOKUP($A35,'2003'!$C$3:$Q$214,13,FALSE),0) -> 45 | DZ35: =IFERROR(VLOOKUP($A35,'2003'!$C$3:$Q$214,14,FALSE),0) -> 0 | EA35: =IFERROR(VLOOKUP($A35,'2003'!$C$3:$Q$214,15,FALSE),0) -> 0.6081081081 | EB35: =IFERROR(VLOOKUP($A35,'2002'!$D$3:$R$214,12,FALSE),0) -> 58 | EC35: =IFERROR(VLOOKUP($A35,'2002'!$D$3:$R$214,13,FALSE),0) -> 25 | ED35: =IFERROR(VLOOKUP($A35,'2002'!$D$3:$R$214,14,FALSE),0) -> 0 | EE35: =IFERROR(VLOOKUP($A35,'2002'!$D$3:$R$214,15,FALSE),0) -> 0.4310344828 | EF35: =IFERROR(VLOOKUP($A35,'Pre 2002'!$C$3:$CK$382,84,FALSE),0) -> 146 | EG35: =IFERROR(VLOOKUP($A35,'Pre 2002'!$C$3:$CK$382,85,FALSE),0) -> 78 | EH35: =IFERROR(VLOOKUP($A35,'Pre 2002'!$C$3:$CK$382,86,FALSE),0) -> 3 | EI35: =IFERROR(VLOOKUP($A35,'Pre 2002'!$C$3:$CK$382,87,FALSE),0) -> 0.5342465753 | EJ35: =IFERROR(VLOOKUP(A35,'Pre 2002'!$C$3:$CG$382,83,FALSE),0) -> 2
A36: Fred Johnson | B36: 1708 | C36: 918 | D36: 46 | E36: 0.537470726 | F36: 32 | G36: 1982 | H36: 32 | I36: 1708 | J36: 918 | K36: 46 | L36: 0.537470726 | O36: =IFERROR(VLOOKUP($A36,'2025'!$A$2:$J$222,4,FALSE),0) -> 0 | P36: =IFERROR(VLOOKUP($A36,'2025'!$A$2:$J$222,5,FALSE),0) -> 0 | Q36: =IFERROR(VLOOKUP($A36,'2025'!$A$2:$J$222,6,FALSE),0) -> 0 | R36: =IFERROR(VLOOKUP($A36,'2025'!$A$2:$J$222,9,FALSE),0) -> 0 | S36: =IFERROR(VLOOKUP($A36,'2025'!$A$2:$J$222,10,FALSE),0) -> 0 | T36: =IFERROR(VLOOKUP($A36,'2024'!$A$2:$M$220,6,FALSE),0) -> 0 | U36: =IFERROR(VLOOKUP($A36,'2024'!$A$2:$M$220,7,FALSE),0) -> 0 | V36: =IFERROR(VLOOKUP($A36,'2024'!$A$2:$M$220,8,FALSE),0) -> 0 | W36: =IFERROR(VLOOKUP($A36,'2024'!$A$2:$M$220,11,FALSE),0) -> 0 | X36: =IFERROR(VLOOKUP($A36,'2024'!$A$2:$M$220,13,FALSE),0) -> 0 | Y36: =IFERROR(VLOOKUP($A36,'2023'!$A$2:$M$170,6,FALSE),0) -> 0 | Z36: =IFERROR(VLOOKUP($A36,'2023'!$A$2:$M$170,7,FALSE),0) -> 0 | AA36: =IFERROR(VLOOKUP($A36,'2023'!$A$2:$M$170,8,FALSE),0) -> 0 | AB36: =IFERROR(VLOOKUP($A36,'2023'!$A$2:$M$170,11,FALSE),0) -> 0 | AC36: =IFERROR(VLOOKUP($A36,'2023'!$A$2:$M$170,13,FALSE),0) -> 0 | AD36: =IFERROR(VLOOKUP($A36,'2022'!$B$2:$K$174,3,FALSE),0) -> 0 | AE36: =IFERROR(VLOOKUP($A36,'2022'!$B$2:$K$174,4,FALSE),0) -> 0 | AF36: =IFERROR(VLOOKUP($A36,'2022'!$B$2:$K$174,5,FALSE),0) -> 0 | AG36: =IFERROR(VLOOKUP($A36,'2022'!$B$2:$K$174,8,FALSE),0) -> 0 | AH36: =IFERROR(VLOOKUP($A36,'2022'!$B$2:$K$174,10,FALSE),0) -> 0 | AI36: =IFERROR(VLOOKUP($A36,'2021'!$B$2:$K$174,3,FALSE),0) -> 0 | AJ36: =IFERROR(VLOOKUP($A36,'2021'!$B$2:$K$174,4,FALSE),0) -> 0 | AK36: =IFERROR(VLOOKUP($A36,'2021'!$B$2:$K$174,5,FALSE),0) -> 0 | AL36: =IFERROR(VLOOKUP($A36,'2021'!$B$2:$K$174,8,FALSE),0) -> 0 | AM36: =IFERROR(VLOOKUP($A36,'2021'!$B$2:$K$174,10,FALSE),0) -> 0 | AN36: =IFERROR(VLOOKUP($A36,'2020'!$B$2:$K$170,3,FALSE),0) -> 0 | AO36: =IFERROR(VLOOKUP($A36,'2020'!$B$2:$K$170,4,FALSE),0) -> 0 | AP36: =IFERROR(VLOOKUP($A36,'2020'!$B$2:$K$170,5,FALSE),0) -> 0 | AQ36: =IFERROR(VLOOKUP($A36,'2020'!$B$2:$K$170,8,FALSE),0) -> 0 | AR36: =IFERROR(VLOOKUP($A36,'2020'!$B$2:$K$170,10,FALSE),0) -> 0 | AS36: =IFERROR(VLOOKUP($A36,'2019'!$B$2:$K$170,3,FALSE),0) -> 0 | AT36: =IFERROR(VLOOKUP($A36,'2019'!$B$2:$K$170,4,FALSE),0) -> 0 | AU36: =IFERROR(VLOOKUP($A36,'2019'!$B$2:$K$170,5,FALSE),0) -> 0 | AV36: =IFERROR(VLOOKUP($A36,'2019'!$B$2:$K$170,8,FALSE),0) -> 0 | AW36: =IFERROR(VLOOKUP($A36,'2019'!$B$2:$K$170,10,FALSE),0) -> 0 | AX36: =IFERROR(VLOOKUP($A36,'2018'!$B$2:$K$170,3,FALSE),0) -> 0 | AY36: =IFERROR(VLOOKUP($A36,'2018'!$B$2:$K$170,4,FALSE),0) -> 0 | AZ36: =IFERROR(VLOOKUP($A36,'2018'!$B$2:$K$170,5,FALSE),0) -> 0 | BA36: =IFERROR(VLOOKUP($A36,'2018'!$B$2:$K$170,8,FALSE),0) -> 0 | BB36: =IFERROR(VLOOKUP($A36,'2018'!$B$2:$K$170,10,FALSE),0) -> 0 | BC36: =IFERROR(VLOOKUP($A36,'2017'!$B$2:$J$163,2,FALSE),0) -> 0 | BD36: =IFERROR(VLOOKUP($A36,'2017'!$B$2:$J$163,3,FALSE),0) -> 0 | BE36: =IFERROR(VLOOKUP($A36,'2017'!$B$2:$J$163,4,FALSE),0) -> 0 | BF36: =IFERROR(VLOOKUP($A36,'2017'!$B$2:$J$163,7,FALSE),0) -> 0 | BG36: =IFERROR(VLOOKUP($A36,'2017'!$B$2:$J$163,9,FALSE),0) -> 0 | BH36: =IFERROR(VLOOKUP($A36,'2016'!$B$2:$K$165,3,FALSE),0) -> 0 | BI36: =IFERROR(VLOOKUP($A36,'2016'!$B$2:$K$165,4,FALSE),0) -> 0 | BJ36: =IFERROR(VLOOKUP($A36,'2016'!$B$2:$K$165,5,FALSE),0) -> 0 | BK36: =IFERROR(VLOOKUP($A36,'2016'!$B$2:$K$165,8,FALSE),0) -> 0 | BL36: =IFERROR(VLOOKUP($A36,'2016'!$B$2:$K$165,10,FALSE),0) -> 0 | BM36: =IFERROR(VLOOKUP($A36,'2015'!$B$2:$K$165,3,FALSE),0) -> 0 | BN36: =IFERROR(VLOOKUP($A36,'2015'!$B$2:$K$165,4,FALSE),0) -> 0 | BO36: =IFERROR(VLOOKUP($A36,'2015'!$B$2:$K$165,5,FALSE),0) -> 0 | BP36: =IFERROR(VLOOKUP($A36,'2015'!$B$2:$K$165,8,FALSE),0) -> 0 | BQ36: =IFERROR(VLOOKUP($A36,'2015'!$B$2:$K$165,10,FALSE),0) -> 0 | BR36: =IFERROR(VLOOKUP($A36,'2014'!$B$2:$K$157,3,FALSE),0) -> 0 | BS36: =IFERROR(VLOOKUP($A36,'2014'!$B$2:$K$157,4,FALSE),0) -> 0 | BT36: =IFERROR(VLOOKUP($A36,'2014'!$B$2:$K$157,5,FALSE),0) -> 0 | BU36: =IFERROR(VLOOKUP($A36,'2014'!$B$2:$K$157,8,FALSE),0) -> 0 | BV36: =IFERROR(VLOOKUP($A36,'2014'!$B$2:$K$157,10,FALSE),0) -> 0 | BW36: =IFERROR(VLOOKUP($A36,'2013'!$D$4:$I$249,2,FALSE),0) -> 44 | BX36: =IFERROR(VLOOKUP($A36,'2013'!$D$4:$I$249,3,FALSE),0) -> 15 | BY36: =IFERROR(VLOOKUP($A36,'2013'!$D$4:$I$249,4,FALSE),0) -> 24 | BZ36: =IFERROR(VLOOKUP($A36,'2013'!$D$4:$I$249,5,FALSE),0) -> 0 | CA36: =IFERROR(VLOOKUP($A36,'2013'!$D$4:$I$249,6,FALSE),0) -> 0.5454545455 | CB36: =IFERROR(VLOOKUP($A36,'2012'!$D$3:$O$172,2,FALSE),0) -> 1664 | CC36: =IFERROR(VLOOKUP($A36,'2012'!$D$3:$O$172,3,FALSE),0) -> 894 | CD36: =IFERROR(VLOOKUP($A36,'2012'!$D$3:$O$172,4,FALSE),0) -> 46 | CE36: =IFERROR(VLOOKUP($A36,'2012'!$D$3:$O$172,5,FALSE),0) -> 36 | CF36: =IFERROR(VLOOKUP($A36,'2012'!$D$3:$O$172,6,FALSE),0) -> 8 | CG36: =IFERROR(VLOOKUP($A36,'2012'!$D$3:$O$172,7,FALSE),0) -> 18 | CH36: =IFERROR(VLOOKUP($A36,'2012'!$D$3:$O$172,8,FALSE),0) -> 0 | CI36: =IFERROR(VLOOKUP($A36,'2012'!$D$3:$O$172,9,FALSE),0) -> 0.5 | CJ36: =IFERROR(VLOOKUP($A36,'2012'!$D$3:$O$172,10,FALSE),0) -> 1628 | CK36: =IFERROR(VLOOKUP($A36,'2012'!$D$3:$O$172,11,FALSE),0) -> 876 | CL36: =IFERROR(VLOOKUP($A36,'2012'!$D$3:$O$172,12,FALSE),0) -> 46 | CM36: =IFERROR(VLOOKUP($A36,'2011'!$D$4:$I$251,2,FALSE),0) -> 57 | CN36: =IFERROR(VLOOKUP($A36,'2011'!$D$4:$I$251,3,FALSE),0) -> 11 | CO36: =IFERROR(VLOOKUP($A36,'2011'!$D$4:$I$251,4,FALSE),0) -> 25 | CP36: =IFERROR(VLOOKUP($A36,'2011'!$D$4:$I$251,5,FALSE),0) -> 0 | CQ36: =IFERROR(VLOOKUP($A36,'2011'!$D$4:$I$251,6,FALSE),0) -> 0.4385964912 | CR36: =IFERROR(VLOOKUP($A36,'2010'!$C$3:$H$234,2,FALSE),0) -> 51 | CS36: =IFERROR(VLOOKUP($A36,'2010'!$C$3:$H$234,3,FALSE),0) -> 17 | CT36: =IFERROR(VLOOKUP($A36,'2010'!$C$3:$H$234,4,FALSE),0) -> 33 | CU36: =IFERROR(VLOOKUP($A36,'2010'!$C$3:$H$234,5,FALSE),0) -> 0 | CV36: =IFERROR(VLOOKUP($A36,'2010'!$C$3:$H$234,6,FALSE),0) -> 0.6470588235 | CW36: =IFERROR(VLOOKUP($A36,'2009'!$C$3:$H$242,2,FALSE),0) -> 53 | CX36: =IFERROR(VLOOKUP($A36,'2009'!$C$3:$H$242,3,FALSE),0) -> 10 | CY36: =IFERROR(VLOOKUP($A36,'2009'!$C$3:$H$242,4,FALSE),0) -> 25 | CZ36: =IFERROR(VLOOKUP($A36,'2009'!$C$3:$H$242,5,FALSE),0) -> 0 | DA36: =IFERROR(VLOOKUP($A36,'2009'!$C$3:$H$242,6,FALSE),0) -> 0.4716981132 | DB36: =IFERROR(VLOOKUP($A36,'2008'!$C$3:$H$229,2,FALSE),0) -> 31 | DC36: =IFERROR(VLOOKUP($A36,'2008'!$C$3:$H$229,3,FALSE),0) -> 7 | DD36: =IFERROR(VLOOKUP($A36,'2008'!$C$3:$H$229,4,FALSE),0) -> 14 | DE36: =IFERROR(VLOOKUP($A36,'2008'!$C$3:$H$229,5,FALSE),0) -> 0 | DF36: =IFERROR(VLOOKUP($A36,'2008'!$C$3:$H$229,6,FALSE),0) -> 0.4516129032 | DG36: =IFERROR(VLOOKUP($A36,'2007'!$C$3:$M$238,7,FALSE),0) -> 29 | DH36: =IFERROR(VLOOKUP($A36,'2007'!$C$3:$M$238,8,FALSE),0) -> 7 | DI36: =IFERROR(VLOOKUP($A36,'2007'!$C$3:$M$238,9,FALSE),0) -> 10 | DJ36: =IFERROR(VLOOKUP($A36,'2007'!$C$3:$M$238,10,FALSE),0) -> 0 | DK36: =IFERROR(VLOOKUP($A36,'2007'!$C$3:$M$238,11,FALSE),0) -> 0.3448275862 | DL36: =IFERROR(VLOOKUP($A36,'2006'!$A$2:$F$200,2,FALSE),0) -> 27 | DM36: =IFERROR(VLOOKUP($A36,'2006'!$A$2:$F$200,4,FALSE),0) -> 11 | DN36: =IFERROR(VLOOKUP($A36,'2006'!$A$2:$F$200,5,FALSE),0) -> 0 | DO36: =IFERROR(VLOOKUP($A36,'2006'!$A$2:$F$200,6,FALSE),0) -> 0.4074074074 | DP36: =IFERROR(VLOOKUP($A36,'2005'!$C$3:$M$205,8,FALSE),0) -> 44 | DQ36: =IFERROR(VLOOKUP($A36,'2005'!$C$3:$M$205,9,FALSE),0) -> 23 | DR36: =IFERROR(VLOOKUP($A36,'2005'!$C$3:$M$205,10,FALSE),0) -> 0 | DS36: =IFERROR(VLOOKUP($A36,'2005'!$C$3:$M$205,11,FALSE),0) -> 0.5227272727 | DT36: =IFERROR(VLOOKUP($A36,'2004'!$C$3:$M$213,8,FALSE),0) -> 5 | DU36: =IFERROR(VLOOKUP($A36,'2004'!$C$3:$M$213,9,FALSE),0) -> 2 | DV36: =IFERROR(VLOOKUP($A36,'2004'!$C$3:$M$213,10,FALSE),0) -> 0 | DW36: =IFERROR(VLOOKUP($A36,'2004'!$C$3:$M$213,11,FALSE),0) -> 0.4 | DX36: =IFERROR(VLOOKUP($A36,'2003'!$C$3:$Q$214,12,FALSE),0) -> 9 | DY36: =IFERROR(VLOOKUP($A36,'2003'!$C$3:$Q$214,13,FALSE),0) -> 3 | DZ36: =IFERROR(VLOOKUP($A36,'2003'!$C$3:$Q$214,14,FALSE),0) -> 0 | EA36: =IFERROR(VLOOKUP($A36,'2003'!$C$3:$Q$214,15,FALSE),0) -> 0.3333333333 | EB36: =IFERROR(VLOOKUP($A36,'2002'!$D$3:$R$214,12,FALSE),0) -> 54 | EC36: =IFERROR(VLOOKUP($A36,'2002'!$D$3:$R$214,13,FALSE),0) -> 26 | ED36: =IFERROR(VLOOKUP($A36,'2002'!$D$3:$R$214,14,FALSE),0) -> 0 | EE36: =IFERROR(VLOOKUP($A36,'2002'!$D$3:$R$214,15,FALSE),0) -> 0.4814814815 | EF36: =IFERROR(VLOOKUP($A36,'Pre 2002'!$C$3:$CK$382,84,FALSE),0) -> 1268 | EG36: =IFERROR(VLOOKUP($A36,'Pre 2002'!$C$3:$CK$382,85,FALSE),0) -> 704 | EH36: =IFERROR(VLOOKUP($A36,'Pre 2002'!$C$3:$CK$382,86,FALSE),0) -> 46 | EI36: =IFERROR(VLOOKUP($A36,'Pre 2002'!$C$3:$CK$382,87,FALSE),0) -> 0.5552050473 | EJ36: =IFERROR(VLOOKUP(A36,'Pre 2002'!$C$3:$CG$382,83,FALSE),0) -> 20
